Workbook

Sheet Front
A1: Bamboo Biofencing Model | G1: Variables
A4: Please enter linear dimension of Bio-fence in meters2: | E4: 100
G5: Cost per kWh | K5: 8.247
G6: Species' GJ/t | K6: 17
A7: Bamboo Specifications | G7: Clumps per meter2: | K7: 15
A8: Biological name | B8: Bambusa Bambos | G8: Culms per clump: | K8: 4
A9: Common/Local name | B9: Thorny Bamboo | G9: Cost per clump: | K9: 10
A10: Height | B10: Up to 30 meters | G10: New Shoots per year: | K10: 6
A11: Minimum temp (celsius) | B11: -2.77 | G11: Mature Diameter: (cm) | K11: 4
A12: Max Dia (cm) | B12: 18 | G12: Harvest Density: (%) | K12: 25
A13: Years to maturity | B13: 5 to 6 | G13: Full Density: (%) | K13: 50
A14: Cost Per Clump | B14: =K9 -> 10 | G14: Culling Rate: | K14: 0.2
A15: Clumps Per M2 | B15: =K7 -> 15 | G15: Maximum Diameter: (cm) | K15: 15.5
G16: Allometric Constant (a): | I16: -0.8838 | J16: (b): | K16: 3.1908
A17: Economic Estimate | G17: Percent Increase in Harvest Diameter | K17: 30
A18: Setup costs | D18: Net Returns | G18: Labor Rates: | H18: Worker | I18: Cement | J18: Wiring
A19: Material Cost: Plants | C19: =B14*B15*E4 -> 15000 | D19: Year 1 | E19: =Returns!C3-Returns!B3 -> 274244.3969 | H19: 200 | I19: 350 | J19: 450
A20: Material Cost: Infrastructure | C20: =SUM('Detailed Information'!F30:F34) -> 29480 | D20: Year 2 | E20: =Returns!C4-Returns!B4 -> -2400 | G20: Average Diameter by Year: (cm)
A21: Labor Cost: Planting | C21: ='Detailed Information'!D17 -> 3200 | D21: Year 3 | E21: =Returns!C5-Returns!B5 -> -3200 | G21: Year 1 | H21: Year 2 | I21: Year 3 | J21: Year 4 | K21: Year 5
A22: Labor Cost: Infrastructure | C22: ='Detailed Information'!D10 -> 7000 | D22: Year 4 | E22: =Returns!C6-Returns!B6 -> 9436.911299 | G22: 2.3 | H22: 3.3 | I22: 4.3 | J22: 4.8 | K22: 6.3
A23: Total Setup Costs: | C23: =SUM(C19:C22) -> 54680 | D23: Year 5 | E23: =Returns!C7-Returns!B7 -> 20299.18983 | G23: Effective Conditions on Growth Rate:
A24: Operating Costs | D24: Year 6 | E24: =Returns!C8-Returns!B8 -> 14231.26596 | H24: Wet | I24: Dry | J24: Wet Fertigated | K24: Dry Fertigated
A25: Annual Cost | C25: ='Detailed Information'!D24 -> 2400 | D25: Year 7 | E25: =Returns!C9-Returns!B9 -> 17509.62456 | G25: Diameter | H25: 0 | I25: -0.1 | J25: 0.05 | K25: 0.05
A26: Annual Cost Once Culling Begins | C26: ='Detailed Information'!I24 -> 3200 | D26: Year 8 | E26: =Returns!C10-Returns!B10 -> 21195.91757 | G26: Shoot | H26: 0 | I26: -0.1 | J26: 0.05 | K26: 0.05
A27: Set-up Cost Savings | D27: Year 9 | E27: =Returns!C11-Returns!B11 -> 23866.12701
A28: Hybrid fence compared to Pukka wall: | C28: ='Detailed Information'!E43 -> 125120 | D28: Year 10 | E28: =Returns!C12-Returns!B12 -> 26600.22959 | G28: Energy Efficiency % | I28: 0.25
A29: Biofence compared to Pukka wall: | C29: ='Detailed Information'!E44 -> 161600 | D29: Total Return: | E29: =SUM(E19:E28) -> 401783.6627
A30: Net Energy over 10 years (kWh)
B31: Wet Conditions | C31: Dry Conditions | D31: Wet Fertigated | E31: Dry Fertigated
A32: Hybrid Fence: | B32: =Returns!D13 -> 59035.24466 | C32: =Returns!D43 -> 44556.77047 | D32: =Returns!D103 -> 72784.0754 | E32: =Returns!D73 -> 72784.0754
A33: Biofence: | B33: =Returns!H13 -> 64406.77287 | C33: =Returns!H43 -> 49928.29868 | D33: =Returns!H103 -> 78155.60361 | E33: =Returns!H73 -> 78155.60361
A34: Pukka Wall | B34: =Returns!L13 -> -45546.7031 | C34: =Returns!L43 -> -45546.7031 | D34: =Returns!L103 -> -45546.7031 | E34: =Returns!L73 -> -45546.7031

Sheet Detailed Information
A1: LABOR COSTS
A3: Labor cost: Infrastructure | E3: Tasks
B4: Workers | C4: Cement specialist | D4: Wiring specialist
A5: Labor cost/day | B5: =Front!H19 -> 200 | C5: =Front!I19 -> 350 | D5: =Front!J19 -> 450
A6: Day 1 | B6: =INT(Front!E4/30)+1 -> 4 | C6: N/a | D6: N/a | E6: Clean area, mark and dig 1 hole every 2.7 meters (.61x.61x.61 (LBH) meters)
A7: Day 2 | B7: =INT(Front!E4/30)+1 -> 4 | C7: =INT(Front!E4/30)+1 -> 4 | D7: N/a | E7: Cement mixing + Insert iron rods+ pouring
A8: Day 3 | B8: =INT(Front!E4/30)+1 -> 4 | C8: =INT(Front!E4/30)+1 -> 4 | D8: =INT(Front!E4/30)+1 -> 4 | E8: Wiring + Building cement base around iron rod
A10: Total Labor Expense | D10: =SUM(B6:B8)*B5+SUM(C6:C8)*C5+SUM(D6:D8)*D5 -> 7000
A12: Labor cost: Planting | E12: Tasks
B13: Workers
A14: Labor cost/day | B14: =Front!H19 -> 200
A15: Day 4 | B15: =INT(Front!B15*Front!E4/200)+1 -> 8 | E15: Dig holes, manuring and planting
A16: Day 5 | B16: =INT(Front!B15*Front!E4/200)+1 -> 8
A17: Total Labor Expense | D17: =B14*(B15+B16) -> 3200
A19: Annual maintenance costs | E19: Tasks
B20: Workers
A21: Labor cost/day | B21: =Front!H19 -> 200
A22: 4 Days | B22: =INT(Front!E4/50)+1 -> 3 | E22: Weeding, soilworking
A23: 1 Day | B23: =INT(Front!E4/30)+1 -> 4 | E23: Culling beginning at year three
A24: Total Labor Expense Years 1-2 | D24: =(B21*B22)*4 -> 2400 | E24: Total Labor Expense Once Culling begins | I24: =(B21*B22)*4+(B21*B23) -> 3200 | L24: Joules savings
A26: INFRASTRUCTURE COSTS | L26: kgs of materials used on traditional wall
M27: per 75 feet | R27: per 100 feet | T27: Per/m | V27: Project dimension
A28: Infrastructure Material Cost | L28: Cement brick | M28: =1.5*3 -> 4.5 | N28: tons | O28: (3 loads, 1.5 tons per load) | R28: =M28/75*100*1000 -> 6000 | S28: kgs | T28: 196.8 | U28: kgs | V28: =T28*Front!E4 -> 19680 | W28: kgs
A29: Item | C29: Quantity per/m | D29: Project Quantity | E29: Cost INR | F29: Spend INR | L29: Cement | M29: =30*50 -> 1500 | N29: kg | O29: (30 bags of 50kgs each) | R29: =M29/75*100 -> 2000 | S29: kgs | T29: 65.6 | U29: kgs | V29: =T29*Front!E4 -> 6560 | W29: kgs
A30: Cement (bags) | C30: 0.2 | D30: =0.2*Front!E4 -> 20 | E30: 230 | F30: =E30*D30 -> 4600 | G30: 50kg per bag | L30: Sand | M30: =2*1 -> 2 | N30: tons | O30: (2 loads of 1 ton each) | R30: =M30/75*100*1000 -> 2666.666667 | S30: kgs | T30: 87.46 | U30: kgs | V30: =T30*Front!E4 -> 8746 | W30: kgs
A31: 12mm iron rods (kg) | C31: 1.97 | D31: =1.97*Front!E4 -> 197 | E31: 40 | F31: =E31*D31 -> 7880 | L31: Iron rods | M31: =12.2*12 -> 146.4 | N31: kg | O31: (22 ft of 12mm rods) | R31: =M31/75*100 -> 195.2 | S31: kgs | T31: 6.4 | U31: kgs | V31: =T31*Front!E4 -> 640 | W31: kgs
A32: Sand (bags) | C32: 0.36 | D32: =0.36*Front!E4 -> 36 | E32: 100 | F32: =E32*D32 -> 3600 | G32: 50kg per bag | L32: Rock stone | M32: =4*8 -> 32 | N32: tons | O32: (4 loads of 8 tons each) | R32: =M32/75*100*1000 -> 42666.66667 | S32: kgs | T32: 1399.46 | U32: kgs | V32: =T32*Front!E4 -> 139946 | W32: kgs
A33: Stones (bags) | C33: 0.36 | D33: =0.36*Front!E4 -> 36 | E33: 80 | F33: =E33*D33 -> 2880 | G33: 40kg per bag
A34: Nailwire (kg) | C34: 2.63 | D34: =2.63*Front!E4 -> 263 | E34: 40 | F34: =E34*D34 -> 10520 | L34: Materials savings per meter
C35: Per/m | D35: Project Total | M35: MJ per Kg | O35: Traditional wall | Q35: Energy Consumed | R35: Hybrid Wall | S35: Energy Consumed | T35: Hybrid MJ savings | U35: Biofence | V35: Energy Consumed | W35: Biofence MJ savings
A36: Total Material expense | C36: =C30*E30+C31*E31+C32*E32+C33*E33+C34*E34 -> 294.8 | D36: =SUM(F30:F34) -> 29480 | L36: Cement brick | M36: 5.7 | O36: =T28 -> 196.8 | Q36: =M36*O36 -> 1121.76 | R36: =0 -> 0 | S36: =R36*M36 -> 0 | T36: =Q36-S36 -> 1121.76 | U36: 0 | V36: =U36*M36 -> 0 | W36: =Q36-V36 -> 1121.76
L37: Cement | M37: 5.7 | O37: =T29 -> 65.6 | Q37: =M37*O37 -> 373.92 | R37: 10 | S37: =R37*M37 -> 57 | T37: =Q37-S37 -> 316.92 | U37: 0 | V37: =U37*M37 -> 0 | W37: =Q37-V37 -> 373.92
A38: Economic Gain (Loss) Comparisons | L38: Sand | M38: 0 | O38: =T30 -> 87.46 | Q38: 0 | R38: 18 | S38: 0 | T38: 0 | U38: 0 | V38: 0 | W38: 0
D39: Per m2 | E39: Project Dimensions | L39: Iron rods | M39: 22.5 | O39: =T31 -> 6.4 | Q39: 144 | R39: 1.97 | S39: 44.325 | T39: 99.675 | U39: 0 | V39: 0 | W39: 144
A40: Cost of a traditional Pukka wall: | D40: 1822 | E40: =D40*Front!E4 -> 182200 | L40: Rock stone | M40: 0 | O40: =T32 -> 1399.46 | Q40: 0 | R40: 14.4 | S40: 0 | T40: 0 | U40: 0 | V40: 0 | W40: 0
A41: Cost of Hybrid Fence: | D41: 570.8 | E41: =D36+D17+D10+Front!C19+D24 -> 57080 | L41: Nailwire | M41: 35 | O41: 0 | Q41: 0 | R41: 2.63 | S41: 92.05 | T41: -92.05 | U41: 0 | V41: 0 | W41: 0
A42: Cost of Biofence: | D42: 206 | E42: =D17+D24+Front!C19 -> 20600
A43: Economic Gain(Loss) of Hybrid to Pukka Wall: | D43: =D40-D41 -> 1251.2 | E43: =E40-E41 -> 125120 | L43: Hybrid wall Total Megajoules savings per meter | P43: =SUM(T36:T41) -> 1446.305 | Q43: Hybrid wall Total Gigajoules savings per meter | T43: =P43/1000 -> 1.446305
A44: Economic Gain(Loss) of Biofence to Pukka Wall: | D44: =D40-D42 -> 1616 | E44: =E40-E42 -> 161600 | L44: Biofence Total Megajoules savings per meter | P44: =SUM(W36:W41) -> 1639.68 | Q44: Biofence Total Gigajoules savings per meter | T44: =P44/1000 -> 1.63968
L46: Material savings for project dimensions
M47: MJ per Kg | O47: Traditional wall | Q47: Energy Consumed | R47: Hybrid Wall | S47: Energy Consumed | T47: MJ savings | U47: Biofence | V47: Energy Consumed | W47: Biofence MJ savings
L48: Cement brick | M48: 5.7 | O48: =O36*Front!E4 -> 19680 | Q48: =M48*O48 -> 112176 | R48: =R36*Front!$E$4 -> 0 | S48: =M48*R48 -> 0 | T48: =Q48-S48 -> 112176 | U48: 0 | V48: =U48*M48 -> 0 | W48: =Q48-V48 -> 112176
L49: Cement | M49: 5.7 | O49: =O37*Front!E4 -> 6560 | Q49: =M49*O49 -> 37392 | R49: =R37*Front!$E$4 -> 1000 | S49: =M49*R49 -> 5700 | T49: =Q49-S49 -> 31692 | U49: 0 | V49: =U49*M49 -> 0 | W49: =Q49-V49 -> 37392
L50: Sand | M50: 0 | O50: =O38*Front!E4 -> 8746 | Q50: 0 | R50: =R38*Front!$E$4 -> 1800 | S50: 0 | T50: 0 | U50: 0 | V50: 0 | W50: 0
L51: Iron rods | M51: 22.5 | O51: =O39*Front!E4 -> 640 | Q51: 14400 | R51: =R39*Front!$E$4 -> 197 | S51: 4432.5 | T51: 9967.5 | U51: 0 | V51: 0 | W51: 14400
L52: Rock stone | M52: 0 | O52: =O40*Front!E4 -> 139946 | Q52: 0 | R52: =R40*Front!$E$4 -> 1440 | S52: 0 | T52: 0 | U52: 0 | V52: 0 | W52: 0
L53: Nailwire | M53: 35 | O53: 0 | Q53: 0 | R53: =R41*Front!$E$4 -> 263 | S53: 9205 | T53: -9205 | U53: 0 | V53: 0 | W53: 0
Q54: =SUM(Q48:Q53) -> 163968 | R54: 4700 | S54: =SUM(S48:S53) -> 19337.5 | T54: =SUM(T48:T53) -> 144630.5 | U54: =SUM(U48:U53) -> 0 | V54: 0 | W54: =SUM(W48:W53) -> 163968
L55: Hybrid wall Total Megajoules savings per meter | P55: =SUM(T48:T53) -> 144630.5 | Q55: Hybrid wall Total Gigajoules savings per meter | T55: =P55/1000 -> 144.6305
L56: Biofence Total Megajoules savings per meter | P56: =SUM(W48:W53) -> 163968 | Q56: Biofence Total Gigajoules savings per meter | T56: =P56/1000 -> 163.968

Sheet Returns
A1: Wet Soil Conditions
A2: Hybrid Wall | B2: Costs | C2: Revenue | D2: Energy (kWh) | E2: Bio-fence | F2: Costs | G2: Revenue | H2: Energy (kWh) | I2: Pukka wall | J2: Cost | K2: Revenue | L2: Energy (kWh)
A3: Year 1 | B3: =Front!$C$23+Front!$C$25 -> 57080 | C3: =D3*Front!$K$5 -> 331324.3969 | D3: =((Biomass!$B$28/1000)*Front!$K$6*277.7778)+('Detailed Information'!$T$55*277.7778) -> 40175.1421 | E3: Year 1 | F3: =Front!$C$19+Front!$C$21+Front!$C$25 -> 20600 | G3: =H3*Front!$K$5 -> 375623.39 | H3: =((Biomass!$B$28/1000)*Front!$K$6*277.7778)+('Detailed Information'!$T$56*277.7778) -> 45546.67031 | I3: Year 1 | J3: ='Detailed Information'!E40 -> 182200 | K3: =L3*Front!$K$5 -> -375623.6605 | L3: =-(SUM('Detailed Information'!$Q$48:$Q$53)/1000)*277.778 -> -45546.7031
A4: Year 2 | B4: =Front!$C$25 -> 2400 | C4: =D4*Front!$K$5 -> 0 | D4: =((Biomass!$D$28/1000)*Front!$K$6*277.7778)*Front!$I$28 -> 0 | E4: Year 2 | F4: =Front!$C$25 -> 2400 | G4: =H4*Front!$K$5 -> 0 | H4: =((Biomass!$D$28/1000)*Front!$K$6*277.7778)*Front!$I$28 -> 0 | I4: Year 2 | J4: =0.01*J3 -> 1822 | K4: =L4*Front!$K$5 -> 0 | L4: 0
A5: Year 3 | B5: =Front!$C$26 -> 3200 | C5: =D5*Front!$K$5 -> 0 | D5: =((Biomass!$F$28/1000)*Front!$K$6*277.7778)*Front!$I$28 -> 0 | E5: Year 3 | F5: =Front!$C$26 -> 3200 | G5: =H5*Front!$K$5 -> 0 | H5: =((Biomass!$F$28/1000)*Front!$K$6*277.7778)*Front!$I$28 -> 0 | I5: Year 3 | J5: =0.01*J3 -> 1822 | K5: =L5*Front!$K$5 -> 0 | L5: 0
A6: Year 4 | B6: =Front!$C$26 -> 3200 | C6: =D6*Front!$K$5 -> 12636.9113 | D6: =((Biomass!$H$28/1000)*Front!$K$6*277.7778)*Front!$I$28 -> 1532.304026 | E6: Year 4 | F6: =Front!$C$26 -> 3200 | G6: =H6*Front!$K$5 -> 12636.9113 | H6: =((Biomass!$H$28/1000)*Front!$K$6*277.7778)*Front!$I$28 -> 1532.304026 | I6: Year 4 | J6: =0.01*J3 -> 1822 | K6: =L6*Front!$K$5 -> 0 | L6: 0
A7: Year 5 | B7: =Front!$C$26 -> 3200 | C7: =D7*Front!$K$5 -> 23499.18983 | D7: =((Biomass!$J$28/1000)*Front!$K$6*277.7778)*Front!$I$28 -> 2849.4228 | E7: Year 5 | F7: =Front!$C$26 -> 3200 | G7: =H7*Front!$K$5 -> 23499.18983 | H7: =((Biomass!$J$28/1000)*Front!$K$6*277.7778)*Front!$I$28 -> 2849.4228 | I7: Year 5 | J7: =0.01*J3 -> 1822 | K7: =L7*Front!$K$5 -> 0 | L7: 0
A8: Year 6 | B8: =Front!$C$26 -> 3200 | C8: =D8*Front!$K$5 -> 17431.26596 | D8: =((Biomass!$B$31/1000)*Front!$K$6*277.7778)*Front!$I$28 -> 2113.649322 | E8: Year 6 | F8: =Front!$C$26 -> 3200 | G8: =H8*Front!$K$5 -> 17431.26596 | H8: =((Biomass!$B$31/1000)*Front!$K$6*277.7778)*Front!$I$28 -> 2113.649322 | I8: Year 6 | J8: =0.01*J3 -> 1822 | K8: =L8*Front!$K$5 -> 0 | L8: 0
A9: Year 7 | B9: =Front!$C$26 -> 3200 | C9: =D9*Front!$K$5 -> 20709.62456 | D9: =((Biomass!$D$31/1000)*Front!$K$6*277.7778)*Front!$I$28 -> 2511.170675 | E9: Year 7 | F9: =Front!$C$26 -> 3200 | G9: =H9*Front!$K$5 -> 20709.62456 | H9: =((Biomass!$D$31/1000)*Front!$K$6*277.7778)*Front!$I$28 -> 2511.170675 | I9: Year 7 | J9: =0.01*J3 -> 1822 | K9: =L9*Front!$K$5 -> 0 | L9: 0
A10: Year 8 | B10: =Front!$C$26 -> 3200 | C10: =D10*Front!$K$5 -> 24395.91757 | D10: =((Biomass!$F$31/1000)*Front!$K$6*277.7778)*Front!$I$28 -> 2958.156611 | E10: Year 8 | F10: =Front!$C$26 -> 3200 | G10: =H10*Front!$K$5 -> 24395.91757 | H10: =((Biomass!$F$31/1000)*Front!$K$6*277.7778)*Front!$I$28 -> 2958.156611 | I10: Year 8 | J10: =0.01*J3 -> 1822 | K10: =L10*Front!$K$5 -> 0 | L10: 0
A11: Year 9 | B11: =Front!$C$26 -> 3200 | C11: =D11*Front!$K$5 -> 27066.12701 | D11: =((Biomass!$H$31/1000)*Front!$K$6*277.7778)*Front!$I$28 -> 3281.936099 | E11: Year 9 | F11: =Front!$C$26 -> 3200 | G11: =H11*Front!$K$5 -> 27066.12701 | H11: =((Biomass!$H$31/1000)*Front!$K$6*277.7778)*Front!$I$28 -> 3281.936099 | I11: Year 9 | J11: =0.01*J3 -> 1822 | K11: =L11*Front!$K$5 -> 0 | L11: 0
A12: Year 10 | B12: =Front!$C$26 -> 3200 | C12: =D12*Front!$K$5 -> 29800.22959 | D12: =((Biomass!$J$31/1000)*Front!$K$6*277.7778)*Front!$I$28 -> 3613.463028 | E12: Year 10 | F12: =Front!$C$26 -> 3200 | G12: =H12*Front!$K$5 -> 29800.22959 | H12: =((Biomass!$J$31/1000)*Front!$K$6*277.7778)*Front!$I$28 -> 3613.463028 | I12: Year 10 | J12: =0.01*J3 -> 1822 | K12: =L12*Front!$K$5 -> 0 | L12: 0
A13: Totals | B13: =SUM($B$3:$B$12) -> 85080 | C13: =SUM(C3:C12) -> 486863.6627 | D13: =SUM(D3:D12) -> 59035.24466 | E13: Totals | F13: =SUM(F3:F12) -> 48600 | G13: =SUM(G3:G12) -> 531162.6559 | H13: =SUM(H3:H12) -> 64406.77287 | I13: Totals | J13: =SUM(J3:J12) -> 198598 | K13: =SUM(K3:K12) -> -375623.6605 | L13: =L3 -> -45546.7031
A14: Net Return | B14: =C13-B13 -> 401783.6627 | E14: Net Return | F14: =G13-F13 -> 482562.6559 | I14: Net Return | J14: =K13-J13 -> -574221.6605
B16: Net Return Rs. | C16: Energy (kWh)
A17: Pukka Wall | B17: =J14 -> -574221.6605 | C17: =L13 -> -45546.7031
A18: Hybrid Wall | B18: =B14 -> 401783.6627 | C18: =D13 -> 59035.24466
A19: Bio-fence | B19: =F14 -> 482562.6559 | C19: =H13 -> 64406.77287
A31: Dry Soil Conditions
A32: Hybrid Wall | B32: Costs | C32: Revenue | D32: Energy (kWh) | E32: Bio-fence | F32: Costs | G32: Revenue | H32: Energy (kWh) | I32: Pukka wall | J32: Cost | K32: Revenue | L32: Energy (kWh)
A33: Year 1 | B33: =Front!$C$23+Front!$C$25 -> 57080 | C33: =D33*Front!$K$5 -> 331324.3969 | D33: =((Biomass!$B$55/1000)*Front!$K$6*277.7778)+('Detailed Information'!$T$55*277.7778) -> 40175.1421 | E33: Year 1 | F33: =Front!$C$19+Front!$C$21+Front!$C$25 -> 20600 | G33: =H33*Front!$K$5 -> 375623.39 | H33: =((Biomass!$B$55/1000)*Front!$K$6*277.7778)+('Detailed Information'!$T$56*277.7778) -> 45546.67031 | I33: Year 1 | J33: ='Detailed Information'!$E$40 -> 182200 | K33: =L33*Front!$K$5 -> -375623.6605 | L33: =-(SUM('Detailed Information'!$Q$48:$Q$53)/1000)*277.778 -> -45546.7031
A34: Year 2 | B34: =Front!$C$25 -> 2400 | C34: =D34*Front!$K$5 -> 0 | D34: =((Biomass!$D$55/1000)*Front!$K$6*277.7778)*Front!$I$28 -> 0 | E34: Year 2 | F34: =Front!$C$25 -> 2400 | G34: =H34*Front!$K$5 -> 0 | H34: =((Biomass!$D$55/1000)*Front!$K$6*277.7778)*Front!$I$28 -> 0 | I34: Year 2 | J34: =0.01*J33 -> 1822 | K34: =L34*Front!$K$5 -> 0 | L34: 0
A35: Year 3 | B35: =Front!$C$26 -> 3200 | C35: =D35*Front!$K$5 -> 0 | D35: =((Biomass!$F$55/1000)*Front!$K$6*277.7778)*Front!$I$28 -> 0 | E35: Year 3 | F35: =Front!$C$26 -> 3200 | G35: =H35*Front!$K$5 -> 0 | H35: =((Biomass!$F$55/1000)*Front!$K$6*277.7778)*Front!$I$28 -> 0 | I35: Year 3 | J35: =0.01*J33 -> 1822 | K35: =L35*Front!$K$5 -> 0 | L35: 0
A36: Year 4 | B36: =Front!$C$26 -> 3200 | C36: =D36*Front!$K$5 -> 4630.846339 | D36: =((Biomass!$H$55/1000)*Front!$K$6*277.7778)*Front!$I$28 -> 561.5188965 | E36: Year 4 | F36: =Front!$C$26 -> 3200 | G36: =H36*Front!$K$5 -> 4630.846339 | H36: =((Biomass!$H$55/1000)*Front!$K$6*277.7778)*Front!$I$28 -> 561.5188965 | I36: Year 4 | J36: =0.01*J33 -> 1822 | K36: =L36*Front!$K$5 -> 0 | L36: 0
A37: Year 5 | B37: =Front!$C$26 -> 3200 | C37: =D37*Front!$K$5 -> 10855.11364 | D37: =((Biomass!$J$55/1000)*Front!$K$6*277.7778)*Front!$I$28 -> 1316.249987 | E37: Year 5 | F37: =Front!$C$26 -> 3200 | G37: =H37*Front!$K$5 -> 10855.11364 | H37: =((Biomass!$J$55/1000)*Front!$K$6*277.7778)*Front!$I$28 -> 1316.249987 | I37: Year 5 | J37: =0.01*J33 -> 1822 | K37: =L37*Front!$K$5 -> 0 | L37: 0
A38: Year 6 | B38: =Front!$C$26 -> 3200 | C38: =D38*Front!$K$5 -> 5265.404457 | D38: =((Biomass!$B$58/1000)*Front!$K$6*277.7778)*Front!$I$28 -> 638.4630116 | E38: Year 6 | F38: =Front!$C$26 -> 3200 | G38: =H38*Front!$K$5 -> 5265.404457 | H38: =((Biomass!$B$58/1000)*Front!$K$6*277.7778)*Front!$I$28 -> 638.4630116 | I38: Year 6 | J38: =0.01*J33 -> 1822 | K38: =L38*Front!$K$5 -> 0 | L38: 0
A39: Year 7 | B39: =Front!$C$26 -> 3200 | C39: =D39*Front!$K$5 -> 4562.366087 | D39: =((Biomass!$D$58/1000)*Front!$K$6*277.7778)*Front!$I$28 -> 553.2152403 | E39: Year 7 | F39: =Front!$C$26 -> 3200 | G39: =H39*Front!$K$5 -> 4562.366087 | H39: =((Biomass!$D$58/1000)*Front!$K$6*277.7778)*Front!$I$28 -> 553.2152403 | I39: Year 7 | J39: =0.01*J33 -> 1822 | K39: =L39*Front!$K$5 -> 0 | L39: 0
A40: Year 8 | B40: =Front!$C$26 -> 3200 | C40: =D40*Front!$K$5 -> 4002.498315 | D40: =((Biomass!$F$58/1000)*Front!$K$6*277.7778)*Front!$I$28 -> 485.3277938 | E40: Year 8 | F40: =Front!$C$26 -> 3200 | G40: =H40*Front!$K$5 -> 4002.498315 | H40: =((Biomass!$F$58/1000)*Front!$K$6*277.7778)*Front!$I$28 -> 485.3277938 | I40: Year 8 | J40: =0.01*J33 -> 1822 | K40: =L40*Front!$K$5 -> 0 | L40: 0
A41: Year 9 | B41: =Front!$C$26 -> 3200 | C41: =D41*Front!$K$5 -> 3579.952867 | D41: =((Biomass!$H$58/1000)*Front!$K$6*277.7778)*Front!$I$28 -> 434.0915323 | E41: Year 9 | F41: =Front!$C$26 -> 3200 | G41: =H41*Front!$K$5 -> 3579.952867 | H41: =((Biomass!$H$58/1000)*Front!$K$6*277.7778)*Front!$I$28 -> 434.0915323 | I41: Year 9 | J41: =0.01*J33 -> 1822 | K41: =L41*Front!$K$5 -> 0 | L41: 0
A42: Year 10 | B42: =Front!$C$26 -> 3200 | C42: =D42*Front!$K$5 -> 3239.107443 | D42: =((Biomass!$J$58/1000)*Front!$K$6*277.7778)*Front!$I$28 -> 392.7619065 | E42: Year 10 | F42: =Front!$C$26 -> 3200 | G42: =H42*Front!$K$5 -> 3239.107443 | H42: =((Biomass!$J$58/1000)*Front!$K$6*277.7778)*Front!$I$28 -> 392.7619065 | I42: Year 10 | J42: =0.01*J33 -> 1822 | K42: =L42*Front!$K$5 -> 0 | L42: 0
A43: Totals | B43: =SUM(B33:B42) -> 85080 | C43: =SUM(C33:C42) -> 367459.6861 | D43: =SUM(D33:D42) -> 44556.77047 | E43: Totals | F43: =SUM(F33:F42) -> 48600 | G43: =SUM(G33:G42) -> 411758.6792 | H43: =SUM(H33:H42) -> 49928.29868 | I43: Totals | J43: =SUM(J33:J42) -> 198598 | K43: =SUM(K33:K42) -> -375623.6605 | L43: =L33 -> -45546.7031
A44: Net Return | B44: =C43-B43 -> 282379.6861 | E44: Net Return | F44: =G43-F43 -> 363158.6792 | I44: Net Return | J44: =K43-J43 -> -574221.6605
B46: Net Return Rs. | C46: Energy (kWh)
A47: Pukka Wall | B47: =J44 -> -574221.6605 | C47: =L43 -> -45546.7031
A48: Hybrid Wall | B48: =B44 -> 282379.6861 | C48: =D43 -> 44556.77047
A49: Bio-fence | B49: =F44 -> 363158.6792 | C49: =H43 -> 49928.29868
A61: Dry Fertigated
A62: Hybrid Wall | B62: Costs | C62: Revenue | D62: Energy (kWh) | E62: Bio-fence | F62: Costs | G62: Revenue | H62: Energy (kWh) | I62: Pukka wall | J62: Cost | K62: Revenue | L62: Energy (kWh)
A63: Year 1 | B63: =Front!$C$23+Front!$C$25 -> 57080 | C63: =D63*Front!$K$5 -> 331324.3969 | D63: =((Biomass!$M$55/1000)*Front!$K$6*277.7778)+('Detailed Information'!$T$55*277.7778) -> 40175.1421 | E63: Year 1 | F63: =Front!$C$19+Front!$C$21+Front!$C$25 -> 20600 | G63: =H63*Front!$K$5 -> 375623.39 | H63: =((Biomass!$M$55/1000)*Front!$K$6*277.7778)+('Detailed Information'!$T$56*277.7778) -> 45546.67031 | I63: Year 1 | J63: ='Detailed Information'!$E$40 -> 182200 | K63: =L63*Front!$K$5 -> -375623.6605 | L63: =-(SUM('Detailed Information'!$Q$48:$Q$53)/1000)*277.778 -> -45546.7031
A64: Year 2 | B64: =Front!$C$25 -> 2400 | C64: =D64*Front!$K$5 -> 0 | D64: =((Biomass!$O$55/1000)*Front!$K$6*277.7778)*Front!$I$28 -> 0 | E64: Year 2 | F64: =Front!$C$25 -> 2400 | G64: =H64*Front!$K$5 -> 0 | H64: =((Biomass!$O$55/1000)*Front!$K$6*277.7778)*Front!$I$28 -> 0 | I64: Year 2 | J64: =0.01*J63 -> 1822 | K64: =L64*Front!$K$5 -> 0 | L64: 0
A65: Year 3 | B65: =Front!$C$26 -> 3200 | C65: =D65*Front!$K$5 -> 10403.5265 | D65: =((Biomass!$Q$55/1000)*Front!$K$6*277.7778)*Front!$I$28 -> 1261.492239 | E65: Year 3 | F65: =Front!$C$26 -> 3200 | G65: =H65*Front!$K$5 -> 10403.5265 | H65: =((Biomass!$Q$55/1000)*Front!$K$6*277.7778)*Front!$I$28 -> 1261.492239 | I65: Year 3 | J65: =0.01*J63 -> 1822 | K65: =L65*Front!$K$5 -> 0 | L65: 0
A66: Year 4 | B66: =Front!$C$26 -> 3200 | C66: =D66*Front!$K$5 -> 20769.5002 | D66: =((Biomass!$S$55/1000)*Front!$K$6*277.7778)*Front!$I$28 -> 2518.430968 | E66: Year 4 | F66: =Front!$C$26 -> 3200 | G66: =H66*Front!$K$5 -> 20769.5002 | H66: =((Biomass!$S$55/1000)*Front!$K$6*277.7778)*Front!$I$28 -> 2518.430968 | I66: Year 4 | J66: =0.01*J63 -> 1822 | K66: =L66*Front!$K$5 -> 0 | L66: 0
A67: Year 5 | B67: =Front!$C$26 -> 3200 | C67: =D67*Front!$K$5 -> 25062.5926 | D67: =((Biomass!$U$55/1000)*Front!$K$6*277.7778)*Front!$I$28 -> 3038.995101 | E67: Year 5 | F67: =Front!$C$26 -> 3200 | G67: =H67*Front!$K$5 -> 25062.5926 | H67: =((Biomass!$U$55/1000)*Front!$K$6*277.7778)*Front!$I$28 -> 3038.995101 | I67: Year 5 | J67: =0.01*J63 -> 1822 | K67: =L67*Front!$K$5 -> 0 | L67: 0
A68: Year 6 | B68: =Front!$C$26 -> 3200 | C68: =D68*Front!$K$5 -> 29875.56594 | D68: =((Biomass!$M$58/1000)*Front!$K$6*277.7778)*Front!$I$28 -> 3622.598029 | E68: Year 6 | F68: =Front!$C$26 -> 3200 | G68: =H68*Front!$K$5 -> 29875.56594 | H68: =((Biomass!$M$58/1000)*Front!$K$6*277.7778)*Front!$I$28 -> 3622.598029 | I68: Year 6 | J68: =0.01*J63 -> 1822 | K68: =L68*Front!$K$5 -> 0 | L68: 0
A69: Year 7 | B69: =Front!$C$26 -> 3200 | C69: =D69*Front!$K$5 -> 38274.56564 | D69: =((Biomass!$O$58/1000)*Front!$K$6*277.7778)*Front!$I$28 -> 4641.028936 | E69: Year 7 | F69: =Front!$C$26 -> 3200 | G69: =H69*Front!$K$5 -> 38274.56564 | H69: =((Biomass!$O$58/1000)*Front!$K$6*277.7778)*Front!$I$28 -> 4641.028936 | I69: Year 7 | J69: =0.01*J63 -> 1822 | K69: =L69*Front!$K$5 -> 0 | L69: 0
A70: Year 8 | B70: =Front!$C$26 -> 3200 | C70: =D70*Front!$K$5 -> 43236.5351 | D70: =((Biomass!$Q$58/1000)*Front!$K$6*277.7778)*Front!$I$28 -> 5242.698569 | E70: Year 8 | F70: =Front!$C$26 -> 3200 | G70: =H70*Front!$K$5 -> 43236.5351 | H70: =((Biomass!$Q$58/1000)*Front!$K$6*277.7778)*Front!$I$28 -> 5242.698569 | I70: Year 8 | J70: =0.01*J63 -> 1822 | K70: =L70*Front!$K$5 -> 0 | L70: 0
A71: Year 9 | B71: =Front!$C$26 -> 3200 | C71: =D71*Front!$K$5 -> 46122.60448 | D71: =((Biomass!$S$58/1000)*Front!$K$6*277.7778)*Front!$I$28 -> 5592.652416 | E71: Year 9 | F71: =Front!$C$26 -> 3200 | G71: =H71*Front!$K$5 -> 46122.60448 | H71: =((Biomass!$S$58/1000)*Front!$K$6*277.7778)*Front!$I$28 -> 5592.652416 | I71: Year 9 | J71: =0.01*J63 -> 1822 | K71: =L71*Front!$K$5 -> 0 | L71: 0
A72: Year 10 | B72: =Front!$C$26 -> 3200 | C72: =D72*Front!$K$5 -> 55180.98247 | D72: =((Biomass!$U$58/1000)*Front!$K$6*277.7778)*Front!$I$28 -> 6691.03704 | E72: Year 10 | F72: =Front!$C$26 -> 3200 | G72: =H72*Front!$K$5 -> 55180.98247 | H72: =((Biomass!$U$58/1000)*Front!$K$6*277.7778)*Front!$I$28 -> 6691.03704 | I72: Year 10 | J72: =0.01*J63 -> 1822 | K72: =L72*Front!$K$5 -> 0 | L72: 0
A73: Totals | B73: =SUM($B$3:$B$12) -> 85080 | C73: =SUM(C63:C72) -> 600250.2698 | D73: =SUM(D63:D72) -> 72784.0754 | E73: Totals | F73: =SUM(F63:F72) -> 48600 | G73: =SUM(G63:G72) -> 644549.263 | H73: =SUM(H63:H72) -> 78155.60361 | I73: Totals | J73: =SUM(J63:J72) -> 198598 | K73: =SUM(K63:K72) -> -375623.6605 | L73: =SUM(L63:L72) -> -45546.7031
A74: Net Return | B74: =C73-B73 -> 515170.2698 | E74: Net Return | F74: =G73-F73 -> 595949.263 | I74: Net Return | J74: =K73-J73 -> -574221.6605
B76: Net Return Rs. | C76: Energy (kWh)
A77: Pukka Wall | B77: =J74 -> -574221.6605 | C77: =L73 -> -45546.7031
A78: Hybrid Wall | B78: =B74 -> 515170.2698 | C78: =D73 -> 72784.0754
A79: Bio-fence | B79: =F74 -> 595949.263 | C79: =H73 -> 78155.60361
A91: Wet Fertigated
A92: Hybrid Wall | B92: Costs | C92: Revenue | D92: Energy (kWh) | E92: Bio-fence | F92: Costs | G92: Revenue | H92: Energy (kWh) | I92: Pukka wall | J92: Cost | K92: Revenue | L92: Energy (kWh)
A93: Year 1 | B93: =Front!$C$23+Front!$C$25 -> 57080 | C93: =D93*Front!$K$5 -> 331324.3969 | D93: =((Biomass!$M$28/1000)*Front!$K$6*277.7778)+('Detailed Information'!$T$55*277.7778) -> 40175.1421 | E93: Year 1 | F93: =Front!$C$19+Front!$C$21+Front!$C$25 -> 20600 | G93: =H93*Front!$K$5 -> 375623.39 | H93: =((Biomass!$M$28/1000)*Front!$K$6*277.7778)+('Detailed Information'!$T$56*277.7778) -> 45546.67031 | I93: Year 1 | J93: ='Detailed Information'!$E$40 -> 182200 | K93: =L93*Front!$K$5 -> -375623.6605 | L93: =-(SUM('Detailed Information'!$Q$48:$Q$53)/1000)*277.778 -> -45546.7031
A94: Year 2 | B94: =Front!$C$25 -> 2400 | C94: =D94*Front!$K$5 -> 0 | D94: =((Biomass!$O$28/1000)*Front!$K$6*277.7778)*Front!$I$28 -> 0 | E94: Year 2 | F94: =Front!$C$25 -> 2400 | G94: =H94*Front!$K$5 -> 0 | H94: =((Biomass!$O$28/1000)*Front!$K$6*277.7778)*Front!$I$28 -> 0 | I94: Year 2 | J94: =0.01*J93 -> 1822 | K94: =L94*Front!$K$5 -> 0 | L94: 0
A95: Year 3 | B95: =Front!$C$26 -> 3200 | C95: =D95*Front!$K$5 -> 10403.5265 | D95: =((Biomass!$Q$28/1000)*Front!$K$6*277.7778)*Front!$I$28 -> 1261.492239 | E95: Year 3 | F95: =Front!$C$26 -> 3200 | G95: =H95*Front!$K$5 -> 10403.5265 | H95: =((Biomass!$Q$28/1000)*Front!$K$6*277.7778)*Front!$I$28 -> 1261.492239 | I95: Year 3 | J95: =0.01*J93 -> 1822 | K95: =L95*Front!$K$5 -> 0 | L95: 0
A96: Year 4 | B96: =Front!$C$26 -> 3200 | C96: =D96*Front!$K$5 -> 20769.5002 | D96: =((Biomass!$S$28/1000)*Front!$K$6*277.7778)*Front!$I$28 -> 2518.430968 | E96: Year 4 | F96: =Front!$C$26 -> 3200 | G96: =H96*Front!$K$5 -> 20769.5002 | H96: =((Biomass!$S$28/1000)*Front!$K$6*277.7778)*Front!$I$28 -> 2518.430968 | I96: Year 4 | J96: =0.01*J93 -> 1822 | K96: =L96*Front!$K$5 -> 0 | L96: 0
A97: Year 5 | B97: =Front!$C$26 -> 3200 | C97: =D97*Front!$K$5 -> 25062.5926 | D97: =((Biomass!$U$28/1000)*Front!$K$6*277.7778)*Front!$I$28 -> 3038.995101 | E97: Year 5 | F97: =Front!$C$26 -> 3200 | G97: =H97*Front!$K$5 -> 25062.5926 | H97: =((Biomass!$U$28/1000)*Front!$K$6*277.7778)*Front!$I$28 -> 3038.995101 | I97: Year 5 | J97: =0.01*J93 -> 1822 | K97: =L97*Front!$K$5 -> 0 | L97: 0
A98: Year 6 | B98: =Front!$C$26 -> 3200 | C98: =D98*Front!$K$5 -> 29875.56594 | D98: =((Biomass!$M$31/1000)*Front!$K$6*277.7778)*Front!$I$28 -> 3622.598029 | E98: Year 6 | F98: =Front!$C$26 -> 3200 | G98: =H98*Front!$K$5 -> 29875.56594 | H98: =((Biomass!$M$31/1000)*Front!$K$6*277.7778)*Front!$I$28 -> 3622.598029 | I98: Year 6 | J98: =0.01*J93 -> 1822 | K98: =L98*Front!$K$5 -> 0 | L98: 0
A99: Year 7 | B99: =Front!$C$26 -> 3200 | C99: =D99*Front!$K$5 -> 38274.56564 | D99: =((Biomass!$O$31/1000)*Front!$K$6*277.7778)*Front!$I$28 -> 4641.028936 | E99: Year 7 | F99: =Front!$C$26 -> 3200 | G99: =H99*Front!$K$5 -> 38274.56564 | H99: =((Biomass!$O$31/1000)*Front!$K$6*277.7778)*Front!$I$28 -> 4641.028936 | I99: Year 7 | J99: =0.01*J93 -> 1822 | K99: =L99*Front!$K$5 -> 0 | L99: 0
A100: Year 8 | B100: =Front!$C$26 -> 3200 | C100: =D100*Front!$K$5 -> 43236.5351 | D100: =((Biomass!$Q$31/1000)*Front!$K$6*277.7778)*Front!$I$28 -> 5242.698569 | E100: Year 8 | F100: =Front!$C$26 -> 3200 | G100: =H100*Front!$K$5 -> 43236.5351 | H100: =((Biomass!$Q$31/1000)*Front!$K$6*277.7778)*Front!$I$28 -> 5242.698569 | I100: Year 8 | J100: =0.01*J93 -> 1822 | K100: =L100*Front!$K$5 -> 0 | L100: 0
A101: Year 9 | B101: =Front!$C$26 -> 3200 | C101: =D101*Front!$K$5 -> 46122.60448 | D101: =((Biomass!$S$31/1000)*Front!$K$6*277.7778)*Front!$I$28 -> 5592.652416 | E101: Year 9 | F101: =Front!$C$26 -> 3200 | G101: =H101*Front!$K$5 -> 46122.60448 | H101: =((Biomass!$S$31/1000)*Front!$K$6*277.7778)*Front!$I$28 -> 5592.652416 | I101: Year 9 | J101: =0.01*J93 -> 1822 | K101: =L101*Front!$K$5 -> 0 | L101: 0
A102: Year 10 | B102: =Front!$C$26 -> 3200 | C102: =D102*Front!$K$5 -> 55180.98247 | D102: =((Biomass!$U$31/1000)*Front!$K$6*277.7778)*Front!$I$28 -> 6691.03704 | E102: Year 10 | F102: =Front!$C$26 -> 3200 | G102: =H102*Front!$K$5 -> 55180.98247 | H102: =((Biomass!$U$31/1000)*Front!$K$6*277.7778)*Front!$I$28 -> 6691.03704 | I102: Year 10 | J102: =0.01*J93 -> 1822 | K102: =L102*Front!$K$5 -> 0 | L102: 0
A103: Totals | B103: =SUM($B$3:$B$12) -> 85080 | C103: =SUM(C93:C102) -> 600250.2698 | D103: =SUM(D93:D102) -> 72784.0754 | E103: Totals | F103: =SUM(F93:F102) -> 48600 | G103: =SUM(G93:G102) -> 644549.263 | H103: =SUM(H93:H102) -> 78155.60361 | I103: Totals | J103: =SUM(J93:J102) -> 198598 | K103: =SUM(K93:K102) -> -375623.6605 | L103: =SUM(L93:L102) -> -45546.7031
A104: Net Return | B104: =C103-B103 -> 515170.2698 | E104: Net Return | F104: =G103-F103 -> 595949.263 | I104: Net Return | J104: =K103-J103 -> -574221.6605
B106: Net Return Rs. | C106: Energy (kWh)
A107: Pukka Wall | B107: =J104 -> -574221.6605 | C107: =L103 -> -45546.7031
A108: Hybrid Wall | B108: =B104 -> 515170.2698 | C108: =D103 -> 72784.0754
A109: Bio-fence | B109: =F104 -> 595949.263 | C109: =H103 -> 78155.60361

Sheet Biomass
A1: Year of Growth | B1: Average Diameter | C1: Mature Diameter > | D1: Number of Clumps Planted | E1: Harvest Density (%) | F1: Full Density (%) | G1: Maximum Diamter | H1: Percent increase in Harvest diameter | I1: Culling Rate
A2: 1 | B2: =Front!G22 -> 2.3 | C2: =Front!K11 -> 4 | D2: =Front!K7 -> 15 | E2: =Front!K12 -> 25 | F2: =Front!K13 -> 50 | G2: =Front!K15 -> 15.5 | H2: =Front!K17 -> 30 | I2: =Front!K14 -> 0.2
A3: 2 | B3: =Front!H22 -> 3.3
A4: 3 | B4: =Front!I22 -> 4.3
A5: 4 | B5: =Front!J22 -> 4.8
A6: 5 | B6: =Front!K22 -> 6.3
A7: Number of Clumps Planted | B7: Number of Culms per Clump | C7: Number of Shoots per year | D7: Year | E7: Effects of Conditions on Growth Rate | F7: Effects of Conditions on Shoot Rate | G7: Allometric Constant (a) | H7: Allometric Constants (b)
A8: =D2 -> 15 | B8: =Front!K8 -> 4 | C8: =Front!K10 -> 6 | D8: 15 | G8: =Front!I16 -> -0.8838 | H8: =Front!K16 -> 3.1908
D9: Wet | E9: =1+Front!H25 -> 1 | F9: =1+Front!H26 -> 1
D10: Wet and Fertigated | E10: =1+Front!J25 -> 1.05 | F10: =1+Front!J26 -> 1.05
D11: Dry | E11: =1+Front!I25 -> 0.9 | F11: =1+Front!I26 -> 0.9
D12: Dry and Fertigated | E12: =1+Front!K25 -> 1.05 | F12: =1+Front!K26 -> 1.05
A13: Wet Conditions | L13: Wet and Fertigated Conditions
A14: Number of Culms per Year | L14: Number of Culms per Year
A15: Year 1 | B15: Year 2 | C15: Year 3 | D15: Year 4 | E15: Year 5 | L15: Year 1 | M15: Year 2 | N15: Year 3 | O15: Year 4 | P15: Year 5
A16: =IF($D$8>0,$A$8*$B$8,0) -> 60 | B16: =IF($D$8>1,($A$8*($C$8-1))*$F$9*'Wet Conditions'!$N$45+($A$8*$F$9),0) -> 90 | C16: =IF($D$8>2,($A$8*($C$8-1))*$F$9*'Wet Conditions'!$AA$45+($A$8*$F$9),0) -> 90 | D16: =IF($D$8>3,($A$8*($C$8-1))*$F$9*'Wet Conditions'!$AN$45+($A$8*$F$9),0) -> 90 | E16: =IF($D$8>4,($A$8*($C$8-1))*$F$9*'Wet Conditions'!$BA$45+($A$8*$F$9),0) -> 32.07566916 | L16: =IF($D$8>0,$A$8*$B$8,0) -> 60 | M16: =IF($D$8>1,(($A$8-1)*$C$8)*$F$10*'Wet and Fertigated Conditions'!$N$45+($A$8*$F$10),0) -> 103.95 | N16: =IF($D$8>2,(($A$8-1)*$C$8)*$F$10*'Wet and Fertigated Conditions'!$AA$45+($A$8*$F$10),0) -> 103.95 | O16: =IF($D$8>3,(($A$8-1)*$C$8)*$F$10*'Wet and Fertigated Conditions'!$AN$45+($A$8*$F$10),0) -> 57.38108015 | P16: =IF($D$8>4,(($A$8-1)*$C$8)*$F$10*'Wet and Fertigated Conditions'!$BA$45+($A$8*$F$10),0) -> 35.95481962
B17: =IF($D$8>1,A16,0) -> 60 | C17: =IF($D$8>2,B16,0) -> 90 | D17: =IF($D$8>3,C16,0) -> 90 | E17: =IF($D$8>4,D16,0) -> 90 | M17: =IF($D$8>1,L16,0) -> 60 | N17: =IF($D$8>2,M16,0) -> 103.95 | O17: =IF($D$8>3,N16,0) -> 103.95 | P17: =IF($D$8>4,O16,0) -> 57.38108015
C18: =IF($D$8>2,B17,0) -> 60 | D18: =IF($D$8>3,C17,0) -> 90 | E18: =IF($D$8>4,D17,0) -> 90 | N18: =IF($D$8>2,M17,0) -> 60 | O18: =IF($D$8>3,N17,0) -> 103.95 | P18: =IF($D$8>4,O17,0) -> 103.95
D19: =IF($D$8>3,C18,0) -> 60 | E19: =IF($D$8>4,D18,0) -> 90 | O19: =IF($D$8>3,N18,0) -> 60 | P19: =IF($D$8>4,O18,0) -> 103.95
E20: =IF($D$8>4,D19,0) -> 60 | P20: =IF($D$8>4,O19,0) -> 60
A21: Year 6 | B21: Year 7 | C21: Year 8 | D21: Year 9 | E21: Year 10 | L21: Year 6 | M21: Year 7 | N21: Year 8 | O21: Year 9 | P21: Year 10
A22: =IF($D$8>5,(SUM($E$16:$E$20))+($C$8*(A$8-1)*$F$9*'Wet Conditions'!$BN$45)+$A$8,0) -> 377.0756692 | B22: =IF($D$8>6,(SUM($E$16:$E$20))+($C$8*($A$8-1)*$F$9*'Wet Conditions'!$BN$45)+($C$8*($A$8-1)*$F$9*'Wet Conditions'!$CA$45)+(2*$A$8),0) -> 392.0756692 | C22: =IF($D$8>6,(SUM($E$16:$E$20))+(($A$8-1)*$C$8*$F$9*'Wet Conditions'!$BN$45)+($C$8*($A$8-1)*$F$9*'Wet Conditions'!$CA$45)+(($A$8-1)*$C$8*$F$9*'Wet Conditions'!$CN$45)+(3*$A$8),0) -> 407.0756692 | D22: =IF($D$8>6,(SUM($E$16:$E$20))+(($A$8-1)*$C$8*$F$9*'Wet Conditions'!$BN$45)+($C$8*($A$8-1)*$F$9*'Wet Conditions'!$CA$45)+(($A$8-1)*$C$8*$F$9*'Wet Conditions'!$CN$45)+(($A$8-1)*$C$8*$F$9*'Wet Conditions'!$DA$45)+(4*$A$8),0) -> 422.0756692 | E22: =IF($D$8>6,(SUM($E$16:$E$20))+(($A$8-1)*$C$8*$F$9*'Wet Conditions'!$BN$45)+($C$8*($A$8-1)*$F$9*'Wet Conditions'!$CA$45)+(($A$8-1)*$C$8*$F$9*'Wet Conditions'!$CN$45)+(($A$8-1)*$C$8*$F$9*'Wet Conditions'!$DA$45)+(($A$8-1)*$C$8*$F$9*'Wet Conditions'!$DN$45)+(5*$A$8),0) -> 437.0756692 | L22: =IF($D$8>5,(SUM($P$16:$P$20))+($C$8*($A$8-1)*$F$10*'Wet and Fertigated Conditions'!$BN$45)+($A$8*$F$10),0) -> 386.5631702 | M22: =IF($D$8>6,(SUM($P$16:$P$20))+($C$8*($A$8-1)*$F$10*'Wet and Fertigated Conditions'!$BN$45)+($C$8*($A$8-1)*$F$10*'Wet and Fertigated Conditions'!$CA$45)+(2*$A$8*$F$10),0) -> 404.0329463 | N22: =IF($D$8>6,(SUM($P$16:$P$20))+(($A$8-1)*$C$8*$F$10*'Wet and Fertigated Conditions'!$BN$45)+($C$8*($A$8-1)*$F$10*'Wet and Fertigated Conditions'!$CA$45)+(($A$8-1)*$C$8*$F$10*'Wet and Fertigated Conditions'!$CN$45)+($A$8*$F$10*3),0) -> 419.7829463 | O22: =IF($D$8>6,(SUM($P$16:$P$20))+(($A$8-1)*$C$8*$F$10*'Wet and Fertigated Conditions'!$BN$45)+($C$8*($A$8-1)*$F$10*'Wet and Fertigated Conditions'!$CA$45)+(($A$8-1)*$C$8*$F$10*'Wet and Fertigated Conditions'!$CN$45)+(($A$8-1)*$C$8*$F$10*'Wet and Fertigated Conditions'!$DA$45)+($A$8*$F$10*4),0) -> 438.8704317 | P22: =IF($D$8>6,(SUM($P$16:$P$20))+(($A$8-1)*$C$8*$F$10*'Wet and Fertigated Conditions'!$BN$45)+($C$8*($A$8-1)*$F$10*'Wet and Fertigated Conditions'!$CA$45)+(($A$8-1)*$C$8*$F$10*'Wet and Fertigated Conditions'!$CN$45)+(($A$8-1)*$C$8*$F$10*'Wet and Fertigated Conditions'!$DA$45)+(($A$8-1)*$C$8*$F$10*'Wet and Fertigated Conditions'!$DN$45)+($A$8*$F$10*5),0) -> 461.0114382
A23: Year 11 | B23: Year 12 | C23: Year 13 | D23: Year 14 | E23: Year 15 | L23: Year 11 | M23: Year 12 | N23: Year 13 | O23: Year 14 | P23: Year 15
A24: =IF($D$8>6,(SUM($E$16:$E$20))+(($A$8-1)*$C$8*$F$8*'Wet Conditions'!$BN$45)+($C$8*($A$8-1)*$F$8*'Wet Conditions'!$CA$45)+(($A$8-1)*$C$8*$F$8*'Wet Conditions'!$CN$45)+(($A$8-1)*$C$8*$F$8*'Wet Conditions'!$DA$45)+(($A$8-1)*$C$8*$F$8*'Wet Conditions'!$DN$45)+(($A$8-1)*$C$8*$F$8*'Wet Conditions'!$EA$45)+(6*$A$8),0) -> 452.0756692 | B24: =IF($D$8>6,(SUM($E$16:$E$20))+(($A$8-1)*$C$8*$F$8*'Wet Conditions'!$BN$45)+($C$8*($A$8-1)*$F$8*'Wet Conditions'!$CA$45)+(($A$8-1)*$C$8*$F$8*'Wet Conditions'!$CN$45)+(($A$8-1)*$C$8*$F$8*'Wet Conditions'!$DA$45)+(($A$8-1)*$C$8*$F$8*'Wet Conditions'!$DN$45)+(($A$8-1)*$C$8*$F$8*'Wet Conditions'!$EA$45)+(($A$8-1)*$C$8*$F$8*'Wet Conditions'!$EN$45)+(7*$A$8),0) -> 467.0756692 | C24: =IF($D$8>6,(SUM($E$16:$E$20))+(($A$8-1)*$C$8*$F$8*'Wet Conditions'!$BN$45)+($C$8*($A$8-1)*$F$8*'Wet Conditions'!$CA$45)+(($A$8-1)*$C$8*$F$8*'Wet Conditions'!$CN$45)+(($A$8-1)*$C$8*$F$8*'Wet Conditions'!$DA$45)+(($A$8-1)*$C$8*$F$8*'Wet Conditions'!$DN$45)+(($A$8-1)*$C$8*$F$8*'Wet Conditions'!$EA$45)+(($A$8-1)*$C$8*$F$8*'Wet Conditions'!$EN$45)+(($A$8-1)*$C$8*$F$8*'Wet Conditions'!$FA$45)+(8*$A$8),0) -> 482.0756692 | D24: =IF($D$8>6,(SUM($E$16:$E$20))+(($A$8-1)*$C$8*$F$8*'Wet Conditions'!$BN$45)+($C$8*($A$8-1)*$F$8*'Wet Conditions'!$CA$45)+(($A$8-1)*$C$8*$F$8*'Wet Conditions'!$CN$45)+(($A$8-1)*$C$8*$F$8*'Wet Conditions'!$DA$45)+(($A$8-1)*$C$8*$F$8*'Wet Conditions'!$DN$45)+(($A$8-1)*$C$8*$F$8*'Wet Conditions'!$EA$45)+(($A$8-1)*$C$8*$F$8*'Wet Conditions'!$EN$45)+(($A$8-1)*$C$8*$F$8*'Wet Conditions'!$FA$45)+(($A$8-1)*$C$8*$F$8*'Wet Conditions'!$FN$45)+(9*$A$8),0) -> 497.0756692 | E24: =IF($D$8>6,(SUM($E$16:$E$20))+(($A$8-1)*$C$8*$F$8*'Wet Conditions'!$BN$45)+($C$8*($A$8-1)*$F$8*'Wet Conditions'!$CA$45)+(($A$8-1)*$C$8*$F$8*'Wet Conditions'!$CN$45)+(($A$8-1)*$C$8*$F$8*'Wet Conditions'!$DA$45)+(($A$8-1)*$C$8*$F$8*'Wet Conditions'!$DN$45)+(($A$8-1)*$C$8*$F$8*'Wet Conditions'!$EA$45)+(($A$8-1)*$C$8*$F$8*'Wet Conditions'!$EN$45)+(($A$8-1)*$C$8*$F$8*'Wet Conditions'!$FA$45)+(($A$8-1)*$C$8*$F$8*'Wet Conditions'!$FN$45)+(($A$8-1)*$C$8*$F$8*'Wet Conditions'!$GA$45)+(10*$A$8),0) -> 512.0756692 | L24: =IF($D$8>6,(SUM($P$16:$P$20))+(($A$8-1)*$C$8*$F$10*'Wet and Fertigated Conditions'!$BN$45)+($C$8*($A$8-1)*$F$10*'Wet and Fertigated Conditions'!$CA$45)+(($A$8-1)*$C$8*$F$10*'Wet and Fertigated Conditions'!$CN$45)+(($A$8-1)*$C$8*$F$10*'Wet and Fertigated Conditions'!$DA$45)+(($A$8-1)*$C$8*$F$10*'Wet and Fertigated Conditions'!$DN$45)+(($A$8-1)*$C$8*$F$10*'Wet and Fertigated Conditions'!$EA$45)+($A$8*$F$10*6),0) -> 481.0535005 | M24: =IF($D$8>6,(SUM($P$16:$P$20))+(($A$8-1)*$C$8*$F$10*'Wet and Fertigated Conditions'!$BN$45)+($C$8*($A$8-1)*$F$10*'Wet and Fertigated Conditions'!$CA$45)+(($A$8-1)*$C$8*$F$10*'Wet and Fertigated Conditions'!$CN$45)+(($A$8-1)*$C$8*$F$10*'Wet and Fertigated Conditions'!$DA$45)+(($A$8-1)*$C$8*$F$10*'Wet and Fertigated Conditions'!$DN$45)+(($A$8-1)*$C$8*$F$10*'Wet and Fertigated Conditions'!$EA$45)+(($A$8-1)*$C$8*$F$10*'Wet and Fertigated Conditions'!$EN$45)+($A$8*$F$10*7),0) -> 501.7993406 | N24: =IF($D$8>6,(SUM($P$16:$P$20))+(($A$8-1)*$C$8*$F$10*'Wet and Fertigated Conditions'!$BN$45)+($C$8*($A$8-1)*$F$10*'Wet and Fertigated Conditions'!$CA$45)+(($A$8-1)*$C$8*$F$10*'Wet and Fertigated Conditions'!$CN$45)+(($A$8-1)*$C$8*$F$10*'Wet and Fertigated Conditions'!$DA$45)+(($A$8-1)*$C$8*$F$10*'Wet and Fertigated Conditions'!$DN$45)+(($A$8-1)*$C$8*$F$10*'Wet and Fertigated Conditions'!$EA$45)+(($A$8-1)*$C$8*$F$10*'Wet and Fertigated Conditions'!$EN$45)+(($A$8-1)*$C$8*$F$10*'Wet and Fertigated Conditions'!$FA$45)+($A$8*$F$10*8),0) -> 524.0709463 | O24: =IF($D$8>6,(SUM($P$16:$P$20))+(($A$8-1)*$C$8*$F$10*'Wet and Fertigated Conditions'!$BN$45)+($C$8*($A$8-1)*$F$10*'Wet and Fertigated Conditions'!$CA$45)+(($A$8-1)*$C$8*$F$10*'Wet and Fertigated Conditions'!$CN$45)+(($A$8-1)*$C$8*$F$10*'Wet and Fertigated Conditions'!$DA$45)+(($A$8-1)*$C$8*$F$10*'Wet and Fertigated Conditions'!$DN$45)+(($A$8-1)*$C$8*$F$10*'Wet and Fertigated Conditions'!$EA$45)+(($A$8-1)*$C$8*$F$10*'Wet and Fertigated Conditions'!$EN$45)+(($A$8-1)*$C$8*$F$10*'Wet and Fertigated Conditions'!$FA$45)+(($A$8-1)*$C$8*$F$10*'Wet and Fertigated Conditions'!$FN$45)+($A$8*$F$10*9),0) -> 553.3764923 | P24: =IF($D$8>6,(SUM($P$16:$P$20))+(($A$8-1)*$C$8*$F$10*'Wet and Fertigated Conditions'!$BN$45)+($C$8*($A$8-1)*$F$10*'Wet and Fertigated Conditions'!$CA$45)+(($A$8-1)*$C$8*$F$10*'Wet and Fertigated Conditions'!$CN$45)+(($A$8-1)*$C$8*$F$10*'Wet and Fertigated Conditions'!$DA$45)+(($A$8-1)*$C$8*$F$10*'Wet and Fertigated Conditions'!$DN$45)+(($A$8-1)*$C$8*$F$10*'Wet and Fertigated Conditions'!$EA$45)+(($A$8-1)*$C$8*$F$10*'Wet and Fertigated Conditions'!$EN$45)+(($A$8-1)*$C$8*$F$10*'Wet and Fertigated Conditions'!$FA$45)+(($A$8-1)*$C$8*$F$10*'Wet and Fertigated Conditions'!$FN$45)+(($A$8-1)*$C$8*$F$10*'Wet and Fertigated Conditions'!$GA$45)+($A$8*$F$10*10),0) -> 580.9987069
A25: Biomass per Year | L25: Biomass per Year
A26: Year 1 | C26: Year 2 | E26: Year 3 | G26: Year 4 | I26: Year 5 | L26: Year 1 | N26: Year 2 | P26: Year 3 | R26: Year 4 | T26: Year 5
A27: Biomass Increase | B27: Harvested Biomass | C27: Biomass Increase | D27: Harvested Biomass | E27: Biomass Increase | F27: Harvested Biomass | G27: Biomass Increase | H27: Harvested Biomass | I27: Biomass Increase | J27: Harvested Biomass | L27: Biomass Increase | M27: Harvested Biomass | N27: Biomass Increase | O27: Harvested Biomass | P27: Biomass Increase | Q27: Harvested Biomass | R27: Biomass Increase | S27: Harvested Biomass | T27: Biomass Increase | U27: Harvested Biomass
A28: ='Wet Conditions'!$L$48 -> 111.9523193 | B28: ='Wet Conditions'!$L$45 -> 0 | C28: =IF('Wet Conditions'!L48>'Wet Conditions'!Y47,0,'Wet Conditions'!$Y$47-'Wet Conditions'!$L$48) -> 354.8803263 | D28: ='Wet Conditions'!$Y$45 -> 0 | E28: =IF('Wet Conditions'!$Y$48>'Wet Conditions'!$AL$47,0,'Wet Conditions'!$AL$47-'Wet Conditions'!$Y$48) -> 785.8607372 | F28: ='Wet Conditions'!$AL$45 -> 0 | G28: =IF('Wet Conditions'!$AL$48>'Wet Conditions'!$AY$47,0,'Wet Conditions'!$AY$47-'Wet Conditions'!$AL$48) -> 1257.416564 | H28: ='Wet Conditions'!$AY$45 -> 1297.951541 | I28: =IF('Wet Conditions'!$AY$48>'Wet Conditions'!$BL$47,0,'Wet Conditions'!$BL$47-'Wet Conditions'!$AY$48) -> 3076.620605 | J28: ='Wet Conditions'!$BL$45 -> 2413.628531 | L28: ='Wet and Fertigated Conditions'!$L$48 -> 130.8102261 | M28: ='Wet and Fertigated Conditions'!$L$45 -> 0 | N28: =IF('Wet and Fertigated Conditions'!$L$48>'Wet and Fertigated Conditions'!$Y$47,0,'Wet and Fertigated Conditions'!$Y$47-'Wet and Fertigated Conditions'!$L$48) -> 441.7377606 | O28: ='Wet and Fertigated Conditions'!$Y45 -> 0 | P28: =IF('Wet and Fertigated Conditions'!$Y$48>'Wet and Fertigated Conditions'!$AL$47,0,'Wet and Fertigated Conditions'!$AL$47-'Wet and Fertigated Conditions'!$Y$48) -> 998.0503838 | Q28: ='Wet and Fertigated Conditions'!$AL$45 -> 1068.558047 | R28: =IF('Wet and Fertigated Conditions'!$AL$48>'Wet and Fertigated Conditions'!$AY$47,0,'Wet and Fertigated Conditions'!$AY$47-'Wet and Fertigated Conditions'!$AL$48) -> 2234.221327 | S28: ='Wet and Fertigated Conditions'!$AY$45 -> 2133.259003 | T28: =IF('Wet and Fertigated Conditions'!$AY$48>'Wet and Fertigated Conditions'!$BL$47,0,'Wet and Fertigated Conditions'!$BL$47-'Wet and Fertigated Conditions'!$AY$48) -> 2991.379328 | U28: ='Wet and Fertigated Conditions'!$BL$45 -> 2574.207409
A29: Year 6 | C29: Year 7 | E29: Year 8 | G29: Year 9 | I29: Year 10 | L29: Year 6 | N29: Year 7 | P29: Year 8 | R29: Year 9 | T29: Year 10
A30: Biomass Increase | B30: Harvested Biomass | C30: Biomass Increase | D30: Harvested Biomass | E30: Biomass Increase | F30: Harvested Biomass | G30: Biomass Increase | H30: Harvested Biomass | I30: Biomass Increase | J30: Harvested Biomass | L30: Biomass Increase | M30: Harvested Biomass | N30: Biomass Increase | O30: Harvested Biomass | P30: Biomass Increase | Q30: Harvested Biomass | R30: Biomass Increase | S30: Harvested Biomass | T30: Biomass Increase | U30: Harvested Biomass
A31: =IF('Wet Conditions'!$BL$48>'Wet Conditions'!$BY$47,0,'Wet Conditions'!$BY$47-'Wet Conditions'!$BL$48) -> 2939.786814 | B31: ='Wet Conditions'!$BY$45 -> 1790.385165 | C31: =IF('Wet Conditions'!$BY$48>'Wet Conditions'!$CL$47,0,'Wet Conditions'!$CL$47-'Wet Conditions'!$BY$48) -> 2267.675319 | D31: ='Wet Conditions'!$CL$45 -> 2127.109108 | E31: =IF('Wet Conditions'!$CL$48>'Wet Conditions'!$CY$47,0,'Wet Conditions'!$CY$47-'Wet Conditions'!$CL$48) -> 2557.623169 | F31: ='Wet Conditions'!$CY$45 -> 2505.732458 | G31: =IF('Wet Conditions'!$CY$48>'Wet Conditions'!$DL$47,0,'Wet Conditions'!$DL$47-'Wet Conditions'!$CY$48) -> 2884.942641 | H31: ='Wet Conditions'!$DL$45 -> 2779.992708 | I31: =IF('Wet Conditions'!$DL$48>'Wet Conditions'!$DY$47,0,'Wet Conditions'!$DY$47-'Wet Conditions'!$DL$48) -> 3108.245812 | J31: ='Wet Conditions'!$DY$45 -> 3060.815497 | L31: =IF('Wet and Fertigated Conditions'!$BL$48>'Wet and Fertigated Conditions'!$BY$47,0,'Wet and Fertigated Conditions'!$BY$47-'Wet and Fertigated Conditions'!$BL$48) -> 3672.604697 | M31: ='Wet and Fertigated Conditions'!$BY$45 -> 3068.553379 | N31: =IF('Wet and Fertigated Conditions'!$BY$48>'Wet and Fertigated Conditions'!$CL$47,0,'Wet and Fertigated Conditions'!$CL$47-'Wet and Fertigated Conditions'!$BY$48) -> 3726.170143 | O31: ='Wet and Fertigated Conditions'!$CL$45 -> 3931.224196 | P31: =IF('Wet and Fertigated Conditions'!$CL$48>'Wet and Fertigated Conditions'!$CY$47,0,'Wet and Fertigated Conditions'!$CY$47-'Wet and Fertigated Conditions'!$CL$48) -> 4292.384454 | Q31: ='Wet and Fertigated Conditions'!$CY$45 -> 4440.873727 | R31: =IF('Wet and Fertigated Conditions'!$CY$48>'Wet and Fertigated Conditions'!$DL$47,0,'Wet and Fertigated Conditions'!$DL$47-'Wet and Fertigated Conditions'!$CY$48) -> 4841.295548 | S31: ='Wet and Fertigated Conditions'!$DL$45 -> 4737.305197 | T31: =IF('Wet and Fertigated Conditions'!$DL$48>'Wet and Fertigated Conditions'!$DY$47,0,'Wet and Fertigated Conditions'!$DY$47-'Wet and Fertigated Conditions'!$DL$48) -> 5580.307764 | U31: ='Wet and Fertigated Conditions'!$DY$45 -> 5667.70151
A32: Year 11 | C32: Year 12 | E32: Year 13 | G32: Year 14 | I32: Year 15 | L32: Year 11 | N32: Year 12 | P32: Year 13 | R32: Year 14 | T32: Year 15
A33: Biomass Increase | B33: Harvested Biomass | C33: Biomass Increase | D33: Harvested Biomass | E33: Biomass Increase | F33: Harvested Biomass | G33: Biomass Increase | H33: Harvested Biomass | I33: Biomass Increase | J33: Harvested Biomass | L33: Biomass Increase | M33: Harvested Biomass | N33: Biomass Increase | O33: Harvested Biomass | P33: Biomass Increase | Q33: Harvested Biomass | R33: Biomass Increase | S33: Harvested Biomass | T33: Biomass Increase | U33: Harvested Biomass
A34: =IF('Wet Conditions'!$DY$48>'Wet Conditions'!$EL$47,0,'Wet Conditions'!$EL$47-'Wet Conditions'!$DY$48) -> 3342.465085 | B34: ='Wet Conditions'!$EL$45 -> 3330.183308 | C34: =IF('Wet Conditions'!$EL$48>'Wet Conditions'!$EY$47,0,'Wet Conditions'!$EY$47-'Wet Conditions'!$EL$48) -> 3572.50878 | D34: ='Wet Conditions'!$EY$45 -> 3535.522282 | E34: =IF('Wet Conditions'!$EY$48>'Wet Conditions'!$FL$47,0,'Wet Conditions'!$FL$47-'Wet Conditions'!$EY$48) -> 3747.64479 | F34: ='Wet Conditions'!$FL$45 -> 3430.24322 | G34: =IF('Wet Conditions'!$FL$48>'Wet Conditions'!$FY$47,0,'Wet Conditions'!$FY$47-'Wet Conditions'!$FL$48) -> 3773.884336 | H34: ='Wet Conditions'!$FY$45 -> 3708.942278 | I34: =IF('Wet Conditions'!$FY$48>'Wet Conditions'!$GL$47,0,'Wet Conditions'!$GL$47-'Wet Conditions'!$FY$48) -> 4025.011281 | J34: ='Wet Conditions'!$GL$45 -> 3987.46816 | L34: =IF('Wet and Fertigated Conditions'!$DY$48>'Wet and Fertigated Conditions'!$EL$47,0,'Wet and Fertigated Conditions'!$EL$47-'Wet and Fertigated Conditions'!$DY$48) -> 6319.988311 | M34: ='Wet and Fertigated Conditions'!$EL$45 -> 6390.361992 | N34: =IF('Wet and Fertigated Conditions'!$EL$48>'Wet and Fertigated Conditions'!$EY$47,0,'Wet and Fertigated Conditions'!$EY$47-'Wet and Fertigated Conditions'!$EL$48) -> 6880.234289 | O34: ='Wet and Fertigated Conditions'!$EY$45 -> 6697.792744 | P34: =IF('Wet and Fertigated Conditions'!$EY$48>'Wet and Fertigated Conditions'!$FL$47,0,'Wet and Fertigated Conditions'!$FL$47-'Wet and Fertigated Conditions'!$EY$48) -> 6000.487204 | Q34: ='Wet and Fertigated Conditions'!$FL$45 -> 6120.99549 | R34: =IF('Wet and Fertigated Conditions'!$FL$48>'Wet and Fertigated Conditions'!$FY$47,0,'Wet and Fertigated Conditions'!$FY$47-'Wet and Fertigated Conditions'!$FL$48) -> 6287.871546 | S34: ='Wet and Fertigated Conditions'!$FY$45 -> 6259.03204 | T34: =IF('Wet and Fertigated Conditions'!$FY$48>'Wet and Fertigated Conditions'!$GL$47,0,'Wet and Fertigated Conditions'!$GL$47-'Wet and Fertigated Conditions'!$FY$48) -> 6219.096006 | U34: ='Wet and Fertigated Conditions'!$GL$45 -> 6225.997748
A35: Percent Density | L35: Percent Density
A36: Year 1 | B36: Year 2 | C36: Year 3 | D36: Year 4 | E36: Year 5 | F36: Year 6 | G36: Year 7 | H36: Year 8 | I36: Year 9 | J36: Year 10 | L36: Year 1 | M36: Year 2 | N36: Year 3 | O36: Year 4 | P36: Year 5 | Q36: Year 6 | R36: Year 7 | S36: Year 8 | T36: Year 9 | U36: Year 10
A37: ='Wet Conditions'!E36 -> 2.728106817 | B37: ='Wet Conditions'!R36 -> 9.697854912 | C37: ='Wet Conditions'!AE36 -> 22.0116938 | D37: ='Wet Conditions'!AR36 -> 38.61622056 | E37: ='Wet Conditions'!BE36 -> 54.27786399 | F37: ='Wet Conditions'!BR36 -> 54.13513516 | G37: ='Wet Conditions'!CE36 -> 56.39519649 | H37: ='Wet Conditions'!CR36 -> 57.93187649 | I37: ='Wet Conditions'!DE36 -> 58.80372828 | J37: ='Wet Conditions'!DR36 -> 59.10497263 | L37: ='Wet and Fertigated Conditions'!E36 -> 3.006731905 | M37: ='Wet and Fertigated Conditions'!R36 -> 11.38843538 | N37: ='Wet and Fertigated Conditions'!AE36 -> 26.39961443 | O37: ='Wet and Fertigated Conditions'!AR36 -> 38.54602062 | P37: ='Wet and Fertigated Conditions'!BE36 -> 44.57070837 | Q37: ='Wet and Fertigated Conditions'!BR36 -> 49.02507025 | R37: ='Wet and Fertigated Conditions'!CE36 -> 50.01990011 | S37: ='Wet and Fertigated Conditions'!CR36 -> 48.10800145 | T37: ='Wet and Fertigated Conditions'!DE36 -> 46.37698043 | U37: ='Wet and Fertigated Conditions'!DR36 -> 47.56685815
A38: Year 11 | B38: Year 12 | C38: Year 13 | D38: Year 14 | E38: Year 15 | L38: Year 11 | M38: Year 12 | N38: Year 13 | O38: Year 14 | P38: Year 15
A39: ='Wet Conditions'!EE36 -> 58.94966329 | B39: ='Wet Conditions'!ER36 -> 58.45798122 | C39: ='Wet Conditions'!FE36 -> 57.74584066 | D39: ='Wet Conditions'!FR36 -> 58.09153437 | E39: ='Wet Conditions'!GE36 -> 58.19010182 | L39: ='Wet and Fertigated Conditions'!EE36 -> 47.16789108 | M39: ='Wet and Fertigated Conditions'!ER36 -> 46.30294459 | N39: ='Wet and Fertigated Conditions'!FE36 -> 42.31545016 | O39: ='Wet and Fertigated Conditions'!FR36 -> 43.26971956 | P39: ='Wet and Fertigated Conditions'!GE36 -> 43.04134806
A40: Dry Conditions | L40: Dry and Fertigated Conditions
A41: Number of Culms per Year | L41: Number of Culms per Year
A42: Year 1 | B42: Year 2 | C42: Year 3 | D42: Year 4 | E42: Year 5 | L42: Year 1 | M42: Year 2 | N42: Year 3 | O42: Year 4 | P42: Year 5
A43: =IF($D$8>0,$A$8*$B$8,0) -> 60 | B43: =IF($D$8>1,(($A$8-1)*$C$8)*$F$11*'Dry Conditions'!$N$45+($A$8*$F$11),0) -> 89.1 | C43: =IF($D$8>2,(($A$8-1)*$C$8)*$F$11*'Dry Conditions'!$AA$45+($A$8*$F$11),0) -> 89.1 | D43: =IF($D$8>3,(($A$8-1)*$C$8)*$F$11*'Dry Conditions'!$AN$45+($A$8*$F$11),0) -> 89.1 | E43: =IF($D$8>4,(($A$8-1)*$C$8)*$F$11*'Dry Conditions'!$BA$45+($A$8*$F$11),0) -> 42.11838479 | L43: =IF($D$8>0,$A$8*$B$8,0) -> 60 | M43: =IF($D$8>1,(($A$8-1)*$C$8)*$F$12*'Dry and Fertigated Conditions'!$N$45+($A$8*$F$12),0) -> 103.95 | N43: =IF($D$8>2,(($A$8-1)*$C$8)*$F$12*'Dry and Fertigated Conditions'!$AA$45+($A$8*$F$12),0) -> 103.95 | O43: =IF($D$8>3,(($A$8-1)*$C$8)*$F$12*'Dry and Fertigated Conditions'!$AN$45+($A$8*$F$12),0) -> 57.38108015 | P43: =IF($D$8>4,(($A$8-1)*$C$8)*$F$12*'Dry and Fertigated Conditions'!$BA$45+($A$8*$F$12),0) -> 35.95481962
B44: =IF($D$8>1,A43,0) -> 60 | C44: =IF($D$8>2,B43,0) -> 89.1 | D44: =IF($D$8>3,C43,0) -> 89.1 | E44: =IF($D$8>4,D43,0) -> 89.1 | M44: =IF($D$8>1,L43,0) -> 60 | N44: =IF($D$8>2,M43,0) -> 103.95 | O44: =IF($D$8>3,N43,0) -> 103.95 | P44: =IF($D$8>4,O43,0) -> 57.38108015
C45: =IF($D$8>2,B44,0) -> 60 | D45: =IF($D$8>3,C44,0) -> 89.1 | E45: =IF($D$8>4,D44,0) -> 89.1 | N45: =IF($D$8>2,M44,0) -> 60 | O45: =IF($D$8>3,N44,0) -> 103.95 | P45: =IF($D$8>4,O44,0) -> 103.95
D46: =IF($D$8>3,C45,0) -> 60 | E46: =IF($D$8>4,D45,0) -> 89.1 | O46: =IF($D$8>3,N45,0) -> 60 | P46: =IF($D$8>4,O45,0) -> 103.95
E47: =IF($D$8>4,D46,0) -> 60 | P47: =IF($D$8>4,O46,0) -> 60
A48: Year 6 | B48: Year 7 | C48: Year 8 | D48: Year 9 | E48: Year 10 | L48: Year 6 | M48: Year 7 | N48: Year 8 | O48: Year 9 | P48: Year 10
A49: =IF($D$8>5,(SUM(E43:E47))+($C$8*(A$8-1)*$F$11*'Dry Conditions'!BN45)+($A$8*$F$11),0) -> 385.7695077 | B49: =IF($D$8>6,(SUM($E$43:$E$47))+($C$8*($A$8-1)*$F$11*'Dry Conditions'!$BN$45)+($C$8*($A$8-1)*$F$11*'Dry Conditions'!$CA$45)+($A$8*$F$11*2),0) -> 412.5536833 | C49: =IF($D$8>6,(SUM($E$43:$E$47))+(($A$8-1)*$C$8*$F$11*'Dry Conditions'!$BN$45)+($C$8*($A$8-1)*$F$11*'Dry Conditions'!$CA$45)+(($A$8-1)*$C$8*$F$11*'Dry Conditions'!$CN$45)+($A$8*$F$11*3),0) -> 440.6186466 | D49: =IF($D$8>6,(SUM($E$43:$E$47))+(($A$8-1)*$C$8*$F$11*'Dry Conditions'!$BN$45)+($C$8*($A$8-1)*$F$11*'Dry Conditions'!$CA$45)+(($A$8-1)*$C$8*$F$11*'Dry Conditions'!$CN$45)+(($A$8-1)*$C$8*$F$11*'Dry Conditions'!$DA$45)+($A$8*$F$11*4),0) -> 469.144107 | E49: =IF($D$8>6,(SUM($E$43:$E$47))+(($A$8-1)*$C$8*$F$11*'Dry Conditions'!$BN$45)+($C$8*($A$8-1)*$F$11*'Dry Conditions'!$CA$45)+(($A$8-1)*$C$8*$F$11*'Dry Conditions'!$CN$45)+(($A$8-1)*$C$8*$F$11*'Dry Conditions'!$DA$45)+(($A$8-1)*$C$8*$F$11*'Dry Conditions'!$DN$45)+($A$8*$F$11*5),0) -> 497.714646 | L49: =IF($D$8>5,(SUM($P$43:$P$47))+($C$8*($A$8-1)*$F$12*'Dry and Fertigated Conditions'!$BN$45)+($A$8*$F$12),0) -> 386.5631702 | M49: =IF($D$8>6,(SUM($P$43:$P$47))+($C$8*($A$8-1)*$F$12*'Dry and Fertigated Conditions'!$BN$45)+($C$8*($A$8-1)*$F$12*'Dry and Fertigated Conditions'!$CA$45)+($A$8*$F$12*2),0) -> 404.0329463 | N49: =IF($D$8>6,(SUM($P$43:$P$47))+(($A$8-1)*$C$8*$F$12*'Dry and Fertigated Conditions'!$BN$45)+($C$8*($A$8-1)*$F$12*'Dry and Fertigated Conditions'!$CA$45)+(($A$8-1)*$C$8*$F$12*'Dry and Fertigated Conditions'!$CN$45)+($A$8*$F$12*3),0) -> 419.7829463 | O49: =IF($D$8>6,(SUM($P$43:$P$47))+(($A$8-1)*$C$8*$F$12*'Dry and Fertigated Conditions'!$BN$45)+($C$8*($A$8-1)*$F$12*'Dry and Fertigated Conditions'!$CA$45)+(($A$8-1)*$C$8*$F$12*'Dry and Fertigated Conditions'!$CN$45)+(($A$8-1)*$C$8*$F$12*'Dry and Fertigated Conditions'!$DA$45)+($A$8*$F$12*4),0) -> 438.8704317 | P49: =IF($D$8>6,(SUM($P$43:$P$47))+(($A$8-1)*$C$8*$F$12*'Dry and Fertigated Conditions'!$BN$45)+($C$8*($A$8-1)*$F$12*'Dry and Fertigated Conditions'!$CA$45)+(($A$8-1)*$C$8*$F$12*'Dry and Fertigated Conditions'!$CN$45)+(($A$8-1)*$C$8*$F$12*'Dry and Fertigated Conditions'!$DA$45)+(($A$8-1)*$C$8*$F$12*'Dry and Fertigated Conditions'!$DN$45)+($A$8*$F$12*5),0) -> 461.0114382
A50: Year 11 | B50: Year 12 | C50: Year 13 | D50: Year 14 | E50: Year 15 | L50: Year 11 | M50: Year 12 | N50: Year 13 | O50: Year 14 | P50: Year 15
A51: =IF($D$8>6,(SUM($E$43:$E$47))+(($A$8-1)*$C$8*$F$11*'Dry Conditions'!$BN$45)+($C$8*($A$8-1)*$F$11*'Dry Conditions'!$CA$45)+(($A$8-1)*$C$8*$F$11*'Dry Conditions'!$CN$45)+(($A$8-1)*$C$8*$F$11*'Dry Conditions'!$DA$45)+(($A$8-1)*$C$8*$F$11*'Dry Conditions'!$DN$45)+(($A$8-1)*$C$8*$F$11*'Dry Conditions'!$EA$45)+($A$8*$F$11*6),0) -> 526.1130939 | B51: =IF($D$8>6,(SUM($E$43:$E$47))+(($A$8-1)*$C$8*$F$11*'Dry Conditions'!$BN$45)+($C$8*($A$8-1)*$F$11*'Dry Conditions'!$CA$45)+(($A$8-1)*$C$8*$F$11*'Dry Conditions'!$CN$45)+(($A$8-1)*$C$8*$F$11*'Dry Conditions'!$DA$45)+(($A$8-1)*$C$8*$F$11*'Dry Conditions'!$DN$45)+(($A$8-1)*$C$8*$F$11*'Dry Conditions'!$EA$45)+(($A$8-1)*$C$8*$F$11*'Dry Conditions'!$EN$45)+($A$8*$F$11*7),0) -> 615.2130939 | C51: =IF($D$8>6,(SUM($E$43:$E$47))+(($A$8-1)*$C$8*$F$11*'Dry Conditions'!$BN$45)+($C$8*($A$8-1)*$F$11*'Dry Conditions'!$CA$45)+(($A$8-1)*$C$8*$F$11*'Dry Conditions'!$CN$45)+(($A$8-1)*$C$8*$F$11*'Dry Conditions'!$DA$45)+(($A$8-1)*$C$8*$F$11*'Dry Conditions'!$DN$45)+(($A$8-1)*$C$8*$F$11*'Dry Conditions'!$EA$45)+(($A$8-1)*$C$8*$F$11*'Dry Conditions'!$EN$45)+(($A$8-1)*$C$8*$F$11*'Dry Conditions'!$FA$45)+($A$8*$F$11*8),0) -> 628.7130939 | D51: =IF($D$8>6,(SUM($E$43:$E$47))+(($A$8-1)*$C$8*$F$11*'Dry Conditions'!$BN$45)+($C$8*($A$8-1)*$F$11*'Dry Conditions'!$CA$45)+(($A$8-1)*$C$8*$F$11*'Dry Conditions'!$CN$45)+(($A$8-1)*$C$8*$F$11*'Dry Conditions'!$DA$45)+(($A$8-1)*$C$8*$F$11*'Dry Conditions'!$DN$45)+(($A$8-1)*$C$8*$F$11*'Dry Conditions'!$EA$45)+(($A$8-1)*$C$8*$F$11*'Dry Conditions'!$EN$45)+(($A$8-1)*$C$8*$F$11*'Dry Conditions'!$FA$45)+(($A$8-1)*$C$8*$F$11*'Dry Conditions'!$FN$45)+($A$8*$F$11*9),0) -> 642.2130939 | E51: =IF($D$8>6,(SUM($E$43:$E$47))+(($A$8-1)*$C$8*$F$11*'Dry Conditions'!$BN$45)+($C$8*($A$8-1)*$F$11*'Dry Conditions'!$CA$45)+(($A$8-1)*$C$8*$F$11*'Dry Conditions'!$CN$45)+(($A$8-1)*$C$8*$F$11*'Dry Conditions'!$DA$45)+(($A$8-1)*$C$8*$F$11*'Dry Conditions'!$DN$45)+(($A$8-1)*$C$8*$F$11*'Dry Conditions'!$EA$45)+(($A$8-1)*$C$8*$F$11*'Dry Conditions'!$EN$45)+(($A$8-1)*$C$8*$F$11*'Dry Conditions'!$FA$45)+(($A$8-1)*$C$8*$F$11*'Dry Conditions'!$FN$45)+(($A$8-1)*$C$8*$F$11*'Dry Conditions'!$GA$45)+($A$8*$F$11*10),0) -> 661.1015185 | L51: =IF($D$8>6,(SUM($P$43:$P$47))+(($A$8-1)*$C$8*$F$12*'Dry and Fertigated Conditions'!$BN$45)+($C$8*($A$8-1)*$F$12*'Dry and Fertigated Conditions'!$CA$45)+(($A$8-1)*$C$8*$F$12*'Dry and Fertigated Conditions'!$CN$45)+(($A$8-1)*$C$8*$F$12*'Dry and Fertigated Conditions'!$DA$45)+(($A$8-1)*$C$8*$F$12*'Dry and Fertigated Conditions'!$DN$45)+(($A$8-1)*$C$8*$F$12*'Dry and Fertigated Conditions'!$EA$45)+($A$8*$F$12*6),0) -> 481.0535005 | M51: =IF($D$8>6,(SUM($P$43:$P$47))+(($A$8-1)*$C$8*$F$12*'Dry and Fertigated Conditions'!$BN$45)+($C$8*($A$8-1)*$F$12*'Dry and Fertigated Conditions'!$CA$45)+(($A$8-1)*$C$8*$F$12*'Dry and Fertigated Conditions'!$CN$45)+(($A$8-1)*$C$8*$F$12*'Dry and Fertigated Conditions'!$DA$45)+(($A$8-1)*$C$8*$F$12*'Dry and Fertigated Conditions'!$DN$45)+(($A$8-1)*$C$8*$F$12*'Dry and Fertigated Conditions'!$EA$45)+(($A$8-1)*$C$8*$F$12*'Dry and Fertigated Conditions'!$EN$45)+($A$8*$F$12*7),0) -> 501.7993406 | N51: =IF($D$8>6,(SUM($P$43:$P$47))+(($A$8-1)*$C$8*$F$12*'Dry and Fertigated Conditions'!$BN$45)+($C$8*($A$8-1)*$F$12*'Dry and Fertigated Conditions'!$CA$45)+(($A$8-1)*$C$8*$F$12*'Dry and Fertigated Conditions'!$CN$45)+(($A$8-1)*$C$8*$F$12*'Dry and Fertigated Conditions'!$DA$45)+(($A$8-1)*$C$8*$F$12*'Dry and Fertigated Conditions'!$DN$45)+(($A$8-1)*$C$8*$F$12*'Dry and Fertigated Conditions'!$EA$45)+(($A$8-1)*$C$8*$F$12*'Dry and Fertigated Conditions'!$EN$45)+(($A$8-1)*$C$8*$F$12*'Dry and Fertigated Conditions'!$FA$45)+($A$8*$F$12*8),0) -> 524.0709463 | O51: =IF($D$8>6,(SUM($P$43:$P$47))+(($A$8-1)*$C$8*$F$12*'Dry and Fertigated Conditions'!$BN$45)+($C$8*($A$8-1)*$F$12*'Dry and Fertigated Conditions'!$CA$45)+(($A$8-1)*$C$8*$F$12*'Dry and Fertigated Conditions'!$CN$45)+(($A$8-1)*$C$8*$F$12*'Dry and Fertigated Conditions'!$DA$45)+(($A$8-1)*$C$8*$F$12*'Dry and Fertigated Conditions'!$DN$45)+(($A$8-1)*$C$8*$F$12*'Dry and Fertigated Conditions'!$EA$45)+(($A$8-1)*$C$8*$F$12*'Dry and Fertigated Conditions'!$EN$45)+(($A$8-1)*$C$8*$F$12*'Dry and Fertigated Conditions'!$FA$45)+(($A$8-1)*$C$8*$F$12*'Dry and Fertigated Conditions'!$FN$45)+($A$8*$F$12*9),0) -> 553.3764923 | P51: =IF($D$8>6,(SUM($P$43:$P$47))+(($A$8-1)*$C$8*$F$12*'Dry and Fertigated Conditions'!$BN$45)+($C$8*($A$8-1)*$F$12*'Dry and Fertigated Conditions'!$CA$45)+(($A$8-1)*$C$8*$F$12*'Dry and Fertigated Conditions'!$CN$45)+(($A$8-1)*$C$8*$F$12*'Dry and Fertigated Conditions'!$DA$45)+(($A$8-1)*$C$8*$F$12*'Dry and Fertigated Conditions'!$DN$45)+(($A$8-1)*$C$8*$F$12*'Dry and Fertigated Conditions'!$EA$45)+(($A$8-1)*$C$8*$F$12*'Dry and Fertigated Conditions'!$EN$45)+(($A$8-1)*$C$8*$F$12*'Dry and Fertigated Conditions'!$FA$45)+(($A$8-1)*$C$8*$F$12*'Dry and Fertigated Conditions'!$FN$45)+(($A$8-1)*$C$8*$F$12*'Dry and Fertigated Conditions'!$GA$45)+($A$8*$F$12*10),0) -> 580.9987069
A52: Biomass per Year | L52: Biomass per Year
A53: Year 1 | C53: Year 2 | E53: Year 3 | G53: Year 4 | I53: Year 5 | L53: Year 1 | N53: Year 2 | P53: Year 3 | R53: Year 4 | T53: Year 5
A54: Biomass Increase | B54: Harvested Biomass | C54: Biomass Increase | D54: Harvested Biomass | E54: Biomass Increase | F54: Harvested Biomass | G54: Biomass Increase | H54: Harvested Biomass | I54: Biomass Increase | J54: Harvested Biomass | L54: Biomass Increase | M54: Harvested Biomass | N54: Biomass Increase | O54: Harvested Biomass | P54: Biomass Increase | Q54: Harvested Biomass | R54: Biomass Increase | S54: Harvested Biomass | T54: Biomass Increase | U54: Harvested Biomass
A55: ='Dry Conditions'!$L$48 -> 79.98996988 | B55: ='Dry Conditions'!$L$45 -> 0 | C55: =IF('Dry Conditions'!$L$48>'Dry Conditions'!$Y$47,0,'Dry Conditions'!$Y$47-'Dry Conditions'!$L$48) -> 252.5067935 | D55: ='Dry Conditions'!$Y$45 -> 0 | E55: =IF('Dry Conditions'!$Y$48>'Dry Conditions'!$AL$47,0,'Dry Conditions'!$AL$47-'Dry Conditions'!$Y$48) -> 558.3679134 | F55: ='Dry Conditions'!$AL$45 -> 0 | G55: =IF('Dry Conditions'!$AL$48>'Dry Conditions'!$AY$47,0,'Dry Conditions'!$AY$47-'Dry Conditions'!$AL$48) -> 891.5008467 | H55: ='Dry Conditions'!$AY$45 -> 475.6394978 | I55: =IF('Dry Conditions'!$AY$48>'Dry Conditions'!$BL$47,0,'Dry Conditions'!$BL$47-'Dry Conditions'!$AY$48) -> 2045.536238 | J55: ='Dry Conditions'!$BL$45 -> 1114.941076 | L55: ='Dry and Fertigated Conditions'!$L$48 -> 130.8102261 | M55: ='Dry and Fertigated Conditions'!$L$45 -> 0 | N55: =IF('Dry and Fertigated Conditions'!$L$48>'Dry and Fertigated Conditions'!$Y$47,0,'Dry and Fertigated Conditions'!$Y$47-'Dry and Fertigated Conditions'!$L$48) -> 441.7377606 | O55: ='Dry and Fertigated Conditions'!$Y$45 -> 0 | P55: =IF('Dry and Fertigated Conditions'!$Y$48>'Dry and Fertigated Conditions'!$AL$47,0,'Dry and Fertigated Conditions'!$AL$47-'Dry and Fertigated Conditions'!$Y$48) -> 998.0503838 | Q55: ='Dry and Fertigated Conditions'!$AL$45 -> 1068.558047 | R55: =IF('Dry and Fertigated Conditions'!$AL$48>'Dry and Fertigated Conditions'!$AY$47,0,'Dry and Fertigated Conditions'!$AY$47-'Dry and Fertigated Conditions'!$AL$48) -> 2234.221327 | S55: ='Dry and Fertigated Conditions'!$AY$45 -> 2133.259003 | T55: =IF('Dry and Fertigated Conditions'!$AY$48>'Dry and Fertigated Conditions'!$BL$47,0,'Dry and Fertigated Conditions'!$BL$47-'Dry and Fertigated Conditions'!$AY$48) -> 2991.379328 | U55: ='Dry and Fertigated Conditions'!$BL$45 -> 2574.207409
A56: Year 6 | C56: Year 7 | E56: Year 8 | G56: Year 9 | I56: Year 10 | L56: Year 6 | N56: Year 7 | P56: Year 8 | R56: Year 9 | T56: Year 10
A57: Biomass Increase | B57: Harvested Biomass | C57: Biomass Increase | D57: Harvested Biomass | E57: Biomass Increase | F57: Harvested Biomass | G57: Biomass Increase | H57: Harvested Biomass | I57: Biomass Increase | J57: Harvested Biomass | L57: Biomass Increase | M57: Harvested Biomass | N57: Biomass Increase | O57: Harvested Biomass | P57: Biomass Increase | Q57: Harvested Biomass | R57: Biomass Increase | S57: Harvested Biomass | T57: Biomass Increase | U57: Harvested Biomass
A58: =IF('Dry Conditions'!$BL$48>'Dry Conditions'!$BY$47,0,'Dry Conditions'!$BY$47-'Dry Conditions'!$BL$48) -> 673.8126764 | B58: ='Dry Conditions'!$BY$45 -> 540.8156842 | C58: =IF('Dry Conditions'!$BY$48>'Dry Conditions'!$CL$47,0,'Dry Conditions'!$CL$47-'Dry Conditions'!$BY$48) -> 385.7386738 | D58: ='Dry Conditions'!$CL$45 -> 468.6058132 | E58: =IF('Dry Conditions'!$CL$48>'Dry Conditions'!$CY$47,0,'Dry Conditions'!$CY$47-'Dry Conditions'!$CL$48) -> 370.1765898 | F58: ='Dry Conditions'!$CY$45 -> 411.1011571 | G58: =IF('Dry Conditions'!$CY$48>'Dry Conditions'!$DL$47,0,'Dry Conditions'!$DL$47-'Dry Conditions'!$CY$48) -> 342.0949878 | H58: ='Dry Conditions'!$DL$45 -> 367.7010332 | I58: =IF('Dry Conditions'!$DL$48>'Dry Conditions'!$DY$47,0,'Dry Conditions'!$DY$47-'Dry Conditions'!$DL$48) -> 315.0165676 | J58: ='Dry Conditions'!$DY$45 -> 332.6924118 | L58: =IF('Dry and Fertigated Conditions'!$BL$48>'Dry and Fertigated Conditions'!$BY$47,0,'Dry and Fertigated Conditions'!$BY$47-'Dry and Fertigated Conditions'!$BL$48) -> 3672.604697 | M58: ='Dry and Fertigated Conditions'!$BY$45 -> 3068.553379 | N58: =IF('Dry and Fertigated Conditions'!$BY$48>'Dry and Fertigated Conditions'!$CL$47,0,'Dry and Fertigated Conditions'!$CL$47-'Dry and Fertigated Conditions'!$BY$48) -> 3726.170143 | O58: ='Dry and Fertigated Conditions'!$CL$45 -> 3931.224196 | P58: =IF('Dry and Fertigated Conditions'!$CL$48>'Dry and Fertigated Conditions'!$CY$47,0,'Dry and Fertigated Conditions'!$CY$47-'Dry and Fertigated Conditions'!$CL$48) -> 4292.384454 | Q58: ='Dry and Fertigated Conditions'!$CY$45 -> 4440.873727 | R58: =IF('Dry and Fertigated Conditions'!$CY$48>'Dry and Fertigated Conditions'!$DL$47,0,'Dry and Fertigated Conditions'!$DL$47-'Dry and Fertigated Conditions'!$CY$48) -> 4841.295548 | S58: ='Dry and Fertigated Conditions'!$DL$45 -> 4737.305197 | T58: =IF('Dry and Fertigated Conditions'!$DL$48>'Dry and Fertigated Conditions'!$DY$47,0,'Dry and Fertigated Conditions'!$DY$47-'Dry and Fertigated Conditions'!$DL$48) -> 5580.307764 | U58: ='Dry and Fertigated Conditions'!$DY$45 -> 5667.70151
A59: Year 11 | C59: Year 12 | E59: Year 13 | G59: Year 14 | I59: Year 15 | L59: Year 11 | N59: Year 12 | P59: Year 13 | R59: Year 14 | T59: Year 15
A60: Biomass Increase | B60: Harvested Biomass | C60: Biomass Increase | D60: Harvested Biomass | E60: Biomass Increase | F60: Harvested Biomass | G60: Biomass Increase | H60: Harvested Biomass | I60: Biomass Increase | J60: Harvested Biomass | L60: Biomass Increase | M60: Harvested Biomass | N60: Biomass Increase | O60: Harvested Biomass | P60: Biomass Increase | Q60: Harvested Biomass | R60: Biomass Increase | S60: Harvested Biomass | T60: Biomass Increase | U60: Harvested Biomass
A61: =IF('Dry Conditions'!$DY$48>'Dry Conditions'!$EL$47,0,'Dry Conditions'!$EL$47-'Dry Conditions'!$DY$48) -> 289.625594 | B61: ='Dry Conditions'!$EL$45 -> 303.1493639 | C61: =IF('Dry Conditions'!$EL$48>'Dry Conditions'!$EY$47,0,'Dry Conditions'!$EY$47-'Dry Conditions'!$EL$48) -> 1729.503237 | D61: ='Dry Conditions'!$EY$45 -> 685.4599613 | E61: =IF('Dry Conditions'!$EY$48>'Dry Conditions'!$FL$47,0,'Dry Conditions'!$FL$47-'Dry Conditions'!$EY$48) -> 80.53047993 | F61: ='Dry Conditions'!$FL$45 -> 475.9821867 | G61: =IF('Dry Conditions'!$FL$48>'Dry Conditions'!$FY$47,0,'Dry Conditions'!$FY$47-'Dry Conditions'!$FL$48) -> 8.695040312 | H61: ='Dry Conditions'!$FY$45 -> 336.5812714 | I61: =IF('Dry Conditions'!$FY$48>'Dry Conditions'!$GL$47,0,'Dry Conditions'!$GL$47-'Dry Conditions'!$FY$48) -> 80.84874253 | J61: ='Dry Conditions'!$GL$45 -> 263.7430049 | L61: =IF('Dry and Fertigated Conditions'!$DY$48>'Dry and Fertigated Conditions'!$EL$47,0,'Dry and Fertigated Conditions'!$EL$47-'Dry and Fertigated Conditions'!$DY$48) -> 6319.988311 | M61: ='Dry and Fertigated Conditions'!$EL$45 -> 6390.361992 | N61: =IF('Dry and Fertigated Conditions'!$EL$48>'Dry and Fertigated Conditions'!$EY$47,0,'Dry and Fertigated Conditions'!$EY$47-'Dry and Fertigated Conditions'!$EL$48) -> 6880.234289 | O61: ='Dry and Fertigated Conditions'!$EY$45 -> 6697.792744 | P61: =IF('Dry and Fertigated Conditions'!$EY$48>'Dry and Fertigated Conditions'!$FL$47,0,'Dry and Fertigated Conditions'!$FL$47-'Dry and Fertigated Conditions'!$EY$48) -> 6000.487204 | Q61: ='Dry and Fertigated Conditions'!$FL$45 -> 6120.99549 | R61: =IF('Dry and Fertigated Conditions'!$FL$48>'Dry and Fertigated Conditions'!$FY$47,0,'Dry and Fertigated Conditions'!$FY$47-'Dry and Fertigated Conditions'!$FL$48) -> 6287.871546 | S61: ='Dry and Fertigated Conditions'!$FY$45 -> 6259.03204 | T61: =IF('Dry and Fertigated Conditions'!$FY$48>'Dry and Fertigated Conditions'!$GL$47,0,'Dry and Fertigated Conditions'!$GL$47-'Dry and Fertigated Conditions'!$FY$48) -> 6219.096006 | U61: ='Dry and Fertigated Conditions'!$GL$45 -> 6225.997748
A62: Percent Density | L62: Percent Density
A63: Year 1 | B63: Year 2 | C63: Year 3 | D63: Year 4 | E63: Year 5 | F63: Year 6 | G63: Year 7 | H63: Year 8 | I63: Year 9 | J63: Year 10 | L63: Year 1 | M63: Year 2 | N63: Year 3 | O63: Year 4 | P63: Year 5 | Q63: Year 6 | R63: Year 7 | S63: Year 8 | T63: Year 9 | U63: Year 10
A64: ='Dry Conditions'!E36 -> 2.211630954 | B64: ='Dry Conditions'!R36 -> 7.826749458 | C64: ='Dry Conditions'!AE36 -> 17.73561917 | D64: ='Dry Conditions'!AR36 -> 31.07249683 | E64: ='Dry Conditions'!BE36 -> 48.11433673 | F64: ='Dry Conditions'!BR36 -> 41.21416958 | G64: ='Dry Conditions'!CE36 -> 40.36708771 | H64: ='Dry Conditions'!CR36 -> 40.06252619 | I64: ='Dry Conditions'!DE36 -> 40.0327123 | J64: ='Dry Conditions'!DR36 -> 40.14652916 | L64: ='Dry and Fertigated Conditions'!E36 -> 3.006731905 | M64: ='Dry and Fertigated Conditions'!R36 -> 11.38843538 | N64: ='Dry and Fertigated Conditions'!AE36 -> 26.39961443 | O64: ='Dry and Fertigated Conditions'!AR36 -> 38.54602062 | P64: ='Dry and Fertigated Conditions'!BE36 -> 44.57070837 | Q64: ='Dry and Fertigated Conditions'!BR36 -> 49.02507025 | R64: ='Dry and Fertigated Conditions'!CE36 -> 50.01990011 | S64: ='Dry and Fertigated Conditions'!CR36 -> 48.10800145 | T64: ='Dry and Fertigated Conditions'!DE36 -> 46.37698043 | U64: ='Dry and Fertigated Conditions'!DR36 -> 47.56685815
A65: Year 11 | B65: Year 12 | C65: Year 13 | D65: Year 14 | E65: Year 15 | L65: Year 11 | M65: Year 12 | N65: Year 13 | O65: Year 14 | P65: Year 15
A66: ='Dry Conditions'!EE36 -> 40.33654819 | B66: ='Dry Conditions'!ER36 -> 56.90779055 | C66: ='Dry Conditions'!FE36 -> 51.08778707 | D66: ='Dry Conditions'!FR36 -> 46.4362271 | E66: ='Dry Conditions'!GE36 -> 44.0297069 | L66: ='Dry and Fertigated Conditions'!EE36 -> 47.16789108 | M66: ='Dry and Fertigated Conditions'!ER36 -> 46.30294459 | N66: ='Dry and Fertigated Conditions'!FE36 -> 42.31545016 | O66: ='Dry and Fertigated Conditions'!FR36 -> 43.26971956 | P66: ='Dry and Fertigated Conditions'!GE36 -> 43.04134806

Sheet Wet Conditions
B1: Year 1 | O1: Year 2 | AB1: Year 3 | AO1: Year 4 | BB1: Year 5 | BO1: Year 6 | CB1: Year 7 | CO1: Year 8 | DB1: Year 9 | DO1: Year 10 | EB1: Year 11 | EO1: Year 12 | FB1: Year 13 | FO1: Year 14 | GB1: Year 15
B2: Diameter Range | C2: Number of Culms | D2: Weighted Diameter | E2: Total Area | F2: Sum of Diameters | G2: Total Culms > Mature Diameter | O2: Diameter Range | P2: Number of Culms | Q2: Weighted Diameter | R2: Total Area | S2: Sum of Diameters | T2: Total Culms > Mature Diameter | AB2: Diameter Range | AC2: Number of Culms | AD2: Weighted Diameter | AE2: Total Area | AF2: Sum of Diameters | AG2: Total Culms > Mature Diameter | AO2: Diameter Range | AP2: Number of Culms | AQ2: Weighted Diameter | AR2: Total Area | AS2: Sum of Diameters | AT2: Total Culms > Mature Diameter | BB2: Diameter Range | BC2: Number of Culms | BD2: Weighted Diameter | BE2: Total Area | BF2: Sum of Diameters | BG2: Total Culms > Mature Diameter | BO2: Diameter Range | BP2: Number of Culms | BQ2: Weighted Diameter | BR2: Total Area | BS2: Sum of Diameters | BT2: Total Culms > Mature Diameter | CB2: Diameter Range | CC2: Number of Culms | CD2: Weighted Diameter | CE2: Total Area | CF2: Sum of Diameters | CG2: Total Culms > Mature Diameter | CO2: Diameter Range | CP2: Number of Culms | CQ2: Weighted Diameter | CR2: Total Area | CS2: Sum of Diameters | CT2: Total Culms > Mature Diameter | DB2: Diameter Range | DC2: Number of Culms | DD2: Weighted Diameter | DE2: Total Area | DF2: Sum of Diameters | DG2: Total Culms > Mature Diameter | DO2: Diameter Range | DP2: Number of Culms | DQ2: Weighted Diameter | DR2: Total Area | DS2: Sum of Diameters | DT2: Total Culms > Mature Diameter | EB2: Diameter Range | EC2: Number of Culms | ED2: Weighted Diameter | EE2: Total Area | EF2: Sum of Diameters | EG2: Total Culms > Mature Diameter | EO2: Diameter Range | EP2: Number of Culms | EQ2: Weighted Diameter | ER2: Total Area | ES2: Sum of Diameters | ET2: Total Culms > Mature Diameter | FB2: Diameter Range | FC2: Number of Culms | FD2: Weighted Diameter | FE2: Total Area | FF2: Sum of Diameters | FG2: Total Culms > Mature Diameter | FO2: Diameter Range | FP2: Number of Culms | FQ2: Weighted Diameter | FR2: Total Area | FS2: Sum of Diameters | FT2: Total Culms > Mature Diameter | GB2: Diameter Range | GC2: Number of Culms | GD2: Weighted Diameter | GE2: Total Area | GF2: Sum of Diameters | GG2: Total Culms > Mature Diameter
I3: Number of Culms | J3: Average Diameter | K3: Number of Culms | L3: Diameter | V3: Number of Culms | W3: Average Diameter | X3: Number of Culms | Y3: Diameter | AI3: Number of Culms | AJ3: Average Diameter | AK3: Number of Culms | AL3: Diameter | AV3: Number of Culms | AW3: Average Diameter | AX3: Number of Culms | AY3: Diameter | BI3: Number of Culms | BJ3: Average Diameter | BK3: Number of Culms | BL3: Diameter | BV3: Number of Culms | BW3: Average Diameter | BX3: Number of Culms | BY3: Diameter | CI3: Number of Culms | CJ3: Average Diameter | CK3: Number of Culms | CL3: Diameter | CV3: Number of Culms | CW3: Average Diameter | CX3: Number of Culms | CY3: Diameter | DI3: Number of Culms | DJ3: Average Diameter | DK3: Number of Culms | DL3: Diameter | DV3: Number of Culms | DW3: Average Diameter | DX3: Number of Culms | DY3: Diameter | EI3: Number of Culms | EJ3: Average Diameter | EK3: Number of Culms | EL3: Diameter | EV3: Number of Culms | EW3: Average Diameter | EX3: Number of Culms | EY3: Diameter | FI3: Number of Culms | FJ3: Average Diameter | FK3: Number of Culms | FL3: Diameter | FV3: Number of Culms | FW3: Average Diameter | FX3: Number of Culms | FY3: Diameter | GI3: Number of Culms | GJ3: Average Diameter | GK3: Number of Culms | GL3: Diameter
B4: =CONCATENATE($B$74,$A$74,$C$74) -> 0 to 0.5 | C4: =E39 -> 0.2469204936 | D4: =(($B$74+$C$74)/2)*C4 -> 0.0617301234 | E4: =(22/7)*((($B$74+$C$74)/4)^2)*C4 -> 0.01212555995 | F4: =SUM(C4:$C$34) -> 59.97425638 | G4: =IF($B$74>G52,0,IF($C$74>G52,F4,0)) -> 0 | H4: =IF(G36>F4,F4,0) -> 0 | I4: =IF(H3=0,H4,0) -> 0 | J4: =IF(I4>0,SUM(D4:D34),0) -> 0 | K4: =IF(I4>0,F3,0) -> 0 | L4: =IF(K4>0,(($B$73+$C$73)/2),0) -> 0 | O4: =CONCATENATE($B$74,$A$74,$C$74) -> 0 to 0.5 | P4: =R39+R73 -> 0.4850324442 | Q4: =(($B$74+$C$74)/2)*P4 -> 0.1212581111 | R4: =(22/7)*((($B$74+$C$74)/4)^2)*P4 -> 0.02381855753 | S4: =SUM(P4:$P$34) -> 149.935641 | T4: =IF($B$74>T52,0,IF($C$74>T52,S4,0)) -> 0 | U4: =IF(T36>S4,S4,0) -> 0 | V4: =IF(U3=0,U4,0) -> 0 | W4: =IF(V4>0,SUM(Q4:Q34),0) -> 0 | X4: =IF(V4>0,S3,0) -> 0 | Y4: =IF(X4>0,(($B$73+$C$73)/2),0) -> 0 | AB4: =CONCATENATE($B$74,$A$74,$C$74) -> 0 to 0.5 | AC4: =AE39+AE73+AE107 -> 0.6132707183 | AD4: =(($B$74+$C$74)/2)*AC4 -> 0.1533176796 | AE4: =(22/7)*((($B$74+$C$74)/4)^2)*AC4 -> 0.03011597277 | AF4: =SUM(AC4:$AC$34) -> 239.8970255 | AG4: =IF($B$74>AG52,0,IF($C$74>AG52,AF4,0)) -> 0 | AH4: =IF(AG36>AF4,AF4,0) -> 0 | AI4: =IF(AH3=0,AH4,0) -> 0 | AJ4: =IF(AI4>0,SUM(AD4:AD34),0) -> 0 | AK4: =IF(AI4>0,AF3,0) -> 0 | AL4: =IF(AK4>0,(($B$73+$C$73)/2),0) -> 0 | AO4: =CONCATENATE($B$74,$A$74,$C$74) -> 0 to 0.5 | AP4: =AR39+AR73+AR107+AR141 -> 0.7077482974 | AQ4: =(($B$74+$C$74)/2)*AP4 -> 0.1769370744 | AR4: =(22/7)*((($B$74+$C$74)/4)^2)*AP4 -> 0.03475549675 | AS4: =SUM(AP4:$AP$34) -> 329.8584101 | AT4: =IF($B$74>AT52,0,IF($C$74>AT52,AS4,0)) -> 0 | AU4: =IF(AT36>AS4,AS4,0) -> 0 | AV4: =IF(AU3=0,AU4,0) -> 0 | AW4: =IF(AV4>0,SUM(AQ4:AQ34),0) -> 0 | AX4: =IF(AV4>0,AS3,0) -> 0 | AY4: =IF(AX4>0,(($B$73+$C$73)/2),0) -> 0 | BB4: =CONCATENATE($B$74,$A$74,$C$74) -> 0 to 0.5 | BC4: =BE39+BE73+BE107+BE141+BE175 -> 0.5223653988 | BD4: =(($B$74+$C$74)/2)*BC4 -> 0.1305913497 | BE4: =(22/7)*((($B$74+$C$74)/4)^2)*BC4 -> 0.02565187226 | BF4: =SUM(BC4:$BC$34) -> 338.307022 | BG4: =IF($B$74>BG52,0,IF($C$74>BG52,BF4,0)) -> 0 | BH4: =IF(BG36>BF4,BF4,0) -> 0 | BI4: =IF(BH3=0,BH4,0) -> 0 | BJ4: =IF(BI4>0,SUM(BD4:BD34),0) -> 0 | BK4: =IF(BI4>0,BF3,0) -> 0 | BL4: =IF(BK4>0,(($B$73+$C$73)/2),0) -> 0 | BO4: =CONCATENATE($B$74,$A$74,$C$74) -> 0 to 0.5 | BP4: =BR39 -> 0.372470811 | BQ4: =(($B$74+$C$74)/2)*BP4 -> 0.09311770276 | BR4: =(22/7)*((($B$74+$C$74)/4)^2)*BP4 -> 0.01829097733 | BS4: =SUM(BP4:$BP$34) -> 326.8665502 | BT4: =IF($B$74>BT52,0,IF($C$74>BT52,BS4,0)) -> 0 | BU4: =IF(BT36>BS4,BS4,0) -> 0 | BV4: =IF(BU3=0,BU4,0) -> 0 | BW4: =IF(BV4>0,SUM(BQ4:BQ34),0) -> 0 | BX4: =IF(BV4>0,BS3,0) -> 0 | BY4: =IF(BX4>0,(($B$73+$C$73)/2),0) -> 0 | CB4: =CONCATENATE($B$74,$A$74,$C$74) -> 0 to 0.5 | CC4: =CE39 -> 0.3289465092 | CD4: =(($B$74+$C$74)/2)*CC4 -> 0.08223662731 | CE4: =(22/7)*((($B$74+$C$74)/4)^2)*CC4 -> 0.01615362322 | CF4: =SUM(CC4:$CC$34) -> 311.2598288 | CG4: =IF($B$74>CG52,0,IF($C$74>CG52,CF4,0)) -> 0 | CH4: =IF(CG36>CF4,CF4,0) -> 0 | CI4: =IF(CH3=0,CH4,0) -> 0 | CJ4: =IF(CI4>0,SUM(CD4:CD34),0) -> 0 | CK4: =IF(CI4>0,CF3,0) -> 0 | CL4: =IF(CK4>0,(($B$73+$C$73)/2),0) -> 0 | CO4: =CONCATENATE($B$74,$A$74,$C$74) -> 0 to 0.5 | CP4: =CR39 -> 0.2888639841 | CQ4: =(($B$74+$C$74)/2)*CP4 -> 0.07221599603 | CR4: =(22/7)*((($B$74+$C$74)/4)^2)*CP4 -> 0.01418528493 | CS4: =SUM(CP4:$CP$34) -> 293.3911885 | CT4: =IF($B$74>CT52,0,IF($C$74>CT52,CS4,0)) -> 0 | CU4: =IF(CT36>CS4,CS4,0) -> 0 | CV4: =IF(CU3=0,CU4,0) -> 0 | CW4: =IF(CV4>0,SUM(CQ4:CQ34),0) -> 0 | CX4: =IF(CV4>0,CS3,0) -> 0 | CY4: =IF(CX4>0,(($B$73+$C$73)/2),0) -> 0 | DB4: =CONCATENATE($B$74,$A$74,$C$74) -> 0 to 0.5 | DC4: =DE39 -> 0.2525534613 | DD4: =(($B$74+$C$74)/2)*DC4 -> 0.06313836533 | DE4: =(22/7)*((($B$74+$C$74)/4)^2)*DC4 -> 0.0124021789 | DF4: =SUM(DC4:$DC$34) -> 274.2241746 | DG4: =IF($B$74>DG52,0,IF($C$74>DG52,DF4,0)) -> 0 | DH4: =IF(DG36>DF4,DF4,0) -> 0 | DI4: =IF(DH3=0,DH4,0) -> 0 | DJ4: =IF(DI4>0,SUM(DD4:DD34),0) -> 0 | DK4: =IF(DI4>0,DF3,0) -> 0 | DL4: =IF(DK4>0,(($B$73+$C$73)/2),0) -> 0 | DO4: =CONCATENATE($B$74,$A$74,$C$74) -> 0 to 0.5 | DP4: =DR39 -> 0.2201548569 | DQ4: =(($B$74+$C$74)/2)*DP4 -> 0.05503871422 | DR4: =(22/7)*((($B$74+$C$74)/4)^2)*DP4 -> 0.01081117601 | DS4: =SUM(DP4:$DP$34) -> 254.6239925 | DT4: =IF($B$74>DT52,0,IF($C$74>DT52,DS4,0)) -> 0 | DU4: =IF(DT36>DS4,DS4,0) -> 0 | DV4: =IF(DU3=0,DU4,0) -> 0 | DW4: =IF(DV4>0,SUM(DQ4:DQ34),0) -> 0 | DX4: =IF(DV4>0,DS3,0) -> 0 | DY4: =IF(DX4>0,(($B$73+$C$73)/2),0) -> 0 | EB4: =CONCATENATE($B$74,$A$74,$C$74) -> 0 to 0.5 | EC4: =EE39 -> 0.1916308923 | ED4: =(($B$74+$C$74)/2)*EC4 -> 0.04790772306 | EE4: =(22/7)*((($B$74+$C$74)/4)^2)*EC4 -> 0.009410445602 | EF4: =SUM(EC4:$EC$34) -> 235.3031917 | EG4: =IF($B$74>EG52,0,IF($C$74>EG52,EF4,0)) -> 0 | EH4: =IF(EG36>EF4,EF4,0) -> 0 | EI4: =IF(EH3=0,EH4,0) -> 0 | EJ4: =IF(EI4>0,SUM(ED4:ED34),0) -> 0 | EK4: =IF(EI4>0,EF3,0) -> 0 | EL4: =IF(EK4>0,(($B$73+$C$73)/2),0) -> 0 | EO4: =CONCATENATE($B$74,$A$74,$C$74) -> 0 to 0.5 | EP4: =ER39 -> 0.1668034237 | EQ4: =(($B$74+$C$74)/2)*EP4 -> 0.04170085592 | ER4: =(22/7)*((($B$74+$C$74)/4)^2)*EP4 -> 0.008191239556 | ES4: =SUM(EP4:$EP$34) -> 216.8021649 | ET4: =IF($B$74>ET52,0,IF($C$74>ET52,ES4,0)) -> 0 | EU4: =IF(ET36>ES4,ES4,0) -> 0 | EV4: =IF(EU3=0,EU4,0) -> 0 | EW4: =IF(EV4>0,SUM(EQ4:EQ34),0) -> 0 | EX4: =IF(EV4>0,ES3,0) -> 0 | EY4: =IF(EX4>0,(($B$73+$C$73)/2),0) -> 0 | FB4: =CONCATENATE($B$74,$A$74,$C$74) -> 0 to 0.5 | FC4: =FE39 -> 0.1453970453 | FD4: =(($B$74+$C$74)/2)*FC4 -> 0.03634926132 | FE4: =(22/7)*((($B$74+$C$74)/4)^2)*FC4 -> 0.007140033473 | FF4: =SUM(FC4:$FC$34) -> 199.4946816 | FG4: =IF($B$74>FG52,0,IF($C$74>FG52,FF4,0)) -> 0 | FH4: =IF(FG36>FF4,FF4,0) -> 0 | FI4: =IF(FH3=0,FH4,0) -> 0 | FJ4: =IF(FI4>0,SUM(FD4:FD34),0) -> 0 | FK4: =IF(FI4>0,FF3,0) -> 0 | FL4: =IF(FK4>0,(($B$73+$C$73)/2),0) -> 0 | FO4: =CONCATENATE($B$74,$A$74,$C$74) -> 0 to 0.5 | FP4: =FR39 -> 0.1297002836 | FQ4: =(($B$74+$C$74)/2)*FP4 -> 0.03242507089 | FR4: =(22/7)*((($B$74+$C$74)/4)^2)*FP4 -> 0.006369210354 | FS4: =SUM(FP4:$FP$34) -> 187.3940759 | FT4: =IF($B$74>FT52,0,IF($C$74>FT52,FS4,0)) -> 0 | FU4: =IF(FT36>FS4,FS4,0) -> 0 | FV4: =IF(FU3=0,FU4,0) -> 0 | FW4: =IF(FV4>0,SUM(FQ4:FQ34),0) -> 0 | FX4: =IF(FV4>0,FS3,0) -> 0 | FY4: =IF(FX4>0,(($B$73+$C$73)/2),0) -> 0 | GB4: =CONCATENATE($B$74,$A$74,$C$74) -> 0 to 0.5 | GC4: =GE39 -> 0.115726405 | GD4: =(($B$74+$C$74)/2)*GC4 -> 0.02893160126 | GE4: =(22/7)*((($B$74+$C$74)/4)^2)*GC4 -> 0.005682993104 | GF4: =SUM(GC4:$GC$34) -> 175.6701359 | GG4: =IF($B$74>GG52,0,IF($C$74>GG52,GF4,0)) -> 0 | GH4: =IF(GG36>GF4,GF4,0) -> 0 | GI4: =IF(GH3=0,GH4,0) -> 0 | GJ4: =IF(GI4>0,SUM(GD4:GD34),0) -> 0 | GK4: =IF(GI4>0,GF3,0) -> 0 | GL4: =IF(GK4>0,(($B$73+$C$73)/2),0) -> 0
B5: =CONCATENATE($B$75,$A$74,$C$75) -> 0.5 to 1 | C5: 1.51404992 | D5: =(($B$75+$C$75)/2)*C5 -> 1.13553744 | E5: =(22/7)*((($B$75+$C$75)/4)^2)*C5 -> 0.6691559913 | F5: =SUM(C5:$C$34) -> 59.72733589 | G5: =IF($B$75>G52,0,IF($C$75>G52,F5,0)) -> 0 | H5: =IF(G36>F5,F5,0) -> 0 | I5: 0 | J5: =IF(I5>0,SUM(D5:D34),0) -> 0 | K5: 0 | L5: =IF(K5>0,(($B$74+$C$74)/2),0) -> 0 | O5: =CONCATENATE($B$75,$A$74,$C$75) -> 0.5 to 1 | P5: 2.735679813 | Q5: =(($B$75+$C$75)/2)*P5 -> 2.05175986 | R5: =(22/7)*((($B$75+$C$75)/4)^2)*P5 -> 1.209072774 | S5: =SUM(P5:$P$34) -> 149.4506085 | T5: =IF($B$75>T52,0,IF($C$75>T52,S5,0)) -> 0 | U5: =IF(T36>S5,S5,0) -> 0 | V5: 0 | W5: =IF(V5>0,SUM(Q5:Q34),0) -> 0 | X5: 0 | Y5: =IF(X5>0,(($B$74+$C$74)/2),0) -> 0 | AB5: =CONCATENATE($B$75,$A$74,$C$75) -> 0.5 to 1 | AC5: 3.187027809 | AD5: =(($B$75+$C$75)/2)*AC5 -> 2.390270857 | AE5: =(22/7)*((($B$75+$C$75)/4)^2)*AC5 -> 1.408552469 | AF5: =SUM(AC5:$AC$34) -> 239.2837548 | AG5: =IF($B$75>AG52,0,IF($C$75>AG52,AF5,0)) -> 0 | AH5: =IF(AG36>AF5,AF5,0) -> 0 | AI5: 0 | AJ5: =IF(AI5>0,SUM(AD5:AD34),0) -> 0 | AK5: 0 | AL5: =IF(AK5>0,(($B$74+$C$74)/2),0) -> 0 | AO5: =CONCATENATE($B$75,$A$74,$C$75) -> 0.5 to 1 | AP5: 3.4613203 | AQ5: =(($B$75+$C$75)/2)*AP5 -> 2.595990225 | AR5: =(22/7)*((($B$75+$C$75)/4)^2)*AP5 -> 1.529779954 | AS5: =SUM(AP5:$AP$34) -> 329.1506618 | AT5: =IF($B$75>AT52,0,IF($C$75>AT52,AS5,0)) -> 0 | AU5: =IF(AT36>AS5,AS5,0) -> 0 | AV5: 0 | AW5: =IF(AV5>0,SUM(AQ5:AQ34),0) -> 0 | AX5: 0 | AY5: =IF(AX5>0,(($B$74+$C$74)/2),0) -> 0 | BB5: =CONCATENATE($B$75,$A$74,$C$75) -> 0.5 to 1 | BC5: 2.13467579 | BD5: =(($B$75+$C$75)/2)*BC5 -> 1.601006843 | BE5: =(22/7)*((($B$75+$C$75)/4)^2)*BC5 -> 0.9434504609 | BF5: =SUM(BC5:$BC$34) -> 337.7846566 | BG5: =IF($B$75>BG52,0,IF($C$75>BG52,BF5,0)) -> 0 | BH5: =IF(BG36>BF5,BF5,0) -> 0 | BI5: 0 | BJ5: =IF(BI5>0,SUM(BD5:BD34),0) -> 0 | BK5: 0 | BL5: =IF(BK5>0,(($B$74+$C$74)/2),0) -> 0 | BO5: =CONCATENATE($B$75,$A$74,$C$75) -> 0.5 to 1 | BP5: 1.127149307 | BQ5: =(($B$75+$C$75)/2)*BP5 -> 0.8453619804 | BR5: =(22/7)*((($B$75+$C$75)/4)^2)*BP5 -> 0.4981597385 | BS5: =SUM(BP5:$BP$34) -> 326.4940794 | BT5: =IF($B$75>BT52,0,IF($C$75>BT52,BS5,0)) -> 0 | BU5: =IF(BT36>BS5,BS5,0) -> 0 | BV5: 0 | BW5: =IF(BV5>0,SUM(BQ5:BQ34),0) -> 0 | BX5: 0 | BY5: =IF(BX5>0,(($B$74+$C$74)/2),0) -> 0 | CB5: =CONCATENATE($B$75,$A$74,$C$75) -> 0.5 to 1 | CC5: 0.954839276 | CD5: =(($B$75+$C$75)/2)*CC5 -> 0.716129457 | CE5: =(22/7)*((($B$75+$C$75)/4)^2)*CC5 -> 0.4220048586 | CF5: =SUM(CC5:$CC$34) -> 310.9308822 | CG5: =IF($B$75>CG52,0,IF($C$75>CG52,CF5,0)) -> 0 | CH5: =IF(CG36>CF5,CF5,0) -> 0 | CI5: 0 | CJ5: =IF(CI5>0,SUM(CD5:CD34),0) -> 0 | CK5: 0 | CL5: =IF(CK5>0,(($B$74+$C$74)/2),0) -> 0 | CO5: =CONCATENATE($B$75,$A$74,$C$75) -> 0.5 to 1 | CP5: 0.8066245124 | CQ5: =(($B$75+$C$75)/2)*CP5 -> 0.6049683843 | CR5: =(22/7)*((($B$75+$C$75)/4)^2)*CP5 -> 0.3564992264 | CS5: =SUM(CP5:$CP$34) -> 293.1023245 | CT5: =IF($B$75>CT52,0,IF($C$75>CT52,CS5,0)) -> 0 | CU5: =IF(CT36>CS5,CS5,0) -> 0 | CV5: 0 | CW5: =IF(CV5>0,SUM(CQ5:CQ34),0) -> 0 | CX5: 0 | CY5: =IF(CX5>0,(($B$74+$C$74)/2),0) -> 0 | DB5: =CONCATENATE($B$75,$A$74,$C$75) -> 0.5 to 1 | DC5: 0.6802066058 | DD5: =(($B$75+$C$75)/2)*DC5 -> 0.5101549544 | DE5: =(22/7)*((($B$75+$C$75)/4)^2)*DC5 -> 0.3006270267 | DF5: =SUM(DC5:$DC$34) -> 273.9716211 | DG5: =IF($B$75>DG52,0,IF($C$75>DG52,DF5,0)) -> 0 | DH5: =IF(DG36>DF5,DF5,0) -> 0 | DI5: 0 | DJ5: =IF(DI5>0,SUM(DD5:DD34),0) -> 0 | DK5: 0 | DL5: =IF(DK5>0,(($B$74+$C$74)/2),0) -> 0 | DO5: =CONCATENATE($B$75,$A$74,$C$75) -> 0.5 to 1 | DP5: 0.5732644121 | DQ5: =(($B$75+$C$75)/2)*DP5 -> 0.429948309 | DR5: =(22/7)*((($B$75+$C$75)/4)^2)*DP5 -> 0.2533623964 | DS5: =SUM(DP5:$DP$34) -> 254.4038376 | DT5: =IF($B$75>DT52,0,IF($C$75>DT52,DS5,0)) -> 0 | DU5: =IF(DT36>DS5,DS5,0) -> 0 | DV5: 0 | DW5: =IF(DV5>0,SUM(DQ5:DQ34),0) -> 0 | DX5: 0 | DY5: =IF(DX5>0,(($B$74+$C$74)/2),0) -> 0 | EB5: =CONCATENATE($B$75,$A$74,$C$75) -> 0.5 to 1 | EC5: 0.4834666854 | ED5: =(($B$75+$C$75)/2)*EC5 -> 0.362600014 | EE5: =(22/7)*((($B$75+$C$75)/4)^2)*EC5 -> 0.2136750083 | EF5: =SUM(EC5:$EC$34) -> 235.1115608 | EG5: =IF($B$75>EG52,0,IF($C$75>EG52,EF5,0)) -> 0 | EH5: =IF(EG36>EF5,EF5,0) -> 0 | EI5: 0 | EJ5: =IF(EI5>0,SUM(ED5:ED34),0) -> 0 | EK5: 0 | EL5: =IF(EK5>0,(($B$74+$C$74)/2),0) -> 0 | EO5: =CONCATENATE($B$75,$A$74,$C$75) -> 0.5 to 1 | EP5: 0.408537156 | EQ5: =(($B$75+$C$75)/2)*EP5 -> 0.306402867 | ER5: =(22/7)*((($B$75+$C$75)/4)^2)*EP5 -> 0.1805588323 | ES5: =SUM(EP5:$EP$34) -> 216.6353615 | ET5: =IF($B$75>ET52,0,IF($C$75>ET52,ES5,0)) -> 0 | EU5: =IF(ET36>ES5,ES5,0) -> 0 | EV5: 0 | EW5: =IF(EV5>0,SUM(EQ5:EQ34),0) -> 0 | EX5: 0 | EY5: =IF(EX5>0,(($B$74+$C$74)/2),0) -> 0 | FB5: =CONCATENATE($B$75,$A$74,$C$75) -> 0.5 to 1 | FC5: 0.3463254761 | FD5: =(($B$75+$C$75)/2)*FC5 -> 0.2597441071 | FE5: =(22/7)*((($B$75+$C$75)/4)^2)*FC5 -> 0.1530634917 | FF5: =SUM(FC5:$FC$34) -> 199.3492845 | FG5: =IF($B$75>FG52,0,IF($C$75>FG52,FF5,0)) -> 0 | FH5: =IF(FG36>FF5,FF5,0) -> 0 | FI5: 0 | FJ5: =IF(FI5>0,SUM(FD5:FD34),0) -> 0 | FK5: 0 | FL5: =IF(FK5>0,(($B$74+$C$74)/2),0) -> 0 | FO5: =CONCATENATE($B$75,$A$74,$C$75) -> 0.5 to 1 | FP5: 0.3009416617 | FQ5: =(($B$75+$C$75)/2)*FP5 -> 0.2257062463 | FR5: =(22/7)*((($B$75+$C$75)/4)^2)*FP5 -> 0.1330054666 | FS5: =SUM(FP5:$FP$34) -> 187.2643756 | FT5: =IF($B$75>FT52,0,IF($C$75>FT52,FS5,0)) -> 0 | FU5: =IF(FT36>FS5,FS5,0) -> 0 | FV5: 0 | FW5: =IF(FV5>0,SUM(FQ5:FQ34),0) -> 0 | FX5: 0 | FY5: =IF(FX5>0,(($B$74+$C$74)/2),0) -> 0 | GB5: =CONCATENATE($B$75,$A$74,$C$75) -> 0.5 to 1 | GC5: 0.2619614402 | GD5: =(($B$75+$C$75)/2)*GC5 -> 0.1964710802 | GE5: =(22/7)*((($B$75+$C$75)/4)^2)*GC5 -> 0.1157776008 | GF5: =SUM(GC5:$GC$34) -> 175.5544095 | GG5: =IF($B$75>GG52,0,IF($C$75>GG52,GF5,0)) -> 0 | GH5: =IF(GG36>GF5,GF5,0) -> 0 | GI5: 0 | GJ5: =IF(GI5>0,SUM(GD5:GD34),0) -> 0 | GK5: 0 | GL5: =IF(GK5>0,(($B$74+$C$74)/2),0) -> 0
B6: =CONCATENATE($B$76,$A$74,$C$76) -> 1 to 1.5 | C6: 5.601833275 | D6: =(($B$76+$C$76)/2)*C6 -> 7.002291593 | E6: =(22/7)*((($B$76+$C$76)/4)^2)*C6 -> 6.877250672 | F6: =SUM(C6:$C$34) -> 58.21328597 | G6: =IF($B$76>G52,0,IF($C$76>G52,F6,0)) -> 0 | H6: =IF(G36>F6,F6,0) -> 0 | I6: 0 | J6: =IF(I6>0,SUM(D6:D34),0) -> 0 | K6: 0 | L6: =IF(K6>0,(($B$75+$C$75)/2),0) -> 0 | O6: =CONCATENATE($B$76,$A$74,$C$76) -> 1 to 1.5 | P6: 9.868840095 | Q6: =(($B$76+$C$76)/2)*P6 -> 12.33605012 | R6: =(22/7)*((($B$76+$C$76)/4)^2)*P6 -> 12.11576351 | S6: =SUM(P6:$P$34) -> 146.7149287 | T6: =IF($B$76>T52,0,IF($C$76>T52,S6,0)) -> 0 | U6: =IF(T36>S6,S6,0) -> 0 | V6: 0 | W6: =IF(V6>0,SUM(Q6:Q34),0) -> 0 | X6: 0 | Y6: =IF(X6>0,(($B$75+$C$75)/2),0) -> 0 | AB6: =CONCATENATE($B$76,$A$74,$C$76) -> 1 to 1.5 | AC6: 11.18515649 | AD6: =(($B$76+$C$76)/2)*AC6 -> 13.98144561 | AE6: =(22/7)*((($B$76+$C$76)/4)^2)*AC6 -> 13.73177694 | AF6: =SUM(AC6:$AC$34) -> 236.096727 | AG6: =IF($B$76>AG52,0,IF($C$76>AG52,AF6,0)) -> 0 | AH6: =IF(AG36>AF6,AF6,0) -> 0 | AI6: 0 | AJ6: =IF(AI6>0,SUM(AD6:AD34),0) -> 0 | AK6: 0 | AL6: =IF(AK6>0,(($B$75+$C$75)/2),0) -> 0 | AO6: =CONCATENATE($B$76,$A$74,$C$76) -> 1 to 1.5 | AP6: 11.88500398 | AQ6: =(($B$76+$C$76)/2)*AP6 -> 14.85625498 | AR6: =(22/7)*((($B$76+$C$76)/4)^2)*AP6 -> 14.59096471 | AS6: =SUM(AP6:$AP$34) -> 325.6893415 | AT6: =IF($B$76>AT52,0,IF($C$76>AT52,AS6,0)) -> 0 | AU6: =IF(AT36>AS6,AS6,0) -> 0 | AV6: 0 | AW6: =IF(AV6>0,SUM(AQ6:AQ34),0) -> 0 | AX6: 0 | AY6: =IF(AX6>0,(($B$75+$C$75)/2),0) -> 0 | BB6: =CONCATENATE($B$76,$A$74,$C$76) -> 1 to 1.5 | BC6: 6.791138651 | BD6: =(($B$76+$C$76)/2)*BC6 -> 8.488923314 | BE6: =(22/7)*((($B$76+$C$76)/4)^2)*BC6 -> 8.337335398 | BF6: =SUM(BC6:$BC$34) -> 335.6499808 | BG6: =IF($B$76>BG52,0,IF($C$76>BG52,BF6,0)) -> 0 | BH6: =IF(BG36>BF6,BF6,0) -> 0 | BI6: 0 | BJ6: =IF(BI6>0,SUM(BD6:BD34),0) -> 0 | BK6: 0 | BL6: =IF(BK6>0,(($B$75+$C$75)/2),0) -> 0 | BO6: =CONCATENATE($B$76,$A$74,$C$76) -> 1 to 1.5 | BP6: 2.958734323 | BQ6: =(($B$76+$C$76)/2)*BP6 -> 3.698417904 | BR6: =(22/7)*((($B$76+$C$76)/4)^2)*BP6 -> 3.632374727 | BS6: =SUM(BP6:$BP$34) -> 325.36693 | BT6: =IF($B$76>BT52,0,IF($C$76>BT52,BS6,0)) -> 0 | BU6: =IF(BT36>BS6,BS6,0) -> 0 | BV6: 0 | BW6: =IF(BV6>0,SUM(BQ6:BQ34),0) -> 0 | BX6: 0 | BY6: =IF(BX6>0,(($B$75+$C$75)/2),0) -> 0 | CB6: =CONCATENATE($B$76,$A$74,$C$76) -> 1 to 1.5 | CC6: 2.433483375 | CD6: =(($B$76+$C$76)/2)*CC6 -> 3.041854219 | CE6: =(22/7)*((($B$76+$C$76)/4)^2)*CC6 -> 2.987535394 | CF6: =SUM(CC6:$CC$34) -> 309.976043 | CG6: =IF($B$76>CG52,0,IF($C$76>CG52,CF6,0)) -> 0 | CH6: =IF(CG36>CF6,CF6,0) -> 0 | CI6: 0 | CJ6: =IF(CI6>0,SUM(CD6:CD34),0) -> 0 | CK6: 0 | CL6: =IF(CK6>0,(($B$75+$C$75)/2),0) -> 0 | CO6: =CONCATENATE($B$76,$A$74,$C$76) -> 1 to 1.5 | CP6: 1.998757774 | CQ6: =(($B$76+$C$76)/2)*CP6 -> 2.498447217 | CR6: =(22/7)*((($B$76+$C$76)/4)^2)*CP6 -> 2.453832088 | CS6: =SUM(CP6:$CP$34) -> 292.2957 | CT6: =IF($B$76>CT52,0,IF($C$76>CT52,CS6,0)) -> 0 | CU6: =IF(CT36>CS6,CS6,0) -> 0 | CV6: 0 | CW6: =IF(CV6>0,SUM(CQ6:CQ34),0) -> 0 | CX6: 0 | CY6: =IF(CX6>0,(($B$75+$C$75)/2),0) -> 0 | DB6: =CONCATENATE($B$76,$A$74,$C$76) -> 1 to 1.5 | DC6: 1.641028346 | DD6: =(($B$76+$C$76)/2)*DC6 -> 2.051285433 | DE6: =(22/7)*((($B$76+$C$76)/4)^2)*DC6 -> 2.014655336 | DF6: =SUM(DC6:$DC$34) -> 273.2914145 | DG6: =IF($B$76>DG52,0,IF($C$76>DG52,DF6,0)) -> 0 | DH6: =IF(DG36>DF6,DF6,0) -> 0 | DI6: 0 | DJ6: =IF(DI6>0,SUM(DD6:DD34),0) -> 0 | DK6: 0 | DL6: =IF(DK6>0,(($B$75+$C$75)/2),0) -> 0 | DO6: =CONCATENATE($B$76,$A$74,$C$76) -> 1 to 1.5 | DP6: 1.348300637 | DQ6: =(($B$76+$C$76)/2)*DP6 -> 1.685375796 | DR6: =(22/7)*((($B$76+$C$76)/4)^2)*DP6 -> 1.6552798 | DS6: =SUM(DP6:$DP$34) -> 253.8305732 | DT6: =IF($B$76>DT52,0,IF($C$76>DT52,DS6,0)) -> 0 | DU6: =IF(DT36>DS6,DS6,0) -> 0 | DV6: 0 | DW6: =IF(DV6>0,SUM(DQ6:DQ34),0) -> 0 | DX6: 0 | DY6: =IF(DX6>0,(($B$75+$C$75)/2),0) -> 0 | EB6: =CONCATENATE($B$76,$A$74,$C$76) -> 1 to 1.5 | EC6: 1.109932838 | ED6: =(($B$76+$C$76)/2)*EC6 -> 1.387416048 | EE6: =(22/7)*((($B$76+$C$76)/4)^2)*EC6 -> 1.362640761 | EF6: =SUM(EC6:$EC$34) -> 234.6280941 | EG6: =IF($B$76>EG52,0,IF($C$76>EG52,EF6,0)) -> 0 | EH6: =IF(EG36>EF6,EF6,0) -> 0 | EI6: 0 | EJ6: =IF(EI6>0,SUM(ED6:ED34),0) -> 0 | EK6: 0 | EL6: =IF(EK6>0,(($B$75+$C$75)/2),0) -> 0 | EO6: =CONCATENATE($B$76,$A$74,$C$76) -> 1 to 1.5 | EP6: 0.916585406 | EQ6: =(($B$76+$C$76)/2)*EP6 -> 1.145731757 | ER6: =(22/7)*((($B$76+$C$76)/4)^2)*EP6 -> 1.125272262 | ES6: =SUM(EP6:$EP$34) -> 216.2268243 | ET6: =IF($B$76>ET52,0,IF($C$76>ET52,ES6,0)) -> 0 | EU6: =IF(ET36>ES6,ES6,0) -> 0 | EV6: 0 | EW6: =IF(EV6>0,SUM(EQ6:EQ34),0) -> 0 | EX6: 0 | EY6: =IF(EX6>0,(($B$75+$C$75)/2),0) -> 0 | FB6: =CONCATENATE($B$76,$A$74,$C$76) -> 1 to 1.5 | FC6: 0.7601879068 | FD6: =(($B$76+$C$76)/2)*FC6 -> 0.9502348835 | FE6: =(22/7)*((($B$76+$C$76)/4)^2)*FC6 -> 0.9332664035 | FF6: =SUM(FC6:$FC$34) -> 199.002959 | FG6: =IF($B$76>FG52,0,IF($C$76>FG52,FF6,0)) -> 0 | FH6: =IF(FG36>FF6,FF6,0) -> 0 | FI6: 0 | FJ6: =IF(FI6>0,SUM(FD6:FD34),0) -> 0 | FK6: 0 | FL6: =IF(FK6>0,(($B$75+$C$75)/2),0) -> 0 | FO6: =CONCATENATE($B$76,$A$74,$C$76) -> 1 to 1.5 | FP6: 0.6469484392 | FQ6: =(($B$76+$C$76)/2)*FP6 -> 0.8086855491 | FR6: =(22/7)*((($B$76+$C$76)/4)^2)*FP6 -> 0.7942447357 | FS6: =SUM(FP6:$FP$34) -> 186.9634339 | FT6: =IF($B$76>FT52,0,IF($C$76>FT52,FS6,0)) -> 0 | FU6: =IF(FT36>FS6,FS6,0) -> 0 | FV6: 0 | FW6: =IF(FV6>0,SUM(FQ6:FQ34),0) -> 0 | FX6: 0 | FY6: =IF(FX6>0,(($B$75+$C$75)/2),0) -> 0 | GB6: =CONCATENATE($B$76,$A$74,$C$76) -> 1 to 1.5 | GC6: 0.5520827221 | GD6: =(($B$76+$C$76)/2)*GC6 -> 0.6901034026 | GE6: =(22/7)*((($B$76+$C$76)/4)^2)*GC6 -> 0.6777801276 | GF6: =SUM(GC6:$GC$34) -> 175.292448 | GG6: =IF($B$76>GG52,0,IF($C$76>GG52,GF6,0)) -> 0 | GH6: =IF(GG36>GF6,GF6,0) -> 0 | GI6: 0 | GJ6: =IF(GI6>0,SUM(GD6:GD34),0) -> 0 | GK6: 0 | GL6: =IF(GK6>0,(($B$75+$C$75)/2),0) -> 0
B7: =CONCATENATE($B$77,$A$74,$C$77) -> 1.5 to 2 | C7: 12.52305958 | D7: =(($B$77+$C$77)/2)*C7 -> 21.91535427 | E7: =(22/7)*((($B$77+$C$77)/4)^2)*C7 -> 30.13361212 | F7: =SUM(C7:$C$34) -> 52.61145269 | G7: =IF($B$77>G52,0,IF($C$77>G52,F7,0)) -> 0 | H7: =IF(G36>F7,F7,0) -> 0 | I7: 0 | J7: =IF(I7>0,SUM(D7:D34),0) -> 0 | K7: 0 | L7: =IF(K7>0,(($B$76+$C$76)/2),0) -> 0 | O7: =CONCATENATE($B$77,$A$74,$C$77) -> 1.5 to 2 | P7: 22.38766005 | Q7: =(($B$77+$C$77)/2)*P7 -> 39.17840509 | R7: =(22/7)*((($B$77+$C$77)/4)^2)*P7 -> 53.870307 | S7: =SUM(P7:$P$34) -> 136.8460886 | T7: =IF($B$77>T52,0,IF($C$77>T52,S7,0)) -> 0 | U7: =IF(T36>S7,S7,0) -> 0 | V7: 0 | W7: =IF(V7>0,SUM(Q7:Q34),0) -> 0 | X7: 0 | Y7: =IF(X7>0,(($B$76+$C$76)/2),0) -> 0 | AB7: =CONCATENATE($B$77,$A$74,$C$77) -> 1.5 to 2 | AC7: 25.52807663 | AD7: =(($B$77+$C$77)/2)*AC7 -> 44.6741341 | AE7: =(22/7)*((($B$77+$C$77)/4)^2)*AC7 -> 61.42693439 | AF7: =SUM(AC7:$AC$34) -> 224.9115705 | AG7: =IF($B$77>AG52,0,IF($C$77>AG52,AF7,0)) -> 0 | AH7: =IF(AG36>AF7,AF7,0) -> 0 | AI7: 0 | AJ7: =IF(AI7>0,SUM(AD7:AD34),0) -> 0 | AK7: 0 | AL7: =IF(AK7>0,(($B$76+$C$76)/2),0) -> 0 | AO7: =CONCATENATE($B$77,$A$74,$C$77) -> 1.5 to 2 | AP7: 27.09502705 | AQ7: =(($B$77+$C$77)/2)*AP7 -> 47.41629734 | AR7: =(22/7)*((($B$77+$C$77)/4)^2)*AP7 -> 65.19740884 | AS7: =SUM(AP7:$AP$34) -> 313.8043375 | AT7: =IF($B$77>AT52,0,IF($C$77>AT52,AS7,0)) -> 0 | AU7: =IF(AT36>AS7,AS7,0) -> 0 | AV7: 0 | AW7: =IF(AV7>0,SUM(AQ7:AQ34),0) -> 0 | AX7: 0 | AY7: =IF(AX7>0,(($B$76+$C$76)/2),0) -> 0 | BB7: =CONCATENATE($B$77,$A$74,$C$77) -> 1.5 to 2 | BC7: 15.66862186 | BD7: =(($B$77+$C$77)/2)*BC7 -> 27.42008826 | BE7: =(22/7)*((($B$77+$C$77)/4)^2)*BC7 -> 37.70262136 | BF7: =SUM(BC7:$BC$34) -> 328.8588421 | BG7: =IF($B$77>BG52,0,IF($C$77>BG52,BF7,0)) -> 0 | BH7: =IF(BG36>BF7,BF7,0) -> 0 | BI7: 0 | BJ7: =IF(BI7>0,SUM(BD7:BD34),0) -> 0 | BK7: 0 | BL7: =IF(BK7>0,(($B$76+$C$76)/2),0) -> 0 | BO7: =CONCATENATE($B$77,$A$74,$C$77) -> 1.5 to 2 | BP7: 6.737137822 | BQ7: =(($B$77+$C$77)/2)*BP7 -> 11.78999119 | BR7: =(22/7)*((($B$77+$C$77)/4)^2)*BP7 -> 16.21123788 | BS7: =SUM(BP7:$BP$34) -> 322.4081957 | BT7: =IF($B$77>BT52,0,IF($C$77>BT52,BS7,0)) -> 0 | BU7: =IF(BT36>BS7,BS7,0) -> 0 | BV7: 0 | BW7: =IF(BV7>0,SUM(BQ7:BQ34),0) -> 0 | BX7: 0 | BY7: =IF(BX7>0,(($B$76+$C$76)/2),0) -> 0 | CB7: =CONCATENATE($B$77,$A$74,$C$77) -> 1.5 to 2 | CC7: 5.445362127 | CD7: =(($B$77+$C$77)/2)*CC7 -> 9.529383722 | CE7: =(22/7)*((($B$77+$C$77)/4)^2)*CC7 -> 13.10290262 | CF7: =SUM(CC7:$CC$34) -> 307.5425596 | CG7: =IF($B$77>CG52,0,IF($C$77>CG52,CF7,0)) -> 0 | CH7: =IF(CG36>CF7,CF7,0) -> 0 | CI7: 0 | CJ7: =IF(CI7>0,SUM(CD7:CD34),0) -> 0 | CK7: 0 | CL7: =IF(CK7>0,(($B$76+$C$76)/2),0) -> 0 | CO7: =CONCATENATE($B$77,$A$74,$C$77) -> 1.5 to 2 | CP7: 4.395062286 | CQ7: =(($B$77+$C$77)/2)*CP7 -> 7.691359001 | CR7: =(22/7)*((($B$77+$C$77)/4)^2)*CP7 -> 10.57561863 | CS7: =SUM(CP7:$CP$34) -> 290.2969422 | CT7: =IF($B$77>CT52,0,IF($C$77>CT52,CS7,0)) -> 0 | CU7: =IF(CT36>CS7,CS7,0) -> 0 | CV7: 0 | CW7: =IF(CV7>0,SUM(CQ7:CQ34),0) -> 0 | CX7: 0 | CY7: =IF(CX7>0,(($B$76+$C$76)/2),0) -> 0 | DB7: =CONCATENATE($B$77,$A$74,$C$77) -> 1.5 to 2 | DC7: 3.546362578 | DD7: =(($B$77+$C$77)/2)*DC7 -> 6.206134512 | DE7: =(22/7)*((($B$77+$C$77)/4)^2)*DC7 -> 8.533434954 | DF7: =SUM(DC7:$DC$34) -> 271.6503861 | DG7: =IF($B$77>DG52,0,IF($C$77>DG52,DF7,0)) -> 0 | DH7: =IF(DG36>DF7,DF7,0) -> 0 | DI7: 0 | DJ7: =IF(DI7>0,SUM(DD7:DD34),0) -> 0 | DK7: 0 | DL7: =IF(DK7>0,(($B$76+$C$76)/2),0) -> 0 | DO7: =CONCATENATE($B$77,$A$74,$C$77) -> 1.5 to 2 | DP7: 2.864354015 | DQ7: =(($B$77+$C$77)/2)*DP7 -> 5.012619526 | DR7: =(22/7)*((($B$77+$C$77)/4)^2)*DP7 -> 6.892351848 | DS7: =SUM(DP7:$DP$34) -> 252.4822725 | DT7: =IF($B$77>DT52,0,IF($C$77>DT52,DS7,0)) -> 0 | DU7: =IF(DT36>DS7,DS7,0) -> 0 | DV7: 0 | DW7: =IF(DV7>0,SUM(DQ7:DQ34),0) -> 0 | DX7: 0 | DY7: =IF(DX7>0,(($B$76+$C$76)/2),0) -> 0 | EB7: =CONCATENATE($B$77,$A$74,$C$77) -> 1.5 to 2 | EC7: 2.318773911 | ED7: =(($B$77+$C$77)/2)*EC7 -> 4.057854345 | EE7: =(22/7)*((($B$77+$C$77)/4)^2)*EC7 -> 5.579549724 | EF7: =SUM(EC7:$EC$34) -> 233.5181613 | EG7: =IF($B$77>EG52,0,IF($C$77>EG52,EF7,0)) -> 0 | EH7: =IF(EG36>EF7,EF7,0) -> 0 | EI7: 0 | EJ7: =IF(EI7>0,SUM(ED7:ED34),0) -> 0 | EK7: 0 | EL7: =IF(EK7>0,(($B$76+$C$76)/2),0) -> 0 | EO7: =CONCATENATE($B$77,$A$74,$C$77) -> 1.5 to 2 | EP7: 1.883783553 | EQ7: =(($B$77+$C$77)/2)*EP7 -> 3.296621217 | ER7: =(22/7)*((($B$77+$C$77)/4)^2)*EP7 -> 4.532854173 | ES7: =SUM(EP7:$EP$34) -> 215.3102389 | ET7: =IF($B$77>ET52,0,IF($C$77>ET52,ES7,0)) -> 0 | EU7: =IF(ET36>ES7,ES7,0) -> 0 | EV7: 0 | EW7: =IF(EV7>0,SUM(EQ7:EQ34),0) -> 0 | EX7: 0 | EY7: =IF(EX7>0,(($B$76+$C$76)/2),0) -> 0 | FB7: =CONCATENATE($B$77,$A$74,$C$77) -> 1.5 to 2 | FC7: 1.537682376 | FD7: =(($B$77+$C$77)/2)*FC7 -> 2.690944158 | FE7: =(22/7)*((($B$77+$C$77)/4)^2)*FC7 -> 3.700048217 | FF7: =SUM(FC7:$FC$34) -> 198.2427711 | FG7: =IF($B$77>FG52,0,IF($C$77>FG52,FF7,0)) -> 0 | FH7: =IF(FG36>FF7,FF7,0) -> 0 | FI7: 0 | FJ7: =IF(FI7>0,SUM(FD7:FD34),0) -> 0 | FK7: 0 | FL7: =IF(FK7>0,(($B$76+$C$76)/2),0) -> 0 | FO7: =CONCATENATE($B$77,$A$74,$C$77) -> 1.5 to 2 | FP7: 1.288558638 | FQ7: =(($B$77+$C$77)/2)*FP7 -> 2.254977617 | FR7: =(22/7)*((($B$77+$C$77)/4)^2)*FP7 -> 3.100594224 | FS7: =SUM(FP7:$FP$34) -> 186.3164855 | FT7: =IF($B$77>FT52,0,IF($C$77>FT52,FS7,0)) -> 0 | FU7: =IF(FT36>FS7,FS7,0) -> 0 | FV7: 0 | FW7: =IF(FV7>0,SUM(FQ7:FQ34),0) -> 0 | FX7: 0 | FY7: =IF(FX7>0,(($B$76+$C$76)/2),0) -> 0 | GB7: =CONCATENATE($B$77,$A$74,$C$77) -> 1.5 to 2 | GC7: 1.083262674 | GD7: =(($B$77+$C$77)/2)*GC7 -> 1.895709679 | GE7: =(22/7)*((($B$77+$C$77)/4)^2)*GC7 -> 2.606600809 | GF7: =SUM(GC7:$GC$34) -> 174.7403653 | GG7: =IF($B$77>GG52,0,IF($C$77>GG52,GF7,0)) -> 0 | GH7: =IF(GG36>GF7,GF7,0) -> 0 | GI7: 0 | GJ7: =IF(GI7>0,SUM(GD7:GD34),0) -> 0 | GK7: 0 | GL7: =IF(GK7>0,(($B$76+$C$76)/2),0) -> 0
B8: =CONCATENATE($B$78,$A$74,$C$78) -> 2 to 2.5 | C8: 16.9305797 | D8: =(($B$78+$C$78)/2)*C8 -> 38.09380432 | E8: =(22/7)*((($B$78+$C$78)/4)^2)*C8 -> 67.34440407 | F8: =SUM(C8:$C$34) -> 40.08839311 | G8: =IF($B$78>G52,0,IF($C$78>G52,F8,0)) -> 0 | H8: =IF(G36>F8,F8,0) -> 0 | I8: 0 | J8: =IF(I8>0,SUM(D8:D34),0) -> 0 | K8: 0 | L8: =IF(K8>0,(($B$77+$C$77)/2),0) -> 0 | O8: =CONCATENATE($B$78,$A$74,$C$78) -> 2 to 2.5 | P8: 32.29303038 | Q8: =(($B$78+$C$78)/2)*P8 -> 72.65931835 | R8: =(22/7)*((($B$78+$C$78)/4)^2)*P8 -> 128.4512949 | S8: =SUM(P8:$P$34) -> 114.4584285 | T8: =IF($B$78>T52,0,IF($C$78>T52,S8,0)) -> 0 | U8: =IF(T36>S8,S8,0) -> 0 | V8: 0 | W8: =IF(V8>0,SUM(Q8:Q34),0) -> 0 | X8: 0 | Y8: =IF(X8>0,(($B$77+$C$77)/2),0) -> 0 | AB8: =CONCATENATE($B$78,$A$74,$C$78) -> 2 to 2.5 | AC8: 38.39107683 | AD8: =(($B$78+$C$78)/2)*AC8 -> 86.37992287 | AE8: =(22/7)*((($B$78+$C$78)/4)^2)*AC8 -> 152.7073637 | AF8: =SUM(AC8:$AC$34) -> 199.3834939 | AG8: =IF($B$78>AG52,0,IF($C$78>AG52,AF8,0)) -> 0 | AH8: =IF(AG36>AF8,AF8,0) -> 0 | AI8: 0 | AJ8: =IF(AI8>0,SUM(AD8:AD34),0) -> 0 | AK8: 0 | AL8: =IF(AK8>0,(($B$77+$C$77)/2),0) -> 0 | AO8: =CONCATENATE($B$78,$A$74,$C$78) -> 2 to 2.5 | AP8: 41.46703892 | AQ8: =(($B$78+$C$78)/2)*AP8 -> 93.30083757 | AR8: =(22/7)*((($B$78+$C$78)/4)^2)*AP8 -> 164.9425521 | AS8: =SUM(AP8:$AP$34) -> 286.7093105 | AT8: =IF($B$78>AT52,0,IF($C$78>AT52,AS8,0)) -> 0 | AU8: =IF(AT36>AS8,AS8,0) -> 0 | AV8: 0 | AW8: =IF(AV8>0,SUM(AQ8:AQ34),0) -> 0 | AX8: 0 | AY8: =IF(AX8>0,(($B$77+$C$77)/2),0) -> 0 | BB8: =CONCATENATE($B$78,$A$74,$C$78) -> 2 to 2.5 | BC8: 26.38831079 | BD8: =(($B$78+$C$78)/2)*BC8 -> 59.37369927 | BE8: =(22/7)*((($B$78+$C$78)/4)^2)*BC8 -> 104.9642184 | BF8: =SUM(BC8:$BC$34) -> 313.1902203 | BG8: =IF($B$78>BG52,0,IF($C$78>BG52,BF8,0)) -> 0 | BH8: =IF(BG36>BF8,BF8,0) -> 0 | BI8: 0 | BJ8: =IF(BI8>0,SUM(BD8:BD34),0) -> 0 | BK8: 0 | BL8: =IF(BK8>0,(($B$77+$C$77)/2),0) -> 0 | BO8: =CONCATENATE($B$78,$A$74,$C$78) -> 2 to 2.5 | BP8: 13.30755305 | BQ8: =(($B$78+$C$78)/2)*BP8 -> 29.94199435 | BR8: =(22/7)*((($B$78+$C$78)/4)^2)*BP8 -> 52.93316859 | BS8: =SUM(BP8:$BP$34) -> 315.6710579 | BT8: =IF($B$78>BT52,0,IF($C$78>BT52,BS8,0)) -> 0 | BU8: =IF(BT36>BS8,BS8,0) -> 0 | BV8: 0 | BW8: =IF(BV8>0,SUM(BQ8:BQ34),0) -> 0 | BX8: 0 | BY8: =IF(BX8>0,(($B$77+$C$77)/2),0) -> 0 | CB8: =CONCATENATE($B$78,$A$74,$C$78) -> 2 to 2.5 | CC8: 10.69871693 | CD8: =(($B$78+$C$78)/2)*CC8 -> 24.07211309 | CE8: =(22/7)*((($B$78+$C$78)/4)^2)*CC8 -> 42.55605707 | CF8: =SUM(CC8:$CC$34) -> 302.0971975 | CG8: =IF($B$78>CG52,0,IF($C$78>CG52,CF8,0)) -> 0 | CH8: =IF(CG36>CF8,CF8,0) -> 0 | CI8: 0 | CJ8: =IF(CI8>0,SUM(CD8:CD34),0) -> 0 | CK8: 0 | CL8: =IF(CK8>0,(($B$77+$C$77)/2),0) -> 0 | CO8: =CONCATENATE($B$78,$A$74,$C$78) -> 2 to 2.5 | CP8: 8.576118508 | CQ8: =(($B$78+$C$78)/2)*CP8 -> 19.29626664 | CR8: =(22/7)*((($B$78+$C$78)/4)^2)*CP8 -> 34.11304282 | CS8: =SUM(CP8:$CP$34) -> 285.9018799 | CT8: =IF($B$78>CT52,0,IF($C$78>CT52,CS8,0)) -> 0 | CU8: =IF(CT36>CS8,CS8,0) -> 0 | CV8: 0 | CW8: =IF(CV8>0,SUM(CQ8:CQ34),0) -> 0 | CX8: 0 | CY8: =IF(CX8>0,(($B$77+$C$77)/2),0) -> 0 | DB8: =CONCATENATE($B$78,$A$74,$C$78) -> 2 to 2.5 | DC8: 6.865080599 | DD8: =(($B$78+$C$78)/2)*DC8 -> 15.44643135 | DE8: =(22/7)*((($B$78+$C$78)/4)^2)*DC8 -> 27.30708399 | DF8: =SUM(DC8:$DC$34) -> 268.1040236 | DG8: =IF($B$78>DG52,0,IF($C$78>DG52,DF8,0)) -> 0 | DH8: =IF(DG36>DF8,DF8,0) -> 0 | DI8: 0 | DJ8: =IF(DI8>0,SUM(DD8:DD34),0) -> 0 | DK8: 0 | DL8: =IF(DK8>0,(($B$77+$C$77)/2),0) -> 0 | DO8: =CONCATENATE($B$78,$A$74,$C$78) -> 2 to 2.5 | DP8: 5.496391395 | DQ8: =(($B$78+$C$78)/2)*DP8 -> 12.36688064 | DR8: =(22/7)*((($B$78+$C$78)/4)^2)*DP8 -> 21.86287827 | DS8: =SUM(DP8:$DP$34) -> 249.6179185 | DT8: =IF($B$78>DT52,0,IF($C$78>DT52,DS8,0)) -> 0 | DU8: =IF(DT36>DS8,DS8,0) -> 0 | DV8: 0 | DW8: =IF(DV8>0,SUM(DQ8:DQ34),0) -> 0 | DX8: 0 | DY8: =IF(DX8>0,(($B$77+$C$77)/2),0) -> 0 | EB8: =CONCATENATE($B$78,$A$74,$C$78) -> 2 to 2.5 | EC8: 4.408124557 | ED8: =(($B$78+$C$78)/2)*EC8 -> 9.918280254 | EE8: =(22/7)*((($B$78+$C$78)/4)^2)*EC8 -> 17.53410259 | EF8: =SUM(EC8:$EC$34) -> 231.1993874 | EG8: =IF($B$78>EG52,0,IF($C$78>EG52,EF8,0)) -> 0 | EH8: =IF(EG36>EF8,EF8,0) -> 0 | EI8: 0 | EJ8: =IF(EI8>0,SUM(ED8:ED34),0) -> 0 | EK8: 0 | EL8: =IF(EK8>0,(($B$77+$C$77)/2),0) -> 0 | EO8: =CONCATENATE($B$78,$A$74,$C$78) -> 2 to 2.5 | EP8: 3.546561294 | EQ8: =(($B$78+$C$78)/2)*EP8 -> 7.979762911 | ER8: =(22/7)*((($B$78+$C$78)/4)^2)*EP8 -> 14.10708086 | ES8: =SUM(EP8:$EP$34) -> 213.4264554 | ET8: =IF($B$78>ET52,0,IF($C$78>ET52,ES8,0)) -> 0 | EU8: =IF(ET36>ES8,ES8,0) -> 0 | EV8: 0 | EW8: =IF(EV8>0,SUM(EQ8:EQ34),0) -> 0 | EX8: 0 | EY8: =IF(EX8>0,(($B$77+$C$77)/2),0) -> 0 | FB8: =CONCATENATE($B$78,$A$74,$C$78) -> 2 to 2.5 | FC8: 2.866307918 | FD8: =(($B$78+$C$78)/2)*FC8 -> 6.449192815 | FE8: =(22/7)*((($B$78+$C$78)/4)^2)*FC8 -> 11.40125158 | FF8: =SUM(FC8:$FC$34) -> 196.7050888 | FG8: =IF($B$78>FG52,0,IF($C$78>FG52,FF8,0)) -> 0 | FH8: =IF(FG36>FF8,FF8,0) -> 0 | FI8: 0 | FJ8: =IF(FI8>0,SUM(FD8:FD34),0) -> 0 | FK8: 0 | FL8: =IF(FK8>0,(($B$77+$C$77)/2),0) -> 0 | FO8: =CONCATENATE($B$78,$A$74,$C$78) -> 2 to 2.5 | FP8: 2.37786368 | FQ8: =(($B$78+$C$78)/2)*FP8 -> 5.35019328 | FR8: =(22/7)*((($B$78+$C$78)/4)^2)*FP8 -> 9.458377407 | FS8: =SUM(FP8:$FP$34) -> 185.0279269 | FT8: =IF($B$78>FT52,0,IF($C$78>FT52,FS8,0)) -> 0 | FU8: =IF(FT36>FS8,FS8,0) -> 0 | FV8: 0 | FW8: =IF(FV8>0,SUM(FQ8:FQ34),0) -> 0 | FX8: 0 | FY8: =IF(FX8>0,(($B$77+$C$77)/2),0) -> 0 | GB8: =CONCATENATE($B$78,$A$74,$C$78) -> 2 to 2.5 | GC8: 1.978914869 | GD8: =(($B$78+$C$78)/2)*GC8 -> 4.452558455 | GE8: =(22/7)*((($B$78+$C$78)/4)^2)*GC8 -> 7.871487268 | GF8: =SUM(GC8:$GC$34) -> 173.6571026 | GG8: =IF($B$78>GG52,0,IF($C$78>GG52,GF8,0)) -> 0 | GH8: =IF(GG36>GF8,GF8,0) -> 0 | GI8: 0 | GJ8: =IF(GI8>0,SUM(GD8:GD34),0) -> 0 | GK8: 0 | GL8: =IF(GK8>0,(($B$77+$C$77)/2),0) -> 0
B9: =CONCATENATE($B$79,$A$74,$C$79) -> 2.5 to 3 | C9: 13.84738285 | D9: =(($B$79+$C$79)/2)*C9 -> 38.08030284 | E9: =(22/7)*((($B$79+$C$79)/4)^2)*C9 -> 82.28065434 | F9: =SUM(C9:$C$34) -> 23.15781341 | G9: =IF($B$79>G52,0,IF($C$79>G52,F9,0)) -> 0 | H9: =IF(G36>F9,F9,0) -> 0 | I9: 0 | J9: =IF(I9>0,SUM(D9:D34),0) -> 0 | K9: 0 | L9: =IF(K9>0,(($B$78+$C$78)/2),0) -> 0 | O9: =CONCATENATE($B$79,$A$74,$C$79) -> 2.5 to 3 | P9: 31.05575537 | Q9: =(($B$79+$C$79)/2)*P9 -> 85.40332727 | R9: =(22/7)*((($B$79+$C$79)/4)^2)*P9 -> 184.5321893 | S9: =SUM(P9:$P$34) -> 82.16539817 | T9: =IF($B$79>T52,0,IF($C$79>T52,S9,0)) -> 0 | U9: =IF(T36>S9,S9,0) -> 0 | V9: 0 | W9: =IF(V9>0,SUM(Q9:Q34),0) -> 0 | X9: 0 | Y9: =IF(X9>0,(($B$78+$C$78)/2),0) -> 0 | AB9: =CONCATENATE($B$79,$A$74,$C$79) -> 2.5 to 3 | AC9: 40.7179827 | AD9: =(($B$79+$C$79)/2)*AC9 -> 111.9744524 | AE9: =(22/7)*((($B$79+$C$79)/4)^2)*AC9 -> 241.944799 | AF9: =SUM(AC9:$AC$34) -> 160.992417 | AG9: =IF($B$79>AG52,0,IF($C$79>AG52,AF9,0)) -> 0 | AH9: =IF(AG36>AF9,AF9,0) -> 0 | AI9: 0 | AJ9: =IF(AI9>0,SUM(AD9:AD34),0) -> 0 | AK9: 0 | AL9: =IF(AK9>0,(($B$78+$C$78)/2),0) -> 0 | AO9: =CONCATENATE($B$79,$A$74,$C$79) -> 2.5 to 3 | AP9: 46.01042708 | AQ9: =(($B$79+$C$79)/2)*AP9 -> 126.5286745 | AR9: =(22/7)*((($B$79+$C$79)/4)^2)*AP9 -> 273.3923145 | AS9: =SUM(AP9:$AP$34) -> 245.2422715 | AT9: =IF($B$79>AT52,0,IF($C$79>AT52,AS9,0)) -> 0 | AU9: =IF(AT36>AS9,AS9,0) -> 0 | AV9: 0 | AW9: =IF(AV9>0,SUM(AQ9:AQ34),0) -> 0 | AX9: 0 | AY9: =IF(AX9>0,(($B$78+$C$78)/2),0) -> 0 | BB9: =CONCATENATE($B$79,$A$74,$C$79) -> 2.5 to 3 | BC9: 34.82104307 | BD9: =(($B$79+$C$79)/2)*BC9 -> 95.75786845 | BE9: =(22/7)*((($B$79+$C$79)/4)^2)*BC9 -> 206.9053943 | BF9: =SUM(BC9:$BC$34) -> 286.8019095 | BG9: =IF($B$79>BG52,0,IF($C$79>BG52,BF9,0)) -> 0 | BH9: =IF(BG36>BF9,BF9,0) -> 0 | BI9: 0 | BJ9: =IF(BI9>0,SUM(BD9:BD34),0) -> 0 | BK9: 0 | BL9: =IF(BK9>0,(($B$78+$C$78)/2),0) -> 0 | BO9: =CONCATENATE($B$79,$A$74,$C$79) -> 2.5 to 3 | BP9: 22.80244077 | BQ9: =(($B$79+$C$79)/2)*BP9 -> 62.70671211 | BR9: =(22/7)*((($B$79+$C$79)/4)^2)*BP9 -> 135.4912887 | BS9: =SUM(BP9:$BP$34) -> 302.3635049 | BT9: =IF($B$79>BT52,0,IF($C$79>BT52,BS9,0)) -> 0 | BU9: =IF(BT36>BS9,BS9,0) -> 0 | BV9: 0 | BW9: =IF(BV9>0,SUM(BQ9:BQ34),0) -> 0 | BX9: 0 | BY9: =IF(BX9>0,(($B$78+$C$78)/2),0) -> 0 | CB9: =CONCATENATE($B$79,$A$74,$C$79) -> 2.5 to 3 | CC9: 18.45646472 | CD9: =(($B$79+$C$79)/2)*CC9 -> 50.75527798 | CE9: =(22/7)*((($B$79+$C$79)/4)^2)*CC9 -> 109.6676542 | CF9: =SUM(CC9:$CC$34) -> 291.3984805 | CG9: =IF($B$79>CG52,0,IF($C$79>CG52,CF9,0)) -> 0 | CH9: =IF(CG36>CF9,CF9,0) -> 0 | CI9: 0 | CJ9: =IF(CI9>0,SUM(CD9:CD34),0) -> 0 | CK9: 0 | CL9: =IF(CK9>0,(($B$78+$C$78)/2),0) -> 0 | CO9: =CONCATENATE($B$79,$A$74,$C$79) -> 2.5 to 3 | CP9: 14.85051356 | CQ9: =(($B$79+$C$79)/2)*CP9 -> 40.83891228 | CR9: =(22/7)*((($B$79+$C$79)/4)^2)*CP9 -> 88.24122117 | CS9: =SUM(CP9:$CP$34) -> 277.3257614 | CT9: =IF($B$79>CT52,0,IF($C$79>CT52,CS9,0)) -> 0 | CU9: =IF(CT36>CS9,CS9,0) -> 0 | CV9: 0 | CW9: =IF(CV9>0,SUM(CQ9:CQ34),0) -> 0 | CX9: 0 | CY9: =IF(CX9>0,(($B$78+$C$78)/2),0) -> 0 | DB9: =CONCATENATE($B$79,$A$74,$C$79) -> 2.5 to 3 | DC9: 11.90437926 | DD9: =(($B$79+$C$79)/2)*DC9 -> 32.73704296 | DE9: =(22/7)*((($B$79+$C$79)/4)^2)*DC9 -> 70.73539639 | DF9: =SUM(DC9:$DC$34) -> 261.238943 | DG9: =IF($B$79>DG52,0,IF($C$79>DG52,DF9,0)) -> 0 | DH9: =IF(DG36>DF9,DF9,0) -> 0 | DI9: 0 | DJ9: =IF(DI9>0,SUM(DD9:DD34),0) -> 0 | DK9: 0 | DL9: =IF(DK9>0,(($B$78+$C$78)/2),0) -> 0 | DO9: =CONCATENATE($B$79,$A$74,$C$79) -> 2.5 to 3 | DP9: 9.526690857 | DQ9: =(($B$79+$C$79)/2)*DP9 -> 26.19839986 | DR9: =(22/7)*((($B$79+$C$79)/4)^2)*DP9 -> 56.60725683 | DS9: =SUM(DP9:$DP$34) -> 244.1215271 | DT9: =IF($B$79>DT52,0,IF($C$79>DT52,DS9,0)) -> 0 | DU9: =IF(DT36>DS9,DS9,0) -> 0 | DV9: 0 | DW9: =IF(DV9>0,SUM(DQ9:DQ34),0) -> 0 | DX9: 0 | DY9: =IF(DX9>0,(($B$78+$C$78)/2),0) -> 0 | EB9: =CONCATENATE($B$79,$A$74,$C$79) -> 2.5 to 3 | EC9: 7.625792543 | ED9: =(($B$79+$C$79)/2)*EC9 -> 20.97092949 | EE9: =(22/7)*((($B$79+$C$79)/4)^2)*EC9 -> 45.31218694 | EF9: =SUM(EC9:$EC$34) -> 226.7912628 | EG9: =IF($B$79>EG52,0,IF($C$79>EG52,EF9,0)) -> 0 | EH9: =IF(EG36>EF9,EF9,0) -> 0 | EI9: 0 | EJ9: =IF(EI9>0,SUM(ED9:ED34),0) -> 0 | EK9: 0 | EL9: =IF(EK9>0,(($B$78+$C$78)/2),0) -> 0 | EO9: =CONCATENATE($B$79,$A$74,$C$79) -> 2.5 to 3 | EP9: 6.116512554 | EQ9: =(($B$79+$C$79)/2)*EP9 -> 16.82040952 | ER9: =(22/7)*((($B$79+$C$79)/4)^2)*EP9 -> 36.34409915 | ES9: =SUM(EP9:$EP$34) -> 209.8798941 | ET9: =IF($B$79>ET52,0,IF($C$79>ET52,ES9,0)) -> 0 | EU9: =IF(ET36>ES9,ES9,0) -> 0 | EV9: 0 | EW9: =IF(EV9>0,SUM(EQ9:EQ34),0) -> 0 | EX9: 0 | EY9: =IF(EX9>0,(($B$78+$C$78)/2),0) -> 0 | FB9: =CONCATENATE($B$79,$A$74,$C$79) -> 2.5 to 3 | FC9: 4.923691018 | FD9: =(($B$79+$C$79)/2)*FC9 -> 13.5401503 | FE9: =(22/7)*((($B$79+$C$79)/4)^2)*FC9 -> 29.25639618 | FF9: =SUM(FC9:$FC$34) -> 193.8387808 | FG9: =IF($B$79>FG52,0,IF($C$79>FG52,FF9,0)) -> 0 | FH9: =IF(FG36>FF9,FF9,0) -> 0 | FI9: 0 | FJ9: =IF(FI9>0,SUM(FD9:FD34),0) -> 0 | FK9: 0 | FL9: =IF(FK9>0,(($B$78+$C$78)/2),0) -> 0 | FO9: =CONCATENATE($B$79,$A$74,$C$79) -> 2.5 to 3 | FP9: 4.065546603 | FQ9: =(($B$79+$C$79)/2)*FP9 -> 11.18025316 | FR9: =(22/7)*((($B$79+$C$79)/4)^2)*FP9 -> 24.15733272 | FS9: =SUM(FP9:$FP$34) -> 182.6500632 | FT9: =IF($B$79>FT52,0,IF($C$79>FT52,FS9,0)) -> 0 | FU9: =IF(FT36>FS9,FS9,0) -> 0 | FV9: 0 | FW9: =IF(FV9>0,SUM(FQ9:FQ34),0) -> 0 | FX9: 0 | FY9: =IF(FX9>0,(($B$78+$C$78)/2),0) -> 0 | GB9: =CONCATENATE($B$79,$A$74,$C$79) -> 2.5 to 3 | GC9: 3.365773915 | GD9: =(($B$79+$C$79)/2)*GC9 -> 9.255878265 | GE9: =(22/7)*((($B$79+$C$79)/4)^2)*GC9 -> 19.99930839 | GF9: =SUM(GC9:$GC$34) -> 171.6781878 | GG9: =IF($B$79>GG52,0,IF($C$79>GG52,GF9,0)) -> 0 | GH9: =IF(GG36>GF9,GF9,0) -> 0 | GI9: 0 | GJ9: =IF(GI9>0,SUM(GD9:GD34),0) -> 0 | GK9: 0 | GL9: =IF(GK9>0,(($B$78+$C$78)/2),0) -> 0
B10: =CONCATENATE($B$80,$A$74,$C$80) -> 3 to 3.5 | C10: 6.850075892 | D10: =(($B$80+$C$80)/2)*C10 -> 22.26274665 | E10: =(22/7)*((($B$80+$C$80)/4)^2)*C10 -> 56.84951377 | F10: =SUM(C10:$C$34) -> 9.310430562 | G10: =IF($B$80>G52,0,IF($C$80>G52,F10,0)) -> 0 | H10: =IF(G36>F10,F10,0) -> 0 | I10: 0 | J10: =IF(I10>0,SUM(D10:D34),0) -> 0 | K10: 0 | L10: =IF(K10>0,(($B$79+$C$79)/2),0) -> 0 | O10: =CONCATENATE($B$80,$A$74,$C$80) -> 3 to 3.5 | P10: 22.22208287 | Q10: =(($B$80+$C$80)/2)*P10 -> 72.22176932 | R10: =(22/7)*((($B$80+$C$80)/4)^2)*P10 -> 184.4234467 | S10: =SUM(P10:$P$34) -> 51.1096428 | T10: =IF($B$80>T52,0,IF($C$80>T52,S10,0)) -> 0 | U10: =IF(T36>S10,S10,0) -> 0 | V10: 0 | W10: =IF(V10>0,SUM(Q10:Q34),0) -> 0 | X10: 0 | Y10: =IF(X10>0,(($B$79+$C$79)/2),0) -> 0 | AB10: =CONCATENATE($B$80,$A$74,$C$80) -> 3 to 3.5 | AC10: 34.84303203 | AD10: =(($B$80+$C$80)/2)*AC10 -> 113.2398541 | AE10: =(22/7)*((($B$80+$C$80)/4)^2)*AC10 -> 289.166056 | AF10: =SUM(AC10:$AC$34) -> 120.2744343 | AG10: =IF($B$80>AG52,0,IF($C$80>AG52,AF10,0)) -> 0 | AH10: =IF(AG36>AF10,AF10,0) -> 0 | AI10: 0 | AJ10: =IF(AI10>0,SUM(AD10:AD34),0) -> 0 | AK10: 0 | AL10: =IF(AK10>0,(($B$79+$C$79)/2),0) -> 0 | AO10: =CONCATENATE($B$80,$A$74,$C$80) -> 3 to 3.5 | AP10: 42.82709336 | AQ10: =(($B$80+$C$80)/2)*AP10 -> 139.1880534 | AR10: =(22/7)*((($B$80+$C$80)/4)^2)*AP10 -> 355.4266364 | AS10: =SUM(AP10:$AP$34) -> 199.2318445 | AT10: =IF($B$80>AT52,0,IF($C$80>AT52,AS10,0)) -> 0 | AU10: =IF(AT36>AS10,AS10,0) -> 0 | AV10: 0 | AW10: =IF(AV10>0,SUM(AQ10:AQ34),0) -> 0 | AX10: 0 | AY10: =IF(AX10>0,(($B$79+$C$79)/2),0) -> 0 | BB10: =CONCATENATE($B$80,$A$74,$C$80) -> 3 to 3.5 | BC10: 39.59312818 | BD10: =(($B$80+$C$80)/2)*BC10 -> 128.6776666 | BE10: =(22/7)*((($B$80+$C$80)/4)^2)*BC10 -> 328.5876129 | BF10: =SUM(BC10:$BC$34) -> 251.9808664 | BG10: =IF($B$80>BG52,0,IF($C$80>BG52,BF10,0)) -> 0 | BH10: =IF(BG36>BF10,BF10,0) -> 0 | BI10: 0 | BJ10: =IF(BI10>0,SUM(BD10:BD34),0) -> 0 | BK10: 0 | BL10: =IF(BK10>0,(($B$79+$C$79)/2),0) -> 0 | BO10: =CONCATENATE($B$80,$A$74,$C$80) -> 3 to 3.5 | BP10: 33.8945969 | BQ10: =(($B$80+$C$80)/2)*BP10 -> 110.1574399 | BR10: =(22/7)*((($B$80+$C$80)/4)^2)*BP10 -> 281.2948912 | BS10: =SUM(BP10:$BP$34) -> 279.5610641 | BT10: =IF($B$80>BT52,0,IF($C$80>BT52,BS10,0)) -> 0 | BU10: =IF(BT36>BS10,BS10,0) -> 0 | BV10: 0 | BW10: =IF(BV10>0,SUM(BQ10:BQ34),0) -> 0 | BX10: 0 | BY10: =IF(BX10>0,(($B$79+$C$79)/2),0) -> 0 | CB10: =CONCATENATE($B$80,$A$74,$C$80) -> 3 to 3.5 | CC10: 27.95642242 | CD10: =(($B$80+$C$80)/2)*CC10 -> 90.85837287 | CE10: =(22/7)*((($B$80+$C$80)/4)^2)*CC10 -> 232.013345 | CF10: =SUM(CC10:$CC$34) -> 272.9420158 | CG10: =IF($B$80>CG52,0,IF($C$80>CG52,CF10,0)) -> 0 | CH10: =IF(CG36>CF10,CF10,0) -> 0 | CI10: 0 | CJ10: =IF(CI10>0,SUM(CD10:CD34),0) -> 0 | CK10: 0 | CL10: =IF(CK10>0,(($B$79+$C$79)/2),0) -> 0 | CO10: =CONCATENATE($B$80,$A$74,$C$80) -> 3 to 3.5 | CP10: 22.82025684 | CQ10: =(($B$80+$C$80)/2)*CP10 -> 74.16583472 | CR10: =(22/7)*((($B$80+$C$80)/4)^2)*CP10 -> 189.3877565 | CS10: =SUM(CP10:$CP$34) -> 262.4752479 | CT10: =IF($B$80>CT52,0,IF($C$80>CT52,CS10,0)) -> 0 | CU10: =IF(CT36>CS10,CS10,0) -> 0 | CV10: 0 | CW10: =IF(CV10>0,SUM(CQ10:CQ34),0) -> 0 | CX10: 0 | CY10: =IF(CX10>0,(($B$79+$C$79)/2),0) -> 0 | DB10: =CONCATENATE($B$80,$A$74,$C$80) -> 3 to 3.5 | DC10: 18.49137204 | DD10: =(($B$80+$C$80)/2)*DC10 -> 60.09695912 | DE10: =(22/7)*((($B$80+$C$80)/4)^2)*DC10 -> 153.4618778 | DF10: =SUM(DC10:$DC$34) -> 249.3345637 | DG10: =IF($B$80>DG52,0,IF($C$80>DG52,DF10,0)) -> 0 | DH10: =IF(DG36>DF10,DF10,0) -> 0 | DI10: 0 | DJ10: =IF(DI10>0,SUM(DD10:DD34),0) -> 0 | DK10: 0 | DL10: =IF(DK10>0,(($B$79+$C$79)/2),0) -> 0 | DO10: =CONCATENATE($B$80,$A$74,$C$80) -> 3 to 3.5 | DP10: 14.91495859 | DQ10: =(($B$80+$C$80)/2)*DP10 -> 48.4736154 | DR10: =(22/7)*((($B$80+$C$80)/4)^2)*DP10 -> 123.7808393 | DS10: =SUM(DP10:$DP$34) -> 234.5948363 | DT10: =IF($B$80>DT52,0,IF($C$80>DT52,DS10,0)) -> 0 | DU10: =IF(DT36>DS10,DS10,0) -> 0 | DV10: 0 | DW10: =IF(DV10>0,SUM(DQ10:DQ34),0) -> 0 | DX10: 0 | DY10: =IF(DX10>0,(($B$79+$C$79)/2),0) -> 0 | EB10: =CONCATENATE($B$80,$A$74,$C$80) -> 3 to 3.5 | EC10: 12.00475918 | ED10: =(($B$80+$C$80)/2)*EC10 -> 39.01546732 | EE10: =(22/7)*((($B$80+$C$80)/4)^2)*EC10 -> 99.62878263 | EF10: =SUM(EC10:$EC$34) -> 219.1654703 | EG10: =IF($B$80>EG52,0,IF($C$80>EG52,EF10,0)) -> 0 | EH10: =IF(EG36>EF10,EF10,0) -> 0 | EI10: 0 | EJ10: =IF(EI10>0,SUM(ED10:ED34),0) -> 0 | EK10: 0 | EL10: =IF(EK10>0,(($B$79+$C$79)/2),0) -> 0 | EO10: =CONCATENATE($B$80,$A$74,$C$80) -> 3 to 3.5 | EP10: 9.6632125 | EQ10: =(($B$80+$C$80)/2)*EP10 -> 31.40544063 | ER10: =(22/7)*((($B$80+$C$80)/4)^2)*EP10 -> 80.19603589 | ES10: =SUM(EP10:$EP$34) -> 203.7633815 | ET10: =IF($B$80>ET52,0,IF($C$80>ET52,ES10,0)) -> 0 | EU10: =IF(ET36>ES10,ES10,0) -> 0 | EV10: 0 | EW10: =IF(EV10>0,SUM(EQ10:EQ34),0) -> 0 | EX10: 0 | EY10: =IF(EX10>0,(($B$79+$C$79)/2),0) -> 0 | FB10: =CONCATENATE($B$80,$A$74,$C$80) -> 3 to 3.5 | FC10: 7.794199973 | FD10: =(($B$80+$C$80)/2)*FC10 -> 25.33114991 | FE10: =(22/7)*((($B$80+$C$80)/4)^2)*FC10 -> 64.68490067 | FF10: =SUM(FC10:$FC$34) -> 188.9150898 | FG10: =IF($B$80>FG52,0,IF($C$80>FG52,FF10,0)) -> 0 | FH10: =IF(FG36>FF10,FF10,0) -> 0 | FI10: 0 | FJ10: =IF(FI10>0,SUM(FD10:FD34),0) -> 0 | FK10: 0 | FL10: =IF(FK10>0,(($B$79+$C$79)/2),0) -> 0 | FO10: =CONCATENATE($B$80,$A$74,$C$80) -> 3 to 3.5 | FP10: 6.440224643 | FQ10: =(($B$80+$C$80)/2)*FP10 -> 20.93073009 | FR10: =(22/7)*((($B$80+$C$80)/4)^2)*FP10 -> 53.44811434 | FS10: =SUM(FP10:$FP$34) -> 178.5845166 | FT10: =IF($B$80>FT52,0,IF($C$80>FT52,FS10,0)) -> 0 | FU10: =IF(FT36>FS10,FS10,0) -> 0 | FV10: 0 | FW10: =IF(FV10>0,SUM(FQ10:FQ34),0) -> 0 | FX10: 0 | FY10: =IF(FX10>0,(($B$79+$C$79)/2),0) -> 0 | GB10: =CONCATENATE($B$80,$A$74,$C$80) -> 3 to 3.5 | GC10: 5.32976379 | GD10: =(($B$80+$C$80)/2)*GC10 -> 17.32173232 | GE10: =(22/7)*((($B$80+$C$80)/4)^2)*GC10 -> 44.23228074 | GF10: =SUM(GC10:$GC$34) -> 168.3124139 | GG10: =IF($B$80>GG52,0,IF($C$80>GG52,GF10,0)) -> 0 | GH10: =IF(GG36>GF10,GF10,0) -> 0 | GI10: 0 | GJ10: =IF(GI10>0,SUM(GD10:GD34),0) -> 0 | GK10: 0 | GL10: =IF(GK10>0,(($B$79+$C$79)/2),0) -> 0
B11: =CONCATENATE($B$81,$A$74,$C$81) -> 3.5 to 4 | C11: 2.047899594 | D11: =(($B$81+$C$81)/2)*C11 -> 7.679623476 | E11: =(22/7)*((($B$81+$C$81)/4)^2)*C11 -> 22.62746203 | F11: =SUM(C11:$C$34) -> 2.46035467 | G11: =IF($B$81>G52,0,IF($C$81>G52,F11,0)) -> 0 | H11: =IF(G36>F11,F11,0) -> 0 | I11: 0 | J11: =IF(I11>0,SUM(D11:D34),0) -> 0 | K11: 0 | L11: =IF(K11>0,(($B$80+$C$80)/2),0) -> 0 | O11: =CONCATENATE($B$81,$A$74,$C$81) -> 3.5 to 4 | P11: 13.88320116 | Q11: =(($B$81+$C$81)/2)*P11 -> 52.06200433 | R11: =(22/7)*((($B$81+$C$81)/4)^2)*P11 -> 153.3969771 | S11: =SUM(P11:$P$34) -> 28.88755993 | T11: =IF($B$81>T52,0,IF($C$81>T52,S11,0)) -> 0 | U11: =IF(T36>S11,S11,0) -> 0 | V11: 0 | W11: =IF(V11>0,SUM(Q11:Q34),0) -> 0 | X11: 0 | Y11: =IF(X11>0,(($B$80+$C$80)/2),0) -> 0 | AB11: =CONCATENATE($B$81,$A$74,$C$81) -> 3.5 to 4 | AC11: 27.71734154 | AD11: =(($B$81+$C$81)/2)*AC11 -> 103.9400308 | AE11: =(22/7)*((($B$81+$C$81)/4)^2)*AC11 -> 306.2518763 | AF11: =SUM(AC11:$AC$34) -> 85.43140231 | AG11: =IF($B$81>AG52,0,IF($C$81>AG52,AF11,0)) -> 0 | AH11: =IF(AG36>AF11,AF11,0) -> 0 | AI11: 0 | AJ11: =IF(AI11>0,SUM(AD11:AD34),0) -> 0 | AK11: 0 | AL11: =IF(AK11>0,(($B$80+$C$80)/2),0) -> 0 | AO11: =CONCATENATE($B$81,$A$74,$C$81) -> 3.5 to 4 | AP11: 38.28770001 | AQ11: =(($B$81+$C$81)/2)*AP11 -> 143.578875 | AR11: =(22/7)*((($B$81+$C$81)/4)^2)*AP11 -> 423.0448996 | AS11: =SUM(AP11:$AP$34) -> 156.4047511 | AT11: =IF($B$81>AT52,0,IF($C$81>AT52,AS11,0)) -> 0 | AU11: =IF(AT36>AS11,AS11,0) -> 0 | AV11: 0 | AW11: =IF(AV11>0,SUM(AQ11:AQ34),0) -> 0 | AX11: 0 | AY11: =IF(AX11>0,(($B$80+$C$80)/2),0) -> 0 | BB11: =CONCATENATE($B$81,$A$74,$C$81) -> 3.5 to 4 | BC11: 41.03748054 | BD11: =(($B$81+$C$81)/2)*BC11 -> 153.890552 | BE11: =(22/7)*((($B$81+$C$81)/4)^2)*BC11 -> 453.4275193 | BF11: =SUM(BC11:$BC$34) -> 212.3877382 | BG11: =IF($B$81>BG52,0,IF($C$81>BG52,BF11,0)) -> 0 | BH11: =IF(BG36>BF11,BF11,0) -> 0 | BI11: 0 | BJ11: =IF(BI11>0,SUM(BD11:BD34),0) -> 0 | BK11: 0 | BL11: =IF(BK11>0,(($B$80+$C$80)/2),0) -> 0 | BO11: =CONCATENATE($B$81,$A$74,$C$81) -> 3.5 to 4 | BP11: 43.70688151 | BQ11: =(($B$81+$C$81)/2)*BP11 -> 163.9008056 | BR11: =(22/7)*((($B$81+$C$81)/4)^2)*BP11 -> 482.9220166 | BS11: =SUM(BP11:$BP$34) -> 245.6664672 | BT11: =IF($B$81>BT52,0,IF($C$81>BT52,BS11,0)) -> 0 | BU11: =IF(BT36>BS11,BS11,0) -> 0 | BV11: 0 | BW11: =IF(BV11>0,SUM(BQ11:BQ34),0) -> 0 | BX11: 0 | BY11: =IF(BX11>0,(($B$80+$C$80)/2),0) -> 0 | CB11: =CONCATENATE($B$81,$A$74,$C$81) -> 3.5 to 4 | CC11: 37.18213198 | CD11: =(($B$81+$C$81)/2)*CC11 -> 139.4329949 | CE11: =(22/7)*((($B$81+$C$81)/4)^2)*CC11 -> 410.8293601 | CF11: =SUM(CC11:$CC$34) -> 244.9855934 | CG11: =IF($B$81>CG52,0,IF($C$81>CG52,CF11,0)) -> 0 | CH11: =IF(CG36>CF11,CF11,0) -> 0 | CI11: 0 | CJ11: =IF(CI11>0,SUM(CD11:CD34),0) -> 0 | CK11: 0 | CL11: =IF(CK11>0,(($B$80+$C$80)/2),0) -> 0 | CO11: =CONCATENATE($B$81,$A$74,$C$81) -> 3.5 to 4 | CP11: 31.11935758 | CQ11: =(($B$81+$C$81)/2)*CP11 -> 116.6975909 | CR11: =(22/7)*((($B$81+$C$81)/4)^2)*CP11 -> 343.8411162 | CS11: =SUM(CP11:$CP$34) -> 239.654991 | CT11: =IF($B$81>CT52,0,IF($C$81>CT52,CS11,0)) -> 0 | CU11: =IF(CT36>CS11,CS11,0) -> 0 | CV11: 0 | CW11: =IF(CV11>0,SUM(CQ11:CQ34),0) -> 0 | CX11: 0 | CY11: =IF(CX11>0,(($B$80+$C$80)/2),0) -> 0 | DB11: =CONCATENATE($B$81,$A$74,$C$81) -> 3.5 to 4 | DC11: 25.72971244 | DD11: =(($B$81+$C$81)/2)*DC11 -> 96.48642167 | DE11: =(22/7)*((($B$81+$C$81)/4)^2)*DC11 -> 284.2903496 | DF11: =SUM(DC11:$DC$34) -> 230.8431917 | DG11: =IF($B$81>DG52,0,IF($C$81>DG52,DF11,0)) -> 0 | DH11: =IF(DG36>DF11,DF11,0) -> 0 | DI11: 0 | DJ11: =IF(DI11>0,SUM(DD11:DD34),0) -> 0 | DK11: 0 | DL11: =IF(DK11>0,(($B$80+$C$80)/2),0) -> 0 | DO11: =CONCATENATE($B$81,$A$74,$C$81) -> 3.5 to 4 | DP11: 21.09207515 | DQ11: =(($B$81+$C$81)/2)*DP11 -> 79.09528182 | DR11: =(22/7)*((($B$81+$C$81)/4)^2)*DP11 -> 233.0485982 | DS11: =SUM(DP11:$DP$34) -> 219.6798777 | DT11: =IF($B$81>DT52,0,IF($C$81>DT52,DS11,0)) -> 0 | DU11: =IF(DT36>DS11,DS11,0) -> 0 | DV11: 0 | DW11: =IF(DV11>0,SUM(DQ11:DQ34),0) -> 0 | DX11: 0 | DY11: =IF(DX11>0,(($B$80+$C$80)/2),0) -> 0 | EB11: =CONCATENATE($B$81,$A$74,$C$81) -> 3.5 to 4 | EC11: 17.19731479 | ED11: =(($B$81+$C$81)/2)*EC11 -> 64.48993045 | EE11: =(22/7)*((($B$81+$C$81)/4)^2)*EC11 -> 190.0149736 | EF11: =SUM(EC11:$EC$34) -> 207.1607111 | EG11: =IF($B$81>EG52,0,IF($C$81>EG52,EF11,0)) -> 0 | EH11: =IF(EG36>EF11,EF11,0) -> 0 | EI11: 0 | EJ11: =IF(EI11>0,SUM(ED11:ED34),0) -> 0 | EK11: 0 | EL11: =IF(EK11>0,(($B$80+$C$80)/2),0) -> 0 | EO11: =CONCATENATE($B$81,$A$74,$C$81) -> 3.5 to 4 | EP11: 13.98497085 | EQ11: =(($B$81+$C$81)/2)*EP11 -> 52.44364069 | ER11: =(22/7)*((($B$81+$C$81)/4)^2)*EP11 -> 154.5214413 | ES11: =SUM(EP11:$EP$34) -> 194.100169 | ET11: =IF($B$81>ET52,0,IF($C$81>ET52,ES11,0)) -> 0 | EU11: =IF(ET36>ES11,ES11,0) -> 0 | EV11: 0 | EW11: =IF(EV11>0,SUM(EQ11:EQ34),0) -> 0 | EX11: 0 | EY11: =IF(EX11>0,(($B$80+$C$80)/2),0) -> 0 | FB11: =CONCATENATE($B$81,$A$74,$C$81) -> 3.5 to 4 | FC11: 11.3701452 | FD11: =(($B$81+$C$81)/2)*FC11 -> 42.63804449 | FE11: =(22/7)*((($B$81+$C$81)/4)^2)*FC11 -> 125.6299525 | FF11: =SUM(FC11:$FC$34) -> 181.1208898 | FG11: =IF($B$81>FG52,0,IF($C$81>FG52,FF11,0)) -> 0 | FH11: =IF(FG36>FF11,FF11,0) -> 0 | FI11: 0 | FJ11: =IF(FI11>0,SUM(FD11:FD34),0) -> 0 | FK11: 0 | FL11: =IF(FK11>0,(($B$80+$C$80)/2),0) -> 0 | FO11: =CONCATENATE($B$81,$A$74,$C$81) -> 3.5 to 4 | FP11: 9.452221981 | FQ11: =(($B$81+$C$81)/2)*FP11 -> 35.44583243 | FR11: =(22/7)*((($B$81+$C$81)/4)^2)*FP11 -> 104.4386134 | FS11: =SUM(FP11:$FP$34) -> 172.1442919 | FT11: =IF($B$81>FT52,0,IF($C$81>FT52,FS11,0)) -> 0 | FU11: =IF(FT36>FS11,FS11,0) -> 0 | FV11: 0 | FW11: =IF(FV11>0,SUM(FQ11:FQ34),0) -> 0 | FX11: 0 | FY11: =IF(FX11>0,(($B$80+$C$80)/2),0) -> 0 | GB11: =CONCATENATE($B$81,$A$74,$C$81) -> 3.5 to 4 | GC11: 7.857724241 | GD11: =(($B$81+$C$81)/2)*GC11 -> 29.4664659 | GE11: =(22/7)*((($B$81+$C$81)/4)^2)*GC11 -> 86.82083703 | GF11: =SUM(GC11:$GC$34) -> 162.9826501 | GG11: =IF($B$81>GG52,0,IF($C$81>GG52,GF11,0)) -> 0 | GH11: =IF(GG36>GF11,GF11,0) -> 0 | GI11: 0 | GJ11: =IF(GI11>0,SUM(GD11:GD34),0) -> 0 | GK11: 0 | GL11: =IF(GK11>0,(($B$80+$C$80)/2),0) -> 0
B12: =CONCATENATE($B$82,$A$74,$C$82) -> 4 to 4.5 | C12: 0.3695371916 | D12: =(($B$82+$C$82)/2)*C12 -> 1.570533064 | E12: =(22/7)*((($B$82+$C$82)/4)^2)*C12 -> 5.244458625 | F12: =SUM(C12:$C$34) -> 0.4124550761 | G12: =IF($B$82>G52,0,IF($C$82>G52,F12,0)) -> 0.4124550761 | H12: =IF(G36>F12,F12,0) -> 0 | I12: 0 | J12: =IF(I12>0,SUM(D12:D34),0) -> 0 | K12: 0 | L12: =IF(K12>0,(($B$81+$C$81)/2),0) -> 0 | O12: =CONCATENATE($B$82,$A$74,$C$82) -> 4 to 4.5 | P12: 8.176002398 | Q12: =(($B$82+$C$82)/2)*P12 -> 34.74801019 | R12: =(22/7)*((($B$82+$C$82)/4)^2)*P12 -> 116.033534 | S12: =SUM(P12:$P$34) -> 15.00435877 | T12: =IF($B$82>T52,0,IF($C$82>T52,S12,0)) -> 15.00435877 | U12: =IF(T36>S12,S12,0) -> 0 | V12: 0 | W12: =IF(V12>0,SUM(Q12:Q34),0) -> 0 | X12: 0 | Y12: =IF(X12>0,(($B$81+$C$81)/2),0) -> 0 | AB12: =CONCATENATE($B$82,$A$74,$C$82) -> 4 to 4.5 | AC12: 21.1999918 | AD12: =(($B$82+$C$82)/2)*AC12 -> 90.09996514 | AE12: =(22/7)*((($B$82+$C$82)/4)^2)*AC12 -> 300.8695265 | AF12: =SUM(AC12:$AC$34) -> 57.71406078 | AG12: =IF($B$82>AG52,0,IF($C$82>AG52,AF12,0)) -> 57.71406078 | AH12: =IF(AG36>AF12,AF12,0) -> 0 | AI12: 0 | AJ12: =IF(AI12>0,SUM(AD12:AD34),0) -> 0 | AK12: 0 | AL12: =IF(AK12>0,(($B$81+$C$81)/2),0) -> 0 | AO12: =CONCATENATE($B$82,$A$74,$C$82) -> 4 to 4.5 | AP12: 33.50018189 | AQ12: =(($B$82+$C$82)/2)*AP12 -> 142.375773 | AR12: =(22/7)*((($B$82+$C$82)/4)^2)*AP12 -> 475.433385 | AS12: =SUM(AP12:$AP$34) -> 118.1170511 | AT12: =IF($B$82>AT52,0,IF($C$82>AT52,AS12,0)) -> 118.1170511 | AU12: =IF(AT36>AS12,AS12,0) -> 0 | AV12: 0 | AW12: =IF(AV12>0,SUM(AQ12:AQ34),0) -> 0 | AX12: 0 | AY12: =IF(AX12>0,(($B$81+$C$81)/2),0) -> 0 | BB12: =CONCATENATE($B$82,$A$74,$C$82) -> 4 to 4.5 | BC12: 39.12324213 | BD12: =(($B$82+$C$82)/2)*BC12 -> 166.273779 | BE12: =(22/7)*((($B$82+$C$82)/4)^2)*BC12 -> 555.235655 | BF12: =SUM(BC12:$BC$34) -> 171.3502577 | BG12: =IF($B$82>BG52,0,IF($C$82>BG52,BF12,0)) -> 0 | BH12: =IF(BG36>BF12,BF12,0) -> 0 | BI12: 0 | BJ12: =IF(BI12>0,SUM(BD12:BD34),0) -> 0 | BK12: 0 | BL12: =IF(BK12>0,(($B$81+$C$81)/2),0) -> 0 | BO12: =CONCATENATE($B$82,$A$74,$C$82) -> 4 to 4.5 | BP12: 48.89248315 | BQ12: =(($B$82+$C$82)/2)*BP12 -> 207.7930534 | BR12: =(22/7)*((($B$82+$C$82)/4)^2)*BP12 -> 693.8803747 | BS12: =SUM(BP12:$BP$34) -> 201.9595857 | BT12: =IF($B$82>BT52,0,IF($C$82>BT52,BS12,0)) -> 0 | BU12: =IF(BT36>BS12,BS12,0) -> 0 | BV12: 0 | BW12: =IF(BV12>0,SUM(BQ12:BQ34),0) -> 0 | BX12: 0 | BY12: =IF(BX12>0,(($B$81+$C$81)/2),0) -> 0 | CB12: =CONCATENATE($B$82,$A$74,$C$82) -> 4 to 4.5 | CC12: 43.42191005 | CD12: =(($B$82+$C$82)/2)*CC12 -> 184.5431177 | CE12: =(22/7)*((($B$82+$C$82)/4)^2)*CC12 -> 616.2421967 | CF12: =SUM(CC12:$CC$34) -> 207.8034614 | CG12: =IF($B$82>CG52,0,IF($C$82>CG52,CF12,0)) -> 0 | CH12: =IF(CG36>CF12,CF12,0) -> 0 | CI12: 0 | CJ12: =IF(CI12>0,SUM(CD12:CD34),0) -> 0 | CK12: 0 | CL12: =IF(CK12>0,(($B$81+$C$81)/2),0) -> 0 | CO12: =CONCATENATE($B$82,$A$74,$C$82) -> 4 to 4.5 | CP12: 37.65942707 | CQ12: =(($B$82+$C$82)/2)*CP12 -> 160.052565 | CR12: =(22/7)*((($B$82+$C$82)/4)^2)*CP12 -> 534.4612439 | CS12: =SUM(CP12:$CP$34) -> 208.5356335 | CT12: =IF($B$82>CT52,0,IF($C$82>CT52,CS12,0)) -> 0 | CU12: =IF(CT36>CS12,CS12,0) -> 0 | CV12: 0 | CW12: =IF(CV12>0,SUM(CQ12:CQ34),0) -> 0 | CX12: 0 | CY12: =IF(CX12>0,(($B$81+$C$81)/2),0) -> 0 | DB12: =CONCATENATE($B$82,$A$74,$C$82) -> 4 to 4.5 | DC12: 32.07050239 | DD12: =(($B$82+$C$82)/2)*DC12 -> 136.2996351 | DE12: =(22/7)*((($B$82+$C$82)/4)^2)*DC12 -> 455.1434245 | DF12: =SUM(DC12:$DC$34) -> 205.1134792 | DG12: =IF($B$82>DG52,0,IF($C$82>DG52,DF12,0)) -> 0 | DH12: =IF(DG36>DF12,DF12,0) -> 0 | DI12: 0 | DJ12: =IF(DI12>0,SUM(DD12:DD34),0) -> 0 | DK12: 0 | DL12: =IF(DK12>0,(($B$81+$C$81)/2),0) -> 0 | DO12: =CONCATENATE($B$82,$A$74,$C$82) -> 4 to 4.5 | DP12: 26.94233219 | DQ12: =(($B$82+$C$82)/2)*DP12 -> 114.5049118 | DR12: =(22/7)*((($B$82+$C$82)/4)^2)*DP12 -> 382.3646162 | DS12: =SUM(DP12:$DP$34) -> 198.5878025 | DT12: =IF($B$82>DT52,0,IF($C$82>DT52,DS12,0)) -> 0 | DU12: =IF(DT36>DS12,DS12,0) -> 0 | DV12: 0 | DW12: =IF(DV12>0,SUM(DQ12:DQ34),0) -> 0 | DX12: 0 | DY12: =IF(DX12>0,(($B$81+$C$81)/2),0) -> 0 | EB12: =CONCATENATE($B$82,$A$74,$C$82) -> 4 to 4.5 | EC12: 22.41855705 | ED12: =(($B$82+$C$82)/2)*EC12 -> 95.27886747 | EE12: =(22/7)*((($B$82+$C$82)/4)^2)*EC12 -> 318.163361 | EF12: =SUM(EC12:$EC$34) -> 189.9633963 | EG12: =IF($B$82>EG52,0,IF($C$82>EG52,EF12,0)) -> 0 | EH12: =IF(EG36>EF12,EF12,0) -> 0 | EI12: 0 | EJ12: =IF(EI12>0,SUM(ED12:ED34),0) -> 0 | EK12: 0 | EL12: =IF(EK12>0,(($B$81+$C$81)/2),0) -> 0 | EO12: =CONCATENATE($B$82,$A$74,$C$82) -> 4 to 4.5 | EP12: 18.54064711 | EQ12: =(($B$82+$C$82)/2)*EP12 -> 78.79775023 | ER12: =(22/7)*((($B$82+$C$82)/4)^2)*EP12 -> 263.1282017 | ES12: =SUM(EP12:$EP$34) -> 180.1151982 | ET12: =IF($B$82>ET52,0,IF($C$82>ET52,ES12,0)) -> 0 | EU12: =IF(ET36>ES12,ES12,0) -> 0 | EV12: 0 | EW12: =IF(EV12>0,SUM(EQ12:EQ34),0) -> 0 | EX12: 0 | EY12: =IF(EX12>0,(($B$81+$C$81)/2),0) -> 0 | FB12: =CONCATENATE($B$82,$A$74,$C$82) -> 4 to 4.5 | FC12: 15.28533432 | FD12: =(($B$82+$C$82)/2)*FC12 -> 64.96267087 | FE12: =(22/7)*((($B$82+$C$82)/4)^2)*FC12 -> 216.9289188 | FF12: =SUM(FC12:$FC$34) -> 169.7507447 | FG12: =IF($B$82>FG52,0,IF($C$82>FG52,FF12,0)) -> 0 | FH12: =IF(FG36>FF12,FF12,0) -> 0 | FI12: 0 | FJ12: =IF(FI12>0,SUM(FD12:FD34),0) -> 0 | FK12: 0 | FL12: =IF(FK12>0,(($B$81+$C$81)/2),0) -> 0 | FO12: =CONCATENATE($B$82,$A$74,$C$82) -> 4 to 4.5 | FP12: 12.8534068 | FQ12: =(($B$82+$C$82)/2)*FP12 -> 54.62697889 | FR12: =(22/7)*((($B$82+$C$82)/4)^2)*FP12 -> 182.4150902 | FS12: =SUM(FP12:$FP$34) -> 162.69207 | FT12: =IF($B$82>FT52,0,IF($C$82>FT52,FS12,0)) -> 0 | FU12: =IF(FT36>FS12,FS12,0) -> 0 | FV12: 0 | FW12: =IF(FV12>0,SUM(FQ12:FQ34),0) -> 0 | FX12: 0 | FY12: =IF(FX12>0,(($B$81+$C$81)/2),0) -> 0 | GB12: =CONCATENATE($B$82,$A$74,$C$82) -> 4 to 4.5 | GC12: 10.785789 | GD12: =(($B$82+$C$82)/2)*GC12 -> 45.83960327 | GE12: =(22/7)*((($B$82+$C$82)/4)^2)*GC12 -> 153.0715323 | GF12: =SUM(GC12:$GC$34) -> 155.1249258 | GG12: =IF($B$82>GG52,0,IF($C$82>GG52,GF12,0)) -> 0 | GH12: =IF(GG36>GF12,GF12,0) -> 0 | GI12: 0 | GJ12: =IF(GI12>0,SUM(GD12:GD34),0) -> 0 | GK12: 0 | GL12: =IF(GK12>0,(($B$81+$C$81)/2),0) -> 0
B13: =CONCATENATE($B$83,$A$74,$C$83) -> 4.5 to 5 | C13: 0.04018368105 | D13: =(($B$83+$C$83)/2)*C13 -> 0.190872485 | E13: =(22/7)*((($B$83+$C$83)/4)^2)*C13 -> 0.7123633815 | F13: =SUM(C13:$C$34) -> 0.04291788456 | G13: =IF($B$83>G52,0,IF($C$83>G52,F13,0)) -> 0 | H13: =IF(G36>F13,F13,0) -> 0 | I13: 0 | J13: =IF(I13>0,SUM(D13:D34),0) -> 0 | K13: 0 | L13: =IF(K13>0,(($B$82+$C$82)/2),0) -> 0 | O13: =CONCATENATE($B$83,$A$74,$C$83) -> 4.5 to 5 | P13: 4.245821025 | Q13: =(($B$83+$C$83)/2)*P13 -> 20.16764987 | R13: =(22/7)*((($B$83+$C$83)/4)^2)*P13 -> 75.2685504 | S13: =SUM(P13:$P$34) -> 6.828356377 | T13: =IF($B$83>T52,0,IF($C$83>T52,S13,0)) -> 0 | U13: =IF(T36>S13,S13,0) -> 0 | V13: 0 | W13: =IF(V13>0,SUM(Q13:Q34),0) -> 0 | X13: 0 | Y13: =IF(X13>0,(($B$82+$C$82)/2),0) -> 0 | AB13: =CONCATENATE($B$83,$A$74,$C$83) -> 4.5 to 5 | AC13: 15.02089614 | AD13: =(($B$83+$C$83)/2)*AC13 -> 71.34925666 | AE13: =(22/7)*((($B$83+$C$83)/4)^2)*AC13 -> 266.2856186 | AF13: =SUM(AC13:$AC$34) -> 36.51406898 | AG13: =IF($B$83>AG52,0,IF($C$83>AG52,AF13,0)) -> 0 | AH13: =IF(AG36>AF13,AF13,0) -> 0 | AI13: 0 | AJ13: =IF(AI13>0,SUM(AD13:AD34),0) -> 0 | AK13: 0 | AL13: =IF(AK13>0,(($B$82+$C$82)/2),0) -> 0 | AO13: =CONCATENATE($B$83,$A$74,$C$83) -> 4.5 to 5 | AP13: 27.62684759 | AQ13: =(($B$83+$C$83)/2)*AP13 -> 131.2275261 | AR13: =(22/7)*((($B$83+$C$83)/4)^2)*AP13 -> 489.7598741 | AS13: =SUM(AP13:$AP$34) -> 84.6168692 | AT13: =IF($B$83>AT52,0,IF($C$83>AT52,AS13,0)) -> 0 | AU13: =IF(AT36>AS13,AS13,0) -> 0 | AV13: 0 | AW13: =IF(AV13>0,SUM(AQ13:AQ34),0) -> 0 | AX13: 0 | AY13: =IF(AX13>0,(($B$82+$C$82)/2),0) -> 0 | BB13: =CONCATENATE($B$83,$A$74,$C$83) -> 4.5 to 5 | BC13: 34.46062253 | BD13: =(($B$83+$C$83)/2)*BC13 -> 163.687957 | BE13: =(22/7)*((($B$83+$C$83)/4)^2)*BC13 -> 610.9068396 | BF13: =SUM(BC13:$BC$34) -> 132.2270156 | BG13: =IF($B$83>BG52,0,IF($C$83>BG52,BF13,0)) -> 132.2270156 | BH13: =IF(BG36>BF13,BF13,0) -> 0 | BI13: 0 | BJ13: =IF(BI13>0,SUM(BD13:BD34),0) -> 0 | BK13: 0 | BL13: =IF(BK13>0,(($B$82+$C$82)/2),0) -> 0 | BO13: =CONCATENATE($B$83,$A$74,$C$83) -> 4.5 to 5 | BP13: 47.44697169 | BQ13: =(($B$83+$C$83)/2)*BP13 -> 225.3731155 | BR13: =(22/7)*((($B$83+$C$83)/4)^2)*BP13 -> 841.1246632 | BS13: =SUM(BP13:$BP$34) -> 153.0671025 | BT13: =IF($B$83>BT52,0,IF($C$83>BT52,BS13,0)) -> 153.0671025 | BU13: =IF(BT36>BS13,BS13,0) -> 0 | BV13: 0 | BW13: =IF(BV13>0,SUM(BQ13:BQ34),0) -> 0 | BX13: 0 | BY13: =IF(BX13>0,(($B$82+$C$82)/2),0) -> 0 | CB13: =CONCATENATE($B$83,$A$74,$C$83) -> 4.5 to 5 | CC13: 44.52529136 | CD13: =(($B$83+$C$83)/2)*CC13 -> 211.495134 | CE13: =(22/7)*((($B$83+$C$83)/4)^2)*CC13 -> 789.3300536 | CF13: =SUM(CC13:$CC$34) -> 164.3815514 | CG13: =IF($B$83>CG52,0,IF($C$83>CG52,CF13,0)) -> 164.3815514 | CH13: =IF(CG36>CF13,CF13,0) -> 0 | CI13: 0 | CJ13: =IF(CI13>0,SUM(CD13:CD34),0) -> 0 | CK13: 0 | CL13: =IF(CK13>0,(($B$82+$C$82)/2),0) -> 0 | CO13: =CONCATENATE($B$83,$A$74,$C$83) -> 4.5 to 5 | CP13: 40.44371024 | CQ13: =(($B$83+$C$83)/2)*CP13 -> 192.1076237 | CR13: =(22/7)*((($B$83+$C$83)/4)^2)*CP13 -> 716.9730955 | CS13: =SUM(CP13:$CP$34) -> 170.8762064 | CT13: =IF($B$83>CT52,0,IF($C$83>CT52,CS13,0)) -> 170.8762064 | CU13: =IF(CT36>CS13,CS13,0) -> 0 | CV13: 0 | CW13: =IF(CV13>0,SUM(CQ13:CQ34),0) -> 0 | CX13: 0 | CY13: =IF(CX13>0,(($B$82+$C$82)/2),0) -> 0 | DB13: =CONCATENATE($B$83,$A$74,$C$83) -> 4.5 to 5 | DC13: 35.80821847 | DD13: =(($B$83+$C$83)/2)*DC13 -> 170.0890377 | DE13: =(22/7)*((($B$83+$C$83)/4)^2)*DC13 -> 634.7965872 | DF13: =SUM(DC13:$DC$34) -> 173.0429768 | DG13: =IF($B$83>DG52,0,IF($C$83>DG52,DF13,0)) -> 173.0429768 | DH13: =IF(DG36>DF13,DF13,0) -> 0 | DI13: 0 | DJ13: =IF(DI13>0,SUM(DD13:DD34),0) -> 0 | DK13: 0 | DL13: =IF(DK13>0,(($B$82+$C$82)/2),0) -> 0 | DO13: =CONCATENATE($B$83,$A$74,$C$83) -> 4.5 to 5 | DP13: 31.08641437 | DQ13: =(($B$83+$C$83)/2)*DP13 -> 147.6604682 | DR13: =(22/7)*((($B$83+$C$83)/4)^2)*DP13 -> 551.0899618 | DS13: =SUM(DP13:$DP$34) -> 171.6454704 | DT13: =IF($B$83>DT52,0,IF($C$83>DT52,DS13,0)) -> 171.6454704 | DU13: =IF(DT36>DS13,DS13,0) -> 0 | DV13: 0 | DW13: =IF(DV13>0,SUM(DQ13:DQ34),0) -> 0 | DX13: 0 | DY13: =IF(DX13>0,(($B$82+$C$82)/2),0) -> 0 | EB13: =CONCATENATE($B$83,$A$74,$C$83) -> 4.5 to 5 | EC13: 26.59471353 | ED13: =(($B$83+$C$83)/2)*EC13 -> 126.3248893 | EE13: =(22/7)*((($B$83+$C$83)/4)^2)*EC13 -> 471.4625332 | EF13: =SUM(EC13:$EC$34) -> 167.5448392 | EG13: =IF($B$83>EG52,0,IF($C$83>EG52,EF13,0)) -> 167.5448392 | EH13: =IF(EG36>EF13,EF13,0) -> 0 | EI13: 0 | EJ13: =IF(EI13>0,SUM(ED13:ED34),0) -> 0 | EK13: 0 | EL13: =IF(EK13>0,(($B$82+$C$82)/2),0) -> 0 | EO13: =CONCATENATE($B$83,$A$74,$C$83) -> 4.5 to 5 | EP13: 22.51708644 | EQ13: =(($B$83+$C$83)/2)*EP13 -> 106.9561606 | ER13: =(22/7)*((($B$83+$C$83)/4)^2)*EP13 -> 399.1756708 | ES13: =SUM(EP13:$EP$34) -> 161.5745511 | ET13: =IF($B$83>ET52,0,IF($C$83>ET52,ES13,0)) -> 161.5745511 | EU13: =IF(ET36>ES13,ES13,0) -> 0 | EV13: 0 | EW13: =IF(EV13>0,SUM(EQ13:EQ34),0) -> 0 | EX13: 0 | EY13: =IF(EX13>0,(($B$82+$C$82)/2),0) -> 0 | FB13: =CONCATENATE($B$83,$A$74,$C$83) -> 4.5 to 5 | FC13: 18.93646589 | FD13: =(($B$83+$C$83)/2)*FC13 -> 89.94821296 | FE13: =(22/7)*((($B$83+$C$83)/4)^2)*FC13 -> 335.6995805 | FF13: =SUM(FC13:$FC$34) -> 154.4654103 | FG13: =IF($B$83>FG52,0,IF($C$83>FG52,FF13,0)) -> 0 | FH13: =IF(FG36>FF13,FF13,0) -> 0 | FI13: 0 | FJ13: =IF(FI13>0,SUM(FD13:FD34),0) -> 0 | FK13: 0 | FL13: =IF(FK13>0,(($B$82+$C$82)/2),0) -> 0 | FO13: =CONCATENATE($B$83,$A$74,$C$83) -> 4.5 to 5 | FP13: 16.19401501 | FQ13: =(($B$83+$C$83)/2)*FP13 -> 76.92157129 | FR13: =(22/7)*((($B$83+$C$83)/4)^2)*FP13 -> 287.0822929 | FS13: =SUM(FP13:$FP$34) -> 149.8386632 | FT13: =IF($B$83>FT52,0,IF($C$83>FT52,FS13,0)) -> 0 | FU13: =IF(FT36>FS13,FS13,0) -> 0 | FV13: 0 | FW13: =IF(FV13>0,SUM(FQ13:FQ34),0) -> 0 | FX13: 0 | FY13: =IF(FX13>0,(($B$82+$C$82)/2),0) -> 0 | GB13: =CONCATENATE($B$83,$A$74,$C$83) -> 4.5 to 5 | GC13: 13.78395332 | GD13: =(($B$83+$C$83)/2)*GC13 -> 65.47377828 | GE13: =(22/7)*((($B$83+$C$83)/4)^2)*GC13 -> 244.3574939 | GF13: =SUM(GC13:$GC$34) -> 144.3391368 | GG13: =IF($B$83>GG52,0,IF($C$83>GG52,GF13,0)) -> 0 | GH13: =IF(GG36>GF13,GF13,0) -> 0 | GI13: 0 | GJ13: =IF(GI13>0,SUM(GD13:GD34),0) -> 0 | GK13: 0 | GL13: =IF(GK13>0,(($B$82+$C$82)/2),0) -> 0
B14: =CONCATENATE($B$84,$A$74,$C$84) -> 5 to 5.5 | C14: 0.002628501585 | D14: =(($B$84+$C$84)/2)*C14 -> 0.01379963332 | E14: =(22/7)*((($B$84+$C$84)/4)^2)*C14 -> 0.05692348746 | F14: =SUM(C14:$C$34) -> 0.00273420351 | G14: =IF($B$84>G52,0,IF($C$84>G52,F14,0)) -> 0 | H14: =IF(G36>F14,F14,0) -> 0 | I14: 0 | J14: =IF(I14>0,SUM(D14:D34),0) -> 0 | K14: 0 | L14: =IF(K14>0,(($B$83+$C$83)/2),0) -> 0 | O14: =CONCATENATE($B$84,$A$74,$C$84) -> 5 to 5.5 | P14: 1.794328058 | Q14: =(($B$84+$C$84)/2)*P14 -> 9.420222304 | R14: =(22/7)*((($B$84+$C$84)/4)^2)*P14 -> 38.858417 | S14: =SUM(P14:$P$34) -> 2.582535352 | T14: =IF($B$84>T52,0,IF($C$84>T52,S14,0)) -> 0 | U14: =IF(T36>S14,S14,0) -> 0 | V14: 0 | W14: =IF(V14>0,SUM(Q14:Q34),0) -> 0 | X14: 0 | Y14: =IF(X14>0,(($B$83+$C$83)/2),0) -> 0 | AB14: =CONCATENATE($B$84,$A$74,$C$84) -> 5 to 5.5 | AC14: 9.743420536 | AD14: =(($B$84+$C$84)/2)*AC14 -> 51.15295781 | AE14: =(22/7)*((($B$84+$C$84)/4)^2)*AC14 -> 211.005951 | AF14: =SUM(AC14:$AC$34) -> 21.49317284 | AG14: =IF($B$84>AG52,0,IF($C$84>AG52,AF14,0)) -> 0 | AH14: =IF(AG36>AF14,AF14,0) -> 0 | AI14: 0 | AJ14: =IF(AI14>0,SUM(AD14:AD34),0) -> 0 | AK14: 0 | AL14: =IF(AK14>0,(($B$83+$C$83)/2),0) -> 0 | AO14: =CONCATENATE($B$84,$A$74,$C$84) -> 5 to 5.5 | AP14: 21.1498573 | AQ14: =(($B$84+$C$84)/2)*AP14 -> 111.0367508 | AR14: =(22/7)*((($B$84+$C$84)/4)^2)*AP14 -> 458.0265972 | AS14: =SUM(AP14:$AP$34) -> 56.99002161 | AT14: =IF($B$84>AT52,0,IF($C$84>AT52,AS14,0)) -> 0 | AU14: =IF(AT36>AS14,AS14,0) -> 0 | AV14: 0 | AW14: =IF(AV14>0,SUM(AQ14:AQ34),0) -> 0 | AX14: 0 | AY14: =IF(AX14>0,(($B$83+$C$83)/2),0) -> 0 | BB14: =CONCATENATE($B$84,$A$74,$C$84) -> 5 to 5.5 | BC14: 28.37061908 | BD14: =(($B$84+$C$84)/2)*BC14 -> 148.9457502 | BE14: =(22/7)*((($B$84+$C$84)/4)^2)*BC14 -> 614.4012195 | BF14: =SUM(BC14:$BC$34) -> 97.76639303 | BG14: =IF($B$84>BG52,0,IF($C$84>BG52,BF14,0)) -> 0 | BH14: =IF(BG36>BF14,BF14,0) -> 0 | BI14: 0 | BJ14: =IF(BI14>0,SUM(BD14:BD34),0) -> 0 | BK14: 0 | BL14: =IF(BK14>0,(($B$83+$C$83)/2),0) -> 0 | BO14: =CONCATENATE($B$84,$A$74,$C$84) -> 5 to 5.5 | BP14: 39.94373852 | BQ14: =(($B$84+$C$84)/2)*BP14 -> 209.7046272 | BR14: =(22/7)*((($B$84+$C$84)/4)^2)*BP14 -> 865.0315874 | BS14: =SUM(BP14:$BP$34) -> 105.6201308 | BT14: =IF($B$84>BT52,0,IF($C$84>BT52,BS14,0)) -> 0 | BU14: =IF(BT36>BS14,BS14,0) -> 0 | BV14: 0 | BW14: =IF(BV14>0,SUM(BQ14:BQ34),0) -> 0 | BX14: 0 | BY14: =IF(BX14>0,(($B$83+$C$83)/2),0) -> 0 | CB14: =CONCATENATE($B$84,$A$74,$C$84) -> 5 to 5.5 | CC14: 40.08925947 | CD14: =(($B$84+$C$84)/2)*CC14 -> 210.4686122 | CE14: =(22/7)*((($B$84+$C$84)/4)^2)*CC14 -> 868.1830254 | CF14: =SUM(CC14:$CC$34) -> 119.85626 | CG14: =IF($B$84>CG52,0,IF($C$84>CG52,CF14,0)) -> 0 | CH14: =IF(CG36>CF14,CF14,0) -> 0 | CI14: 0 | CJ14: =IF(CI14>0,SUM(CD14:CD34),0) -> 0 | CK14: 0 | CL14: =IF(CK14>0,(($B$83+$C$83)/2),0) -> 0 | CO14: =CONCATENATE($B$84,$A$74,$C$84) -> 5 to 5.5 | CP14: 38.5445447 | CQ14: =(($B$84+$C$84)/2)*CP14 -> 202.3588597 | CR14: =(22/7)*((($B$84+$C$84)/4)^2)*CP14 -> 834.7302962 | CS14: =SUM(CP14:$CP$34) -> 130.4324961 | CT14: =IF($B$84>CT52,0,IF($C$84>CT52,CS14,0)) -> 0 | CU14: =IF(CT36>CS14,CS14,0) -> 0 | CV14: 0 | CW14: =IF(CV14>0,SUM(CQ14:CQ34),0) -> 0 | CX14: 0 | CY14: =IF(CX14>0,(($B$83+$C$83)/2),0) -> 0 | DB14: =CONCATENATE($B$84,$A$74,$C$84) -> 5 to 5.5 | DC14: 35.81511348 | DD14: =(($B$84+$C$84)/2)*DC14 -> 188.0293457 | DE14: =(22/7)*((($B$84+$C$84)/4)^2)*DC14 -> 775.6210512 | DF14: =SUM(DC14:$DC$34) -> 137.2347584 | DG14: =IF($B$84>DG52,0,IF($C$84>DG52,DF14,0)) -> 0 | DH14: =IF(DG36>DF14,DF14,0) -> 0 | DI14: 0 | DJ14: =IF(DI14>0,SUM(DD14:DD34),0) -> 0 | DK14: 0 | DL14: =IF(DK14>0,(($B$83+$C$83)/2),0) -> 0 | DO14: =CONCATENATE($B$84,$A$74,$C$84) -> 5 to 5.5 | DP14: 32.39859692 | DQ14: =(($B$84+$C$84)/2)*DP14 -> 170.0926339 | DR14: =(22/7)*((($B$84+$C$84)/4)^2)*DP14 -> 701.6321147 | DS14: =SUM(DP14:$DP$34) -> 140.559056 | DT14: =IF($B$84>DT52,0,IF($C$84>DT52,DS14,0)) -> 0 | DU14: =IF(DT36>DS14,DS14,0) -> 0 | DV14: 0 | DW14: =IF(DV14>0,SUM(DQ14:DQ34),0) -> 0 | DX14: 0 | DY14: =IF(DX14>0,(($B$83+$C$83)/2),0) -> 0 | EB14: =CONCATENATE($B$84,$A$74,$C$84) -> 5 to 5.5 | EC14: 28.70940231 | ED14: =(($B$84+$C$84)/2)*EC14 -> 150.7243621 | EE14: =(22/7)*((($B$84+$C$84)/4)^2)*EC14 -> 621.7379937 | EF14: =SUM(EC14:$EC$34) -> 140.9501257 | EG14: =IF($B$84>EG52,0,IF($C$84>EG52,EF14,0)) -> 0 | EH14: =IF(EG36>EF14,EF14,0) -> 0 | EI14: 0 | EJ14: =IF(EI14>0,SUM(ED14:ED34),0) -> 0 | EK14: 0 | EL14: =IF(EK14>0,(($B$83+$C$83)/2),0) -> 0 | EO14: =CONCATENATE($B$84,$A$74,$C$84) -> 5 to 5.5 | EP14: 25.05093667 | EQ14: =(($B$84+$C$84)/2)*EP14 -> 131.5174175 | ER14: =(22/7)*((($B$84+$C$84)/4)^2)*EP14 -> 542.5093473 | ES14: =SUM(EP14:$EP$34) -> 139.0574646 | ET14: =IF($B$84>ET52,0,IF($C$84>ET52,ES14,0)) -> 0 | EU14: =IF(ET36>ES14,ES14,0) -> 0 | EV14: 0 | EW14: =IF(EV14>0,SUM(EQ14:EQ34),0) -> 0 | EX14: 0 | EY14: =IF(EX14>0,(($B$83+$C$83)/2),0) -> 0 | FB14: =CONCATENATE($B$84,$A$74,$C$84) -> 5 to 5.5 | FC14: 21.61913947 | FD14: =(($B$84+$C$84)/2)*FC14 -> 113.5004822 | FE14: =(22/7)*((($B$84+$C$84)/4)^2)*FC14 -> 468.1894891 | FF14: =SUM(FC14:$FC$34) -> 135.5289444 | FG14: =IF($B$84>FG52,0,IF($C$84>FG52,FF14,0)) -> 135.5289444 | FH14: =IF(FG36>FF14,FF14,0) -> 0 | FI14: 0 | FJ14: =IF(FI14>0,SUM(FD14:FD34),0) -> 0 | FK14: 0 | FL14: =IF(FK14>0,(($B$83+$C$83)/2),0) -> 0 | FO14: =CONCATENATE($B$84,$A$74,$C$84) -> 5 to 5.5 | FP14: 18.90354012 | FQ14: =(($B$84+$C$84)/2)*FP14 -> 99.24358563 | FR14: =(22/7)*((($B$84+$C$84)/4)^2)*FP14 -> 409.3797907 | FS14: =SUM(FP14:$FP$34) -> 133.6446482 | FT14: =IF($B$84>FT52,0,IF($C$84>FT52,FS14,0)) -> 133.6446482 | FU14: =IF(FT36>FS14,FS14,0) -> 0 | FV14: 0 | FW14: =IF(FV14>0,SUM(FQ14:FQ34),0) -> 0 | FX14: 0 | FY14: =IF(FX14>0,(($B$83+$C$83)/2),0) -> 0 | GB14: =CONCATENATE($B$84,$A$74,$C$84) -> 5 to 5.5 | GC14: 16.40071311 | GD14: =(($B$84+$C$84)/2)*GC14 -> 86.10374385 | GE14: =(22/7)*((($B$84+$C$84)/4)^2)*GC14 -> 355.1779434 | GF14: =SUM(GC14:$GC$34) -> 130.5551835 | GG14: =IF($B$84>GG52,0,IF($C$84>GG52,GF14,0)) -> 130.5551835 | GH14: =IF(GG36>GF14,GF14,0) -> 0 | GI14: 0 | GJ14: =IF(GI14>0,SUM(GD14:GD34),0) -> 0 | GK14: 0 | GL14: =IF(GK14>0,(($B$83+$C$83)/2),0) -> 0
B15: =CONCATENATE($B$85,$A$74,$C$85) -> 5.5 to 6 | C15: 0.0001032371146 | D15: =(($B$85+$C$85)/2)*C15 -> 0.0005936134089 | E15: =(22/7)*((($B$85+$C$85)/4)^2)*C15 -> 0.002681860579 | F15: =SUM(C15:$C$34) -> 0.0001057019251 | G15: =IF($B$85>G52,0,IF($C$85>G52,F15,0)) -> 0 | H15: =IF(G36>F15,F15,0) -> 0 | I15: 0 | J15: =IF(I15>0,SUM(D15:D34),0) -> 0 | K15: 0 | L15: =IF(K15>0,(($B$84+$C$84)/2),0) -> 0 | O15: =CONCATENATE($B$85,$A$74,$C$85) -> 5.5 to 6 | P15: 0.5966228987 | Q15: =(($B$85+$C$85)/2)*P15 -> 3.430581667 | R15: =(22/7)*((($B$85+$C$85)/4)^2)*P15 -> 15.49887789 | S15: =SUM(P15:$P$34) -> 0.7882072943 | T15: =IF($B$85>T52,0,IF($C$85>T52,S15,0)) -> 0 | U15: =IF(T36>S15,S15,0) -> 0 | V15: 0 | W15: =IF(V15>0,SUM(Q15:Q34),0) -> 0 | X15: 0 | Y15: =IF(X15>0,(($B$84+$C$84)/2),0) -> 0 | AB15: =CONCATENATE($B$85,$A$74,$C$85) -> 5.5 to 6 | AC15: 5.835555224 | AD15: =(($B$85+$C$85)/2)*AC15 -> 33.55444254 | AE15: =(22/7)*((($B$85+$C$85)/4)^2)*AC15 -> 151.5941779 | AF15: =SUM(AC15:$AC$34) -> 11.7497523 | AG15: =IF($B$85>AG52,0,IF($C$85>AG52,AF15,0)) -> 0 | AH15: =IF(AG36>AF15,AF15,0) -> 0 | AI15: 0 | AJ15: =IF(AI15>0,SUM(AD15:AD34),0) -> 0 | AK15: 0 | AL15: =IF(AK15>0,(($B$84+$C$84)/2),0) -> 0 | AO15: =CONCATENATE($B$85,$A$74,$C$85) -> 5.5 to 6 | AP15: 14.9728532 | AQ15: =(($B$85+$C$85)/2)*AP15 -> 86.09390591 | AR15: =(22/7)*((($B$85+$C$85)/4)^2)*AP15 -> 388.9599678 | AS15: =SUM(AP15:$AP$34) -> 35.84016431 | AT15: =IF($B$85>AT52,0,IF($C$85>AT52,AS15,0)) -> 0 | AU15: =IF(AT36>AS15,AS15,0) -> 0 | AV15: 0 | AW15: =IF(AV15>0,SUM(AQ15:AQ34),0) -> 0 | AX15: 0 | AY15: =IF(AX15>0,(($B$84+$C$84)/2),0) -> 0 | BB15: =CONCATENATE($B$85,$A$74,$C$85) -> 5.5 to 6 | BC15: 21.97645853 | BD15: =(($B$85+$C$85)/2)*BC15 -> 126.3646366 | BE15: =(22/7)*((($B$85+$C$85)/4)^2)*BC15 -> 570.8973759 | BF15: =SUM(BC15:$BC$34) -> 69.39577395 | BG15: =IF($B$85>BG52,0,IF($C$85>BG52,BF15,0)) -> 0 | BH15: =IF(BG36>BF15,BF15,0) -> 0 | BI15: 0 | BJ15: =IF(BI15>0,SUM(BD15:BD34),0) -> 0 | BK15: 0 | BL15: =IF(BK15>0,(($B$84+$C$84)/2),0) -> 0 | BO15: =CONCATENATE($B$85,$A$74,$C$85) -> 5.5 to 6 | BP15: 29.17164263 | BQ15: =(($B$85+$C$85)/2)*BP15 -> 167.7369451 | BR15: =(22/7)*((($B$85+$C$85)/4)^2)*BP15 -> 757.8115557 | BS15: =SUM(BP15:$BP$34) -> 65.67639232 | BT15: =IF($B$85>BT52,0,IF($C$85>BT52,BS15,0)) -> 0 | BU15: =IF(BT36>BS15,BS15,0) -> 0 | BV15: 0 | BW15: =IF(BV15>0,SUM(BQ15:BQ34),0) -> 0 | BX15: 0 | BY15: =IF(BX15>0,(($B$84+$C$84)/2),0) -> 0 | CB15: =CONCATENATE($B$85,$A$74,$C$85) -> 5.5 to 6 | CC15: 31.69362062 | CD15: =(($B$85+$C$85)/2)*CC15 -> 182.2383186 | CE15: =(22/7)*((($B$85+$C$85)/4)^2)*CC15 -> 823.3266893 | CF15: =SUM(CC15:$CC$34) -> 79.76700053 | CG15: =IF($B$85>CG52,0,IF($C$85>CG52,CF15,0)) -> 0 | CH15: =IF(CG36>CF15,CF15,0) -> 0 | CI15: 0 | CJ15: =IF(CI15>0,SUM(CD15:CD34),0) -> 0 | CK15: 0 | CL15: =IF(CK15>0,(($B$84+$C$84)/2),0) -> 0 | CO15: =CONCATENATE($B$85,$A$74,$C$85) -> 5.5 to 6 | CP15: 32.59936894 | CQ15: =(($B$85+$C$85)/2)*CP15 -> 187.4463714 | CR15: =(22/7)*((($B$85+$C$85)/4)^2)*CP15 -> 846.8559279 | CS15: =SUM(CP15:$CP$34) -> 91.88795145 | CT15: =IF($B$85>CT52,0,IF($C$85>CT52,CS15,0)) -> 0 | CU15: =IF(CT36>CS15,CS15,0) -> 0 | CV15: 0 | CW15: =IF(CV15>0,SUM(CQ15:CQ34),0) -> 0 | CX15: 0 | CY15: =IF(CX15>0,(($B$84+$C$84)/2),0) -> 0 | DB15: =CONCATENATE($B$85,$A$74,$C$85) -> 5.5 to 6 | DC15: 32.08903191 | DD15: =(($B$85+$C$85)/2)*DC15 -> 184.5119335 | DE15: =(22/7)*((($B$85+$C$85)/4)^2)*DC15 -> 833.5985566 | DF15: =SUM(DC15:$DC$34) -> 101.4196449 | DG15: =IF($B$85>DG52,0,IF($C$85>DG52,DF15,0)) -> 0 | DH15: =IF(DG36>DF15,DF15,0) -> 0 | DI15: 0 | DJ15: =IF(DI15>0,SUM(DD15:DD34),0) -> 0 | DK15: 0 | DL15: =IF(DK15>0,(($B$84+$C$84)/2),0) -> 0 | DO15: =CONCATENATE($B$85,$A$74,$C$85) -> 5.5 to 6 | DP15: 30.50015604 | DQ15: =(($B$85+$C$85)/2)*DP15 -> 175.3758972 | DR15: =(22/7)*((($B$85+$C$85)/4)^2)*DP15 -> 792.32325 | DS15: =SUM(DP15:$DP$34) -> 108.1604591 | DT15: =IF($B$85>DT52,0,IF($C$85>DT52,DS15,0)) -> 0 | DU15: =IF(DT36>DS15,DS15,0) -> 0 | DV15: 0 | DW15: =IF(DV15>0,SUM(DQ15:DQ34),0) -> 0 | DX15: 0 | DY15: =IF(DX15>0,(($B$84+$C$84)/2),0) -> 0 | EB15: =CONCATENATE($B$85,$A$74,$C$85) -> 5.5 to 6 | EC15: 28.20294088 | ED15: =(($B$85+$C$85)/2)*EC15 -> 162.1669101 | EE15: =(22/7)*((($B$85+$C$85)/4)^2)*EC15 -> 732.6469329 | EF15: =SUM(EC15:$EC$34) -> 112.2407234 | EG15: =IF($B$85>EG52,0,IF($C$85>EG52,EF15,0)) -> 0 | EH15: =IF(EG36>EF15,EF15,0) -> 0 | EI15: 0 | EJ15: =IF(EI15>0,SUM(ED15:ED34),0) -> 0 | EK15: 0 | EL15: =IF(EK15>0,(($B$84+$C$84)/2),0) -> 0 | EO15: =CONCATENATE($B$85,$A$74,$C$85) -> 5.5 to 6 | EP15: 25.53056789 | EQ15: =(($B$85+$C$85)/2)*EP15 -> 146.8007654 | ER15: =(22/7)*((($B$85+$C$85)/4)^2)*EP15 -> 663.2248864 | ES15: =SUM(EP15:$EP$34) -> 114.0065279 | ET15: =IF($B$85>ET52,0,IF($C$85>ET52,ES15,0)) -> 0 | EU15: =IF(ET36>ES15,ES15,0) -> 0 | EV15: 0 | EW15: =IF(EV15>0,SUM(EQ15:EQ34),0) -> 0 | EX15: 0 | EY15: =IF(EX15>0,(($B$84+$C$84)/2),0) -> 0 | FB15: =CONCATENATE($B$85,$A$74,$C$85) -> 5.5 to 6 | FC15: 22.74540261 | FD15: =(($B$85+$C$85)/2)*FC15 -> 130.786065 | FE15: =(22/7)*((($B$85+$C$85)/4)^2)*FC15 -> 590.872758 | FF15: =SUM(FC15:$FC$34) -> 113.909805 | FG15: =IF($B$85>FG52,0,IF($C$85>FG52,FF15,0)) -> 0 | FH15: =IF(FG36>FF15,FF15,0) -> 0 | FI15: 0 | FJ15: =IF(FI15>0,SUM(FD15:FD34),0) -> 0 | FK15: 0 | FL15: =IF(FK15>0,(($B$84+$C$84)/2),0) -> 0 | FO15: =CONCATENATE($B$85,$A$74,$C$85) -> 5.5 to 6 | FP15: 20.44486859 | FQ15: =(($B$85+$C$85)/2)*FP15 -> 117.5579944 | FR15: =(22/7)*((($B$85+$C$85)/4)^2)*FP15 -> 531.1102246 | FS15: =SUM(FP15:$FP$34) -> 114.741108 | FT15: =IF($B$85>FT52,0,IF($C$85>FT52,FS15,0)) -> 0 | FU15: =IF(FT36>FS15,FS15,0) -> 0 | FV15: 0 | FW15: =IF(FV15>0,SUM(FQ15:FQ34),0) -> 0 | FX15: 0 | FY15: =IF(FX15>0,(($B$84+$C$84)/2),0) -> 0 | GB15: =CONCATENATE($B$85,$A$74,$C$85) -> 5.5 to 6 | GC15: 18.16849558 | GD15: =(($B$85+$C$85)/2)*GC15 -> 104.4688496 | GE15: =(22/7)*((($B$85+$C$85)/4)^2)*GC15 -> 471.9753382 | GF15: =SUM(GC15:$GC$34) -> 114.1544704 | GG15: =IF($B$85>GG52,0,IF($C$85>GG52,GF15,0)) -> 0 | GH15: =IF(GG36>GF15,GF15,0) -> 0 | GI15: 0 | GJ15: =IF(GI15>0,SUM(GD15:GD34),0) -> 0 | GK15: 0 | GL15: =IF(GK15>0,(($B$84+$C$84)/2),0) -> 0
B16: =CONCATENATE($B$86,$A$74,$C$86) -> 6 to 6.5 | C16: 2.430287378e-06 | D16: =(($B$86+$C$86)/2)*C16 -> 1.518929611e-05 | E16: =(22/7)*((($B$86+$C$86)/4)^2)*C16 -> 7.459029341e-05 | F16: =SUM(C16:$C$34) -> 2.464810542e-06 | G16: =IF($B$86>G52,0,IF($C$86>G52,F16,0)) -> 0 | H16: =IF(G36>F16,F16,0) -> 0 | I16: 0 | J16: =IF(I16>0,SUM(D16:D34),0) -> 0 | K16: 0 | L16: =IF(K16>0,(($B$85+$C$85)/2),0) -> 0 | O16: =CONCATENATE($B$86,$A$74,$C$86) -> 6 to 6.5 | P16: 0.1547479205 | Q16: =(($B$86+$C$86)/2)*P16 -> 0.9671745031 | R16: =(22/7)*((($B$86+$C$86)/4)^2)*P16 -> 4.749517649 | S16: =SUM(P16:$P$34) -> 0.1915843957 | T16: =IF($B$86>T52,0,IF($C$86>T52,S16,0)) -> 0 | U16: =IF(T36>S16,S16,0) -> 0 | V16: 0 | W16: =IF(V16>0,SUM(Q16:Q34),0) -> 0 | X16: 0 | Y16: =IF(X16>0,(($B$85+$C$85)/2),0) -> 0 | AB16: =CONCATENATE($B$86,$A$74,$C$86) -> 6 to 6.5 | AC16: 3.215494307 | AD16: =(($B$86+$C$86)/2)*AC16 -> 20.09683942 | AE16: =(22/7)*((($B$86+$C$86)/4)^2)*AC16 -> 98.68983642 | AF16: =SUM(AC16:$AC$34) -> 5.91419708 | AG16: =IF($B$86>AG52,0,IF($C$86>AG52,AF16,0)) -> 0 | AH16: =IF(AG36>AF16,AF16,0) -> 0 | AI16: 0 | AJ16: =IF(AI16>0,SUM(AD16:AD34),0) -> 0 | AK16: 0 | AL16: =IF(AK16>0,(($B$85+$C$85)/2),0) -> 0 | AO16: =CONCATENATE($B$86,$A$74,$C$86) -> 6 to 6.5 | AP16: 9.71350444 | AQ16: =(($B$86+$C$86)/2)*AP16 -> 60.70940275 | AR16: =(22/7)*((($B$86+$C$86)/4)^2)*AP16 -> 298.1265313 | AS16: =SUM(AP16:$AP$34) -> 20.86731111 | AT16: =IF($B$86>AT52,0,IF($C$86>AT52,AS16,0)) -> 0 | AU16: =IF(AT36>AS16,AS16,0) -> 20.86731111 | AV16: 20.86731111 | AW16: =IF(AV16>0,SUM(AQ16:AQ34),0) -> 140.6739114 | AX16: 35.84016431 | AY16: =IF(AX16>0,(($B$85+$C$85)/2),0) -> 5.75 | BB16: =CONCATENATE($B$86,$A$74,$C$86) -> 6 to 6.5 | BC16: 16.04336152 | BD16: =(($B$86+$C$86)/2)*BC16 -> 100.2710095 | BE16: =(22/7)*((($B$86+$C$86)/4)^2)*BC16 -> 492.4022788 | BF16: =SUM(BC16:$BC$34) -> 47.41931541 | BG16: =IF($B$86>BG52,0,IF($C$86>BG52,BF16,0)) -> 0 | BH16: =IF(BG36>BF16,BF16,0) -> 0 | BI16: 0 | BJ16: =IF(BI16>0,SUM(BD16:BD34),0) -> 0 | BK16: 0 | BL16: =IF(BK16>0,(($B$85+$C$85)/2),0) -> 0 | BO16: =CONCATENATE($B$86,$A$74,$C$86) -> 6 to 6.5 | BP16: 18.48168967 | BQ16: =(($B$86+$C$86)/2)*BP16 -> 115.5105604 | BR16: =(22/7)*((($B$86+$C$86)/4)^2)*BP16 -> 567.2393592 | BS16: =SUM(BP16:$BP$34) -> 36.50474969 | BT16: =IF($B$86>BT52,0,IF($C$86>BT52,BS16,0)) -> 0 | BU16: =IF(BT36>BS16,BS16,0) -> 0 | BV16: 0 | BW16: =IF(BV16>0,SUM(BQ16:BQ34),0) -> 0 | BX16: 0 | BY16: =IF(BX16>0,(($B$85+$C$85)/2),0) -> 0 | CB16: =CONCATENATE($B$86,$A$74,$C$86) -> 6 to 6.5 | CC16: 22.00069062 | CD16: =(($B$86+$C$86)/2)*CC16 -> 137.5043164 | CE16: =(22/7)*((($B$86+$C$86)/4)^2)*CC16 -> 675.2444107 | CF16: =SUM(CC16:$CC$34) -> 48.0733799 | CG16: =IF($B$86>CG52,0,IF($C$86>CG52,CF16,0)) -> 0 | CH16: =IF(CG36>CF16,CF16,0) -> 0 | CI16: 0 | CJ16: =IF(CI16>0,SUM(CD16:CD34),0) -> 0 | CK16: 0 | CL16: =IF(CK16>0,(($B$85+$C$85)/2),0) -> 0 | CO16: =CONCATENATE($B$86,$A$74,$C$86) -> 6 to 6.5 | CP16: 24.46745227 | CQ16: =(($B$86+$C$86)/2)*CP16 -> 152.9215767 | CR16: =(22/7)*((($B$86+$C$86)/4)^2)*CP16 -> 750.9541712 | CS16: =SUM(CP16:$CP$34) -> 59.28858251 | CT16: =IF($B$86>CT52,0,IF($C$86>CT52,CS16,0)) -> 0 | CU16: =IF(CT36>CS16,CS16,0) -> 0 | CV16: 0 | CW16: =IF(CV16>0,SUM(CQ16:CQ34),0) -> 0 | CX16: 0 | CY16: =IF(CX16>0,(($B$85+$C$85)/2),0) -> 0 | DB16: =CONCATENATE($B$86,$A$74,$C$86) -> 6 to 6.5 | DC16: 25.75449403 | DD16: =(($B$86+$C$86)/2)*DC16 -> 160.9655877 | DE16: =(22/7)*((($B$86+$C$86)/4)^2)*DC16 -> 790.4560109 | DF16: =SUM(DC16:$DC$34) -> 69.33061298 | DG16: =IF($B$86>DG52,0,IF($C$86>DG52,DF16,0)) -> 0 | DH16: =IF(DG36>DF16,DF16,0) -> 0 | DI16: 0 | DJ16: =IF(DI16>0,SUM(DD16:DD34),0) -> 0 | DK16: 0 | DL16: =IF(DK16>0,(($B$85+$C$85)/2),0) -> 0 | DO16: =CONCATENATE($B$86,$A$74,$C$86) -> 6 to 6.5 | DP16: 25.93569985 | DQ16: =(($B$86+$C$86)/2)*DP16 -> 162.098124 | DR16: =(22/7)*((($B$86+$C$86)/4)^2)*DP16 -> 796.0175734 | DS16: =SUM(DP16:$DP$34) -> 77.66030302 | DT16: =IF($B$86>DT52,0,IF($C$86>DT52,DS16,0)) -> 0 | DU16: =IF(DT36>DS16,DS16,0) -> 0 | DV16: 0 | DW16: =IF(DV16>0,SUM(DQ16:DQ34),0) -> 0 | DX16: 0 | DY16: =IF(DX16>0,(($B$85+$C$85)/2),0) -> 0 | EB16: =CONCATENATE($B$86,$A$74,$C$86) -> 6 to 6.5 | EC16: 25.21192456 | ED16: =(($B$86+$C$86)/2)*EC16 -> 157.5745285 | EE16: =(22/7)*((($B$86+$C$86)/4)^2)*EC16 -> 773.8034883 | EF16: =SUM(EC16:$EC$34) -> 84.03778252 | EG16: =IF($B$86>EG52,0,IF($C$86>EG52,EF16,0)) -> 0 | EH16: =IF(EG36>EF16,EF16,0) -> 0 | EI16: 0 | EJ16: =IF(EI16>0,SUM(ED16:ED34),0) -> 0 | EK16: 0 | EL16: =IF(EK16>0,(($B$85+$C$85)/2),0) -> 0 | EO16: =CONCATENATE($B$86,$A$74,$C$86) -> 6 to 6.5 | EP16: 23.83536246 | EQ16: =(($B$86+$C$86)/2)*EP16 -> 148.9710154 | ER16: =(22/7)*((($B$86+$C$86)/4)^2)*EP16 -> 731.5540934 | ES16: =SUM(EP16:$EP$34) -> 88.47596005 | ET16: =IF($B$86>ET52,0,IF($C$86>ET52,ES16,0)) -> 0 | EU16: =IF(ET36>ES16,ES16,0) -> 0 | EV16: 0 | EW16: =IF(EV16>0,SUM(EQ16:EQ34),0) -> 0 | EX16: 0 | EY16: =IF(EX16>0,(($B$85+$C$85)/2),0) -> 0 | FB16: =CONCATENATE($B$86,$A$74,$C$86) -> 6 to 6.5 | FC16: 22.05284921 | FD16: =(($B$86+$C$86)/2)*FC16 -> 137.8303076 | FE16: =(22/7)*((($B$86+$C$86)/4)^2)*FC16 -> 676.8452604 | FF16: =SUM(FC16:$FC$34) -> 91.16440236 | FG16: =IF($B$86>FG52,0,IF($C$86>FG52,FF16,0)) -> 0 | FH16: =IF(FG36>FF16,FF16,0) -> 0 | FI16: 0 | FJ16: =IF(FI16>0,SUM(FD16:FD34),0) -> 0 | FK16: 0 | FL16: =IF(FK16>0,(($B$85+$C$85)/2),0) -> 0 | FO16: =CONCATENATE($B$86,$A$74,$C$86) -> 6 to 6.5 | FP16: 20.48699238 | FQ16: =(($B$86+$C$86)/2)*FP16 -> 128.0437024 | FR16: =(22/7)*((($B$86+$C$86)/4)^2)*FP16 -> 628.7860386 | FS16: =SUM(FP16:$FP$34) -> 94.29623945 | FT16: =IF($B$86>FT52,0,IF($C$86>FT52,FS16,0)) -> 0 | FU16: =IF(FT36>FS16,FS16,0) -> 0 | FV16: 0 | FW16: =IF(FV16>0,SUM(FQ16:FQ34),0) -> 0 | FX16: 0 | FY16: =IF(FX16>0,(($B$85+$C$85)/2),0) -> 0 | GB16: =CONCATENATE($B$86,$A$74,$C$86) -> 6 to 6.5 | GC16: 18.73883719 | GD16: =(($B$86+$C$86)/2)*GC16 -> 117.1177325 | GE16: =(22/7)*((($B$86+$C$86)/4)^2)*GC16 -> 575.1317219 | GF16: =SUM(GC16:$GC$34) -> 95.98597482 | GG16: =IF($B$86>GG52,0,IF($C$86>GG52,GF16,0)) -> 0 | GH16: =IF(GG36>GF16,GF16,0) -> 0 | GI16: 0 | GJ16: =IF(GI16>0,SUM(GD16:GD34),0) -> 0 | GK16: 0 | GL16: =IF(GK16>0,(($B$85+$C$85)/2),0) -> 0
B17: =CONCATENATE($B$87,$A$74,$C$87) -> 6.5 to 7 | C17: 3.423359596e-08 | D17: =(($B$87+$C$87)/2)*C17 -> 2.310767727e-07 | E17: =(22/7)*((($B$87+$C$87)/4)^2)*C17 -> 1.22553217e-06 | F17: =SUM(C17:$C$34) -> 3.452316433e-08 | G17: =IF($B$87>G52,0,IF($C$87>G52,F17,0)) -> 0 | H17: =IF(G36>F17,F17,0) -> 0 | I17: 0 | J17: =IF(I17>0,SUM(D17:D34),0) -> 0 | K17: 0 | L17: =IF(K17>0,(($B$86+$C$86)/2),0) -> 0 | O17: =CONCATENATE($B$87,$A$74,$C$87) -> 6.5 to 7 | P17: 0.03125790226 | Q17: =(($B$87+$C$87)/2)*P17 -> 0.2109908402 | R17: =(22/7)*((($B$87+$C$87)/4)^2)*P17 -> 1.119004992 | S17: =SUM(P17:$P$34) -> 0.03683647521 | T17: =IF($B$87>T52,0,IF($C$87>T52,S17,0)) -> 0 | U17: =IF(T36>S17,S17,0) -> 0 | V17: 0 | W17: =IF(V17>0,SUM(Q17:Q34),0) -> 0 | X17: 0 | Y17: =IF(X17>0,(($B$86+$C$86)/2),0) -> 0 | AB17: =CONCATENATE($B$87,$A$74,$C$87) -> 6.5 to 7 | AC17: 1.599922556 | AD17: =(($B$87+$C$87)/2)*AC17 -> 10.79947725 | AE17: =(22/7)*((($B$87+$C$87)/4)^2)*AC17 -> 57.27579899 | AF17: =SUM(AC17:$AC$34) -> 2.698702773 | AG17: =IF($B$87>AG52,0,IF($C$87>AG52,AF17,0)) -> 0 | AH17: =IF(AG36>AF17,AF17,0) -> 0 | AI17: 0 | AJ17: =IF(AI17>0,SUM(AD17:AD34),0) -> 0 | AK17: 0 | AL17: =IF(AK17>0,(($B$86+$C$86)/2),0) -> 0 | AO17: =CONCATENATE($B$87,$A$74,$C$87) -> 6.5 to 7 | AP17: 5.712788625 | AQ17: =(($B$87+$C$87)/2)*AP17 -> 38.56132322 | AR17: =(22/7)*((($B$87+$C$87)/4)^2)*AP17 -> 204.5127321 | AS17: =SUM(AP17:$AP$34) -> 11.15380667 | AT17: =IF($B$87>AT52,0,IF($C$87>AT52,AS17,0)) -> 0 | AU17: =IF(AT36>AS17,AS17,0) -> 11.15380667 | AV17: 0 | AW17: =IF(AV17>0,SUM(AQ17:AQ34),0) -> 0 | AX17: 0 | AY17: =IF(AX17>0,(($B$86+$C$86)/2),0) -> 0 | BB17: =CONCATENATE($B$87,$A$74,$C$87) -> 6.5 to 7 | BC17: 11.10262498 | BD17: =(($B$87+$C$87)/2)*BC17 -> 74.9427186 | BE17: =(22/7)*((($B$87+$C$87)/4)^2)*BC17 -> 397.4640612 | BF17: =SUM(BC17:$BC$34) -> 31.37595389 | BG17: =IF($B$87>BG52,0,IF($C$87>BG52,BF17,0)) -> 0 | BH17: =IF(BG36>BF17,BF17,0) -> 0 | BI17: 0 | BJ17: =IF(BI17>0,SUM(BD17:BD34),0) -> 0 | BK17: 0 | BL17: =IF(BK17>0,(($B$86+$C$86)/2),0) -> 0 | BO17: =CONCATENATE($B$87,$A$74,$C$87) -> 6.5 to 7 | BP17: 10.15748657 | BQ17: =(($B$87+$C$87)/2)*BP17 -> 68.56303433 | BR17: =(22/7)*((($B$87+$C$87)/4)^2)*BP17 -> 363.6289499 | BS17: =SUM(BP17:$BP$34) -> 18.02306003 | BT17: =IF($B$87>BT52,0,IF($C$87>BT52,BS17,0)) -> 0 | BU17: =IF(BT36>BS17,BS17,0) -> 18.02306003 | BV17: 18.02306003 | BW17: =IF(BV17>0,SUM(BQ17:BQ34),0) -> 127.8105197 | BX17: 36.50474969 | BY17: =IF(BX17>0,(($B$86+$C$86)/2),0) -> 6.25 | CB17: =CONCATENATE($B$87,$A$74,$C$87) -> 6.5 to 7 | CC17: 13.40968103 | CD17: =(($B$87+$C$87)/2)*CC17 -> 90.51534695 | CE17: =(22/7)*((($B$87+$C$87)/4)^2)*CC17 -> 480.0546079 | CF17: =SUM(CC17:$CC$34) -> 26.07268929 | CG17: =IF($B$87>CG52,0,IF($C$87>CG52,CF17,0)) -> 0 | CH17: =IF(CG36>CF17,CF17,0) -> 26.07268929 | CI17: 26.07268929 | CJ17: =IF(CI17>0,SUM(CD17:CD34),0) -> 186.6314517 | CK17: 48.0733799 | CL17: =IF(CK17>0,(($B$86+$C$86)/2),0) -> 6.25 | CO17: =CONCATENATE($B$87,$A$74,$C$87) -> 6.5 to 7 | CP17: 16.29670423 | CQ17: =(($B$87+$C$87)/2)*CP17 -> 110.0027535 | CR17: =(22/7)*((($B$87+$C$87)/4)^2)*CP17 -> 583.4074607 | CS17: =SUM(CP17:$CP$34) -> 34.82113024 | CT17: =IF($B$87>CT52,0,IF($C$87>CT52,CS17,0)) -> 0 | CU17: =IF(CT36>CS17,CS17,0) -> 0 | CV17: 0 | CW17: =IF(CV17>0,SUM(CQ17:CQ34),0) -> 0 | CX17: 0 | CY17: =IF(CX17>0,(($B$86+$C$86)/2),0) -> 0 | DB17: =CONCATENATE($B$87,$A$74,$C$87) -> 6.5 to 7 | DC17: 18.51631109 | DD17: =(($B$87+$C$87)/2)*DC17 -> 124.9850998 | DE17: =(22/7)*((($B$87+$C$87)/4)^2)*DC17 -> 662.8674044 | DF17: =SUM(DC17:$DC$34) -> 43.57611896 | DG17: =IF($B$87>DG52,0,IF($C$87>DG52,DF17,0)) -> 0 | DH17: =IF(DG36>DF17,DF17,0) -> 0 | DI17: 0 | DJ17: =IF(DI17>0,SUM(DD17:DD34),0) -> 0 | DK17: 0 | DL17: =IF(DK17>0,(($B$86+$C$86)/2),0) -> 0 | DO17: =CONCATENATE($B$87,$A$74,$C$87) -> 6.5 to 7 | DP17: 19.92109939 | DQ17: =(($B$87+$C$87)/2)*DP17 -> 134.4674209 | DR17: =(22/7)*((($B$87+$C$87)/4)^2)*DP17 -> 713.1575715 | DS17: =SUM(DP17:$DP$34) -> 51.72460318 | DT17: =IF($B$87>DT52,0,IF($C$87>DT52,DS17,0)) -> 0 | DU17: =IF(DT36>DS17,DS17,0) -> 0 | DV17: 0 | DW17: =IF(DV17>0,SUM(DQ17:DQ34),0) -> 0 | DX17: 0 | DY17: =IF(DX17>0,(($B$86+$C$86)/2),0) -> 0 | EB17: =CONCATENATE($B$87,$A$74,$C$87) -> 6.5 to 7 | EC17: 20.50966702 | ED17: =(($B$87+$C$87)/2)*EC17 -> 138.4402524 | EE17: =(22/7)*((($B$87+$C$87)/4)^2)*EC17 -> 734.2277672 | EF17: =SUM(EC17:$EC$34) -> 58.82585795 | EG17: =IF($B$87>EG52,0,IF($C$87>EG52,EF17,0)) -> 0 | EH17: =IF(EG36>EF17,EF17,0) -> 0 | EI17: 0 | EJ17: =IF(EI17>0,SUM(ED17:ED34),0) -> 0 | EK17: 0 | EL17: =IF(EK17>0,(($B$86+$C$86)/2),0) -> 0 | EO17: =CONCATENATE($B$87,$A$74,$C$87) -> 6.5 to 7 | EP17: 20.3848563 | EQ17: =(($B$87+$C$87)/2)*EP17 -> 137.59778 | ER17: =(22/7)*((($B$87+$C$87)/4)^2)*EP17 -> 729.7596547 | ES17: =SUM(EP17:$EP$34) -> 64.64059759 | ET17: =IF($B$87>ET52,0,IF($C$87>ET52,ES17,0)) -> 0 | EU17: =IF(ET36>ES17,ES17,0) -> 0 | EV17: 0 | EW17: =IF(EV17>0,SUM(EQ17:EQ34),0) -> 0 | EX17: 0 | EY17: =IF(EX17>0,(($B$86+$C$86)/2),0) -> 0 | FB17: =CONCATENATE($B$87,$A$74,$C$87) -> 6.5 to 7 | FC17: 19.70387207 | FD17: =(($B$87+$C$87)/2)*FC17 -> 133.0011365 | FE17: =(22/7)*((($B$87+$C$87)/4)^2)*FC17 -> 705.3810275 | FF17: =SUM(FC17:$FC$34) -> 69.11155315 | FG17: =IF($B$87>FG52,0,IF($C$87>FG52,FF17,0)) -> 0 | FH17: =IF(FG36>FF17,FF17,0) -> 0 | FI17: 0 | FJ17: =IF(FI17>0,SUM(FD17:FD34),0) -> 0 | FK17: 0 | FL17: =IF(FK17>0,(($B$86+$C$86)/2),0) -> 0 | FO17: =CONCATENATE($B$87,$A$74,$C$87) -> 6.5 to 7 | FP17: 19.02062548 | FQ17: =(($B$87+$C$87)/2)*FP17 -> 128.389222 | FR17: =(22/7)*((($B$87+$C$87)/4)^2)*FP17 -> 680.9214096 | FS17: =SUM(FP17:$FP$34) -> 73.80924706 | FT17: =IF($B$87>FT52,0,IF($C$87>FT52,FS17,0)) -> 0 | FU17: =IF(FT36>FS17,FS17,0) -> 0 | FV17: 0 | FW17: =IF(FV17>0,SUM(FQ17:FQ34),0) -> 0 | FX17: 0 | FY17: =IF(FX17>0,(($B$86+$C$86)/2),0) -> 0 | GB17: =CONCATENATE($B$87,$A$74,$C$87) -> 6.5 to 7 | GC17: 17.99425144 | GD17: =(($B$87+$C$87)/2)*GC17 -> 121.4611972 | GE17: =(22/7)*((($B$87+$C$87)/4)^2)*GC17 -> 644.1781353 | GF17: =SUM(GC17:$GC$34) -> 77.24713763 | GG17: =IF($B$87>GG52,0,IF($C$87>GG52,GF17,0)) -> 0 | GH17: =IF(GG36>GF17,GF17,0) -> 0 | GI17: 0 | GJ17: =IF(GI17>0,SUM(GD17:GD34),0) -> 0 | GK17: 0 | GL17: =IF(GK17>0,(($B$86+$C$86)/2),0) -> 0
B18: =CONCATENATE($B$88,$A$74,$C$88) -> 7 to 7.5 | C18: 2.881161976e-10 | D18: =(($B$88+$C$88)/2)*C18 -> 2.088842432e-09 | E18: =(22/7)*((($B$88+$C$88)/4)^2)*C18 -> 1.189894171e-08 | F18: =SUM(C18:$C$34) -> 2.895683693e-10 | G18: =IF($B$88>G52,0,IF($C$88>G52,F18,0)) -> 0 | H18: =IF(G36>F18,F18,0) -> 0 | I18: 0 | J18: =IF(I18>0,SUM(D18:D34),0) -> 0 | K18: 0 | L18: =IF(K18>0,(($B$87+$C$87)/2),0) -> 0 | O18: =CONCATENATE($B$88,$A$74,$C$88) -> 7 to 7.5 | P18: 0.004915218365 | Q18: =(($B$88+$C$88)/2)*P18 -> 0.03563533314 | R18: =(22/7)*((($B$88+$C$88)/4)^2)*P18 -> 0.2029941299 | S18: =SUM(P18:$P$34) -> 0.005578572949 | T18: =IF($B$88>T52,0,IF($C$88>T52,S18,0)) -> 0 | U18: =IF(T36>S18,S18,0) -> 0 | V18: 0 | W18: =IF(V18>0,SUM(Q18:Q34),0) -> 0 | X18: 0 | Y18: =IF(X18>0,(($B$87+$C$87)/2),0) -> 0 | AB18: =CONCATENATE($B$88,$A$74,$C$88) -> 7 to 7.5 | AC18: 0.7043230292 | AD18: =(($B$88+$C$88)/2)*AC18 -> 5.106341962 | AE18: =(22/7)*((($B$88+$C$88)/4)^2)*AC18 -> 29.08791225 | AF18: =SUM(AC18:$AC$34) -> 1.098780218 | AG18: =IF($B$88>AG52,0,IF($C$88>AG52,AF18,0)) -> 0 | AH18: =IF(AG36>AF18,AF18,0) -> 0 | AI18: 0 | AJ18: =IF(AI18>0,SUM(AD18:AD34),0) -> 0 | AK18: 0 | AL18: =IF(AK18>0,(($B$87+$C$87)/2),0) -> 0 | AO18: =CONCATENATE($B$88,$A$74,$C$88) -> 7 to 7.5 | AP18: 3.026048068 | AQ18: =(($B$88+$C$88)/2)*AP18 -> 21.9388485 | AR18: =(22/7)*((($B$88+$C$88)/4)^2)*AP18 -> 124.9730834 | AS18: =SUM(AP18:$AP$34) -> 5.441018041 | AT18: =IF($B$88>AT52,0,IF($C$88>AT52,AS18,0)) -> 0 | AU18: =IF(AT36>AS18,AS18,0) -> 5.441018041 | AV18: 0 | AW18: =IF(AV18>0,SUM(AQ18:AQ34),0) -> 0 | AX18: 0 | AY18: =IF(AX18>0,(($B$87+$C$87)/2),0) -> 0 | BB18: =CONCATENATE($B$88,$A$74,$C$88) -> 7 to 7.5 | BC18: 7.388900183 | BD18: =(($B$88+$C$88)/2)*BC18 -> 53.56952633 | BE18: =(22/7)*((($B$88+$C$88)/4)^2)*BC18 -> 305.1549803 | BF18: =SUM(BC18:$BC$34) -> 20.27332892 | BG18: =IF($B$88>BG52,0,IF($C$88>BG52,BF18,0)) -> 0 | BH18: =IF(BG36>BF18,BF18,0) -> 20.27332892 | BI18: 20.27332892 | BJ18: =IF(BI18>0,SUM(BD18:BD34),0) -> 163.1766272 | BK18: 31.37595389 | BL18: =IF(BK18>0,(($B$87+$C$87)/2),0) -> 6.75 | BO18: =CONCATENATE($B$88,$A$74,$C$88) -> 7 to 7.5 | BP18: 4.842709164 | BQ18: =(($B$88+$C$88)/2)*BP18 -> 35.10964144 | BR18: =(22/7)*((($B$88+$C$88)/4)^2)*BP18 -> 199.9995646 | BS18: =SUM(BP18:$BP$34) -> 7.865573458 | BT18: =IF($B$88>BT52,0,IF($C$88>BT52,BS18,0)) -> 0 | BU18: =IF(BT36>BS18,BS18,0) -> 7.865573458 | BV18: 0 | BW18: =IF(BV18>0,SUM(BQ18:BQ34),0) -> 0 | BX18: 0 | BY18: =IF(BX18>0,(($B$87+$C$87)/2),0) -> 0 | CB18: =CONCATENATE($B$88,$A$74,$C$88) -> 7 to 7.5 | CC18: 7.176526187 | CD18: =(($B$88+$C$88)/2)*CC18 -> 52.02981485 | CE18: =(22/7)*((($B$88+$C$88)/4)^2)*CC18 -> 296.3841239 | CF18: =SUM(CC18:$CC$34) -> 12.66300826 | CG18: =IF($B$88>CG52,0,IF($C$88>CG52,CF18,0)) -> 0 | CH18: =IF(CG36>CF18,CF18,0) -> 12.66300826 | CI18: 0 | CJ18: =IF(CI18>0,SUM(CD18:CD34),0) -> 0 | CK18: 0 | CL18: =IF(CK18>0,(($B$87+$C$87)/2),0) -> 0 | CO18: =CONCATENATE($B$88,$A$74,$C$88) -> 7 to 7.5 | CP18: 9.632516293 | CQ18: =(($B$88+$C$88)/2)*CP18 -> 69.83574313 | CR18: =(22/7)*((($B$88+$C$88)/4)^2)*CP18 -> 397.8143224 | CS18: =SUM(CP18:$CP$34) -> 18.52442602 | CT18: =IF($B$88>CT52,0,IF($C$88>CT52,CS18,0)) -> 0 | CU18: =IF(CT36>CS18,CS18,0) -> 18.52442602 | CV18: 18.52442602 | CW18: =IF(CV18>0,SUM(CQ18:CQ34),0) -> 141.7790118 | CX18: 34.82113024 | CY18: =IF(CX18>0,(($B$87+$C$87)/2),0) -> 6.75 | DB18: =CONCATENATE($B$88,$A$74,$C$88) -> 7 to 7.5 | DC18: 11.92502603 | DD18: =(($B$88+$C$88)/2)*DC18 -> 86.4564387 | DE18: =(22/7)*((($B$88+$C$88)/4)^2)*DC18 -> 492.4929276 | DF18: =SUM(DC18:$DC$34) -> 25.05980787 | DG18: =IF($B$88>DG52,0,IF($C$88>DG52,DF18,0)) -> 0 | DH18: =IF(DG36>DF18,DF18,0) -> 25.05980787 | DI18: 25.05980787 | DJ18: =IF(DI18>0,SUM(DD18:DD34),0) -> 193.523096 | DK18: 43.57611896 | DL18: =IF(DK18>0,(($B$87+$C$87)/2),0) -> 6.75 | DO18: =CONCATENATE($B$88,$A$74,$C$88) -> 7 to 7.5 | DP18: 13.82124069 | DQ18: =(($B$88+$C$88)/2)*DP18 -> 100.203995 | DR18: =(22/7)*((($B$88+$C$88)/4)^2)*DP18 -> 570.8049 | DS18: =SUM(DP18:$DP$34) -> 31.80350379 | DT18: =IF($B$88>DT52,0,IF($C$88>DT52,DS18,0)) -> 0 | DU18: =IF(DT36>DS18,DS18,0) -> 31.80350379 | DV18: 31.80350379 | DW18: =IF(DV18>0,SUM(DQ18:DQ34),0) -> 247.9640563 | DX18: 51.72460318 | DY18: =IF(DX18>0,(($B$87+$C$87)/2),0) -> 6.75 | EB18: =CONCATENATE($B$88,$A$74,$C$88) -> 7 to 7.5 | EC18: 15.18279018 | ED18: =(($B$88+$C$88)/2)*EC18 -> 110.0752288 | EE18: =(22/7)*((($B$88+$C$88)/4)^2)*EC18 -> 627.0356783 | EF18: =SUM(EC18:$EC$34) -> 38.31619093 | EG18: =IF($B$88>EG52,0,IF($C$88>EG52,EF18,0)) -> 0 | EH18: =IF(EG36>EF18,EF18,0) -> 0 | EI18: 0 | EJ18: =IF(EI18>0,SUM(ED18:ED34),0) -> 0 | EK18: 0 | EL18: =IF(EK18>0,(($B$87+$C$87)/2),0) -> 0 | EO18: =CONCATENATE($B$88,$A$74,$C$88) -> 7 to 7.5 | EP18: 15.97047259 | EQ18: =(($B$88+$C$88)/2)*EP18 -> 115.7859263 | ER18: =(22/7)*((($B$88+$C$88)/4)^2)*EP18 -> 659.5662587 | ES18: =SUM(EP18:$EP$34) -> 44.25574129 | ET18: =IF($B$88>ET52,0,IF($C$88>ET52,ES18,0)) -> 0 | EU18: =IF(ET36>ES18,ES18,0) -> 0 | EV18: 0 | EW18: =IF(EV18>0,SUM(EQ18:EQ34),0) -> 0 | EX18: 0 | EY18: =IF(EX18>0,(($B$87+$C$87)/2),0) -> 0 | FB18: =CONCATENATE($B$88,$A$74,$C$88) -> 7 to 7.5 | FC18: 16.2238535 | FD18: =(($B$88+$C$88)/2)*FC18 -> 117.6229378 | FE18: =(22/7)*((($B$88+$C$88)/4)^2)*FC18 -> 670.0306638 | FF18: =SUM(FC18:$FC$34) -> 49.40768108 | FG18: =IF($B$88>FG52,0,IF($C$88>FG52,FF18,0)) -> 0 | FH18: =IF(FG36>FF18,FF18,0) -> 0 | FI18: 0 | FJ18: =IF(FI18>0,SUM(FD18:FD34),0) -> 0 | FK18: 0 | FL18: =IF(FK18>0,(($B$87+$C$87)/2),0) -> 0 | FO18: =CONCATENATE($B$88,$A$74,$C$88) -> 7 to 7.5 | FP18: 16.36153204 | FQ18: =(($B$88+$C$88)/2)*FP18 -> 118.6211073 | FR18: =(22/7)*((($B$88+$C$88)/4)^2)*FP18 -> 675.7166646 | FS18: =SUM(FP18:$FP$34) -> 54.78862158 | FT18: =IF($B$88>FT52,0,IF($C$88>FT52,FS18,0)) -> 0 | FU18: =IF(FT36>FS18,FS18,0) -> 0 | FV18: 0 | FW18: =IF(FV18>0,SUM(FQ18:FQ34),0) -> 0 | FX18: 0 | FY18: =IF(FX18>0,(($B$87+$C$87)/2),0) -> 0 | GB18: =CONCATENATE($B$88,$A$74,$C$88) -> 7 to 7.5 | GC18: 16.08764052 | GD18: =(($B$88+$C$88)/2)*GC18 -> 116.6353938 | GE18: =(22/7)*((($B$88+$C$88)/4)^2)*GC18 -> 664.4051896 | GF18: =SUM(GC18:$GC$34) -> 59.25288619 | GG18: =IF($B$88>GG52,0,IF($C$88>GG52,GF18,0)) -> 0 | GH18: =IF(GG36>GF18,GF18,0) -> 0 | GI18: 0 | GJ18: =IF(GI18>0,SUM(GD18:GD34),0) -> 0 | GK18: 0 | GL18: =IF(GK18>0,(($B$87+$C$87)/2),0) -> 0
B19: =CONCATENATE($B$89,$A$74,$C$89) -> 7.5 to 8 | C19: 1.445510378e-12 | D19: =(($B$89+$C$89)/2)*C19 -> 1.120270543e-11 | E19: =(22/7)*((($B$89+$C$89)/4)^2)*C19 -> 6.821647414e-11 | F19: =SUM(C19:$C$34) -> 1.452171716e-12 | G19: =IF($B$89>G52,0,IF($C$89>G52,F19,0)) -> 0 | H19: =IF(G36>F19,F19,0) -> 0 | I19: 0 | J19: =IF(I19>0,SUM(D19:D34),0) -> 0 | K19: 0 | L19: =IF(K19>0,(($B$88+$C$88)/2),0) -> 0 | O19: =CONCATENATE($B$89,$A$74,$C$89) -> 7.5 to 8 | P19: 0.0006015629551 | Q19: =(($B$89+$C$89)/2)*P19 -> 0.004662112902 | R19: =(22/7)*((($B$89+$C$89)/4)^2)*P19 -> 0.02838893749 | S19: =SUM(P19:$P$34) -> 0.0006633545841 | T19: =IF($B$89>T52,0,IF($C$89>T52,S19,0)) -> 0 | U19: =IF(T36>S19,S19,0) -> 0 | V19: 0 | W19: =IF(V19>0,SUM(Q19:Q34),0) -> 0 | X19: 0 | Y19: =IF(X19>0,(($B$88+$C$88)/2),0) -> 0 | AB19: =CONCATENATE($B$89,$A$74,$C$89) -> 7.5 to 8 | AC19: 0.2705268307 | AD19: =(($B$89+$C$89)/2)*AC19 -> 2.096582938 | AE19: =(22/7)*((($B$89+$C$89)/4)^2)*AC19 -> 12.76669253 | AF19: =SUM(AC19:$AC$34) -> 0.3944571884 | AG19: =IF($B$89>AG52,0,IF($C$89>AG52,AF19,0)) -> 0 | AH19: =IF(AG36>AF19,AF19,0) -> 0 | AI19: 0 | AJ19: =IF(AI19>0,SUM(AD19:AD34),0) -> 0 | AK19: 0 | AL19: =IF(AK19>0,(($B$88+$C$88)/2),0) -> 0 | AO19: =CONCATENATE($B$89,$A$74,$C$89) -> 7.5 to 8 | AP19: 1.441072038 | AQ19: =(($B$89+$C$89)/2)*AP19 -> 11.1683083 | AR19: =(22/7)*((($B$89+$C$89)/4)^2)*AP19 -> 68.00702016 | AS19: =SUM(AP19:$AP$34) -> 2.414969973 | AT19: =IF($B$89>AT52,0,IF($C$89>AT52,AS19,0)) -> 0 | AU19: =IF(AT36>AS19,AS19,0) -> 2.414969973 | AV19: 0 | AW19: =IF(AV19>0,SUM(AQ19:AQ34),0) -> 0 | AX19: 0 | AY19: =IF(AX19>0,(($B$88+$C$88)/2),0) -> 0 | BB19: =CONCATENATE($B$89,$A$74,$C$89) -> 7.5 to 8 | BC19: 4.815924758 | BD19: =(($B$89+$C$89)/2)*BC19 -> 37.32341687 | BE19: =(22/7)*((($B$89+$C$89)/4)^2)*BC19 -> 227.2729492 | BF19: =SUM(BC19:$BC$34) -> 12.88442873 | BG19: =IF($B$89>BG52,0,IF($C$89>BG52,BF19,0)) -> 0 | BH19: =IF(BG36>BF19,BF19,0) -> 12.88442873 | BI19: 0 | BJ19: =IF(BI19>0,SUM(BD19:BD34),0) -> 0 | BK19: 0 | BL19: =IF(BK19>0,(($B$88+$C$88)/2),0) -> 0 | BO19: =CONCATENATE($B$89,$A$74,$C$89) -> 7.5 to 8 | BP19: 2.002813237 | BQ19: =(($B$89+$C$89)/2)*BP19 -> 15.52180259 | BR19: =(22/7)*((($B$89+$C$89)/4)^2)*BP19 -> 94.51669077 | BS19: =SUM(BP19:$BP$34) -> 3.022864294 | BT19: =IF($B$89>BT52,0,IF($C$89>BT52,BS19,0)) -> 0 | BU19: =IF(BT36>BS19,BS19,0) -> 3.022864294 | BV19: 0 | BW19: =IF(BV19>0,SUM(BQ19:BQ34),0) -> 0 | BX19: 0 | BY19: =IF(BX19>0,(($B$88+$C$88)/2),0) -> 0 | CB19: =CONCATENATE($B$89,$A$74,$C$89) -> 7.5 to 8 | CC19: 3.372242693 | CD19: =(($B$89+$C$89)/2)*CC19 -> 26.13488087 | CE19: =(22/7)*((($B$89+$C$89)/4)^2)*CC19 -> 159.1427567 | CF19: =SUM(CC19:$CC$34) -> 5.48648207 | CG19: =IF($B$89>CG52,0,IF($C$89>CG52,CF19,0)) -> 0 | CH19: =IF(CG36>CF19,CF19,0) -> 5.48648207 | CI19: 0 | CJ19: =IF(CI19>0,SUM(CD19:CD34),0) -> 0 | CK19: 0 | CL19: =IF(CK19>0,(($B$88+$C$88)/2),0) -> 0 | CO19: =CONCATENATE($B$89,$A$74,$C$89) -> 7.5 to 8 | CP19: 5.052489228 | CQ19: =(($B$89+$C$89)/2)*CP19 -> 39.15679152 | CR19: =(22/7)*((($B$89+$C$89)/4)^2)*CP19 -> 238.4368912 | CS19: =SUM(CP19:$CP$34) -> 8.891909722 | CT19: =IF($B$89>CT52,0,IF($C$89>CT52,CS19,0)) -> 0 | CU19: =IF(CT36>CS19,CS19,0) -> 8.891909722 | CV19: 0 | CW19: =IF(CV19>0,SUM(CQ19:CQ34),0) -> 0 | CX19: 0 | CY19: =IF(CX19>0,(($B$88+$C$88)/2),0) -> 0 | DB19: =CONCATENATE($B$89,$A$74,$C$89) -> 7.5 to 8 | DC19: 6.879636296 | DD19: =(($B$89+$C$89)/2)*DC19 -> 53.31718129 | DE19: =(22/7)*((($B$89+$C$89)/4)^2)*DC19 -> 324.6635504 | DF19: =SUM(DC19:$DC$34) -> 13.13478184 | DG19: =IF($B$89>DG52,0,IF($C$89>DG52,DF19,0)) -> 0 | DH19: =IF(DG36>DF19,DF19,0) -> 13.13478184 | DI19: 0 | DJ19: =IF(DI19>0,SUM(DD19:DD34),0) -> 0 | DK19: 0 | DL19: =IF(DK19>0,(($B$88+$C$88)/2),0) -> 0 | DO19: =CONCATENATE($B$89,$A$74,$C$89) -> 7.5 to 8 | DP19: 8.661592413 | DQ19: =(($B$89+$C$89)/2)*DP19 -> 67.1273412 | DR19: =(22/7)*((($B$89+$C$89)/4)^2)*DP19 -> 408.7575598 | DS19: =SUM(DP19:$DP$34) -> 17.9822631 | DT19: =IF($B$89>DT52,0,IF($C$89>DT52,DS19,0)) -> 0 | DU19: =IF(DT36>DS19,DS19,0) -> 17.9822631 | DV19: 0 | DW19: =IF(DV19>0,SUM(DQ19:DQ34),0) -> 0 | DX19: 0 | DY19: =IF(DX19>0,(($B$88+$C$88)/2),0) -> 0 | EB19: =CONCATENATE($B$89,$A$74,$C$89) -> 7.5 to 8 | EC19: 10.22784209 | ED19: =(($B$89+$C$89)/2)*EC19 -> 79.26577619 | EE19: =(22/7)*((($B$89+$C$89)/4)^2)*EC19 -> 482.6719586 | EF19: =SUM(EC19:$EC$34) -> 23.13340075 | EG19: =IF($B$89>EG52,0,IF($C$89>EG52,EF19,0)) -> 0 | EH19: =IF(EG36>EF19,EF19,0) -> 23.13340075 | EI19: 23.13340075 | EJ19: =IF(EI19>0,SUM(ED19:ED34),0) -> 191.7221254 | EK19: 38.31619093 | EL19: =IF(EK19>0,(($B$88+$C$88)/2),0) -> 7.25 | EO19: =CONCATENATE($B$89,$A$74,$C$89) -> 7.5 to 8 | EP19: 11.46176491 | EQ19: =(($B$89+$C$89)/2)*EP19 -> 88.82867805 | ER19: =(22/7)*((($B$89+$C$89)/4)^2)*EP19 -> 540.9032003 | ES19: =SUM(EP19:$EP$34) -> 28.2852687 | ET19: =IF($B$89>ET52,0,IF($C$89>ET52,ES19,0)) -> 0 | EU19: =IF(ET36>ES19,ES19,0) -> 28.2852687 | EV19: 28.2852687 | EW19: =IF(EV19>0,SUM(EQ19:EQ34),0) -> 236.5618024 | EX19: 44.25574129 | EY19: =IF(EX19>0,(($B$88+$C$88)/2),0) -> 7.25 | FB19: =CONCATENATE($B$89,$A$74,$C$89) -> 7.5 to 8 | FC19: 12.31038479 | FD19: =(($B$89+$C$89)/2)*FC19 -> 95.40548216 | FE19: =(22/7)*((($B$89+$C$89)/4)^2)*FC19 -> 580.9512396 | FF19: =SUM(FC19:$FC$34) -> 33.18382758 | FG19: =IF($B$89>FG52,0,IF($C$89>FG52,FF19,0)) -> 0 | FH19: =IF(FG36>FF19,FF19,0) -> 0 | FI19: 0 | FJ19: =IF(FI19>0,SUM(FD19:FD34),0) -> 0 | FK19: 0 | FL19: =IF(FK19>0,(($B$88+$C$88)/2),0) -> 0 | FO19: =CONCATENATE($B$89,$A$74,$C$89) -> 7.5 to 8 | FP19: 13.03993654 | FQ19: =(($B$89+$C$89)/2)*FP19 -> 101.0595082 | FR19: =(22/7)*((($B$89+$C$89)/4)^2)*FP19 -> 615.3802193 | FS19: =SUM(FP19:$FP$34) -> 38.42708954 | FT19: =IF($B$89>FT52,0,IF($C$89>FT52,FS19,0)) -> 0 | FU19: =IF(FT36>FS19,FS19,0) -> 0 | FV19: 0 | FW19: =IF(FV19>0,SUM(FQ19:FQ34),0) -> 0 | FX19: 0 | FY19: =IF(FX19>0,(($B$88+$C$88)/2),0) -> 0 | GB19: =CONCATENATE($B$89,$A$74,$C$89) -> 7.5 to 8 | GC19: 13.39115983 | GD19: =(($B$89+$C$89)/2)*GC19 -> 103.7814887 | GE19: =(22/7)*((($B$89+$C$89)/4)^2)*GC19 -> 631.9551367 | GF19: =SUM(GC19:$GC$34) -> 43.16524566 | GG19: =IF($B$89>GG52,0,IF($C$89>GG52,GF19,0)) -> 0 | GH19: =IF(GG36>GF19,GF19,0) -> 0 | GI19: 0 | GJ19: =IF(GI19>0,SUM(GD19:GD34),0) -> 0 | GK19: 0 | GL19: =IF(GK19>0,(($B$88+$C$88)/2),0) -> 0
B20: =CONCATENATE($B$90,$A$74,$C$90) -> 8 to 8.5 | C20: 6.661338148e-15 | D20: =(($B$90+$C$90)/2)*C20 -> 5.495603972e-14 | E20: =(22/7)*((($B$90+$C$90)/4)^2)*C20 -> 3.562329003e-13 | F20: =SUM(C20:$C$34) -> 6.661338148e-15 | G20: =IF($B$90>G52,0,IF($C$90>G52,F20,0)) -> 0 | H20: =IF(G36>F20,F20,0) -> 0 | I20: 0 | J20: =IF(I20>0,SUM(D20:D34),0) -> 0 | K20: 0 | L20: =IF(K20>0,(($B$89+$C$89)/2),0) -> 0 | O20: =CONCATENATE($B$90,$A$74,$C$90) -> 8 to 8.5 | P20: 5.729079239e-05 | Q20: =(($B$90+$C$90)/2)*P20 -> 0.0004726490372 | R20: =(22/7)*((($B$90+$C$90)/4)^2)*P20 -> 0.00306377858 | S20: =SUM(P20:$P$34) -> 6.179162899e-05 | T20: =IF($B$90>T52,0,IF($C$90>T52,S20,0)) -> 0 | U20: =IF(T36>S20,S20,0) -> 0 | V20: 0 | W20: =IF(V20>0,SUM(Q20:Q34),0) -> 0 | X20: 0 | Y20: =IF(X20>0,(($B$89+$C$89)/2),0) -> 0 | AB20: =CONCATENATE($B$90,$A$74,$C$90) -> 8 to 8.5 | AC20: 0.09000326227 | AD20: =(($B$90+$C$90)/2)*AC20 -> 0.7425269137 | AE20: =(22/7)*((($B$90+$C$90)/4)^2)*AC20 -> 4.81316553 | AF20: =SUM(AC20:$AC$34) -> 0.1239303577 | AG20: =IF($B$90>AG52,0,IF($C$90>AG52,AF20,0)) -> 0 | AH20: =IF(AG36>AF20,AF20,0) -> 0 | AI20: 0 | AJ20: =IF(AI20>0,SUM(AD20:AD34),0) -> 0 | AK20: 0 | AL20: =IF(AK20>0,(($B$89+$C$89)/2),0) -> 0 | AO20: =CONCATENATE($B$90,$A$74,$C$90) -> 8 to 8.5 | AP20: 0.6174254974 | AQ20: =(($B$90+$C$90)/2)*AP20 -> 5.093760354 | AR20: =(22/7)*((($B$90+$C$90)/4)^2)*AP20 -> 33.01848229 | AS20: =SUM(AP20:$AP$34) -> 0.9738979344 | AT20: =IF($B$90>AT52,0,IF($C$90>AT52,AS20,0)) -> 0 | AU20: =IF(AT36>AS20,AS20,0) -> 0.9738979344 | AV20: 0 | AW20: =IF(AV20>0,SUM(AQ20:AQ34),0) -> 0 | AX20: 0 | AY20: =IF(AX20>0,(($B$89+$C$89)/2),0) -> 0 | BB20: =CONCATENATE($B$90,$A$74,$C$90) -> 8 to 8.5 | BC20: 3.113759478 | BD20: =(($B$90+$C$90)/2)*BC20 -> 25.68851569 | BE20: =(22/7)*((($B$90+$C$90)/4)^2)*BC20 -> 166.5166285 | BF20: =SUM(BC20:$BC$34) -> 8.068503975 | BG20: =IF($B$90>BG52,0,IF($C$90>BG52,BF20,0)) -> 0 | BH20: =IF(BG36>BF20,BF20,0) -> 8.068503975 | BI20: 0 | BJ20: =IF(BI20>0,SUM(BD20:BD34),0) -> 0 | BK20: 0 | BL20: =IF(BK20>0,(($B$89+$C$89)/2),0) -> 0 | BO20: =CONCATENATE($B$90,$A$74,$C$90) -> 8 to 8.5 | BP20: 0.7185112017 | BQ20: =(($B$90+$C$90)/2)*BP20 -> 5.927717414 | BR20: =(22/7)*((($B$90+$C$90)/4)^2)*BP20 -> 38.4243111 | BS20: =SUM(BP20:$BP$34) -> 1.020051057 | BT20: =IF($B$90>BT52,0,IF($C$90>BT52,BS20,0)) -> 0 | BU20: =IF(BT36>BS20,BS20,0) -> 1.020051057 | BV20: 0 | BW20: =IF(BV20>0,SUM(BQ20:BQ34),0) -> 0 | BX20: 0 | BY20: =IF(BX20>0,(($B$89+$C$89)/2),0) -> 0 | CB20: =CONCATENATE($B$90,$A$74,$C$90) -> 8 to 8.5 | CC20: 1.391317261 | CD20: =(($B$90+$C$90)/2)*CC20 -> 11.47836741 | CE20: =(22/7)*((($B$90+$C$90)/4)^2)*CC20 -> 74.4044173 | CF20: =SUM(CC20:$CC$34) -> 2.114239378 | CG20: =IF($B$90>CG52,0,IF($C$90>CG52,CF20,0)) -> 0 | CH20: =IF(CG36>CF20,CF20,0) -> 2.114239378 | CI20: 0 | CJ20: =IF(CI20>0,SUM(CD20:CD34),0) -> 0 | CK20: 0 | CL20: =IF(CK20>0,(($B$89+$C$89)/2),0) -> 0 | CO20: =CONCATENATE($B$90,$A$74,$C$90) -> 8 to 8.5 | CP20: 2.351758701 | CQ20: =(($B$90+$C$90)/2)*CP20 -> 19.40200928 | CR20: =(22/7)*((($B$90+$C$90)/4)^2)*CP20 -> 125.7665959 | CS20: =SUM(CP20:$CP$34) -> 3.839420494 | CT20: =IF($B$90>CT52,0,IF($C$90>CT52,CS20,0)) -> 0 | CU20: =IF(CT36>CS20,CS20,0) -> 3.839420494 | CV20: 0 | CW20: =IF(CV20>0,SUM(CQ20:CQ34),0) -> 0 | CX20: 0 | CY20: =IF(CX20>0,(($B$89+$C$89)/2),0) -> 0 | DB20: =CONCATENATE($B$90,$A$74,$C$90) -> 8 to 8.5 | DC20: 3.555250792 | DD20: =(($B$90+$C$90)/2)*DC20 -> 29.33081904 | DE20: =(22/7)*((($B$90+$C$90)/4)^2)*DC20 -> 190.1265591 | DF20: =SUM(DC20:$DC$34) -> 6.255145547 | DG20: =IF($B$90>DG52,0,IF($C$90>DG52,DF20,0)) -> 0 | DH20: =IF(DG36>DF20,DF20,0) -> 6.255145547 | DI20: 0 | DJ20: =IF(DI20>0,SUM(DD20:DD34),0) -> 0 | DK20: 0 | DL20: =IF(DK20>0,(($B$89+$C$89)/2),0) -> 0 | DO20: =CONCATENATE($B$90,$A$74,$C$90) -> 8 to 8.5 | DP20: 4.903019841 | DQ20: =(($B$90+$C$90)/2)*DP20 -> 40.44991369 | DR20: =(22/7)*((($B$90+$C$90)/4)^2)*DP20 -> 262.2021191 | DS20: =SUM(DP20:$DP$34) -> 9.320670687 | DT20: =IF($B$90>DT52,0,IF($C$90>DT52,DS20,0)) -> 0 | DU20: =IF(DT36>DS20,DS20,0) -> 9.320670687 | DV20: 0 | DW20: =IF(DV20>0,SUM(DQ20:DQ34),0) -> 0 | DX20: 0 | DY20: =IF(DX20>0,(($B$89+$C$89)/2),0) -> 0 | EB20: =CONCATENATE($B$90,$A$74,$C$90) -> 8 to 8.5 | EC20: 6.269814194 | ED20: =(($B$90+$C$90)/2)*EC20 -> 51.7259671 | EE20: =(22/7)*((($B$90+$C$90)/4)^2)*EC20 -> 335.2951082 | EF20: =SUM(EC20:$EC$34) -> 12.90555866 | EG20: =IF($B$90>EG52,0,IF($C$90>EG52,EF20,0)) -> 0 | EH20: =IF(EG36>EF20,EF20,0) -> 12.90555866 | EI20: 0 | EJ20: =IF(EI20>0,SUM(ED20:ED34),0) -> 0 | EK20: 0 | EL20: =IF(EK20>0,(($B$89+$C$89)/2),0) -> 0 | EO20: =CONCATENATE($B$90,$A$74,$C$90) -> 8 to 8.5 | EP20: 7.535429685 | EQ20: =(($B$90+$C$90)/2)*EP20 -> 62.1672949 | ER20: =(22/7)*((($B$90+$C$90)/4)^2)*EP20 -> 402.9772866 | ES20: =SUM(EP20:$EP$34) -> 16.82350379 | ET20: =IF($B$90>ET52,0,IF($C$90>ET52,ES20,0)) -> 0 | EU20: =IF(ET36>ES20,ES20,0) -> 16.82350379 | EV20: 0 | EW20: =IF(EV20>0,SUM(EQ20:EQ34),0) -> 0 | EX20: 0 | EY20: =IF(EX20>0,(($B$89+$C$89)/2),0) -> 0 | FB20: =CONCATENATE($B$90,$A$74,$C$90) -> 8 to 8.5 | FC20: 8.608031826 | FD20: =(($B$90+$C$90)/2)*FC20 -> 71.01626256 | FE20: =(22/7)*((($B$90+$C$90)/4)^2)*FC20 -> 460.3375591 | FF20: =SUM(FC20:$FC$34) -> 20.87344279 | FG20: =IF($B$90>FG52,0,IF($C$90>FG52,FF20,0)) -> 0 | FH20: =IF(FG36>FF20,FF20,0) -> 20.87344279 | FI20: 20.87344279 | FJ20: =IF(FI20>0,SUM(FD20:FD34),0) -> 184.8059345 | FK20: 33.18382758 | FL20: =IF(FK20>0,(($B$89+$C$89)/2),0) -> 7.75 | FO20: =CONCATENATE($B$90,$A$74,$C$90) -> 8 to 8.5 | FP20: 9.628950545 | FQ20: =(($B$90+$C$90)/2)*FP20 -> 79.438842 | FR20: =(22/7)*((($B$90+$C$90)/4)^2)*FP20 -> 514.9339222 | FS20: =SUM(FP20:$FP$34) -> 25.387153 | FT20: =IF($B$90>FT52,0,IF($C$90>FT52,FS20,0)) -> 0 | FU20: =IF(FT36>FS20,FS20,0) -> 25.387153 | FV20: 25.387153 | FW20: =IF(FV20>0,SUM(FQ20:FQ34),0) -> 226.7234898 | FX20: 38.42708954 | FY20: =IF(FX20>0,(($B$89+$C$89)/2),0) -> 7.75 | GB20: =CONCATENATE($B$90,$A$74,$C$90) -> 8 to 8.5 | GC20: 10.37793772 | GD20: =(($B$90+$C$90)/2)*GC20 -> 85.61798618 | GE20: =(22/7)*((($B$90+$C$90)/4)^2)*GC20 -> 554.9880176 | GF20: =SUM(GC20:$GC$34) -> 29.77408583 | GG20: =IF($B$90>GG52,0,IF($C$90>GG52,GF20,0)) -> 0 | GH20: =IF(GG36>GF20,GF20,0) -> 0 | GI20: 0 | GJ20: =IF(GI20>0,SUM(GD20:GD34),0) -> 0 | GK20: 0 | GL20: =IF(GK20>0,(($B$89+$C$89)/2),0) -> 0
B21: =CONCATENATE($B$91,$A$74,$C$91) -> 8.5 to 9 | C21: 0 | D21: =(($B$91+$C$91)/2)*C21 -> 0 | E21: =(22/7)*((($B$91+$C$91)/4)^2)*C21 -> 0 | F21: =SUM(C21:$C$34) -> 0 | G21: =IF($B$91>G52,0,IF($C$91>G52,F21,0)) -> 0 | H21: =IF(G36>F21,F21,0) -> 0 | I21: 0 | J21: =IF(I21>0,SUM(D21:D34),0) -> 0 | K21: 0 | L21: =IF(K21>0,(($B$90+$C$90)/2),0) -> 0 | O21: =CONCATENATE($B$91,$A$74,$C$91) -> 8.5 to 9 | P21: 4.244845169e-06 | Q21: =(($B$91+$C$91)/2)*P21 -> 3.714239523e-05 | R21: =(22/7)*((($B$91+$C$91)/4)^2)*P21 -> 0.0002553539672 | S21: =SUM(P21:$P$34) -> 4.500836603e-06 | T21: =IF($B$91>T52,0,IF($C$91>T52,S21,0)) -> 0 | U21: =IF(T36>S21,S21,0) -> 0 | V21: 0 | W21: =IF(V21>0,SUM(Q21:Q34),0) -> 0 | X21: 0 | Y21: =IF(X21>0,(($B$90+$C$90)/2),0) -> 0 | AB21: =CONCATENATE($B$91,$A$74,$C$91) -> 8.5 to 9 | AC21: 0.02585524558 | AD21: =(($B$91+$C$91)/2)*AC21 -> 0.2262333989 | AE21: =(22/7)*((($B$91+$C$91)/4)^2)*AC21 -> 1.555354617 | AF21: =SUM(AC21:$AC$34) -> 0.03392709548 | AG21: =IF($B$91>AG52,0,IF($C$91>AG52,AF21,0)) -> 0 | AH21: =IF(AG36>AF21,AF21,0) -> 0 | AI21: 0 | AJ21: =IF(AI21>0,SUM(AD21:AD34),0) -> 0 | AK21: 0 | AL21: =IF(AK21>0,(($B$90+$C$90)/2),0) -> 0 | AO21: =CONCATENATE($B$91,$A$74,$C$91) -> 8.5 to 9 | AP21: 0.2382267597 | AQ21: =(($B$91+$C$91)/2)*AP21 -> 2.084484148 | AR21: =(22/7)*((($B$91+$C$91)/4)^2)*AP21 -> 14.33082852 | AS21: =SUM(AP21:$AP$34) -> 0.3564724369 | AT21: =IF($B$91>AT52,0,IF($C$91>AT52,AS21,0)) -> 0 | AU21: =IF(AT36>AS21,AS21,0) -> 0.3564724369 | AV21: 0 | AW21: =IF(AV21>0,SUM(AQ21:AQ34),0) -> 0 | AX21: 0 | AY21: =IF(AX21>0,(($B$90+$C$90)/2),0) -> 0 | BB21: =CONCATENATE($B$91,$A$74,$C$91) -> 8.5 to 9 | BC21: 1.998323071 | BD21: =(($B$91+$C$91)/2)*BC21 -> 17.48532687 | BE21: =(22/7)*((($B$91+$C$91)/4)^2)*BC21 -> 120.2116222 | BF21: =SUM(BC21:$BC$34) -> 4.954744497 | BG21: =IF($B$91>BG52,0,IF($C$91>BG52,BF21,0)) -> 0 | BH21: =IF(BG36>BF21,BF21,0) -> 4.954744497 | BI21: 0 | BJ21: =IF(BI21>0,SUM(BD21:BD34),0) -> 0 | BK21: 0 | BL21: =IF(BK21>0,(($B$90+$C$90)/2),0) -> 0 | BO21: =CONCATENATE($B$91,$A$74,$C$91) -> 8.5 to 9 | BP21: 0.2235926544 | BQ21: =(($B$91+$C$91)/2)*BP21 -> 1.956435726 | BR21: =(22/7)*((($B$91+$C$91)/4)^2)*BP21 -> 13.45049562 | BS21: =SUM(BP21:$BP$34) -> 0.3015398552 | BT21: =IF($B$91>BT52,0,IF($C$91>BT52,BS21,0)) -> 0 | BU21: =IF(BT36>BS21,BS21,0) -> 0.3015398552 | BV21: 0 | BW21: =IF(BV21>0,SUM(BQ21:BQ34),0) -> 0 | BX21: 0 | BY21: =IF(BX21>0,(($B$90+$C$90)/2),0) -> 0 | CB21: =CONCATENATE($B$91,$A$74,$C$91) -> 8.5 to 9 | CC21: 0.5039988021 | CD21: =(($B$91+$C$91)/2)*CC21 -> 4.409989518 | CE21: =(22/7)*((($B$91+$C$91)/4)^2)*CC21 -> 30.31867794 | CF21: =SUM(CC21:$CC$34) -> 0.7229221165 | CG21: =IF($B$91>CG52,0,IF($C$91>CG52,CF21,0)) -> 0 | CH21: =IF(CG36>CF21,CF21,0) -> 0.7229221165 | CI21: 0 | CJ21: =IF(CI21>0,SUM(CD21:CD34),0) -> 0 | CK21: 0 | CL21: =IF(CK21>0,(($B$90+$C$90)/2),0) -> 0 | CO21: =CONCATENATE($B$91,$A$74,$C$91) -> 8.5 to 9 | CP21: 0.9713980251 | CQ21: =(($B$91+$C$91)/2)*CP21 -> 8.499732719 | CR21: =(22/7)*((($B$91+$C$91)/4)^2)*CP21 -> 58.43566244 | CS21: =SUM(CP21:$CP$34) -> 1.487661793 | CT21: =IF($B$91>CT52,0,IF($C$91>CT52,CS21,0)) -> 0 | CU21: =IF(CT36>CS21,CS21,0) -> 1.487661793 | CV21: 0 | CW21: =IF(CV21>0,SUM(CQ21:CQ34),0) -> 0 | CX21: 0 | CY21: =IF(CX21>0,(($B$90+$C$90)/2),0) -> 0 | DB21: =CONCATENATE($B$91,$A$74,$C$91) -> 8.5 to 9 | DC21: 1.64577503 | DD21: =(($B$91+$C$91)/2)*DC21 -> 14.40053151 | DE21: =(22/7)*((($B$91+$C$91)/4)^2)*DC21 -> 99.00365414 | DF21: =SUM(DC21:$DC$34) -> 2.699894755 | DG21: =IF($B$91>DG52,0,IF($C$91>DG52,DF21,0)) -> 0 | DH21: =IF(DG36>DF21,DF21,0) -> 2.699894755 | DI21: 0 | DJ21: =IF(DI21>0,SUM(DD21:DD34),0) -> 0 | DK21: 0 | DL21: =IF(DK21>0,(($B$90+$C$90)/2),0) -> 0 | DO21: =CONCATENATE($B$91,$A$74,$C$91) -> 8.5 to 9 | DP21: 2.5069322 | DQ21: =(($B$91+$C$91)/2)*DP21 -> 21.93565675 | DR21: =(22/7)*((($B$91+$C$91)/4)^2)*DP21 -> 150.8076401 | DS21: =SUM(DP21:$DP$34) -> 4.417650846 | DT21: =IF($B$91>DT52,0,IF($C$91>DT52,DS21,0)) -> 0 | DU21: =IF(DT36>DS21,DS21,0) -> 4.417650846 | DV21: 0 | DW21: =IF(DV21>0,SUM(DQ21:DQ34),0) -> 0 | DX21: 0 | DY21: =IF(DX21>0,(($B$90+$C$90)/2),0) -> 0 | EB21: =CONCATENATE($B$91,$A$74,$C$91) -> 8.5 to 9 | EC21: 3.497535004 | ED21: =(($B$91+$C$91)/2)*EC21 -> 30.60343128 | EE21: =(22/7)*((($B$91+$C$91)/4)^2)*EC21 -> 210.3985901 | EF21: =SUM(EC21:$EC$34) -> 6.63574447 | EG21: =IF($B$91>EG52,0,IF($C$91>EG52,EF21,0)) -> 0 | EH21: =IF(EG36>EF21,EF21,0) -> 6.63574447 | EI21: 0 | EJ21: =IF(EI21>0,SUM(ED21:ED34),0) -> 0 | EK21: 0 | EL21: =IF(EK21>0,(($B$90+$C$90)/2),0) -> 0 | EO21: =CONCATENATE($B$91,$A$74,$C$91) -> 8.5 to 9 | EP21: 4.53822803 | EQ21: =(($B$91+$C$91)/2)*EP21 -> 39.70949527 | ER21: =(22/7)*((($B$91+$C$91)/4)^2)*EP21 -> 273.00278 | ES21: =SUM(EP21:$EP$34) -> 9.288074104 | ET21: =IF($B$91>ET52,0,IF($C$91>ET52,ES21,0)) -> 0 | EU21: =IF(ET36>ES21,ES21,0) -> 9.288074104 | EV21: 0 | EW21: =IF(EV21>0,SUM(EQ21:EQ34),0) -> 0 | EX21: 0 | EY21: =IF(EX21>0,(($B$90+$C$90)/2),0) -> 0 | FB21: =CONCATENATE($B$91,$A$74,$C$91) -> 8.5 to 9 | FC21: 5.54689584 | FD21: =(($B$91+$C$91)/2)*FC21 -> 48.5353386 | FE21: =(22/7)*((($B$91+$C$91)/4)^2)*FC21 -> 333.6804529 | FF21: =SUM(FC21:$FC$34) -> 12.26541096 | FG21: =IF($B$91>FG52,0,IF($C$91>FG52,FF21,0)) -> 0 | FH21: =IF(FG36>FF21,FF21,0) -> 12.26541096 | FI21: 0 | FJ21: =IF(FI21>0,SUM(FD21:FD34),0) -> 0 | FK21: 0 | FL21: =IF(FK21>0,(($B$90+$C$90)/2),0) -> 0 | FO21: =CONCATENATE($B$91,$A$74,$C$91) -> 8.5 to 9 | FP21: 6.587701453 | FQ21: =(($B$91+$C$91)/2)*FP21 -> 57.64238771 | FR21: =(22/7)*((($B$91+$C$91)/4)^2)*FP21 -> 396.2914155 | FS21: =SUM(FP21:$FP$34) -> 15.75820246 | FT21: =IF($B$91>FT52,0,IF($C$91>FT52,FS21,0)) -> 0 | FU21: =IF(FT36>FS21,FS21,0) -> 15.75820246 | FV21: 0 | FW21: =IF(FV21>0,SUM(FQ21:FQ34),0) -> 0 | FX21: 0 | FY21: =IF(FX21>0,(($B$90+$C$90)/2),0) -> 0 | GB21: =CONCATENATE($B$91,$A$74,$C$91) -> 8.5 to 9 | GC21: 7.488082348 | GD21: =(($B$91+$C$91)/2)*GC21 -> 65.52072054 | GE21: =(22/7)*((($B$91+$C$91)/4)^2)*GC21 -> 450.4549537 | GF21: =SUM(GC21:$GC$34) -> 19.39614811 | GG21: =IF($B$91>GG52,0,IF($C$91>GG52,GF21,0)) -> 0 | GH21: =IF(GG36>GF21,GF21,0) -> 19.39614811 | GI21: 19.39614811 | GJ21: =IF(GI21>0,SUM(GD21:GD34),0) -> 182.7157348 | GK21: 29.77408583 | GL21: =IF(GK21>0,(($B$90+$C$90)/2),0) -> 8.25
B22: =CONCATENATE($B$92,$A$74,$C$92) -> 9 to 9.5 | C22: 0 | D22: =(($B$92+$C$92)/2)*C22 -> 0 | E22: =(22/7)*((($B$92+$C$92)/4)^2)*C22 -> 0 | F22: =SUM(C22:$C$34) -> 0 | G22: =IF($B$92>G52,0,IF($C$92>G52,F22,0)) -> 0 | H22: =IF(G36>F22,F22,0) -> 0 | I22: 0 | J22: =IF(I22>0,SUM(D22:D34),0) -> 0 | K22: 0 | L22: =IF(K22>0,(($B$91+$C$91)/2),0) -> 0 | O22: =CONCATENATE($B$92,$A$74,$C$92) -> 9 to 9.5 | P22: 2.446350189e-07 | Q22: =(($B$92+$C$92)/2)*P22 -> 2.262873925e-06 | R22: =(22/7)*((($B$92+$C$92)/4)^2)*P22 -> 1.644624442e-05 | S22: =SUM(P22:$P$34) -> 2.559914347e-07 | T22: =IF($B$92>T52,0,IF($C$92>T52,S22,0)) -> 0 | U22: =IF(T36>S22,S22,0) -> 0 | V22: 0 | W22: =IF(V22>0,SUM(Q22:Q34),0) -> 0 | X22: 0 | Y22: =IF(X22>0,(($B$91+$C$91)/2),0) -> 0 | AB22: =CONCATENATE($B$92,$A$74,$C$92) -> 9 to 9.5 | AC22: 0.006405686512 | AD22: =(($B$92+$C$92)/2)*AC22 -> 0.05925260024 | AE22: =(22/7)*((($B$92+$C$92)/4)^2)*AC22 -> 0.4306394339 | AF22: =SUM(AC22:$AC$34) -> 0.008071849898 | AG22: =IF($B$92>AG52,0,IF($C$92>AG52,AF22,0)) -> 0 | AH22: =IF(AG36>AF22,AF22,0) -> 0 | AI22: 0 | AJ22: =IF(AI22>0,SUM(AD22:AD34),0) -> 0 | AK22: 0 | AL22: =IF(AK22>0,(($B$91+$C$91)/2),0) -> 0 | AO22: =CONCATENATE($B$92,$A$74,$C$92) -> 9 to 9.5 | AP22: 0.08277816463 | AQ22: =(($B$92+$C$92)/2)*AP22 -> 0.7656980228 | AR22: =(22/7)*((($B$92+$C$92)/4)^2)*AP22 -> 5.564983844 | AS22: =SUM(AP22:$AP$34) -> 0.1182456772 | AT22: =IF($B$92>AT52,0,IF($C$92>AT52,AS22,0)) -> 0 | AU22: =IF(AT36>AS22,AS22,0) -> 0.1182456772 | AV22: 0 | AW22: =IF(AV22>0,SUM(AQ22:AQ34),0) -> 0 | AX22: 0 | AY22: =IF(AX22>0,(($B$91+$C$91)/2),0) -> 0 | BB22: =CONCATENATE($B$92,$A$74,$C$92) -> 9 to 9.5 | BC22: 1.259680862 | BD22: =(($B$92+$C$92)/2)*BC22 -> 11.65204797 | BE22: =(22/7)*((($B$92+$C$92)/4)^2)*BC22 -> 84.68542007 | BF22: =SUM(BC22:$BC$34) -> 2.956421427 | BG22: =IF($B$92>BG52,0,IF($C$92>BG52,BF22,0)) -> 0 | BH22: =IF(BG36>BF22,BF22,0) -> 2.956421427 | BI22: 0 | BJ22: =IF(BI22>0,SUM(BD22:BD34),0) -> 0 | BK22: 0 | BL22: =IF(BK22>0,(($B$91+$C$91)/2),0) -> 0 | BO22: =CONCATENATE($B$92,$A$74,$C$92) -> 9 to 9.5 | BP22: 0.06035331998 | BQ22: =(($B$92+$C$92)/2)*BP22 -> 0.5582682098 | BR22: =(22/7)*((($B$92+$C$92)/4)^2)*BP22 -> 4.057413597 | BS22: =SUM(BP22:$BP$34) -> 0.07794720084 | BT22: =IF($B$92>BT52,0,IF($C$92>BT52,BS22,0)) -> 0 | BU22: =IF(BT36>BS22,BS22,0) -> 0.07794720084 | BV22: 0 | BW22: =IF(BV22>0,SUM(BQ22:BQ34),0) -> 0 | BX22: 0 | BY22: =IF(BX22>0,(($B$91+$C$91)/2),0) -> 0 | CB22: =CONCATENATE($B$92,$A$74,$C$92) -> 9 to 9.5 | CC22: 0.1602954299 | CD22: =(($B$92+$C$92)/2)*CC22 -> 1.482732726 | CE22: =(22/7)*((($B$92+$C$92)/4)^2)*CC22 -> 10.77628964 | CF22: =SUM(CC22:$CC$34) -> 0.2189233144 | CG22: =IF($B$92>CG52,0,IF($C$92>CG52,CF22,0)) -> 0 | CH22: =IF(CG36>CF22,CF22,0) -> 0.2189233144 | CI22: 0 | CJ22: =IF(CI22>0,SUM(CD22:CD34),0) -> 0 | CK22: 0 | CL22: =IF(CK22>0,(($B$91+$C$91)/2),0) -> 0 | CO22: =CONCATENATE($B$92,$A$74,$C$92) -> 9 to 9.5 | CP22: 0.3560520579 | CQ22: =(($B$92+$C$92)/2)*CP22 -> 3.293481536 | CR22: =(22/7)*((($B$92+$C$92)/4)^2)*CP22 -> 23.93655331 | CS22: =SUM(CP22:$CP$34) -> 0.5162637682 | CT22: =IF($B$92>CT52,0,IF($C$92>CT52,CS22,0)) -> 0 | CU22: =IF(CT36>CS22,CS22,0) -> 0.5162637682 | CV22: 0 | CW22: =IF(CV22>0,SUM(CQ22:CQ34),0) -> 0 | CX22: 0 | CY22: =IF(CX22>0,(($B$91+$C$91)/2),0) -> 0 | DB22: =CONCATENATE($B$92,$A$74,$C$92) -> 9 to 9.5 | DC22: 0.6824369357 | DD22: =(($B$92+$C$92)/2)*DC22 -> 6.312541656 | DE22: =(22/7)*((($B$92+$C$92)/4)^2)*DC22 -> 45.87865096 | DF22: =SUM(DC22:$DC$34) -> 1.054119725 | DG22: =IF($B$92>DG52,0,IF($C$92>DG52,DF22,0)) -> 0 | DH22: =IF(DG36>DF22,DF22,0) -> 1.054119725 | DI22: 0 | DJ22: =IF(DI22>0,SUM(DD22:DD34),0) -> 0 | DK22: 0 | DL22: =IF(DK22>0,(($B$91+$C$91)/2),0) -> 0 | DO22: =CONCATENATE($B$92,$A$74,$C$92) -> 9 to 9.5 | DP22: 1.157795966 | DQ22: =(($B$92+$C$92)/2)*DP22 -> 10.70961268 | DR22: =(22/7)*((($B$92+$C$92)/4)^2)*DP22 -> 77.83593504 | DS22: =SUM(DP22:$DP$34) -> 1.910718646 | DT22: =IF($B$92>DT52,0,IF($C$92>DT52,DS22,0)) -> 0 | DU22: =IF(DT36>DS22,DS22,0) -> 1.910718646 | DV22: 0 | DW22: =IF(DV22>0,SUM(DQ22:DQ34),0) -> 0 | DX22: 0 | DY22: =IF(DX22>0,(($B$91+$C$91)/2),0) -> 0 | EB22: =CONCATENATE($B$92,$A$74,$C$92) -> 9 to 9.5 | EC22: 1.775433655 | ED22: =(($B$92+$C$92)/2)*EC22 -> 16.42276131 | EE22: =(22/7)*((($B$92+$C$92)/4)^2)*EC22 -> 119.3582831 | EF22: =SUM(EC22:$EC$34) -> 3.138209466 | EG22: =IF($B$92>EG52,0,IF($C$92>EG52,EF22,0)) -> 0 | EH22: =IF(EG36>EF22,EF22,0) -> 3.138209466 | EI22: 0 | EJ22: =IF(EI22>0,SUM(ED22:ED34),0) -> 0 | EK22: 0 | EL22: =IF(EK22>0,(($B$91+$C$91)/2),0) -> 0 | EO22: =CONCATENATE($B$92,$A$74,$C$92) -> 9 to 9.5 | EP22: 2.503716414 | EQ22: =(($B$92+$C$92)/2)*EP22 -> 23.15937683 | ER22: =(22/7)*((($B$92+$C$92)/4)^2)*EP22 -> 168.3190423 | ES22: =SUM(EP22:$EP$34) -> 4.749846073 | ET22: =IF($B$92>ET52,0,IF($C$92>ET52,ES22,0)) -> 0 | EU22: =IF(ET36>ES22,ES22,0) -> 4.749846073 | EV22: 0 | EW22: =IF(EV22>0,SUM(EQ22:EQ34),0) -> 0 | EX22: 0 | EY22: =IF(EX22>0,(($B$91+$C$91)/2),0) -> 0 | FB22: =CONCATENATE($B$92,$A$74,$C$92) -> 9 to 9.5 | FC22: 3.293890803 | FD22: =(($B$92+$C$92)/2)*FC22 -> 30.46848993 | FE22: =(22/7)*((($B$92+$C$92)/4)^2)*FC22 -> 221.4406322 | FF22: =SUM(FC22:$FC$34) -> 6.718515123 | FG22: =IF($B$92>FG52,0,IF($C$92>FG52,FF22,0)) -> 0 | FH22: =IF(FG36>FF22,FF22,0) -> 6.718515123 | FI22: 0 | FJ22: =IF(FI22>0,SUM(FD22:FD34),0) -> 0 | FK22: 0 | FL22: =IF(FK22>0,(($B$91+$C$91)/2),0) -> 0 | FO22: =CONCATENATE($B$92,$A$74,$C$92) -> 9 to 9.5 | FP22: 4.175800309 | FQ22: =(($B$92+$C$92)/2)*FP22 -> 38.62615286 | FR22: =(22/7)*((($B$92+$C$92)/4)^2)*FP22 -> 280.729361 | FS22: =SUM(FP22:$FP$34) -> 9.170501006 | FT22: =IF($B$92>FT52,0,IF($C$92>FT52,FS22,0)) -> 0 | FU22: =IF(FT36>FS22,FS22,0) -> 9.170501006 | FV22: 0 | FW22: =IF(FV22>0,SUM(FQ22:FQ34),0) -> 0 | FX22: 0 | FY22: =IF(FX22>0,(($B$91+$C$91)/2),0) -> 0 | GB22: =CONCATENATE($B$92,$A$74,$C$92) -> 9 to 9.5 | GC22: 5.03032928 | GD22: =(($B$92+$C$92)/2)*GC22 -> 46.53054584 | GE22: =(22/7)*((($B$92+$C$92)/4)^2)*GC22 -> 338.1773599 | GF22: =SUM(GC22:$GC$34) -> 11.90806576 | GG22: =IF($B$92>GG52,0,IF($C$92>GG52,GF22,0)) -> 0 | GH22: =IF(GG36>GF22,GF22,0) -> 11.90806576 | GI22: 0 | GJ22: =IF(GI22>0,SUM(GD22:GD34),0) -> 0 | GK22: 0 | GL22: =IF(GK22>0,(($B$91+$C$91)/2),0) -> 0
B23: =CONCATENATE($B$93,$A$74,$C$93) -> 9.5 to 10 | C23: 0 | D23: =(($B$93+$C$93)/2)*C23 -> 0 | E23: =(22/7)*((($B$93+$C$93)/4)^2)*C23 -> 0 | F23: =SUM(C23:$C$34) -> 0 | G23: =IF($B$93>G52,0,IF($C$93>G52,F23,0)) -> 0 | H23: =IF(G36>F23,F23,0) -> 0 | I23: 0 | J23: =IF(I23>0,SUM(D23:D34),0) -> 0 | K23: 0 | L23: =IF(K23>0,(($B$92+$C$92)/2),0) -> 0 | O23: =CONCATENATE($B$93,$A$74,$C$93) -> 9.5 to 10 | P23: 1.096381652e-08 | Q23: =(($B$93+$C$93)/2)*P23 -> 1.068972111e-07 | R23: =(22/7)*((($B$93+$C$93)/4)^2)*P23 -> 8.18908992e-07 | S23: =SUM(P23:$P$34) -> 1.135641581e-08 | T23: =IF($B$93>T52,0,IF($C$93>T52,S23,0)) -> 0 | U23: =IF(T36>S23,S23,0) -> 0 | V23: 0 | W23: =IF(V23>0,SUM(Q23:Q34),0) -> 0 | X23: 0 | Y23: =IF(X23>0,(($B$92+$C$92)/2),0) -> 0 | AB23: =CONCATENATE($B$93,$A$74,$C$93) -> 9.5 to 10 | AC23: 0.001368142269 | AD23: =(($B$93+$C$93)/2)*AC23 -> 0.01333938713 | AE23: =(22/7)*((($B$93+$C$93)/4)^2)*AC23 -> 0.1021892335 | AF23: =SUM(AC23:$AC$34) -> 0.001666163385 | AG23: =IF($B$93>AG52,0,IF($C$93>AG52,AF23,0)) -> 0 | AH23: =IF(AG36>AF23,AF23,0) -> 0 | AI23: 0 | AJ23: =IF(AI23>0,SUM(AD23:AD34),0) -> 0 | AK23: 0 | AL23: =IF(AK23>0,(($B$92+$C$92)/2),0) -> 0 | AO23: =CONCATENATE($B$93,$A$74,$C$93) -> 9.5 to 10 | AP23: 0.02587384127 | AQ23: =(($B$93+$C$93)/2)*AP23 -> 0.2522699524 | AR23: =(22/7)*((($B$93+$C$93)/4)^2)*AP23 -> 1.932568028 | AS23: =SUM(AP23:$AP$34) -> 0.03546751257 | AT23: =IF($B$93>AT52,0,IF($C$93>AT52,AS23,0)) -> 0 | AU23: =IF(AT36>AS23,AS23,0) -> 0.03546751257 | AV23: 0 | AW23: =IF(AV23>0,SUM(AQ23:AQ34),0) -> 0 | AX23: 0 | AY23: =IF(AX23>0,(($B$92+$C$92)/2),0) -> 0 | BB23: =CONCATENATE($B$93,$A$74,$C$93) -> 9.5 to 10 | BC23: 0.7682954813 | BD23: =(($B$93+$C$93)/2)*BC23 -> 7.490880942 | BE23: =(22/7)*((($B$93+$C$93)/4)^2)*BC23 -> 57.38549865 | BF23: =SUM(BC23:$BC$34) -> 1.696740565 | BG23: =IF($B$93>BG52,0,IF($C$93>BG52,BF23,0)) -> 0 | BH23: =IF(BG36>BF23,BF23,0) -> 1.696740565 | BI23: 0 | BJ23: =IF(BI23>0,SUM(BD23:BD34),0) -> 0 | BK23: 0 | BL23: =IF(BK23>0,(($B$92+$C$92)/2),0) -> 0 | BO23: =CONCATENATE($B$93,$A$74,$C$93) -> 9.5 to 10 | BP23: 0.01413032528 | BQ23: =(($B$93+$C$93)/2)*BP23 -> 0.1377706714 | BR23: =(22/7)*((($B$93+$C$93)/4)^2)*BP23 -> 1.055421751 | BS23: =SUM(BP23:$BP$34) -> 0.01759388086 | BT23: =IF($B$93>BT52,0,IF($C$93>BT52,BS23,0)) -> 0 | BU23: =IF(BT36>BS23,BS23,0) -> 0.01759388086 | BV23: 0 | BW23: =IF(BV23>0,SUM(BQ23:BQ34),0) -> 0 | BX23: 0 | BY23: =IF(BX23>0,(($B$92+$C$92)/2),0) -> 0 | CB23: =CONCATENATE($B$93,$A$74,$C$93) -> 9.5 to 10 | CC23: 0.04476026123 | CD23: =(($B$93+$C$93)/2)*CC23 -> 0.436412547 | CE23: =(22/7)*((($B$93+$C$93)/4)^2)*CC23 -> 3.343231834 | CF23: =SUM(CC23:$CC$34) -> 0.0586278845 | CG23: =IF($B$93>CG52,0,IF($C$93>CG52,CF23,0)) -> 0 | CH23: =IF(CG36>CF23,CF23,0) -> 0.0586278845 | CI23: 0 | CJ23: =IF(CI23>0,SUM(CD23:CD34),0) -> 0 | CK23: 0 | CL23: =IF(CK23>0,(($B$92+$C$92)/2),0) -> 0 | CO23: =CONCATENATE($B$93,$A$74,$C$93) -> 9.5 to 10 | CP23: 0.1158072475 | CQ23: =(($B$93+$C$93)/2)*CP23 -> 1.129120663 | CR23: =(22/7)*((($B$93+$C$93)/4)^2)*CP23 -> 8.649870796 | CS23: =SUM(CP23:$CP$34) -> 0.1602117102 | CT23: =IF($B$93>CT52,0,IF($C$93>CT52,CS23,0)) -> 0 | CU23: =IF(CT36>CS23,CS23,0) -> 0.1602117102 | CV23: 0 | CW23: =IF(CV23>0,SUM(CQ23:CQ34),0) -> 0 | CX23: 0 | CY23: =IF(CX23>0,(($B$92+$C$92)/2),0) -> 0 | DB23: =CONCATENATE($B$93,$A$74,$C$93) -> 9.5 to 10 | DC23: 0.2534791909 | DD23: =(($B$93+$C$93)/2)*DC23 -> 2.471422112 | DE23: =(22/7)*((($B$93+$C$93)/4)^2)*DC23 -> 18.93285868 | DF23: =SUM(DC23:$DC$34) -> 0.3716827896 | DG23: =IF($B$93>DG52,0,IF($C$93>DG52,DF23,0)) -> 0 | DH23: =IF(DG36>DF23,DF23,0) -> 0.3716827896 | DI23: 0 | DJ23: =IF(DI23>0,SUM(DD23:DD34),0) -> 0 | DK23: 0 | DL23: =IF(DK23>0,(($B$92+$C$92)/2),0) -> 0 | DO23: =CONCATENATE($B$93,$A$74,$C$93) -> 9.5 to 10 | DP23: 0.4829799551 | DQ23: =(($B$93+$C$93)/2)*DP23 -> 4.709054562 | DR23: =(22/7)*((($B$93+$C$93)/4)^2)*DP23 -> 36.07472155 | DS23: =SUM(DP23:$DP$34) -> 0.7529226802 | DT23: =IF($B$93>DT52,0,IF($C$93>DT52,DS23,0)) -> 0 | DU23: =IF(DT36>DS23,DS23,0) -> 0.7529226802 | DV23: 0 | DW23: =IF(DV23>0,SUM(DQ23:DQ34),0) -> 0 | DX23: 0 | DY23: =IF(DX23>0,(($B$92+$C$92)/2),0) -> 0 | EB23: =CONCATENATE($B$93,$A$74,$C$93) -> 9.5 to 10 | EC23: 0.8201244839 | ED23: =(($B$93+$C$93)/2)*EC23 -> 7.996213718 | EE23: =(22/7)*((($B$93+$C$93)/4)^2)*EC23 -> 61.25670866 | EF23: =SUM(EC23:$EC$34) -> 1.362775811 | EG23: =IF($B$93>EG52,0,IF($C$93>EG52,EF23,0)) -> 0 | EH23: =IF(EG36>EF23,EF23,0) -> 1.362775811 | EI23: 0 | EJ23: =IF(EI23>0,SUM(ED23:ED34),0) -> 0 | EK23: 0 | EL23: =IF(EK23>0,(($B$92+$C$92)/2),0) -> 0 | EO23: =CONCATENATE($B$93,$A$74,$C$93) -> 9.5 to 10 | EP23: 1.2653278 | EQ23: =(($B$93+$C$93)/2)*EP23 -> 12.33694605 | ER23: =(22/7)*((($B$93+$C$93)/4)^2)*EP23 -> 94.50981887 | ES23: =SUM(EP23:$EP$34) -> 2.246129659 | ET23: =IF($B$93>ET52,0,IF($C$93>ET52,ES23,0)) -> 0 | EU23: =IF(ET36>ES23,ES23,0) -> 2.246129659 | EV23: 0 | EW23: =IF(EV23>0,SUM(EQ23:EQ34),0) -> 0 | EX23: 0 | EY23: =IF(EX23>0,(($B$92+$C$92)/2),0) -> 0 | FB23: =CONCATENATE($B$93,$A$74,$C$93) -> 9.5 to 10 | FC23: 1.802521271 | FD23: =(($B$93+$C$93)/2)*FC23 -> 17.5745824 | FE23: =(22/7)*((($B$93+$C$93)/4)^2)*FC23 -> 134.6338544 | FF23: =SUM(FC23:$FC$34) -> 3.42462432 | FG23: =IF($B$93>FG52,0,IF($C$93>FG52,FF23,0)) -> 0 | FH23: =IF(FG36>FF23,FF23,0) -> 3.42462432 | FI23: 0 | FJ23: =IF(FI23>0,SUM(FD23:FD34),0) -> 0 | FK23: 0 | FL23: =IF(FK23>0,(($B$92+$C$92)/2),0) -> 0 | FO23: =CONCATENATE($B$93,$A$74,$C$93) -> 9.5 to 10 | FP23: 2.45242458 | FQ23: =(($B$93+$C$93)/2)*FP23 -> 23.91113966 | FR23: =(22/7)*((($B$93+$C$93)/4)^2)*FP23 -> 183.1764092 | FS23: =SUM(FP23:$FP$34) -> 4.994700697 | FT23: =IF($B$93>FT52,0,IF($C$93>FT52,FS23,0)) -> 0 | FU23: =IF(FT36>FS23,FS23,0) -> 4.994700697 | FV23: 0 | FW23: =IF(FV23>0,SUM(FQ23:FQ34),0) -> 0 | FX23: 0 | FY23: =IF(FX23>0,(($B$92+$C$92)/2),0) -> 0 | GB23: =CONCATENATE($B$93,$A$74,$C$93) -> 9.5 to 10 | GC23: 3.146211691 | GD23: =(($B$93+$C$93)/2)*GC23 -> 30.67556399 | GE23: =(22/7)*((($B$93+$C$93)/4)^2)*GC23 -> 234.9967313 | GF23: =SUM(GC23:$GC$34) -> 6.877736481 | GG23: =IF($B$93>GG52,0,IF($C$93>GG52,GF23,0)) -> 0 | GH23: =IF(GG36>GF23,GF23,0) -> 6.877736481 | GI23: 0 | GJ23: =IF(GI23>0,SUM(GD23:GD34),0) -> 0 | GK23: 0 | GL23: =IF(GK23>0,(($B$92+$C$92)/2),0) -> 0
B24: =CONCATENATE($B$94,$A$74,$C$94) -> 10 to 10.5 | C24: 0 | D24: =(($B$94+$C$94)/2)*C24 -> 0 | E24: =(22/7)*((($B$94+$C$94)/4)^2)*C24 -> 0 | F24: =SUM(C24:$C$34) -> 0 | G24: =IF($B$94>G52,0,IF($C$94>G52,F24,0)) -> 0 | H24: =IF(G36>F24,F24,0) -> 0 | I24: 0 | J24: =IF(I24>0,SUM(D24:D34),0) -> 0 | K24: 0 | L24: =IF(K24>0,(($B$93+$C$93)/2),0) -> 0 | O24: =CONCATENATE($B$94,$A$74,$C$94) -> 10 to 10.5 | P24: 3.820277428e-10 | Q24: =(($B$94+$C$94)/2)*P24 -> 3.915784363e-09 | R24: =(22/7)*((($B$94+$C$94)/4)^2)*P24 -> 3.153604907e-08 | S24: =SUM(P24:$P$34) -> 3.925992864e-10 | T24: =IF($B$94>T52,0,IF($C$94>T52,S24,0)) -> 0 | U24: =IF(T36>S24,S24,0) -> 0 | V24: 0 | W24: =IF(V24>0,SUM(Q24:Q34),0) -> 0 | X24: 0 | Y24: =IF(X24>0,(($B$93+$C$93)/2),0) -> 0 | AB24: =CONCATENATE($B$94,$A$74,$C$94) -> 10 to 10.5 | AC24: 0.0002518736512 | AD24: =(($B$94+$C$94)/2)*AC24 -> 0.002581704924 | AE24: =(22/7)*((($B$94+$C$94)/4)^2)*AC24 -> 0.02079194502 | AF24: =SUM(AC24:$AC$34) -> 0.0002980211157 | AG24: =IF($B$94>AG52,0,IF($C$94>AG52,AF24,0)) -> 0 | AH24: =IF(AG36>AF24,AF24,0) -> 0 | AI24: 0 | AJ24: =IF(AI24>0,SUM(AD24:AD34),0) -> 0 | AK24: 0 | AL24: =IF(AK24>0,(($B$93+$C$93)/2),0) -> 0 | AO24: =CONCATENATE($B$94,$A$74,$C$94) -> 10 to 10.5 | AP24: 0.007260212757 | AQ24: =(($B$94+$C$94)/2)*AP24 -> 0.07441718076 | AR24: =(22/7)*((($B$94+$C$94)/4)^2)*AP24 -> 0.5993240808 | AS24: =SUM(AP24:$AP$34) -> 0.0095936713 | AT24: =IF($B$94>AT52,0,IF($C$94>AT52,AS24,0)) -> 0 | AU24: =IF(AT36>AS24,AS24,0) -> 0.0095936713 | AV24: 0 | AW24: =IF(AV24>0,SUM(AQ24:AQ34),0) -> 0 | AX24: 0 | AY24: =IF(AX24>0,(($B$93+$C$93)/2),0) -> 0 | BB24: =CONCATENATE($B$94,$A$74,$C$94) -> 10 to 10.5 | BC24: 0.4472246093 | BD24: =(($B$94+$C$94)/2)*BC24 -> 4.584052245 | BE24: =(22/7)*((($B$94+$C$94)/4)^2)*BC24 -> 36.91799219 | BF24: =SUM(BC24:$BC$34) -> 0.9284450836 | BG24: =IF($B$94>BG52,0,IF($C$94>BG52,BF24,0)) -> 0 | BH24: =IF(BG36>BF24,BF24,0) -> 0.9284450836 | BI24: 0 | BJ24: =IF(BI24>0,SUM(BD24:BD34),0) -> 0 | BK24: 0 | BL24: =IF(BK24>0,(($B$93+$C$93)/2),0) -> 0 | BO24: =CONCATENATE($B$94,$A$74,$C$94) -> 10 to 10.5 | BP24: 0.002869441 | BQ24: =(($B$94+$C$94)/2)*BP24 -> 0.02941177025 | BR24: =(22/7)*((($B$94+$C$94)/4)^2)*BP24 -> 0.2368697926 | BS24: =SUM(BP24:$BP$34) -> 0.003463555582 | BT24: =IF($B$94>BT52,0,IF($C$94>BT52,BS24,0)) -> 0 | BU24: =IF(BT36>BS24,BS24,0) -> 0.003463555582 | BV24: 0 | BW24: =IF(BV24>0,SUM(BQ24:BQ34),0) -> 0 | BX24: 0 | BY24: =IF(BX24>0,(($B$93+$C$93)/2),0) -> 0 | CB24: =CONCATENATE($B$94,$A$74,$C$94) -> 10 to 10.5 | CC24: 0.01097323591 | CD24: =(($B$94+$C$94)/2)*CC24 -> 0.1124756681 | CE24: =(22/7)*((($B$94+$C$94)/4)^2)*CC24 -> 0.9058308267 | CF24: =SUM(CC24:$CC$34) -> 0.01386762326 | CG24: =IF($B$94>CG52,0,IF($C$94>CG52,CF24,0)) -> 0 | CH24: =IF(CG36>CF24,CF24,0) -> 0.01386762326 | CI24: 0 | CJ24: =IF(CI24>0,SUM(CD24:CD34),0) -> 0 | CK24: 0 | CL24: =IF(CK24>0,(($B$93+$C$93)/2),0) -> 0 | CO24: =CONCATENATE($B$94,$A$74,$C$94) -> 10 to 10.5 | CP24: 0.03342392835 | CQ24: =(($B$94+$C$94)/2)*CP24 -> 0.3425952656 | CR24: =(22/7)*((($B$94+$C$94)/4)^2)*CP24 -> 2.759115442 | CS24: =SUM(CP24:$CP$34) -> 0.04440446272 | CT24: =IF($B$94>CT52,0,IF($C$94>CT52,CS24,0)) -> 0 | CU24: =IF(CT36>CS24,CS24,0) -> 0.04440446272 | CV24: 0 | CW24: =IF(CV24>0,SUM(CQ24:CQ34),0) -> 0 | CX24: 0 | CY24: =IF(CX24>0,(($B$93+$C$93)/2),0) -> 0 | DB24: =CONCATENATE($B$94,$A$74,$C$94) -> 10 to 10.5 | DC24: 0.08433450468 | DD24: =(($B$94+$C$94)/2)*DC24 -> 0.864428673 | DE24: =(22/7)*((($B$94+$C$94)/4)^2)*DC24 -> 6.961738063 | DF24: =SUM(DC24:$DC$34) -> 0.1182035987 | DG24: =IF($B$94>DG52,0,IF($C$94>DG52,DF24,0)) -> 0 | DH24: =IF(DG36>DF24,DF24,0) -> 0.1182035987 | DI24: 0 | DJ24: =IF(DI24>0,SUM(DD24:DD34),0) -> 0 | DK24: 0 | DL24: =IF(DK24>0,(($B$93+$C$93)/2),0) -> 0 | DO24: =CONCATENATE($B$94,$A$74,$C$94) -> 10 to 10.5 | DP24: 0.181982909 | DQ24: =(($B$94+$C$94)/2)*DP24 -> 1.865324817 | DR24: =(22/7)*((($B$94+$C$94)/4)^2)*DP24 -> 15.02252665 | DS24: =SUM(DP24:$DP$34) -> 0.2699427252 | DT24: =IF($B$94>DT52,0,IF($C$94>DT52,DS24,0)) -> 0 | DU24: =IF(DT36>DS24,DS24,0) -> 0.2699427252 | DV24: 0 | DW24: =IF(DV24>0,SUM(DQ24:DQ34),0) -> 0 | DX24: 0 | DY24: =IF(DX24>0,(($B$93+$C$93)/2),0) -> 0 | EB24: =CONCATENATE($B$94,$A$74,$C$94) -> 10 to 10.5 | EC24: 0.3447353123 | ED24: =(($B$94+$C$94)/2)*EC24 -> 3.533536951 | EE24: =(22/7)*((($B$94+$C$94)/4)^2)*EC24 -> 28.45759223 | EF24: =SUM(EC24:$EC$34) -> 0.5426513274 | EG24: =IF($B$94>EG52,0,IF($C$94>EG52,EF24,0)) -> 0 | EH24: =IF(EG36>EF24,EF24,0) -> 0.5426513274 | EI24: 0 | EJ24: =IF(EI24>0,SUM(ED24:ED34),0) -> 0 | EK24: 0 | EL24: =IF(EK24>0,(($B$93+$C$93)/2),0) -> 0 | EO24: =CONCATENATE($B$94,$A$74,$C$94) -> 10 to 10.5 | EP24: 0.5857852303 | EQ24: =(($B$94+$C$94)/2)*EP24 -> 6.00429861 | ER24: =(22/7)*((($B$94+$C$94)/4)^2)*EP24 -> 48.35604774 | ES24: =SUM(EP24:$EP$34) -> 0.9808018592 | ET24: =IF($B$94>ET52,0,IF($C$94>ET52,ES24,0)) -> 0 | EU24: =IF(ET36>ES24,ES24,0) -> 0.9808018592 | EV24: 0 | EW24: =IF(EV24>0,SUM(EQ24:EQ34),0) -> 0 | EX24: 0 | EY24: =IF(EX24>0,(($B$93+$C$93)/2),0) -> 0 | FB24: =CONCATENATE($B$94,$A$74,$C$94) -> 10 to 10.5 | FC24: 0.9089969684 | FD24: =(($B$94+$C$94)/2)*FC24 -> 9.317218926 | FE24: =(22/7)*((($B$94+$C$94)/4)^2)*FC24 -> 75.03688813 | FF24: =SUM(FC24:$FC$34) -> 1.622103048 | FG24: =IF($B$94>FG52,0,IF($C$94>FG52,FF24,0)) -> 0 | FH24: =IF(FG36>FF24,FF24,0) -> 1.622103048 | FI24: 0 | FJ24: =IF(FI24>0,SUM(FD24:FD34),0) -> 0 | FK24: 0 | FL24: =IF(FK24>0,(($B$93+$C$93)/2),0) -> 0 | FO24: =CONCATENATE($B$94,$A$74,$C$94) -> 10 to 10.5 | FP24: 1.334445592 | FQ24: =(($B$94+$C$94)/2)*FP24 -> 13.67806732 | FR24: =(22/7)*((($B$94+$C$94)/4)^2)*FP24 -> 110.1572921 | FS24: =SUM(FP24:$FP$34) -> 2.542276116 | FT24: =IF($B$94>FT52,0,IF($C$94>FT52,FS24,0)) -> 0 | FU24: =IF(FT36>FS24,FS24,0) -> 2.542276116 | FV24: 0 | FW24: =IF(FV24>0,SUM(FQ24:FQ34),0) -> 0 | FX24: 0 | FY24: =IF(FX24>0,(($B$93+$C$93)/2),0) -> 0 | GB24: =CONCATENATE($B$94,$A$74,$C$94) -> 10 to 10.5 | GC24: 1.832080579 | GD24: =(($B$94+$C$94)/2)*GC24 -> 18.77882593 | GE24: =(22/7)*((($B$94+$C$94)/4)^2)*GC24 -> 151.236616 | GF24: =SUM(GC24:$GC$34) -> 3.73152479 | GG24: =IF($B$94>GG52,0,IF($C$94>GG52,GF24,0)) -> 0 | GH24: =IF(GG36>GF24,GF24,0) -> 3.73152479 | GI24: 0 | GJ24: =IF(GI24>0,SUM(GD24:GD34),0) -> 0 | GK24: 0 | GL24: =IF(GK24>0,(($B$93+$C$93)/2),0) -> 0
B25: =CONCATENATE($B$95,$A$74,$C$95) -> 10.5 to 11 | C25: 0 | D25: =(($B$95+$C$95)/2)*C25 -> 0 | E25: =(22/7)*((($B$95+$C$95)/4)^2)*C25 -> 0 | F25: =SUM(C25:$C$34) -> 0 | G25: =IF($B$95>G52,0,IF($C$95>G52,F25,0)) -> 0 | H25: =IF(G36>F25,F25,0) -> 0 | I25: 0 | J25: =IF(I25>0,SUM(D25:D34),0) -> 0 | K25: 0 | L25: =IF(K25>0,(($B$94+$C$94)/2),0) -> 0 | O25: =CONCATENATE($B$95,$A$74,$C$95) -> 10.5 to 11 | P25: 1.035171948e-11 | Q25: =(($B$95+$C$95)/2)*P25 -> 1.112809844e-10 | R25: =(22/7)*((($B$95+$C$95)/4)^2)*P25 -> 9.399268863e-10 | S25: =SUM(P25:$P$34) -> 1.057154364e-11 | T25: =IF($B$95>T52,0,IF($C$95>T52,S25,0)) -> 0 | U25: =IF(T36>S25,S25,0) -> 0 | V25: 0 | W25: =IF(V25>0,SUM(Q25:Q34),0) -> 0 | X25: 0 | Y25: =IF(X25>0,(($B$94+$C$94)/2),0) -> 0 | AB25: =CONCATENATE($B$95,$A$74,$C$95) -> 10.5 to 11 | AC25: 3.996607809e-05 | AD25: =(($B$95+$C$95)/2)*AC25 -> 0.0004296353395 | AE25: =(22/7)*((($B$95+$C$95)/4)^2)*AC25 -> 0.003628884207 | AF25: =SUM(AC25:$AC$34) -> 4.614746457e-05 | AG25: =IF($B$95>AG52,0,IF($C$95>AG52,AF25,0)) -> 0 | AH25: =IF(AG36>AF25,AF25,0) -> 0 | AI25: 0 | AJ25: =IF(AI25>0,SUM(AD25:AD34),0) -> 0 | AK25: 0 | AL25: =IF(AK25>0,(($B$94+$C$94)/2),0) -> 0 | AO25: =CONCATENATE($B$95,$A$74,$C$95) -> 10.5 to 11 | AP25: 0.001824484926 | AQ25: =(($B$95+$C$95)/2)*AP25 -> 0.01961321296 | AR25: =(22/7)*((($B$95+$C$95)/4)^2)*AP25 -> 0.1656616023 | AS25: =SUM(AP25:$AP$34) -> 0.002333458543 | AT25: =IF($B$95>AT52,0,IF($C$95>AT52,AS25,0)) -> 0 | AU25: =IF(AT36>AS25,AS25,0) -> 0.002333458543 | AV25: 0 | AW25: =IF(AV25>0,SUM(AQ25:AQ34),0) -> 0 | AX25: 0 | AY25: =IF(AX25>0,(($B$94+$C$94)/2),0) -> 0 | BB25: =CONCATENATE($B$95,$A$74,$C$95) -> 10.5 to 11 | BC25: 0.2460208593 | BD25: =(($B$95+$C$95)/2)*BC25 -> 2.644724237 | BE25: =(22/7)*((($B$95+$C$95)/4)^2)*BC25 -> 22.33847436 | BF25: =SUM(BC25:$BC$34) -> 0.4812204743 | BG25: =IF($B$95>BG52,0,IF($C$95>BG52,BF25,0)) -> 0 | BH25: =IF(BG36>BF25,BF25,0) -> 0.4812204743 | BI25: 0 | BJ25: =IF(BI25>0,SUM(BD25:BD34),0) -> 0 | BK25: 0 | BL25: =IF(BK25>0,(($B$94+$C$94)/2),0) -> 0 | BO25: =CONCATENATE($B$95,$A$74,$C$95) -> 10.5 to 11 | BP25: 0.0005053852311 | BQ25: =(($B$95+$C$95)/2)*BP25 -> 0.005432891234 | BR25: =(22/7)*((($B$95+$C$95)/4)^2)*BP25 -> 0.04588852775 | BS25: =SUM(BP25:$BP$34) -> 0.0005941145818 | BT25: =IF($B$95>BT52,0,IF($C$95>BT52,BS25,0)) -> 0 | BU25: =IF(BT36>BS25,BS25,0) -> 0.0005941145818 | BV25: 0 | BW25: =IF(BV25>0,SUM(BQ25:BQ34),0) -> 0 | BX25: 0 | BY25: =IF(BX25>0,(($B$94+$C$94)/2),0) -> 0 | CB25: =CONCATENATE($B$95,$A$74,$C$95) -> 10.5 to 11 | CC25: 0.002361769861 | CD25: =(($B$95+$C$95)/2)*CC25 -> 0.02538902601 | CE25: =(22/7)*((($B$95+$C$95)/4)^2)*CC25 -> 0.2144465947 | CF25: =SUM(CC25:$CC$34) -> 0.002894387355 | CG25: =IF($B$95>CG52,0,IF($C$95>CG52,CF25,0)) -> 0 | CH25: =IF(CG36>CF25,CF25,0) -> 0.002894387355 | CI25: 0 | CJ25: =IF(CI25>0,SUM(CD25:CD34),0) -> 0 | CK25: 0 | CL25: =IF(CK25>0,(($B$94+$C$94)/2),0) -> 0 | CO25: =CONCATENATE($B$95,$A$74,$C$95) -> 10.5 to 11 | CP25: 0.008559960952 | CQ25: =(($B$95+$C$95)/2)*CP25 -> 0.09201958023 | CR25: =(22/7)*((($B$95+$C$95)/4)^2)*CP25 -> 0.7772368116 | CS25: =SUM(CP25:$CP$34) -> 0.01098053438 | CT25: =IF($B$95>CT52,0,IF($C$95>CT52,CS25,0)) -> 0 | CU25: =IF(CT36>CS25,CS25,0) -> 0.01098053438 | CV25: 0 | CW25: =IF(CV25>0,SUM(CQ25:CQ34),0) -> 0 | CX25: 0 | CY25: =IF(CX25>0,(($B$94+$C$94)/2),0) -> 0 | DB25: =CONCATENATE($B$95,$A$74,$C$95) -> 10.5 to 11 | DC25: 0.02513312752 | DD25: =(($B$95+$C$95)/2)*DC25 -> 0.2701811208 | DE25: =(22/7)*((($B$95+$C$95)/4)^2)*DC25 -> 2.282065538 | DF25: =SUM(DC25:$DC$34) -> 0.03386909403 | DG25: =IF($B$95>DG52,0,IF($C$95>DG52,DF25,0)) -> 0 | DH25: =IF(DG36>DF25,DF25,0) -> 0.03386909403 | DI25: 0 | DJ25: =IF(DI25>0,SUM(DD25:DD34),0) -> 0 | DK25: 0 | DL25: =IF(DK25>0,(($B$94+$C$94)/2),0) -> 0 | DO25: =CONCATENATE($B$95,$A$74,$C$95) -> 10.5 to 11 | DP25: 0.0619345504 | DQ25: =(($B$95+$C$95)/2)*DP25 -> 0.6657964168 | DR25: =(22/7)*((($B$95+$C$95)/4)^2)*DP25 -> 5.623601878 | DS25: =SUM(DP25:$DP$34) -> 0.08795981621 | DT25: =IF($B$95>DT52,0,IF($C$95>DT52,DS25,0)) -> 0 | DU25: =IF(DT36>DS25,DS25,0) -> 0.08795981621 | DV25: 0 | DW25: =IF(DV25>0,SUM(DQ25:DQ34),0) -> 0 | DX25: 0 | DY25: =IF(DX25>0,(($B$94+$C$94)/2),0) -> 0 | EB25: =CONCATENATE($B$95,$A$74,$C$95) -> 10.5 to 11 | EC25: 0.1318620724 | ED25: =(($B$95+$C$95)/2)*EC25 -> 1.417517279 | EE25: =(22/7)*((($B$95+$C$95)/4)^2)*EC25 -> 11.97295844 | EF25: =SUM(EC25:$EC$34) -> 0.1979160151 | EG25: =IF($B$95>EG52,0,IF($C$95>EG52,EF25,0)) -> 0 | EH25: =IF(EG36>EF25,EF25,0) -> 0.1979160151 | EI25: 0 | EJ25: =IF(EI25>0,SUM(ED25:ED34),0) -> 0 | EK25: 0 | EL25: =IF(EK25>0,(($B$94+$C$94)/2),0) -> 0 | EO25: =CONCATENATE($B$95,$A$74,$C$95) -> 10.5 to 11 | EP25: 0.2484216316 | EQ25: =(($B$95+$C$95)/2)*EP25 -> 2.67053254 | ER25: =(22/7)*((($B$95+$C$95)/4)^2)*EP25 -> 22.55646234 | ES25: =SUM(EP25:$EP$34) -> 0.3950166289 | ET25: =IF($B$95>ET52,0,IF($C$95>ET52,ES25,0)) -> 0 | EU25: =IF(ET36>ES25,ES25,0) -> 0.3950166289 | EV25: 0 | EW25: =IF(EV25>0,SUM(EQ25:EQ34),0) -> 0 | EX25: 0 | EY25: =IF(EX25>0,(($B$94+$C$94)/2),0) -> 0 | FB25: =CONCATENATE($B$95,$A$74,$C$95) -> 10.5 to 11 | FC25: 0.4224292474 | FD25: =(($B$95+$C$95)/2)*FC25 -> 4.541114409 | FE25: =(22/7)*((($B$95+$C$95)/4)^2)*FC25 -> 38.35619849 | FF25: =SUM(FC25:$FC$34) -> 0.7131060798 | FG25: =IF($B$95>FG52,0,IF($C$95>FG52,FF25,0)) -> 0 | FH25: =IF(FG36>FF25,FF25,0) -> 0.7131060798 | FI25: 0 | FJ25: =IF(FI25>0,SUM(FD25:FD34),0) -> 0 | FK25: 0 | FL25: =IF(FK25>0,(($B$94+$C$94)/2),0) -> 0 | FO25: =CONCATENATE($B$95,$A$74,$C$95) -> 10.5 to 11 | FP25: 0.6727510548 | FQ25: =(($B$95+$C$95)/2)*FP25 -> 7.232073839 | FR25: =(22/7)*((($B$95+$C$95)/4)^2)*FP25 -> 61.0851951 | FS25: =SUM(FP25:$FP$34) -> 1.207830525 | FT25: =IF($B$95>FT52,0,IF($C$95>FT52,FS25,0)) -> 0 | FU25: =IF(FT36>FS25,FS25,0) -> 1.207830525 | FV25: 0 | FW25: =IF(FV25>0,SUM(FQ25:FQ34),0) -> 0 | FX25: 0 | FY25: =IF(FX25>0,(($B$94+$C$94)/2),0) -> 0 | GB25: =CONCATENATE($B$95,$A$74,$C$95) -> 10.5 to 11 | GC25: 0.9932660608 | GD25: =(($B$95+$C$95)/2)*GC25 -> 10.67761015 | GE25: =(22/7)*((($B$95+$C$95)/4)^2)*GC25 -> 90.18767148 | GF25: =SUM(GC25:$GC$34) -> 1.899444211 | GG25: =IF($B$95>GG52,0,IF($C$95>GG52,GF25,0)) -> 0 | GH25: =IF(GG36>GF25,GF25,0) -> 1.899444211 | GI25: 0 | GJ25: =IF(GI25>0,SUM(GD25:GD34),0) -> 0 | GK25: 0 | GL25: =IF(GK25>0,(($B$94+$C$94)/2),0) -> 0
B26: =CONCATENATE($B$96,$A$74,$C$96) -> 11 to 11.5 | C26: 0 | D26: =(($B$96+$C$96)/2)*C26 -> 0 | E26: =(22/7)*((($B$96+$C$96)/4)^2)*C26 -> 0 | F26: =SUM(C26:$C$34) -> 0 | G26: =IF($B$96>G52,0,IF($C$96>G52,F26,0)) -> 0 | H26: =IF(G36>F26,F26,0) -> 0 | I26: 0 | J26: =IF(I26>0,SUM(D26:D34),0) -> 0 | K26: 0 | L26: =IF(K26>0,(($B$95+$C$95)/2),0) -> 0 | O26: =CONCATENATE($B$96,$A$74,$C$96) -> 11 to 11.5 | P26: 2.131628207e-13 | Q26: =(($B$96+$C$96)/2)*P26 -> 2.398081733e-12 | R26: =(22/7)*((($B$96+$C$96)/4)^2)*P26 -> 2.119732961e-11 | S26: =SUM(P26:$P$34) -> 2.198241589e-13 | T26: =IF($B$96>T52,0,IF($C$96>T52,S26,0)) -> 0 | U26: =IF(T36>S26,S26,0) -> 0 | V26: 0 | W26: =IF(V26>0,SUM(Q26:Q34),0) -> 0 | X26: 0 | Y26: =IF(X26>0,(($B$95+$C$95)/2),0) -> 0 | AB26: =CONCATENATE($B$96,$A$74,$C$96) -> 11 to 11.5 | AC26: 5.465596669e-06 | AD26: =(($B$96+$C$96)/2)*AC26 -> 6.148796252e-05 | AE26: =(22/7)*((($B$96+$C$96)/4)^2)*AC26 -> 0.0005435096687 | AF26: =SUM(AC26:$AC$34) -> 6.181386479e-06 | AG26: =IF($B$96>AG52,0,IF($C$96>AG52,AF26,0)) -> 0 | AH26: =IF(AG36>AF26,AF26,0) -> 0 | AI26: 0 | AJ26: =IF(AI26>0,SUM(AD26:AD34),0) -> 0 | AK26: 0 | AL26: =IF(AK26>0,(($B$95+$C$95)/2),0) -> 0 | AO26: =CONCATENATE($B$96,$A$74,$C$96) -> 11 to 11.5 | AP26: 0.0004096519971 | AQ26: =(($B$96+$C$96)/2)*AP26 -> 0.004608584967 | AR26: =(22/7)*((($B$96+$C$96)/4)^2)*AP26 -> 0.04073659927 | AS26: =SUM(AP26:$AP$34) -> 0.0005089736166 | AT26: =IF($B$96>AT52,0,IF($C$96>AT52,AS26,0)) -> 0 | AU26: =IF(AT36>AS26,AS26,0) -> 0.0005089736166 | AV26: 0 | AW26: =IF(AV26>0,SUM(AQ26:AQ34),0) -> 0 | AX26: 0 | AY26: =IF(AX26>0,(($B$95+$C$95)/2),0) -> 0 | BB26: =CONCATENATE($B$96,$A$74,$C$96) -> 11 to 11.5 | BC26: 0.1271148391 | BD26: =(($B$96+$C$96)/2)*BC26 -> 1.430041939 | BE26: =(22/7)*((($B$96+$C$96)/4)^2)*BC26 -> 12.64054929 | BF26: =SUM(BC26:$BC$34) -> 0.235199615 | BG26: =IF($B$96>BG52,0,IF($C$96>BG52,BF26,0)) -> 0 | BH26: =IF(BG36>BF26,BF26,0) -> 0.235199615 | BI26: 0 | BJ26: =IF(BI26>0,SUM(BD26:BD34),0) -> 0 | BK26: 0 | BL26: =IF(BK26>0,(($B$95+$C$95)/2),0) -> 0 | BO26: =CONCATENATE($B$96,$A$74,$C$96) -> 11 to 11.5 | BP26: 7.719926081e-05 | BQ26: =(($B$96+$C$96)/2)*BP26 -> 0.0008684916841 | BR26: =(22/7)*((($B$96+$C$96)/4)^2)*BP26 -> 0.007676846137 | BS26: =SUM(BP26:$BP$34) -> 8.872935073e-05 | BT26: =IF($B$96>BT52,0,IF($C$96>BT52,BS26,0)) -> 0 | BU26: =IF(BT36>BS26,BS26,0) -> 8.872935073e-05 | BV26: 0 | BW26: =IF(BV26>0,SUM(BQ26:BQ34),0) -> 0 | BX26: 0 | BY26: =IF(BX26>0,(($B$95+$C$95)/2),0) -> 0 | CB26: =CONCATENATE($B$96,$A$74,$C$96) -> 11 to 11.5 | CC26: 0.0004462628292 | CD26: =(($B$96+$C$96)/2)*CC26 -> 0.005020456829 | CE26: =(22/7)*((($B$96+$C$96)/4)^2)*CC26 -> 0.04437725233 | CF26: =SUM(CC26:$CC$34) -> 0.0005326174938 | CG26: =IF($B$96>CG52,0,IF($C$96>CG52,CF26,0)) -> 0 | CH26: =IF(CG36>CF26,CF26,0) -> 0.0005326174938 | CI26: 0 | CJ26: =IF(CI26>0,SUM(CD26:CD34),0) -> 0 | CK26: 0 | CL26: =IF(CK26>0,(($B$95+$C$95)/2),0) -> 0 | CO26: =CONCATENATE($B$96,$A$74,$C$96) -> 11 to 11.5 | CP26: 0.001945230869 | CQ26: =(($B$96+$C$96)/2)*CP26 -> 0.02188384728 | CR26: =(22/7)*((($B$96+$C$96)/4)^2)*CP26 -> 0.1934375786 | CS26: =SUM(CP26:$CP$34) -> 0.002420573427 | CT26: =IF($B$96>CT52,0,IF($C$96>CT52,CS26,0)) -> 0 | CU26: =IF(CT36>CS26,CS26,0) -> 0.002420573427 | CV26: 0 | CW26: =IF(CV26>0,SUM(CQ26:CQ34),0) -> 0 | CX26: 0 | CY26: =IF(CX26>0,(($B$95+$C$95)/2),0) -> 0 | DB26: =CONCATENATE($B$96,$A$74,$C$96) -> 11 to 11.5 | DC26: 0.006709044673 | DD26: =(($B$96+$C$96)/2)*DC26 -> 0.07547675257 | DE26: =(22/7)*((($B$96+$C$96)/4)^2)*DC26 -> 0.6671605808 | DF26: =SUM(DC26:$DC$34) -> 0.008735966517 | DG26: =IF($B$96>DG52,0,IF($C$96>DG52,DF26,0)) -> 0 | DH26: =IF(DG36>DF26,DF26,0) -> 0.008735966517 | DI26: 0 | DJ26: =IF(DI26>0,SUM(DD26:DD34),0) -> 0 | DK26: 0 | DL26: =IF(DK26>0,(($B$95+$C$95)/2),0) -> 0 | DO26: =CONCATENATE($B$96,$A$74,$C$96) -> 11 to 11.5 | DP26: 0.01903848692 | DQ26: =(($B$96+$C$96)/2)*DP26 -> 0.2141829778 | DR26: =(22/7)*((($B$96+$C$96)/4)^2)*DP26 -> 1.893224536 | DS26: =SUM(DP26:$DP$34) -> 0.02602526581 | DT26: =IF($B$96>DT52,0,IF($C$96>DT52,DS26,0)) -> 0 | DU26: =IF(DT36>DS26,DS26,0) -> 0.02602526581 | DV26: 0 | DW26: =IF(DV26>0,SUM(DQ26:DQ34),0) -> 0 | DX26: 0 | DY26: =IF(DX26>0,(($B$95+$C$95)/2),0) -> 0 | EB26: =CONCATENATE($B$96,$A$74,$C$96) -> 11 to 11.5 | EC26: 0.04589648026 | ED26: =(($B$96+$C$96)/2)*EC26 -> 0.516335403 | EE26: =(22/7)*((($B$96+$C$96)/4)^2)*EC26 -> 4.564036151 | EF26: =SUM(EC26:$EC$34) -> 0.06605394265 | EG26: =IF($B$96>EG52,0,IF($C$96>EG52,EF26,0)) -> 0 | EH26: =IF(EG36>EF26,EF26,0) -> 0.06605394265 | EI26: 0 | EJ26: =IF(EI26>0,SUM(ED26:ED34),0) -> 0 | EK26: 0 | EL26: =IF(EK26>0,(($B$95+$C$95)/2),0) -> 0 | EO26: =CONCATENATE($B$96,$A$74,$C$96) -> 11 to 11.5 | EP26: 0.09650593286 | EQ26: =(($B$96+$C$96)/2)*EP26 -> 1.085691745 | ER26: =(22/7)*((($B$96+$C$96)/4)^2)*EP26 -> 9.596739529 | ES26: =SUM(EP26:$EP$34) -> 0.1465949973 | ET26: =IF($B$96>ET52,0,IF($C$96>ET52,ES26,0)) -> 0 | EU26: =IF(ET36>ES26,ES26,0) -> 0.1465949973 | EV26: 0 | EW26: =IF(EV26>0,SUM(EQ26:EQ34),0) -> 0 | EX26: 0 | EY26: =IF(EX26>0,(($B$95+$C$95)/2),0) -> 0 | FB26: =CONCATENATE($B$96,$A$74,$C$96) -> 11 to 11.5 | FC26: 0.1809062456 | FD26: =(($B$96+$C$96)/2)*FC26 -> 2.035195263 | FE26: =(22/7)*((($B$96+$C$96)/4)^2)*FC26 -> 17.98967242 | FF26: =SUM(FC26:$FC$34) -> 0.2906768324 | FG26: =IF($B$96>FG52,0,IF($C$96>FG52,FF26,0)) -> 0 | FH26: =IF(FG36>FF26,FF26,0) -> 0.2906768324 | FI26: 0 | FJ26: =IF(FI26>0,SUM(FD26:FD34),0) -> 0 | FK26: 0 | FL26: =IF(FK26>0,(($B$95+$C$95)/2),0) -> 0 | FO26: =CONCATENATE($B$96,$A$74,$C$96) -> 11 to 11.5 | FP26: 0.3142354135 | FQ26: =(($B$96+$C$96)/2)*FP26 -> 3.535148402 | FR26: =(22/7)*((($B$96+$C$96)/4)^2)*FP26 -> 31.24818676 | FS26: =SUM(FP26:$FP$34) -> 0.5350794697 | FT26: =IF($B$96>FT52,0,IF($C$96>FT52,FS26,0)) -> 0 | FU26: =IF(FT36>FS26,FS26,0) -> 0.5350794697 | FV26: 0 | FW26: =IF(FV26>0,SUM(FQ26:FQ34),0) -> 0 | FX26: 0 | FY26: =IF(FX26>0,(($B$95+$C$95)/2),0) -> 0 | GB26: =CONCATENATE($B$96,$A$74,$C$96) -> 11 to 11.5 | GC26: 0.5013606198 | GD26: =(($B$96+$C$96)/2)*GC26 -> 5.640306972 | GE26: =(22/7)*((($B$96+$C$96)/4)^2)*GC26 -> 49.85628484 | GF26: =SUM(GC26:$GC$34) -> 0.9061781504 | GG26: =IF($B$96>GG52,0,IF($C$96>GG52,GF26,0)) -> 0 | GH26: =IF(GG36>GF26,GF26,0) -> 0.9061781504 | GI26: 0 | GJ26: =IF(GI26>0,SUM(GD26:GD34),0) -> 0 | GK26: 0 | GL26: =IF(GK26>0,(($B$95+$C$95)/2),0) -> 0
B27: =CONCATENATE($B$97,$A$74,$C$97) -> 11.5 to 12 | C27: 0 | D27: =(($B$97+$C$97)/2)*C27 -> 0 | E27: =(22/7)*((($B$97+$C$97)/4)^2)*C27 -> 0 | F27: =SUM(C27:$C$34) -> 0 | G27: =IF($B$97>G52,0,IF($C$97>G52,F27,0)) -> 0 | H27: =IF(G36>F27,F27,0) -> 0 | I27: 0 | J27: =IF(I27>0,SUM(D27:D34),0) -> 0 | K27: 0 | L27: =IF(K27>0,(($B$96+$C$96)/2),0) -> 0 | O27: =CONCATENATE($B$97,$A$74,$C$97) -> 11.5 to 12 | P27: 6.661338148e-15 | Q27: =(($B$97+$C$97)/2)*P27 -> 7.827072324e-14 | R27: =(22/7)*((($B$97+$C$97)/4)^2)*P27 -> 7.226064984e-13 | S27: =SUM(P27:$P$34) -> 6.661338148e-15 | T27: =IF($B$97>T52,0,IF($C$97>T52,S27,0)) -> 0 | U27: =IF(T36>S27,S27,0) -> 0 | V27: 0 | W27: =IF(V27>0,SUM(Q27:Q34),0) -> 0 | X27: 0 | Y27: =IF(X27>0,(($B$96+$C$96)/2),0) -> 0 | AB27: =CONCATENATE($B$97,$A$74,$C$97) -> 11.5 to 12 | AC27: 6.441727718e-07 | AD27: =(($B$97+$C$97)/2)*AC27 -> 7.569030069e-06 | AE27: =(22/7)*((($B$97+$C$97)/4)^2)*AC27 -> 6.987836688e-05 | AF27: =SUM(AC27:$AC$34) -> 7.157898108e-07 | AG27: =IF($B$97>AG52,0,IF($C$97>AG52,AF27,0)) -> 0 | AH27: =IF(AG36>AF27,AF27,0) -> 0 | AI27: 0 | AJ27: =IF(AI27>0,SUM(AD27:AD34),0) -> 0 | AK27: 0 | AL27: =IF(AK27>0,(($B$96+$C$96)/2),0) -> 0 | AO27: =CONCATENATE($B$97,$A$74,$C$97) -> 11.5 to 12 | AP27: 8.201510286e-05 | AQ27: =(($B$97+$C$97)/2)*AP27 -> 0.0009636774586 | AR27: =(22/7)*((($B$97+$C$97)/4)^2)*AP27 -> 0.008896807966 | AS27: =SUM(AP27:$AP$34) -> 9.932161949e-05 | AT27: =IF($B$97>AT52,0,IF($C$97>AT52,AS27,0)) -> 0 | AU27: =IF(AT36>AS27,AS27,0) -> 9.932161949e-05 | AV27: 0 | AW27: =IF(AV27>0,SUM(AQ27:AQ34),0) -> 0 | AX27: 0 | AY27: =IF(AX27>0,(($B$96+$C$96)/2),0) -> 0 | BB27: =CONCATENATE($B$97,$A$74,$C$97) -> 11.5 to 12 | BC27: 0.0614736165 | BD27: =(($B$97+$C$97)/2)*BC27 -> 0.7223149939 | BE27: =(22/7)*((($B$97+$C$97)/4)^2)*BC27 -> 6.668515212 | BF27: =SUM(BC27:$BC$34) -> 0.108084776 | BG27: =IF($B$97>BG52,0,IF($C$97>BG52,BF27,0)) -> 0 | BH27: =IF(BG36>BF27,BF27,0) -> 0.108084776 | BI27: 0 | BJ27: =IF(BI27>0,SUM(BD27:BD34),0) -> 0 | BK27: 0 | BL27: =IF(BK27>0,(($B$96+$C$96)/2),0) -> 0 | BO27: =CONCATENATE($B$97,$A$74,$C$97) -> 11.5 to 12 | BP27: 1.022712857e-05 | BQ27: =(($B$97+$C$97)/2)*BP27 -> 0.0001201687607 | BR27: =(22/7)*((($B$97+$C$97)/4)^2)*BP27 -> 0.001109415166 | BS27: =SUM(BP27:$BP$34) -> 1.153008991e-05 | BT27: =IF($B$97>BT52,0,IF($C$97>BT52,BS27,0)) -> 0 | BU27: =IF(BT36>BS27,BS27,0) -> 1.153008991e-05 | BV27: 0 | BW27: =IF(BV27>0,SUM(BQ27:BQ34),0) -> 0 | BX27: 0 | BY27: =IF(BX27>0,(($B$96+$C$96)/2),0) -> 0 | CB27: =CONCATENATE($B$97,$A$74,$C$97) -> 11.5 to 12 | CC27: 7.402580107e-05 | CD27: =(($B$97+$C$97)/2)*CC27 -> 0.0008698031626 | CE27: =(22/7)*((($B$97+$C$97)/4)^2)*CC27 -> 0.008030147054 | CF27: =SUM(CC27:$CC$34) -> 8.635466452e-05 | CG27: =IF($B$97>CG52,0,IF($C$97>CG52,CF27,0)) -> 0 | CH27: =IF(CG36>CF27,CF27,0) -> 8.635466452e-05 | CI27: 0 | CJ27: =IF(CI27>0,SUM(CD27:CD34),0) -> 0 | CK27: 0 | CL27: =IF(CK27>0,(($B$96+$C$96)/2),0) -> 0 | CO27: =CONCATENATE($B$97,$A$74,$C$97) -> 11.5 to 12 | CP27: 0.0003922362157 | CQ27: =(($B$97+$C$97)/2)*CP27 -> 0.004608775534 | CR27: =(22/7)*((($B$97+$C$97)/4)^2)*CP27 -> 0.04254887413 | CS27: =SUM(CP27:$CP$34) -> 0.0004753425574 | CT27: =IF($B$97>CT52,0,IF($C$97>CT52,CS27,0)) -> 0 | CU27: =IF(CT36>CS27,CS27,0) -> 0.0004753425574 | CV27: 0 | CW27: =IF(CV27>0,SUM(CQ27:CQ34),0) -> 0 | CX27: 0 | CY27: =IF(CX27>0,(($B$96+$C$96)/2),0) -> 0 | DB27: =CONCATENATE($B$97,$A$74,$C$97) -> 11.5 to 12 | DC27: 0.001604139182 | DD27: =(($B$97+$C$97)/2)*DC27 -> 0.01884863539 | DE27: =(22/7)*((($B$97+$C$97)/4)^2)*DC27 -> 0.1740132945 | DF27: =SUM(DC27:$DC$34) -> 0.002026921844 | DG27: =IF($B$97>DG52,0,IF($C$97>DG52,DF27,0)) -> 0 | DH27: =IF(DG36>DF27,DF27,0) -> 0.002026921844 | DI27: 0 | DJ27: =IF(DI27>0,SUM(DD27:DD34),0) -> 0 | DK27: 0 | DL27: =IF(DK27>0,(($B$96+$C$96)/2),0) -> 0 | DO27: =CONCATENATE($B$97,$A$74,$C$97) -> 11.5 to 12 | DP27: 0.0052859713 | DQ27: =(($B$97+$C$97)/2)*DP27 -> 0.06211016278 | DR27: =(22/7)*((($B$97+$C$97)/4)^2)*DP27 -> 0.5734098956 | DS27: =SUM(DP27:$DP$34) -> 0.006986778894 | DT27: =IF($B$97>DT52,0,IF($C$97>DT52,DS27,0)) -> 0 | DU27: =IF(DT36>DS27,DS27,0) -> 0.006986778894 | DV27: 0 | DW27: =IF(DV27>0,SUM(DQ27:DQ34),0) -> 0 | DX27: 0 | DY27: =IF(DX27>0,(($B$96+$C$96)/2),0) -> 0 | EB27: =CONCATENATE($B$97,$A$74,$C$97) -> 11.5 to 12 | EC27: 0.01453654595 | ED27: =(($B$97+$C$97)/2)*EC27 -> 0.1708044149 | EE27: =(22/7)*((($B$97+$C$97)/4)^2)*EC27 -> 1.576890759 | EF27: =SUM(EC27:$EC$34) -> 0.02015746239 | EG27: =IF($B$97>EG52,0,IF($C$97>EG52,EF27,0)) -> 0 | EH27: =IF(EG36>EF27,EF27,0) -> 0.02015746239 | EI27: 0 | EJ27: =IF(EI27>0,SUM(ED27:ED34),0) -> 0 | EK27: 0 | EL27: =IF(EK27>0,(($B$96+$C$96)/2),0) -> 0 | EO27: =CONCATENATE($B$97,$A$74,$C$97) -> 11.5 to 12 | EP27: 0.03434235193 | EQ27: =(($B$97+$C$97)/2)*EP27 -> 0.4035226352 | ER27: =(22/7)*((($B$97+$C$97)/4)^2)*EP27 -> 3.725378614 | ES27: =SUM(EP27:$EP$34) -> 0.05008906443 | ET27: =IF($B$97>ET52,0,IF($C$97>ET52,ES27,0)) -> 0 | EU27: =IF(ET36>ES27,ES27,0) -> 0.05008906443 | EV27: 0 | EW27: =IF(EV27>0,SUM(EQ27:EQ34),0) -> 0 | EX27: 0 | EY27: =IF(EX27>0,(($B$96+$C$96)/2),0) -> 0 | FB27: =CONCATENATE($B$97,$A$74,$C$97) -> 11.5 to 12 | FC27: 0.0713936469 | FD27: =(($B$97+$C$97)/2)*FC27 -> 0.838875351 | FE27: =(22/7)*((($B$97+$C$97)/4)^2)*FC27 -> 7.74461708 | FF27: =SUM(FC27:$FC$34) -> 0.1097705868 | FG27: =IF($B$97>FG52,0,IF($C$97>FG52,FF27,0)) -> 0 | FH27: =IF(FG36>FF27,FF27,0) -> 0.1097705868 | FI27: 0 | FJ27: =IF(FI27>0,SUM(FD27:FD34),0) -> 0 | FK27: 0 | FL27: =IF(FK27>0,(($B$96+$C$96)/2),0) -> 0 | FO27: =CONCATENATE($B$97,$A$74,$C$97) -> 11.5 to 12 | FP27: 0.1359884113 | FQ27: =(($B$97+$C$97)/2)*FP27 -> 1.597863833 | FR27: =(22/7)*((($B$97+$C$97)/4)^2)*FP27 -> 14.75170717 | FS27: =SUM(FP27:$FP$34) -> 0.2208440563 | FT27: =IF($B$97>FT52,0,IF($C$97>FT52,FS27,0)) -> 0 | FU27: =IF(FT36>FS27,FS27,0) -> 0.2208440563 | FV27: 0 | FW27: =IF(FV27>0,SUM(FQ27:FQ34),0) -> 0 | FX27: 0 | FY27: =IF(FX27>0,(($B$96+$C$96)/2),0) -> 0 | GB27: =CONCATENATE($B$97,$A$74,$C$97) -> 11.5 to 12 | GC27: 0.2356120801 | GD27: =(($B$97+$C$97)/2)*GC27 -> 2.768441941 | GE27: =(22/7)*((($B$97+$C$97)/4)^2)*GC27 -> 25.55865149 | GF27: =SUM(GC27:$GC$34) -> 0.4048175306 | GG27: =IF($B$97>GG52,0,IF($C$97>GG52,GF27,0)) -> 0 | GH27: =IF(GG36>GF27,GF27,0) -> 0.4048175306 | GI27: 0 | GJ27: =IF(GI27>0,SUM(GD27:GD34),0) -> 0 | GK27: 0 | GL27: =IF(GK27>0,(($B$96+$C$96)/2),0) -> 0
B28: =CONCATENATE($B$98,$A$74,$C$98) -> 12 to 12.5 | C28: 0 | D28: =(($B$98+$C$98)/2)*C28 -> 0 | E28: =(22/7)*((($B$98+$C$98)/4)^2)*C28 -> 0 | F28: =SUM(C28:$C$34) -> 0 | G28: =IF($B$98>G52,0,IF($C$98>G52,F28,0)) -> 0 | H28: =IF(G36>F28,F28,0) -> 0 | I28: 0 | J28: =IF(I28>0,SUM(D28:D34),0) -> 0 | K28: 0 | L28: =IF(K28>0,(($B$97+$C$97)/2),0) -> 0 | O28: =CONCATENATE($B$98,$A$74,$C$98) -> 12 to 12.5 | P28: 0 | Q28: =(($B$98+$C$98)/2)*P28 -> 0 | R28: =(22/7)*((($B$98+$C$98)/4)^2)*P28 -> 0 | S28: =SUM(P28:$P$34) -> 0 | T28: =IF($B$98>T52,0,IF($C$98>T52,S28,0)) -> 0 | U28: =IF(T36>S28,S28,0) -> 0 | V28: 0 | W28: =IF(V28>0,SUM(Q28:Q34),0) -> 0 | X28: 0 | Y28: =IF(X28>0,(($B$97+$C$97)/2),0) -> 0 | AB28: =CONCATENATE($B$98,$A$74,$C$98) -> 12 to 12.5 | AC28: 6.542855591e-08 | AD28: =(($B$98+$C$98)/2)*AC28 -> 8.014998099e-07 | AE28: =(22/7)*((($B$98+$C$98)/4)^2)*AC28 -> 7.71443567e-06 | AF28: =SUM(AC28:$AC$34) -> 7.161703897e-08 | AG28: =IF($B$98>AG52,0,IF($C$98>AG52,AF28,0)) -> 0 | AH28: =IF(AG36>AF28,AF28,0) -> 0 | AI28: 0 | AJ28: =IF(AI28>0,SUM(AD28:AD34),0) -> 0 | AK28: 0 | AL28: =IF(AK28>0,(($B$97+$C$97)/2),0) -> 0 | AO28: =CONCATENATE($B$98,$A$74,$C$98) -> 12 to 12.5 | AP28: 1.461780716e-05 | AQ28: =(($B$98+$C$98)/2)*AP28 -> 0.0001790681378 | AR28: =(22/7)*((($B$98+$C$98)/4)^2)*AP28 -> 0.001723530826 | AS28: =SUM(AP28:$AP$34) -> 1.730651663e-05 | AT28: =IF($B$98>AT52,0,IF($C$98>AT52,AS28,0)) -> 0 | AU28: =IF(AT36>AS28,AS28,0) -> 1.730651663e-05 | AV28: 0 | AW28: =IF(AV28>0,SUM(AQ28:AQ34),0) -> 0 | AX28: 0 | AY28: =IF(AX28>0,(($B$97+$C$97)/2),0) -> 0 | BB28: =CONCATENATE($B$98,$A$74,$C$98) -> 12 to 12.5 | BC28: 0.02777523238 | BD28: =(($B$98+$C$98)/2)*BC28 -> 0.3402465966 | BE28: =(22/7)*((($B$98+$C$98)/4)^2)*BC28 -> 3.274873492 | BF28: =SUM(BC28:$BC$34) -> 0.04661115948 | BG28: =IF($B$98>BG52,0,IF($C$98>BG52,BF28,0)) -> 0 | BH28: =IF(BG36>BF28,BF28,0) -> 0.04661115948 | BI28: 0 | BJ28: =IF(BI28>0,SUM(BD28:BD34),0) -> 0 | BK28: 0 | BL28: =IF(BK28>0,(($B$97+$C$97)/2),0) -> 0 | BO28: =CONCATENATE($B$98,$A$74,$C$98) -> 12 to 12.5 | BP28: 1.174974373e-06 | BQ28: =(($B$98+$C$98)/2)*BP28 -> 1.439343607e-05 | BR28: =(22/7)*((($B$98+$C$98)/4)^2)*BP28 -> 0.0001385368222 | BS28: =SUM(BP28:$BP$34) -> 1.302961343e-06 | BT28: =IF($B$98>BT52,0,IF($C$98>BT52,BS28,0)) -> 0 | BU28: =IF(BT36>BS28,BS28,0) -> 1.302961343e-06 | BV28: 0 | BW28: =IF(BV28>0,SUM(BQ28:BQ34),0) -> 0 | BX28: 0 | BY28: =IF(BX28>0,(($B$97+$C$97)/2),0) -> 0 | CB28: =CONCATENATE($B$98,$A$74,$C$98) -> 12 to 12.5 | CC28: 1.077961616e-05 | CD28: =(($B$98+$C$98)/2)*CC28 -> 0.0001320502979 | CE28: =(22/7)*((($B$98+$C$98)/4)^2)*CC28 -> 0.001270984117 | CF28: =SUM(CC28:$CC$34) -> 1.232886345e-05 | CG28: =IF($B$98>CG52,0,IF($C$98>CG52,CF28,0)) -> 0 | CH28: =IF(CG36>CF28,CF28,0) -> 1.232886345e-05 | CI28: 0 | CJ28: =IF(CI28>0,SUM(CD28:CD34),0) -> 0 | CK28: 0 | CL28: =IF(CK28>0,(($B$97+$C$97)/2),0) -> 0 | CO28: =CONCATENATE($B$98,$A$74,$C$98) -> 12 to 12.5 | CP28: 7.01767228e-05 | CQ28: =(($B$98+$C$98)/2)*CP28 -> 0.0008596648543 | CR28: =(22/7)*((($B$98+$C$98)/4)^2)*CP28 -> 0.008274274223 | CS28: =SUM(CP28:$CP$34) -> 8.310634171e-05 | CT28: =IF($B$98>CT52,0,IF($C$98>CT52,CS28,0)) -> 0 | CU28: =IF(CT36>CS28,CS28,0) -> 8.310634171e-05 | CV28: 0 | CW28: =IF(CV28>0,SUM(CQ28:CQ34),0) -> 0 | CX28: 0 | CY28: =IF(CX28>0,(($B$97+$C$97)/2),0) -> 0 | DB28: =CONCATENATE($B$98,$A$74,$C$98) -> 12 to 12.5 | DC28: 0.000343545759 | DD28: =(($B$98+$C$98)/2)*DC28 -> 0.004208435548 | DE28: =(22/7)*((($B$98+$C$98)/4)^2)*DC28 -> 0.04050619215 | DF28: =SUM(DC28:$DC$34) -> 0.0004227826622 | DG28: =IF($B$98>DG52,0,IF($C$98>DG52,DF28,0)) -> 0 | DH28: =IF(DG36>DF28,DF28,0) -> 0.0004227826622 | DI28: 0 | DJ28: =IF(DI28>0,SUM(DD28:DD34),0) -> 0 | DK28: 0 | DL28: =IF(DK28>0,(($B$97+$C$97)/2),0) -> 0 | DO28: =CONCATENATE($B$98,$A$74,$C$98) -> 12 to 12.5 | DP28: 0.001325579283 | DQ28: =(($B$98+$C$98)/2)*DP28 -> 0.01623834622 | DR28: =(22/7)*((($B$98+$C$98)/4)^2)*DP28 -> 0.1562940823 | DS28: =SUM(DP28:$DP$34) -> 0.001700807594 | DT28: =IF($B$98>DT52,0,IF($C$98>DT52,DS28,0)) -> 0 | DU28: =IF(DT36>DS28,DS28,0) -> 0.001700807594 | DV28: 0 | DW28: =IF(DV28>0,SUM(DQ28:DQ34),0) -> 0 | DX28: 0 | DY28: =IF(DX28>0,(($B$97+$C$97)/2),0) -> 0 | EB28: =CONCATENATE($B$98,$A$74,$C$98) -> 12 to 12.5 | EC28: 0.004189500185 | ED28: =(($B$98+$C$98)/2)*EC28 -> 0.05132137727 | EE28: =(22/7)*((($B$98+$C$98)/4)^2)*EC28 -> 0.4939682562 | EF28: =SUM(EC28:$EC$34) -> 0.00562091644 | EG28: =IF($B$98>EG52,0,IF($C$98>EG52,EF28,0)) -> 0 | EH28: =IF(EG36>EF28,EF28,0) -> 0.00562091644 | EI28: 0 | EJ28: =IF(EI28>0,SUM(ED28:ED34),0) -> 0 | EK28: 0 | EL28: =IF(EK28>0,(($B$97+$C$97)/2),0) -> 0 | EO28: =CONCATENATE($B$98,$A$74,$C$98) -> 12 to 12.5 | EP28: 0.01119476831 | EQ28: =(($B$98+$C$98)/2)*EP28 -> 0.1371359118 | ER28: =(22/7)*((($B$98+$C$98)/4)^2)*EP28 -> 1.319933151 | ES28: =SUM(EP28:$EP$34) -> 0.0157467125 | ET28: =IF($B$98>ET52,0,IF($C$98>ET52,ES28,0)) -> 0 | EU28: =IF(ET36>ES28,ES28,0) -> 0.0157467125 | EV28: 0 | EW28: =IF(EV28>0,SUM(EQ28:EQ34),0) -> 0 | EX28: 0 | EY28: =IF(EX28>0,(($B$97+$C$97)/2),0) -> 0 | FB28: =CONCATENATE($B$98,$A$74,$C$98) -> 12 to 12.5 | FC28: 0.02596391933 | FD28: =(($B$98+$C$98)/2)*FC28 -> 0.3180580117 | FE28: =(22/7)*((($B$98+$C$98)/4)^2)*FC28 -> 3.061308363 | FF28: =SUM(FC28:$FC$34) -> 0.0383769399 | FG28: =IF($B$98>FG52,0,IF($C$98>FG52,FF28,0)) -> 0 | FH28: =IF(FG36>FF28,FF28,0) -> 0.0383769399 | FI28: 0 | FJ28: =IF(FI28>0,SUM(FD28:FD34),0) -> 0 | FK28: 0 | FL28: =IF(FK28>0,(($B$97+$C$97)/2),0) -> 0 | FO28: =CONCATENATE($B$98,$A$74,$C$98) -> 12 to 12.5 | FP28: 0.05452471551 | FQ28: =(($B$98+$C$98)/2)*FP28 -> 0.6679277649 | FR28: =(22/7)*((($B$98+$C$98)/4)^2)*FP28 -> 6.428804738 | FS28: =SUM(FP28:$FP$34) -> 0.08485564495 | FT28: =IF($B$98>FT52,0,IF($C$98>FT52,FS28,0)) -> 0 | FU28: =IF(FT36>FS28,FS28,0) -> 0.08485564495 | FV28: 0 | FW28: =IF(FV28>0,SUM(FQ28:FQ34),0) -> 0 | FX28: 0 | FY28: =IF(FX28>0,(($B$97+$C$97)/2),0) -> 0 | GB28: =CONCATENATE($B$98,$A$74,$C$98) -> 12 to 12.5 | GC28: 0.1030876482 | GD28: =(($B$98+$C$98)/2)*GC28 -> 1.26282369 | GE28: =(22/7)*((($B$98+$C$98)/4)^2)*GC28 -> 12.15467802 | GF28: =SUM(GC28:$GC$34) -> 0.1692054505 | GG28: =IF($B$98>GG52,0,IF($C$98>GG52,GF28,0)) -> 0 | GH28: =IF(GG36>GF28,GF28,0) -> 0.1692054505 | GI28: 0 | GJ28: =IF(GI28>0,SUM(GD28:GD34),0) -> 0 | GK28: 0 | GL28: =IF(GK28>0,(($B$97+$C$97)/2),0) -> 0
B29: =CONCATENATE($B$99,$A$74,$C$99) -> 12.5 to 13 | C29: 0 | D29: =(($B$99+$C$99)/2)*C29 -> 0 | E29: =(22/7)*((($B$99+$C$99)/4)^2)*C29 -> 0 | F29: =SUM(C29:$C$34) -> 0 | G29: =IF($B$99>G52,0,IF($C$99>G52,F29,0)) -> 0 | H29: =IF(G36>F29,F29,0) -> 0 | I29: 0 | J29: =IF(I29>0,SUM(D29:D34),0) -> 0 | K29: 0 | L29: =IF(K29>0,(($B$98+$C$98)/2),0) -> 0 | O29: =CONCATENATE($B$99,$A$74,$C$99) -> 12.5 to 13 | P29: 0 | Q29: =(($B$99+$C$99)/2)*P29 -> 0 | R29: =(22/7)*((($B$99+$C$99)/4)^2)*P29 -> 0 | S29: =SUM(P29:$P$34) -> 0 | T29: =IF($B$99>T52,0,IF($C$99>T52,S29,0)) -> 0 | U29: =IF(T36>S29,S29,0) -> 0 | V29: 0 | W29: =IF(V29>0,SUM(Q29:Q34),0) -> 0 | X29: 0 | Y29: =IF(X29>0,(($B$98+$C$98)/2),0) -> 0 | AB29: =CONCATENATE($B$99,$A$74,$C$99) -> 12.5 to 13 | AC29: 5.726819019e-09 | AD29: =(($B$99+$C$99)/2)*AC29 -> 7.301694249e-08 | AE29: =(22/7)*((($B$99+$C$99)/4)^2)*AC29 -> 7.314732989e-07 | AF29: =SUM(AC29:$AC$34) -> 6.188483059e-09 | AG29: =IF($B$99>AG52,0,IF($C$99>AG52,AF29,0)) -> 0 | AH29: =IF(AG36>AF29,AF29,0) -> 0 | AI29: 0 | AJ29: =IF(AI29>0,SUM(AD29:AD34),0) -> 0 | AK29: 0 | AL29: =IF(AK29>0,(($B$98+$C$98)/2),0) -> 0 | AO29: =CONCATENATE($B$99,$A$74,$C$99) -> 12.5 to 13 | AP29: 2.316697374e-06 | AQ29: =(($B$99+$C$99)/2)*AP29 -> 2.953789152e-05 | AR29: =(22/7)*((($B$99+$C$99)/4)^2)*AP29 -> 0.0002959063775 | AS29: =SUM(AP29:$AP$34) -> 2.688709465e-06 | AT29: =IF($B$99>AT52,0,IF($C$99>AT52,AS29,0)) -> 0 | AU29: =IF(AT36>AS29,AS29,0) -> 2.688709465e-06 | AV29: 0 | AW29: =IF(AV29>0,SUM(AQ29:AQ34),0) -> 0 | AX29: 0 | AY29: =IF(AX29>0,(($B$98+$C$98)/2),0) -> 0 | BB29: =CONCATENATE($B$99,$A$74,$C$99) -> 12.5 to 13 | BC29: 0.01171422293 | BD29: =(($B$99+$C$99)/2)*BC29 -> 0.1493563423 | BE29: =(22/7)*((($B$99+$C$99)/4)^2)*BC29 -> 1.496230501 | BF29: =SUM(BC29:$BC$34) -> 0.0188359271 | BG29: =IF($B$99>BG52,0,IF($C$99>BG52,BF29,0)) -> 0 | BH29: =IF(BG36>BF29,BF29,0) -> 0.0188359271 | BI29: 0 | BJ29: =IF(BI29>0,SUM(BD29:BD34),0) -> 0 | BK29: 0 | BL29: =IF(BK29>0,(($B$98+$C$98)/2),0) -> 0 | BO29: =CONCATENATE($B$99,$A$74,$C$99) -> 12.5 to 13 | BP29: 1.170633233e-07 | BQ29: =(($B$99+$C$99)/2)*BP29 -> 1.492557372e-06 | BR29: =(22/7)*((($B$99+$C$99)/4)^2)*BP29 -> 1.495222653e-05 | BS29: =SUM(BP29:$BP$34) -> 1.279869695e-07 | BT29: =IF($B$99>BT52,0,IF($C$99>BT52,BS29,0)) -> 0 | BU29: =IF(BT36>BS29,BS29,0) -> 1.279869695e-07 | BV29: 0 | BW29: =IF(BV29>0,SUM(BQ29:BQ34),0) -> 0 | BX29: 0 | BY29: =IF(BX29>0,(($B$98+$C$98)/2),0) -> 0 | CB29: =CONCATENATE($B$99,$A$74,$C$99) -> 12.5 to 13 | CC29: 1.377968752e-06 | CD29: =(($B$99+$C$99)/2)*CC29 -> 1.756910159e-05 | CE29: =(22/7)*((($B$99+$C$99)/4)^2)*CC29 -> 0.0001760047499 | CF29: =SUM(CC29:$CC$34) -> 1.549247291e-06 | CG29: =IF($B$99>CG52,0,IF($C$99>CG52,CF29,0)) -> 0 | CH29: =IF(CG36>CF29,CF29,0) -> 1.549247291e-06 | CI29: 0 | CJ29: =IF(CI29>0,SUM(CD29:CD34),0) -> 0 | CK29: 0 | CL29: =IF(CK29>0,(($B$98+$C$98)/2),0) -> 0 | CO29: =CONCATENATE($B$99,$A$74,$C$99) -> 12.5 to 13 | CP29: 1.114034551e-05 | CQ29: =(($B$99+$C$99)/2)*CP29 -> 0.0001420394053 | CR29: =(22/7)*((($B$99+$C$99)/4)^2)*CP29 -> 0.001422930471 | CS29: =SUM(CP29:$CP$34) -> 1.292961891e-05 | CT29: =IF($B$99>CT52,0,IF($C$99>CT52,CS29,0)) -> 0 | CU29: =IF(CT36>CS29,CS29,0) -> 1.292961891e-05 | CV29: 0 | CW29: =IF(CV29>0,SUM(CQ29:CQ34),0) -> 0 | CX29: 0 | CY29: =IF(CX29>0,(($B$98+$C$98)/2),0) -> 0 | DB29: =CONCATENATE($B$99,$A$74,$C$99) -> 12.5 to 13 | DC29: 6.589947905e-05 | DD29: =(($B$99+$C$99)/2)*DC29 -> 0.0008402183579 | DE29: =(22/7)*((($B$99+$C$99)/4)^2)*DC29 -> 0.008417187478 | DF29: =SUM(DC29:$DC$34) -> 7.923690311e-05 | DG29: =IF($B$99>DG52,0,IF($C$99>DG52,DF29,0)) -> 0 | DH29: =IF(DG36>DF29,DF29,0) -> 7.923690311e-05 | DI29: 0 | DJ29: =IF(DI29>0,SUM(DD29:DD34),0) -> 0 | DK29: 0 | DL29: =IF(DK29>0,(($B$98+$C$98)/2),0) -> 0 | DO29: =CONCATENATE($B$99,$A$74,$C$99) -> 12.5 to 13 | DP29: 0.0003002413515 | DQ29: =(($B$99+$C$99)/2)*DP29 -> 0.003828077231 | DR29: =(22/7)*((($B$99+$C$99)/4)^2)*DP29 -> 0.03834913084 | DS29: =SUM(DP29:$DP$34) -> 0.0003752283107 | DT29: =IF($B$99>DT52,0,IF($C$99>DT52,DS29,0)) -> 0 | DU29: =IF(DT36>DS29,DS29,0) -> 0.0003752283107 | DV29: 0 | DW29: =IF(DV29>0,SUM(DQ29:DQ34),0) -> 0 | DX29: 0 | DY29: =IF(DX29>0,(($B$98+$C$98)/2),0) -> 0 | EB29: =CONCATENATE($B$99,$A$74,$C$99) -> 12.5 to 13 | EC29: 0.001098699505 | ED29: =(($B$99+$C$99)/2)*EC29 -> 0.01400841869 | EE29: =(22/7)*((($B$99+$C$99)/4)^2)*EC29 -> 0.1403343372 | EF29: =SUM(EC29:$EC$34) -> 0.001431416254 | EG29: =IF($B$99>EG52,0,IF($C$99>EG52,EF29,0)) -> 0 | EH29: =IF(EG36>EF29,EF29,0) -> 0.001431416254 | EI29: 0 | EJ29: =IF(EI29>0,SUM(ED29:ED34),0) -> 0 | EK29: 0 | EL29: =IF(EK29>0,(($B$98+$C$98)/2),0) -> 0 | EO29: =CONCATENATE($B$99,$A$74,$C$99) -> 12.5 to 13 | EP29: 0.003342771665 | EQ29: =(($B$99+$C$99)/2)*EP29 -> 0.04262033873 | ER29: =(22/7)*((($B$99+$C$99)/4)^2)*EP29 -> 0.4269644648 | ES29: =SUM(EP29:$EP$34) -> 0.004551944191 | ET29: =IF($B$99>ET52,0,IF($C$99>ET52,ES29,0)) -> 0 | EU29: =IF(ET36>ES29,ES29,0) -> 0.004551944191 | EV29: 0 | EW29: =IF(EV29>0,SUM(EQ29:EQ34),0) -> 0 | EX29: 0 | EY29: =IF(EX29>0,(($B$98+$C$98)/2),0) -> 0 | FB29: =CONCATENATE($B$99,$A$74,$C$99) -> 12.5 to 13 | FC29: 0.008701291855 | FD29: =(($B$99+$C$99)/2)*FC29 -> 0.1109414712 | FE29: =(22/7)*((($B$99+$C$99)/4)^2)*FC29 -> 1.111395809 | FF29: =SUM(FC29:$FC$34) -> 0.01241302057 | FG29: =IF($B$99>FG52,0,IF($C$99>FG52,FF29,0)) -> 0 | FH29: =IF(FG36>FF29,FF29,0) -> 0.01241302057 | FI29: 0 | FJ29: =IF(FI29>0,SUM(FD29:FD34),0) -> 0 | FK29: 0 | FL29: =IF(FK29>0,(($B$98+$C$98)/2),0) -> 0 | FO29: =CONCATENATE($B$99,$A$74,$C$99) -> 12.5 to 13 | FP29: 0.02025481357 | FQ29: =(($B$99+$C$99)/2)*FP29 -> 0.258248873 | FR29: =(22/7)*((($B$99+$C$99)/4)^2)*FP29 -> 2.587100317 | FS29: =SUM(FP29:$FP$34) -> 0.03033092944 | FT29: =IF($B$99>FT52,0,IF($C$99>FT52,FS29,0)) -> 0 | FU29: =IF(FT36>FS29,FS29,0) -> 0.03033092944 | FV29: 0 | FW29: =IF(FV29>0,SUM(FQ29:FQ34),0) -> 0 | FX29: 0 | FY29: =IF(FX29>0,(($B$98+$C$98)/2),0) -> 0 | GB29: =CONCATENATE($B$99,$A$74,$C$99) -> 12.5 to 13 | GC29: 0.04199295169 | GD29: =(($B$99+$C$99)/2)*GC29 -> 0.535410134 | GE29: =(22/7)*((($B$99+$C$99)/4)^2)*GC29 -> 5.363662235 | GF29: =SUM(GC29:$GC$34) -> 0.06611780236 | GG29: =IF($B$99>GG52,0,IF($C$99>GG52,GF29,0)) -> 0 | GH29: =IF(GG36>GF29,GF29,0) -> 0.06611780236 | GI29: 0 | GJ29: =IF(GI29>0,SUM(GD29:GD34),0) -> 0 | GK29: 0 | GL29: =IF(GK29>0,(($B$98+$C$98)/2),0) -> 0
B30: =CONCATENATE($B$100,$A$74,$C$100) -> 13 to 13.5 | C30: 0 | D30: =(($B$100+$C$100)/2)*C30 -> 0 | E30: =(22/7)*((($B$100+$C$100)/4)^2)*C30 -> 0 | F30: =SUM(C30:$C$34) -> 0 | G30: =IF($B$100>G52,0,IF($C$100>G52,F30,0)) -> 0 | H30: =IF(G36>F30,F30,0) -> 0 | I30: 0 | J30: =IF(I30>0,SUM(D30:D34),0) -> 0 | K30: 0 | L30: =IF(K30>0,(($B$99+$C$99)/2),0) -> 0 | O30: =CONCATENATE($B$100,$A$74,$C$100) -> 13 to 13.5 | P30: 0 | Q30: =(($B$100+$C$100)/2)*P30 -> 0 | R30: =(22/7)*((($B$100+$C$100)/4)^2)*P30 -> 0 | S30: =SUM(P30:$P$34) -> 0 | T30: =IF($B$100>T52,0,IF($C$100>T52,S30,0)) -> 0 | U30: =IF(T36>S30,S30,0) -> 0 | V30: 0 | W30: =IF(V30>0,SUM(Q30:Q34),0) -> 0 | X30: 0 | Y30: =IF(X30>0,(($B$99+$C$99)/2),0) -> 0 | AB30: =CONCATENATE($B$100,$A$74,$C$100) -> 13 to 13.5 | AC30: 4.319411495e-10 | AD30: =(($B$100+$C$100)/2)*AC30 -> 5.723220231e-09 | AE30: =(22/7)*((($B$100+$C$100)/4)^2)*AC30 -> 5.958281062e-08 | AF30: =SUM(AC30:$AC$34) -> 4.616640403e-10 | AG30: =IF($B$100>AG52,0,IF($C$100>AG52,AF30,0)) -> 0 | AH30: =IF(AG36>AF30,AF30,0) -> 0 | AI30: 0 | AJ30: =IF(AI30>0,SUM(AD30:AD34),0) -> 0 | AK30: 0 | AL30: =IF(AK30>0,(($B$99+$C$99)/2),0) -> 0 | AO30: =CONCATENATE($B$100,$A$74,$C$100) -> 13 to 13.5 | AP30: 3.262116477e-07 | AQ30: =(($B$100+$C$100)/2)*AP30 -> 4.322304332e-06 | AR30: =(22/7)*((($B$100+$C$100)/4)^2)*AP30 -> 4.499827546e-05 | AS30: =SUM(AP30:$AP$34) -> 3.720120911e-07 | AT30: =IF($B$100>AT52,0,IF($C$100>AT52,AS30,0)) -> 0 | AU30: =IF(AT36>AS30,AS30,0) -> 3.720120911e-07 | AV30: 0 | AW30: =IF(AV30>0,SUM(AQ30:AQ34),0) -> 0 | AX30: 0 | AY30: =IF(AX30>0,(($B$99+$C$99)/2),0) -> 0 | BB30: =CONCATENATE($B$100,$A$74,$C$100) -> 13 to 13.5 | BC30: 0.004609726573 | BD30: =(($B$100+$C$100)/2)*BC30 -> 0.06107887709 | BE30: =(22/7)*((($B$100+$C$100)/4)^2)*BC30 -> 0.6358747383 | BF30: =SUM(BC30:$BC$34) -> 0.007121704178 | BG30: =IF($B$100>BG52,0,IF($C$100>BG52,BF30,0)) -> 0 | BH30: =IF(BG36>BF30,BF30,0) -> 0.007121704178 | BI30: 0 | BJ30: =IF(BI30>0,SUM(BD30:BD34),0) -> 0 | BK30: 0 | BL30: =IF(BK30>0,(($B$99+$C$99)/2),0) -> 0 | BO30: =CONCATENATE($B$100,$A$74,$C$100) -> 13 to 13.5 | BP30: 1.011382565e-08 | BQ30: =(($B$100+$C$100)/2)*BP30 -> 1.340081899e-07 | BR30: =(22/7)*((($B$100+$C$100)/4)^2)*BP30 -> 1.395120977e-06 | BS30: =SUM(BP30:$BP$34) -> 1.092364619e-08 | BT30: =IF($B$100>BT52,0,IF($C$100>BT52,BS30,0)) -> 0 | BU30: =IF(BT36>BS30,BS30,0) -> 1.092364619e-08 | BV30: 0 | BW30: =IF(BV30>0,SUM(BQ30:BQ34),0) -> 0 | BX30: 0 | BY30: =IF(BX30>0,(($B$99+$C$99)/2),0) -> 0 | CB30: =CONCATENATE($B$100,$A$74,$C$100) -> 13 to 13.5 | CC30: 1.54624803e-07 | CD30: =(($B$100+$C$100)/2)*CC30 -> 2.04877864e-06 | CE30: =(22/7)*((($B$100+$C$100)/4)^2)*CC30 -> 2.132924906e-05 | CF30: =SUM(CC30:$CC$34) -> 1.712785382e-07 | CG30: =IF($B$100>CG52,0,IF($C$100>CG52,CF30,0)) -> 0 | CH30: =IF(CG36>CF30,CF30,0) -> 1.712785382e-07 | CI30: 0 | CJ30: =IF(CI30>0,SUM(CD30:CD34),0) -> 0 | CK30: 0 | CL30: =IF(CK30>0,(($B$99+$C$99)/2),0) -> 0 | CO30: =CONCATENATE($B$100,$A$74,$C$100) -> 13 to 13.5 | CP30: 1.569117419e-06 | CQ30: =(($B$100+$C$100)/2)*CP30 -> 2.07908058e-05 | CR30: =(22/7)*((($B$100+$C$100)/4)^2)*CP30 -> 0.000216447139 | CS30: =SUM(CP30:$CP$34) -> 1.789273399e-06 | CT30: =IF($B$100>CT52,0,IF($C$100>CT52,CS30,0)) -> 0 | CU30: =IF(CT36>CS30,CS30,0) -> 1.789273399e-06 | CV30: 0 | CW30: =IF(CV30>0,SUM(CQ30:CQ34),0) -> 0 | CX30: 0 | CY30: =IF(CX30>0,(($B$99+$C$99)/2),0) -> 0 | DB30: =CONCATENATE($B$100,$A$74,$C$100) -> 13 to 13.5 | DC30: 1.13221161e-05 | DD30: =(($B$100+$C$100)/2)*DC30 -> 0.0001500180383 | DE30: =(22/7)*((($B$100+$C$100)/4)^2)*DC30 -> 0.001561794934 | DF30: =SUM(DC30:$DC$34) -> 1.333742406e-05 | DG30: =IF($B$100>DG52,0,IF($C$100>DG52,DF30,0)) -> 0 | DH30: =IF(DG36>DF30,DF30,0) -> 1.333742406e-05 | DI30: 0 | DJ30: =IF(DI30>0,SUM(DD30:DD34),0) -> 0 | DK30: 0 | DL30: =IF(DK30>0,(($B$99+$C$99)/2),0) -> 0 | DO30: =CONCATENATE($B$100,$A$74,$C$100) -> 13 to 13.5 | DP30: 6.142063726e-05 | DQ30: =(($B$100+$C$100)/2)*DP30 -> 0.0008138234436 | DR30: =(22/7)*((($B$100+$C$100)/4)^2)*DP30 -> 0.008472483351 | DS30: =SUM(DP30:$DP$34) -> 7.498695918e-05 | DT30: =IF($B$100>DT52,0,IF($C$100>DT52,DS30,0)) -> 0 | DU30: =IF(DT36>DS30,DS30,0) -> 7.498695918e-05 | DV30: 0 | DW30: =IF(DV30>0,SUM(DQ30:DQ34),0) -> 0 | DX30: 0 | DY30: =IF(DX30>0,(($B$99+$C$99)/2),0) -> 0 | EB30: =CONCATENATE($B$100,$A$74,$C$100) -> 13 to 13.5 | EC30: 0.000262184951 | ED30: =(($B$100+$C$100)/2)*EC30 -> 0.0034739506 | EE30: =(22/7)*((($B$100+$C$100)/4)^2)*EC30 -> 0.03616630714 | EF30: =SUM(EC30:$EC$34) -> 0.0003327167494 | EG30: =IF($B$100>EG52,0,IF($C$100>EG52,EF30,0)) -> 0 | EH30: =IF(EG36>EF30,EF30,0) -> 0.0003327167494 | EI30: 0 | EJ30: =IF(EI30>0,SUM(ED30:ED34),0) -> 0 | EK30: 0 | EL30: =IF(EK30>0,(($B$99+$C$99)/2),0) -> 0 | EO30: =CONCATENATE($B$100,$A$74,$C$100) -> 13 to 13.5 | EP30: 0.0009143282948 | EQ30: =(($B$100+$C$100)/2)*EP30 -> 0.01211484991 | ER30: =(22/7)*((($B$100+$C$100)/4)^2)*EP30 -> 0.126124241 | ES30: =SUM(EP30:$EP$34) -> 0.001209172525 | ET30: =IF($B$100>ET52,0,IF($C$100>ET52,ES30,0)) -> 0 | EU30: =IF(ET36>ES30,ES30,0) -> 0.001209172525 | EV30: 0 | EW30: =IF(EV30>0,SUM(EQ30:EQ34),0) -> 0 | EX30: 0 | EY30: =IF(EX30>0,(($B$99+$C$99)/2),0) -> 0 | FB30: =CONCATENATE($B$100,$A$74,$C$100) -> 13 to 13.5 | FC30: 0.002687187802 | FD30: =(($B$100+$C$100)/2)*FC30 -> 0.03560523838 | FE30: =(22/7)*((($B$100+$C$100)/4)^2)*FC30 -> 0.3706759638 | FF30: =SUM(FC30:$FC$34) -> 0.003711728718 | FG30: =IF($B$100>FG52,0,IF($C$100>FG52,FF30,0)) -> 0 | FH30: =IF(FG36>FF30,FF30,0) -> 0.003711728718 | FI30: 0 | FJ30: =IF(FI30>0,SUM(FD30:FD34),0) -> 0 | FK30: 0 | FL30: =IF(FK30>0,(($B$99+$C$99)/2),0) -> 0 | FO30: =CONCATENATE($B$100,$A$74,$C$100) -> 13 to 13.5 | FP30: 0.006971157976 | FQ30: =(($B$100+$C$100)/2)*FP30 -> 0.09236784319 | FR30: =(22/7)*((($B$100+$C$100)/4)^2)*FP30 -> 0.9616152246 | FS30: =SUM(FP30:$FP$34) -> 0.01007611588 | FT30: =IF($B$100>FT52,0,IF($C$100>FT52,FS30,0)) -> 0 | FU30: =IF(FT36>FS30,FS30,0) -> 0.01007611588 | FV30: 0 | FW30: =IF(FV30>0,SUM(FQ30:FQ34),0) -> 0 | FX30: 0 | FY30: =IF(FX30>0,(($B$99+$C$99)/2),0) -> 0 | GB30: =CONCATENATE($B$100,$A$74,$C$100) -> 13 to 13.5 | GC30: 0.01592596414 | GD30: =(($B$100+$C$100)/2)*GC30 -> 0.2110190249 | GE30: =(22/7)*((($B$100+$C$100)/4)^2)*GC30 -> 2.196858777 | GF30: =SUM(GC30:$GC$34) -> 0.02412485068 | GG30: =IF($B$100>GG52,0,IF($C$100>GG52,GF30,0)) -> 0 | GH30: =IF(GG36>GF30,GF30,0) -> 0.02412485068 | GI30: 0 | GJ30: =IF(GI30>0,SUM(GD30:GD34),0) -> 0 | GK30: 0 | GL30: =IF(GK30>0,(($B$99+$C$99)/2),0) -> 0
B31: =CONCATENATE($B$101,$A$74,$C$101) -> 13.5 to 14 | C31: 0 | D31: =(($B$101+$C$101)/2)*C31 -> 0 | E31: =(22/7)*((($B$101+$C$101)/4)^2)*C31 -> 0 | F31: =SUM(C31:$C$34) -> 0 | G31: =IF($B$101>G52,0,IF($C$101>G52,F31,0)) -> 0 | H31: =IF(G36>F31,F31,0) -> 0 | I31: 0 | J31: =IF(I31>0,SUM(D31:D34),0) -> 0 | K31: 0 | L31: =IF(K31>0,(($B$100+$C$100)/2),0) -> 0 | O31: =CONCATENATE($B$101,$A$74,$C$101) -> 13.5 to 14 | P31: 0 | Q31: =(($B$101+$C$101)/2)*P31 -> 0 | R31: =(22/7)*((($B$101+$C$101)/4)^2)*P31 -> 0 | S31: =SUM(P31:$P$34) -> 0 | T31: =IF($B$101>T52,0,IF($C$101>T52,S31,0)) -> 0 | U31: =IF(T36>S31,S31,0) -> 0 | V31: 0 | W31: =IF(V31>0,SUM(Q31:Q34),0) -> 0 | X31: 0 | Y31: =IF(X31>0,(($B$100+$C$100)/2),0) -> 0 | AB31: =CONCATENATE($B$101,$A$74,$C$101) -> 13.5 to 14 | AC31: 2.807087895e-11 | AD31: =(($B$101+$C$101)/2)*AC31 -> 3.859745856e-10 | AE31: =(22/7)*((($B$101+$C$101)/4)^2)*AC31 -> 4.169904005e-09 | AF31: =SUM(AC31:$AC$34) -> 2.972289082e-11 | AG31: =IF($B$101>AG52,0,IF($C$101>AG52,AF31,0)) -> 0 | AH31: =IF(AG36>AF31,AF31,0) -> 0 | AI31: 0 | AJ31: =IF(AI31>0,SUM(AD31:AD34),0) -> 0 | AK31: 0 | AL31: =IF(AK31>0,(($B$100+$C$100)/2),0) -> 0 | AO31: =CONCATENATE($B$101,$A$74,$C$101) -> 13.5 to 14 | AP31: 4.078834603e-08 | AQ31: =(($B$101+$C$101)/2)*AP31 -> 5.60839758e-07 | AR31: =(22/7)*((($B$101+$C$101)/4)^2)*AP31 -> 6.059072385e-06 | AS31: =SUM(AP31:$AP$34) -> 4.580044344e-08 | AT31: =IF($B$101>AT52,0,IF($C$101>AT52,AS31,0)) -> 0 | AU31: =IF(AT36>AS31,AS31,0) -> 4.580044344e-08 | AV31: 0 | AW31: =IF(AV31>0,SUM(AQ31:AQ34),0) -> 0 | AX31: 0 | AY31: =IF(AX31>0,(($B$100+$C$100)/2),0) -> 0 | BB31: =CONCATENATE($B$101,$A$74,$C$101) -> 13.5 to 14 | BC31: 0.001692244127 | BD31: =(($B$101+$C$101)/2)*BC31 -> 0.02326835674 | BE31: =(22/7)*((($B$101+$C$101)/4)^2)*BC31 -> 0.2513813541 | BF31: =SUM(BC31:$BC$34) -> 0.002511977606 | BG31: =IF($B$101>BG52,0,IF($C$101>BG52,BF31,0)) -> 0 | BH31: =IF(BG36>BF31,BF31,0) -> 0.002511977606 | BI31: 0 | BJ31: =IF(BI31>0,SUM(BD31:BD34),0) -> 0 | BK31: 0 | BL31: =IF(BK31>0,(($B$100+$C$100)/2),0) -> 0 | BO31: =CONCATENATE($B$101,$A$74,$C$101) -> 13.5 to 14 | BP31: 7.576864781e-10 | BQ31: =(($B$101+$C$101)/2)*BP31 -> 1.041818907e-08 | BR31: =(22/7)*((($B$101+$C$101)/4)^2)*BP31 -> 1.125536498e-07 | BS31: =SUM(BP31:$BP$34) -> 8.098205358e-10 | BT31: =IF($B$101>BT52,0,IF($C$101>BT52,BS31,0)) -> 0 | BU31: =IF(BT36>BS31,BS31,0) -> 8.098205358e-10 | BV31: 0 | BW31: =IF(BV31>0,SUM(BQ31:BQ34),0) -> 0 | BX31: 0 | BY31: =IF(BX31>0,(($B$100+$C$100)/2),0) -> 0 | CB31: =CONCATENATE($B$101,$A$74,$C$101) -> 13.5 to 14 | CC31: 1.523035264e-08 | CD31: =(($B$101+$C$101)/2)*CC31 -> 2.094173488e-07 | CE31: =(22/7)*((($B$101+$C$101)/4)^2)*CC31 -> 2.262455286e-06 | CF31: =SUM(CC31:$CC$34) -> 1.665373522e-08 | CG31: =IF($B$101>CG52,0,IF($C$101>CG52,CF31,0)) -> 0 | CH31: =IF(CG36>CF31,CF31,0) -> 1.665373522e-08 | CI31: 0 | CJ31: =IF(CI31>0,SUM(CD31:CD34),0) -> 0 | CK31: 0 | CL31: =IF(CK31>0,(($B$100+$C$100)/2),0) -> 0 | CO31: =CONCATENATE($B$101,$A$74,$C$101) -> 13.5 to 14 | CP31: 1.96089412e-07 | CQ31: =(($B$101+$C$101)/2)*CP31 -> 2.696229415e-06 | CR31: =(22/7)*((($B$101+$C$101)/4)^2)*CP31 -> 2.912890707e-05 | CS31: =SUM(CP31:$CP$34) -> 2.201559803e-07 | CT31: =IF($B$101>CT52,0,IF($C$101>CT52,CS31,0)) -> 0 | CU31: =IF(CT36>CS31,CS31,0) -> 2.201559803e-07 | CV31: 0 | CW31: =IF(CV31>0,SUM(CQ31:CQ34),0) -> 0 | CX31: 0 | CY31: =IF(CX31>0,(($B$100+$C$100)/2),0) -> 0 | DB31: =CONCATENATE($B$101,$A$74,$C$101) -> 13.5 to 14 | DC31: 1.742266556e-06 | DD31: =(($B$101+$C$101)/2)*DC31 -> 2.395616514e-05 | DE31: =(22/7)*((($B$101+$C$101)/4)^2)*DC31 -> 0.0002588121412 | DF31: =SUM(DC31:$DC$34) -> 2.015307963e-06 | DG31: =IF($B$101>DG52,0,IF($C$101>DG52,DF31,0)) -> 0 | DH31: =IF(DG36>DF31,DF31,0) -> 2.015307963e-06 | DI31: 0 | DJ31: =IF(DI31>0,SUM(DD31:DD34),0) -> 0 | DK31: 0 | DL31: =IF(DK31>0,(($B$100+$C$100)/2),0) -> 0 | DO31: =CONCATENATE($B$101,$A$74,$C$101) -> 13.5 to 14 | DP31: 1.134833254e-05 | DQ31: =(($B$101+$C$101)/2)*DP31 -> 0.0001560395724 | DR31: =(22/7)*((($B$101+$C$101)/4)^2)*DP31 -> 0.001685784666 | DS31: =SUM(DP31:$DP$34) -> 1.356632193e-05 | DT31: =IF($B$101>DT52,0,IF($C$101>DT52,DS31,0)) -> 0 | DU31: =IF(DT36>DS31,DS31,0) -> 1.356632193e-05 | DV31: 0 | DW31: =IF(DV31>0,SUM(DQ31:DQ34),0) -> 0 | DX31: 0 | DY31: =IF(DX31>0,(($B$100+$C$100)/2),0) -> 0 | EB31: =CONCATENATE($B$101,$A$74,$C$101) -> 13.5 to 14 | EC31: 5.693048983e-05 | ED31: =(($B$101+$C$101)/2)*EC31 -> 0.0007827942352 | EE31: =(22/7)*((($B$101+$C$101)/4)^2)*EC31 -> 0.008456973434 | EF31: =SUM(EC31:$EC$34) -> 7.053179844e-05 | EG31: =IF($B$101>EG52,0,IF($C$101>EG52,EF31,0)) -> 0 | EH31: =IF(EG36>EF31,EF31,0) -> 7.053179844e-05 | EI31: 0 | EJ31: =IF(EI31>0,SUM(ED31:ED34),0) -> 0 | EK31: 0 | EL31: =IF(EK31>0,(($B$100+$C$100)/2),0) -> 0 | EO31: =CONCATENATE($B$101,$A$74,$C$101) -> 13.5 to 14 | EP31: 0.0002290860392 | EQ31: =(($B$101+$C$101)/2)*EP31 -> 0.003149933039 | ER31: =(22/7)*((($B$101+$C$101)/4)^2)*EP31 -> 0.03403052658 | ES31: =SUM(EP31:$EP$34) -> 0.0002948442306 | ET31: =IF($B$101>ET52,0,IF($C$101>ET52,ES31,0)) -> 0 | EU31: =IF(ET36>ES31,ES31,0) -> 0.0002948442306 | EV31: 0 | EW31: =IF(EV31>0,SUM(EQ31:EQ34),0) -> 0 | EX31: 0 | EY31: =IF(EX31>0,(($B$100+$C$100)/2),0) -> 0 | FB31: =CONCATENATE($B$101,$A$74,$C$101) -> 13.5 to 14 | FC31: 0.0007647350245 | FD31: =(($B$101+$C$101)/2)*FC31 -> 0.01051510659 | FE31: =(22/7)*((($B$101+$C$101)/4)^2)*FC31 -> 0.1136007051 | FF31: =SUM(FC31:$FC$34) -> 0.001024540915 | FG31: =IF($B$101>FG52,0,IF($C$101>FG52,FF31,0)) -> 0 | FH31: =IF(FG36>FF31,FF31,0) -> 0.001024540915 | FI31: 0 | FJ31: =IF(FI31>0,SUM(FD31:FD34),0) -> 0 | FK31: 0 | FL31: =IF(FK31>0,(($B$100+$C$100)/2),0) -> 0 | FO31: =CONCATENATE($B$101,$A$74,$C$101) -> 13.5 to 14 | FP31: 0.002222909768 | FQ31: =(($B$101+$C$101)/2)*FP31 -> 0.03056500931 | FR31: =(22/7)*((($B$101+$C$101)/4)^2)*FP31 -> 0.3302112613 | FS31: =SUM(FP31:$FP$34) -> 0.003104957901 | FT31: =IF($B$101>FT52,0,IF($C$101>FT52,FS31,0)) -> 0 | FU31: =IF(FT36>FS31,FS31,0) -> 0.003104957901 | FV31: 0 | FW31: =IF(FV31>0,SUM(FQ31:FQ34),0) -> 0 | FX31: 0 | FY31: =IF(FX31>0,(($B$100+$C$100)/2),0) -> 0 | GB31: =CONCATENATE($B$101,$A$74,$C$101) -> 13.5 to 14 | GC31: 0.005623328017 | GD31: =(($B$101+$C$101)/2)*GC31 -> 0.07732076023 | GE31: =(22/7)*((($B$101+$C$101)/4)^2)*GC31 -> 0.835340356 | GF31: =SUM(GC31:$GC$34) -> 0.008198886535 | GG31: =IF($B$101>GG52,0,IF($C$101>GG52,GF31,0)) -> 0 | GH31: =IF(GG36>GF31,GF31,0) -> 0.008198886535 | GI31: 0 | GJ31: =IF(GI31>0,SUM(GD31:GD34),0) -> 0 | GK31: 0 | GL31: =IF(GK31>0,(($B$100+$C$100)/2),0) -> 0
B32: =CONCATENATE($B$102,$A$74,$C$102) -> 14 to 14.5 | C32: 0 | D32: =(($B$102+$C$102)/2)*C32 -> 0 | E32: =(22/7)*((($B$102+$C$102)/4)^2)*C32 -> 0 | F32: =SUM(C32:$C$34) -> 0 | G32: =IF($B$102>G52,0,IF($C$102>G52,F32,0)) -> 0 | H32: =IF(G36>F32,F32,0) -> 0 | I32: 0 | J32: =IF(I32>0,SUM(D32:D34),0) -> 0 | K32: 0 | L32: =IF(K32>0,(($B$101+$C$101)/2),0) -> 0 | O32: =CONCATENATE($B$102,$A$74,$C$102) -> 14 to 14.5 | P32: 0 | Q32: =(($B$102+$C$102)/2)*P32 -> 0 | R32: =(22/7)*((($B$102+$C$102)/4)^2)*P32 -> 0 | S32: =SUM(P32:$P$34) -> 0 | T32: =IF($B$102>T52,0,IF($C$102>T52,S32,0)) -> 0 | U32: =IF(T36>S32,S32,0) -> 0 | V32: 0 | W32: =IF(V32>0,SUM(Q32:Q34),0) -> 0 | X32: 0 | Y32: =IF(X32>0,(($B$101+$C$101)/2),0) -> 0 | AB32: =CONCATENATE($B$102,$A$74,$C$102) -> 14 to 14.5 | AC32: 1.572075803e-12 | AD32: =(($B$102+$C$102)/2)*AC32 -> 2.240208019e-11 | AE32: =(22/7)*((($B$102+$C$102)/4)^2)*AC32 -> 2.508232907e-10 | AF32: =SUM(AC32:$AC$34) -> 1.652011861e-12 | AG32: =IF($B$102>AG52,0,IF($C$102>AG52,AF32,0)) -> 0 | AH32: =IF(AG36>AF32,AF32,0) -> 0 | AI32: 0 | AJ32: =IF(AI32>0,SUM(AD32:AD34),0) -> 0 | AK32: 0 | AL32: =IF(AK32>0,(($B$101+$C$101)/2),0) -> 0 | AO32: =CONCATENATE($B$102,$A$74,$C$102) -> 14 to 14.5 | AP32: 4.527178632e-09 | AQ32: =(($B$102+$C$102)/2)*AP32 -> 6.451229551e-08 | AR32: =(22/7)*((($B$102+$C$102)/4)^2)*AP32 -> 7.223073086e-07 | AS32: =SUM(AP32:$AP$34) -> 5.012097404e-09 | AT32: =IF($B$102>AT52,0,IF($C$102>AT52,AS32,0)) -> 0 | AU32: =IF(AT36>AS32,AS32,0) -> 5.012097404e-09 | AV32: 0 | AW32: =IF(AV32>0,SUM(AQ32:AQ34),0) -> 0 | AX32: 0 | AY32: =IF(AX32>0,(($B$101+$C$101)/2),0) -> 0 | BB32: =CONCATENATE($B$102,$A$74,$C$102) -> 14 to 14.5 | BC32: 0.000579486611 | BD32: =(($B$102+$C$102)/2)*BC32 -> 0.008257684207 | BE32: =(22/7)*((($B$102+$C$102)/4)^2)*BC32 -> 0.09245657139 | BF32: =SUM(BC32:$BC$34) -> 0.0008197334789 | BG32: =IF($B$102>BG52,0,IF($C$102>BG52,BF32,0)) -> 0 | BH32: =IF(BG36>BF32,BF32,0) -> 0.0008197334789 | BI32: 0 | BJ32: =IF(BI32>0,SUM(BD32:BD34),0) -> 0 | BK32: 0 | BL32: =IF(BK32>0,(($B$101+$C$101)/2),0) -> 0 | BO32: =CONCATENATE($B$102,$A$74,$C$102) -> 14 to 14.5 | BP32: 4.92296533e-11 | BQ32: =(($B$102+$C$102)/2)*BP32 -> 7.015225595e-10 | BR32: =(22/7)*((($B$102+$C$102)/4)^2)*BP32 -> 7.854547229e-09 | BS32: =SUM(BP32:$BP$34) -> 5.213405762e-11 | BT32: =IF($B$102>BT52,0,IF($C$102>BT52,BS32,0)) -> 0 | BU32: =IF(BT36>BS32,BS32,0) -> 5.213405762e-11 | BV32: 0 | BW32: =IF(BV32>0,SUM(BQ32:BQ34),0) -> 0 | BX32: 0 | BY32: =IF(BX32>0,(($B$101+$C$101)/2),0) -> 0 | CB32: =CONCATENATE($B$102,$A$74,$C$102) -> 14 to 14.5 | CC32: 1.316798288e-09 | CD32: =(($B$102+$C$102)/2)*CC32 -> 1.87643756e-08 | CE32: =(22/7)*((($B$102+$C$102)/4)^2)*CC32 -> 2.100939911e-07 | CF32: =SUM(CC32:$CC$34) -> 1.423382581e-09 | CG32: =IF($B$102>CG52,0,IF($C$102>CG52,CF32,0)) -> 0 | CH32: =IF(CG36>CF32,CF32,0) -> 1.423382581e-09 | CI32: 0 | CJ32: =IF(CI32>0,SUM(CD32:CD34),0) -> 0 | CK32: 0 | CL32: =IF(CK32>0,(($B$101+$C$101)/2),0) -> 0 | CO32: =CONCATENATE($B$102,$A$74,$C$102) -> 14 to 14.5 | CP32: 2.174129415e-08 | CQ32: =(($B$102+$C$102)/2)*CP32 -> 3.098134416e-07 | CR32: =(22/7)*((($B$102+$C$102)/4)^2)*CP32 -> 3.46880407e-06 | CS32: =SUM(CP32:$CP$34) -> 2.406656834e-08 | CT32: =IF($B$102>CT52,0,IF($C$102>CT52,CS32,0)) -> 0 | CU32: =IF(CT36>CS32,CS32,0) -> 2.406656834e-08 | CV32: 0 | CW32: =IF(CV32>0,SUM(CQ32:CQ34),0) -> 0 | CX32: 0 | CY32: =IF(CX32>0,(($B$101+$C$101)/2),0) -> 0 | DB32: =CONCATENATE($B$102,$A$74,$C$102) -> 14 to 14.5 | DC32: 2.401241864e-07 | DD32: =(($B$102+$C$102)/2)*DC32 -> 3.421769656e-06 | DE32: =(22/7)*((($B$102+$C$102)/4)^2)*DC32 -> 3.831159954e-05 | DF32: =SUM(DC32:$DC$34) -> 2.730414079e-07 | DG32: =IF($B$102>DG52,0,IF($C$102>DG52,DF32,0)) -> 0 | DH32: =IF(DG36>DF32,DF32,0) -> 2.730414079e-07 | DI32: 0 | DJ32: =IF(DI32>0,SUM(DD32:DD34),0) -> 0 | DK32: 0 | DL32: =IF(DK32>0,(($B$101+$C$101)/2),0) -> 0 | DO32: =CONCATENATE($B$102,$A$74,$C$102) -> 14 to 14.5 | DP32: 1.893731603e-06 | DQ32: =(($B$102+$C$102)/2)*DP32 -> 2.698567535e-05 | DR32: =(22/7)*((($B$102+$C$102)/4)^2)*DP32 -> 0.0003021431865 | DS32: =SUM(DP32:$DP$34) -> 2.217989385e-06 | DT32: =IF($B$102>DT52,0,IF($C$102>DT52,DS32,0)) -> 0 | DU32: =IF(DT36>DS32,DS32,0) -> 2.217989385e-06 | DV32: 0 | DW32: =IF(DV32>0,SUM(DQ32:DQ34),0) -> 0 | DX32: 0 | DY32: =IF(DX32>0,(($B$101+$C$101)/2),0) -> 0 | EB32: =CONCATENATE($B$102,$A$74,$C$102) -> 14 to 14.5 | EC32: 1.124828877e-05 | ED32: =(($B$102+$C$102)/2)*EC32 -> 0.000160288115 | EE32: =(22/7)*((($B$102+$C$102)/4)^2)*EC32 -> 0.00179465443 | EF32: =SUM(EC32:$EC$34) -> 1.360130861e-05 | EG32: =IF($B$102>EG52,0,IF($C$102>EG52,EF32,0)) -> 0 | EH32: =IF(EG36>EF32,EF32,0) -> 1.360130861e-05 | EI32: 0 | EJ32: =IF(EI32>0,SUM(ED32:ED34),0) -> 0 | EK32: 0 | EL32: =IF(EK32>0,(($B$101+$C$101)/2),0) -> 0 | EO32: =CONCATENATE($B$102,$A$74,$C$102) -> 14 to 14.5 | EP32: 5.257667751e-05 | EQ32: =(($B$102+$C$102)/2)*EP32 -> 0.0007492176545 | ER32: =(22/7)*((($B$102+$C$102)/4)^2)*EP32 -> 0.008388561953 | ES32: =SUM(EP32:$EP$34) -> 6.575819137e-05 | ET32: =IF($B$102>ET52,0,IF($C$102>ET52,ES32,0)) -> 0 | EU32: =IF(ET36>ES32,ES32,0) -> 6.575819137e-05 | EV32: 0 | EW32: =IF(EV32>0,SUM(EQ32:EQ34),0) -> 0 | EX32: 0 | EY32: =IF(EX32>0,(($B$101+$C$101)/2),0) -> 0 | FB32: =CONCATENATE($B$102,$A$74,$C$102) -> 14 to 14.5 | FC32: 0.0002005489475 | FD32: =(($B$102+$C$102)/2)*FC32 -> 0.002857822501 | FE32: =(22/7)*((($B$102+$C$102)/4)^2)*FC32 -> 0.0319974055 | FF32: =SUM(FC32:$FC$34) -> 0.000259805891 | FG32: =IF($B$102>FG52,0,IF($C$102>FG52,FF32,0)) -> 0 | FH32: =IF(FG36>FF32,FF32,0) -> 0.000259805891 | FI32: 0 | FJ32: =IF(FI32>0,SUM(FD32:FD34),0) -> 0 | FK32: 0 | FL32: =IF(FK32>0,(($B$101+$C$101)/2),0) -> 0 | FO32: =CONCATENATE($B$102,$A$74,$C$102) -> 14 to 14.5 | FP32: 0.000656715535 | FQ32: =(($B$102+$C$102)/2)*FP32 -> 0.009358196374 | FR32: =(22/7)*((($B$102+$C$102)/4)^2)*FP32 -> 0.1047783773 | FS32: =SUM(FP32:$FP$34) -> 0.0008820481327 | FT32: =IF($B$102>FT52,0,IF($C$102>FT52,FS32,0)) -> 0 | FU32: =IF(FT36>FS32,FS32,0) -> 0.0008820481327 | FV32: 0 | FW32: =IF(FV32>0,SUM(FQ32:FQ34),0) -> 0 | FX32: 0 | FY32: =IF(FX32>0,(($B$101+$C$101)/2),0) -> 0 | GB32: =CONCATENATE($B$102,$A$74,$C$102) -> 14 to 14.5 | GC32: 0.001848579659 | GD32: =(($B$102+$C$102)/2)*GC32 -> 0.02634226014 | GE32: =(22/7)*((($B$102+$C$102)/4)^2)*GC32 -> 0.2949392341 | GF32: =SUM(GC32:$GC$34) -> 0.002575558519 | GG32: =IF($B$102>GG52,0,IF($C$102>GG52,GF32,0)) -> 0 | GH32: =IF(GG36>GF32,GF32,0) -> 0.002575558519 | GI32: 0 | GJ32: =IF(GI32>0,SUM(GD32:GD34),0) -> 0 | GK32: 0 | GL32: =IF(GK32>0,(($B$101+$C$101)/2),0) -> 0
B33: =CONCATENATE($B$103,$A$74,$C$103) -> 14.5 to 15 | C33: 0 | D33: =(($B$103+$C$103)/2)*C33 -> 0 | E33: =(22/7)*((($B$103+$C$103)/4)^2)*C33 -> 0 | F33: =SUM(C33:$C$34) -> 0 | G33: =IF($B$103>G52,0,IF($C$103>G52,F33,0)) -> 0 | H33: =IF(G36>F33,F33,0) -> 0 | I33: 0 | J33: =IF(I33>0,SUM(D33:D34),0) -> 0 | K33: 0 | L33: =IF(K33>0,(($B$102+$C$102)/2),0) -> 0 | O33: =CONCATENATE($B$103,$A$74,$C$103) -> 14.5 to 15 | P33: 0 | Q33: =(($B$103+$C$103)/2)*P33 -> 0 | R33: =(22/7)*((($B$103+$C$103)/4)^2)*P33 -> 0 | S33: =SUM(P33:$P$34) -> 0 | T33: =IF($B$103>T52,0,IF($C$103>T52,S33,0)) -> 0 | U33: =IF(T36>S33,S33,0) -> 0 | V33: 0 | W33: =IF(V33>0,SUM(Q33:Q34),0) -> 0 | X33: 0 | Y33: =IF(X33>0,(($B$102+$C$102)/2),0) -> 0 | AB33: =CONCATENATE($B$103,$A$74,$C$103) -> 14.5 to 15 | AC33: 7.993605777e-14 | AD33: =(($B$103+$C$103)/2)*AC33 -> 1.179056852e-12 | AE33: =(22/7)*((($B$103+$C$103)/4)^2)*AC33 -> 1.366442673e-11 | AF33: =SUM(AC33:$AC$34) -> 7.993605777e-14 | AG33: =IF($B$103>AG52,0,IF($C$103>AG52,AF33,0)) -> 0 | AH33: =IF(AG36>AF33,AF33,0) -> 0 | AI33: 0 | AJ33: =IF(AI33>0,SUM(AD33:AD34),0) -> 0 | AK33: 0 | AL33: =IF(AK33>0,(($B$102+$C$102)/2),0) -> 0 | AO33: =CONCATENATE($B$103,$A$74,$C$103) -> 14.5 to 15 | AP33: 4.459432823e-10 | AQ33: =(($B$103+$C$103)/2)*AP33 -> 6.577663414e-09 | AR33: =(22/7)*((($B$103+$C$103)/4)^2)*AP33 -> 7.623042064e-08 | AS33: =SUM(AP33:$AP$34) -> 4.849187718e-10 | AT33: =IF($B$103>AT52,0,IF($C$103>AT52,AS33,0)) -> 0 | AU33: =IF(AT36>AS33,AS33,0) -> 4.849187718e-10 | AV33: 0 | AW33: =IF(AV33>0,SUM(AQ33:AQ34),0) -> 0 | AX33: 0 | AY33: =IF(AX33>0,(($B$102+$C$102)/2),0) -> 0 | BB33: =CONCATENATE($B$103,$A$74,$C$103) -> 14.5 to 15 | BC33: 0.0001850983072 | BD33: =(($B$103+$C$103)/2)*BC33 -> 0.002730200031 | BE33: =(22/7)*((($B$103+$C$103)/4)^2)*BC33 -> 0.03164106821 | BF33: =SUM(BC33:$BC$34) -> 0.0002402468678 | BG33: =IF($B$103>BG52,0,IF($C$103>BG52,BF33,0)) -> 0 | BH33: =IF(BG36>BF33,BF33,0) -> 0.0002402468678 | BI33: 0 | BJ33: =IF(BI33>0,SUM(BD33:BD34),0) -> 0 | BK33: 0 | BL33: =IF(BK33>0,(($B$102+$C$102)/2),0) -> 0 | BO33: =CONCATENATE($B$103,$A$74,$C$103) -> 14.5 to 15 | BP33: 2.759184108e-12 | BQ33: =(($B$103+$C$103)/2)*BP33 -> 4.06979656e-11 | BR33: =(22/7)*((($B$103+$C$103)/4)^2)*BP33 -> 4.716603513e-10 | BS33: =SUM(BP33:$BP$34) -> 2.904404324e-12 | BT33: =IF($B$103>BT52,0,IF($C$103>BT52,BS33,0)) -> 0 | BU33: =IF(BT36>BS33,BS33,0) -> 2.904404324e-12 | BV33: 0 | BW33: =IF(BV33>0,SUM(BQ33:BQ34),0) -> 0 | BX33: 0 | BY33: =IF(BX33>0,(($B$102+$C$102)/2),0) -> 0 | CB33: =CONCATENATE($B$103,$A$74,$C$103) -> 14.5 to 15 | CC33: 9.994654232e-11 | CD33: =(($B$103+$C$103)/2)*CC33 -> 1.474211499e-09 | CE33: =(22/7)*((($B$103+$C$103)/4)^2)*CC33 -> 1.708505827e-08 | CF33: =SUM(CC33:$CC$34) -> 1.065842926e-10 | CG33: =IF($B$103>CG52,0,IF($C$103>CG52,CF33,0)) -> 0 | CH33: =IF(CG36>CF33,CF33,0) -> 1.065842926e-10 | CI33: 0 | CJ33: =IF(CI33>0,SUM(CD33:CD34),0) -> 0 | CK33: 0 | CL33: =IF(CK33>0,(($B$102+$C$102)/2),0) -> 0 | CO33: =CONCATENATE($B$103,$A$74,$C$103) -> 14.5 to 15 | CP33: 2.138648747e-09 | CQ33: =(($B$103+$C$103)/2)*CP33 -> 3.154506902e-08 | CR33: =(22/7)*((($B$103+$C$103)/4)^2)*CP33 -> 3.655848177e-07 | CS33: =SUM(CP33:$CP$34) -> 2.325274193e-09 | CT33: =IF($B$103>CT52,0,IF($C$103>CT52,CS33,0)) -> 0 | CU33: =IF(CT36>CS33,CS33,0) -> 2.325274193e-09 | CV33: 0 | CW33: =IF(CV33>0,SUM(CQ33:CQ34),0) -> 0 | CX33: 0 | CY33: =IF(CX33>0,(($B$102+$C$102)/2),0) -> 0 | DB33: =CONCATENATE($B$103,$A$74,$C$103) -> 14.5 to 15 | DC33: 2.964039032e-08 | DD33: =(($B$103+$C$103)/2)*DC33 -> 4.371957572e-07 | DE33: =(22/7)*((($B$103+$C$103)/4)^2)*DC33 -> 5.066786543e-06 | DF33: =SUM(DC33:$DC$34) -> 3.291722152e-08 | DG33: =IF($B$103>DG52,0,IF($C$103>DG52,DF33,0)) -> 0 | DH33: =IF(DG36>DF33,DF33,0) -> 3.291722152e-08 | DI33: 0 | DJ33: =IF(DI33>0,SUM(DD33:DD34),0) -> 0 | DK33: 0 | DL33: =IF(DK33>0,(($B$102+$C$102)/2),0) -> 0 | DO33: =CONCATENATE($B$103,$A$74,$C$103) -> 14.5 to 15 | DP33: 2.854091989e-07 | DQ33: =(($B$103+$C$103)/2)*DP33 -> 4.209785684e-06 | DR33: =(22/7)*((($B$103+$C$103)/4)^2)*DP33 -> 4.878840909e-05 | DS33: =SUM(DP33:$DP$34) -> 3.242577821e-07 | DT33: =IF($B$103>DT52,0,IF($C$103>DT52,DS33,0)) -> 0 | DU33: =IF(DT36>DS33,DS33,0) -> 3.242577821e-07 | DV33: 0 | DW33: =IF(DV33>0,SUM(DQ33:DQ34),0) -> 0 | DX33: 0 | DY33: =IF(DX33>0,(($B$102+$C$102)/2),0) -> 0 | EB33: =CONCATENATE($B$103,$A$74,$C$103) -> 14.5 to 15 | EC33: 2.022219393e-06 | ED33: =(($B$103+$C$103)/2)*EC33 -> 2.982773605e-05 | EE33: =(22/7)*((($B$103+$C$103)/4)^2)*EC33 -> 0.0003456821553 | EF33: =SUM(EC33:$EC$34) -> 2.353019837e-06 | EG33: =IF($B$103>EG52,0,IF($C$103>EG52,EF33,0)) -> 0 | EH33: =IF(EG36>EF33,EF33,0) -> 2.353019837e-06 | EI33: 0 | EJ33: =IF(EI33>0,SUM(ED33:ED34),0) -> 0 | EK33: 0 | EL33: =IF(EK33>0,(($B$102+$C$102)/2),0) -> 0 | EO33: =CONCATENATE($B$103,$A$74,$C$103) -> 14.5 to 15 | EP33: 1.105306206e-05 | EQ33: =(($B$103+$C$103)/2)*EP33 -> 0.0001630326654 | ER33: =(22/7)*((($B$103+$C$103)/4)^2)*EP33 -> 0.00188943214 | ES33: =SUM(EP33:$EP$34) -> 1.318151386e-05 | ET33: =IF($B$103>ET52,0,IF($C$103>ET52,ES33,0)) -> 0 | EU33: =IF(ET36>ES33,ES33,0) -> 1.318151386e-05 | EV33: 0 | EW33: =IF(EV33>0,SUM(EQ33:EQ34),0) -> 0 | EX33: 0 | EY33: =IF(EX33>0,(($B$102+$C$102)/2),0) -> 0 | FB33: =CONCATENATE($B$103,$A$74,$C$103) -> 14.5 to 15 | FC33: 4.846451782e-05 | FD33: =(($B$103+$C$103)/2)*FC33 -> 0.0007148516378 | FE33: =(22/7)*((($B$103+$C$103)/4)^2)*FC33 -> 0.008284619874 | FF33: =SUM(FC33:$FC$34) -> 5.925694353e-05 | FG33: =IF($B$103>FG52,0,IF($C$103>FG52,FF33,0)) -> 0 | FH33: =IF(FG36>FF33,FF33,0) -> 5.925694353e-05 | FI33: 0 | FJ33: =IF(FI33>0,SUM(FD33:FD34),0) -> 0 | FK33: 0 | FL33: =IF(FK33>0,(($B$102+$C$102)/2),0) -> 0 | FO33: =CONCATENATE($B$103,$A$74,$C$103) -> 14.5 to 15 | FP33: 0.0001797502546 | FQ33: =(($B$103+$C$103)/2)*FP33 -> 0.002651316255 | FR33: =(22/7)*((($B$103+$C$103)/4)^2)*FP33 -> 0.0307268616 | FS33: =SUM(FP33:$FP$34) -> 0.0002253325977 | FT33: =IF($B$103>FT52,0,IF($C$103>FT52,FS33,0)) -> 0 | FU33: =IF(FT36>FS33,FS33,0) -> 0.0002253325977 | FV33: 0 | FW33: =IF(FV33>0,SUM(FQ33:FQ34),0) -> 0 | FX33: 0 | FY33: =IF(FX33>0,(($B$102+$C$102)/2),0) -> 0 | GB33: =CONCATENATE($B$103,$A$74,$C$103) -> 14.5 to 15 | GC33: 0.0005657683342 | GD33: =(($B$103+$C$103)/2)*GC33 -> 0.00834508293 | GE33: =(22/7)*((($B$103+$C$103)/4)^2)*GC33 -> 0.09671355039 | GF33: =SUM(GC33:$GC$34) -> 0.0007269788596 | GG33: =IF($B$103>GG52,0,IF($C$103>GG52,GF33,0)) -> 0 | GH33: =IF(GG36>GF33,GF33,0) -> 0.0007269788596 | GI33: 0 | GJ33: =IF(GI33>0,SUM(GD33:GD34),0) -> 0 | GK33: 0 | GL33: =IF(GK33>0,(($B$102+$C$102)/2),0) -> 0
B34: =CONCATENATE($B$104,$A$74,$C$104) -> 15 to 15.5 | C34: 0 | D34: =(($B$104+$C$104)/2)*C34 -> 0 | E34: =(22/7)*((($B$104+$C$104)/4)^2)*C34 -> 0 | F34: =SUM(C34:$C$34) -> 0 | G34: =IF($B$104>G52,0,IF($C$104>G52,F34,0)) -> 0 | H34: =IF(G36>F34,F34,0) -> 0 | I34: 0 | J34: =IF(I34>0,SUM(D34:D34),0) -> 0 | K34: 0 | L34: =IF(K34>0,(($B$103+$C$103)/2),0) -> 0 | O34: =CONCATENATE($B$104,$A$74,$C$104) -> 15 to 15.5 | P34: 0 | Q34: =(($B$104+$C$104)/2)*P34 -> 0 | R34: =(22/7)*((($B$104+$C$104)/4)^2)*P34 -> 0 | S34: =SUM(P34:$P$34) -> 0 | T34: =IF($B$104>T52,0,IF($C$104>T52,S34,0)) -> 0 | U34: =IF(T36>S34,S34,0) -> 0 | V34: 0 | W34: =IF(V34>0,SUM(Q34:Q34),0) -> 0 | X34: 0 | Y34: =IF(X34>0,(($B$103+$C$103)/2),0) -> 0 | AB34: =CONCATENATE($B$104,$A$74,$C$104) -> 15 to 15.5 | AC34: 0 | AD34: =(($B$104+$C$104)/2)*AC34 -> 0 | AE34: =(22/7)*((($B$104+$C$104)/4)^2)*AC34 -> 0 | AF34: =SUM(AC34:$AC$34) -> 0 | AG34: =IF($B$104>AG52,0,IF($C$104>AG52,AF34,0)) -> 0 | AH34: =IF(AG36>AF34,AF34,0) -> 0 | AI34: 0 | AJ34: =IF(AI34>0,SUM(AD34:AD34),0) -> 0 | AK34: 0 | AL34: =IF(AK34>0,(($B$103+$C$103)/2),0) -> 0 | AO34: =CONCATENATE($B$104,$A$74,$C$104) -> 15 to 15.5 | AP34: 3.89754895e-11 | AQ34: =(($B$104+$C$104)/2)*AP34 -> 5.943762149e-10 | AR34: =(22/7)*((($B$104+$C$104)/4)^2)*AP34 -> 7.121900718e-09 | AS34: =SUM(AP34:$AP$34) -> 3.89754895e-11 | AT34: =IF($B$104>AT52,0,IF($C$104>AT52,AS34,0)) -> 0 | AU34: =IF(AT36>AS34,AS34,0) -> 3.89754895e-11 | AV34: 0 | AW34: =IF(AV34>0,SUM(AQ34:AQ34),0) -> 0 | AX34: 0 | AY34: =IF(AX34>0,(($B$103+$C$103)/2),0) -> 0 | BB34: =CONCATENATE($B$104,$A$74,$C$104) -> 15 to 15.5 | BC34: 5.514856069e-05 | BD34: =(($B$104+$C$104)/2)*BC34 -> 0.0008410155506 | BE34: =(22/7)*((($B$104+$C$104)/4)^2)*BC34 -> 0.01007716847 | BF34: =SUM(BC34:$BC$34) -> 5.514856069e-05 | BG34: =IF($B$104>BG52,0,IF($C$104>BG52,BF34,0)) -> 0 | BH34: =IF(BG36>BF34,BF34,0) -> 5.514856069e-05 | BI34: 0 | BJ34: =IF(BI34>0,SUM(BD34:BD34),0) -> 0 | BK34: 0 | BL34: =IF(BK34>0,(($B$103+$C$103)/2),0) -> 0 | BO34: =CONCATENATE($B$104,$A$74,$C$104) -> 15 to 15.5 | BP34: 1.452202162e-13 | BQ34: =(($B$104+$C$104)/2)*BP34 -> 2.214608297e-12 | BR34: =(22/7)*((($B$104+$C$104)/4)^2)*BP34 -> 2.653575299e-11 | BS34: =SUM(BP34:$BP$34) -> 1.452202162e-13 | BT34: =IF($B$104>BT52,0,IF($C$104>BT52,BS34,0)) -> 0 | BU34: =IF(BT36>BS34,BS34,0) -> 1.452202162e-13 | BV34: 0 | BW34: =IF(BV34>0,SUM(BQ34:BQ34),0) -> 0 | BX34: 0 | BY34: =IF(BX34>0,(($B$103+$C$103)/2),0) -> 0 | CB34: =CONCATENATE($B$104,$A$74,$C$104) -> 15 to 15.5 | CC34: 6.637750303e-12 | CD34: =(($B$104+$C$104)/2)*CC34 -> 1.012256921e-10 | CE34: =(22/7)*((($B$104+$C$104)/4)^2)*CC34 -> 1.212900704e-09 | CF34: =SUM(CC34:$CC$34) -> 6.637750303e-12 | CG34: =IF($B$104>CG52,0,IF($C$104>CG52,CF34,0)) -> 0 | CH34: =IF(CG36>CF34,CF34,0) -> 6.637750303e-12 | CI34: 0 | CJ34: =IF(CI34>0,SUM(CD34:CD34),0) -> 0 | CK34: 0 | CL34: =IF(CK34>0,(($B$103+$C$103)/2),0) -> 0 | CO34: =CONCATENATE($B$104,$A$74,$C$104) -> 15 to 15.5 | CP34: 1.866254457e-10 | CQ34: =(($B$104+$C$104)/2)*CP34 -> 2.846038047e-09 | CR34: =(22/7)*((($B$104+$C$104)/4)^2)*CP34 -> 3.410163445e-08 | CS34: =SUM(CP34:$CP$34) -> 1.866254457e-10 | CT34: =IF($B$104>CT52,0,IF($C$104>CT52,CS34,0)) -> 0 | CU34: =IF(CT36>CS34,CS34,0) -> 1.866254457e-10 | CV34: 0 | CW34: =IF(CV34>0,SUM(CQ34:CQ34),0) -> 0 | CX34: 0 | CY34: =IF(CX34>0,(($B$103+$C$103)/2),0) -> 0 | DB34: =CONCATENATE($B$104,$A$74,$C$104) -> 15 to 15.5 | DC34: 3.276831203e-09 | DD34: =(($B$104+$C$104)/2)*DC34 -> 4.997167584e-08 | DE34: =(22/7)*((($B$104+$C$104)/4)^2)*DC34 -> 5.987677587e-07 | DF34: =SUM(DC34:$DC$34) -> 3.276831203e-09 | DG34: =IF($B$104>DG52,0,IF($C$104>DG52,DF34,0)) -> 0 | DH34: =IF(DG36>DF34,DF34,0) -> 3.276831203e-09 | DI34: 0 | DJ34: =IF(DI34>0,SUM(DD34:DD34),0) -> 0 | DK34: 0 | DL34: =IF(DK34>0,(($B$103+$C$103)/2),0) -> 0 | DO34: =CONCATENATE($B$104,$A$74,$C$104) -> 15 to 15.5 | DP34: 3.884858312e-08 | DQ34: =(($B$104+$C$104)/2)*DP34 -> 5.924408926e-07 | DR34: =(22/7)*((($B$104+$C$104)/4)^2)*DP34 -> 7.09871141e-06 | DS34: =SUM(DP34:$DP$34) -> 3.884858312e-08 | DT34: =IF($B$104>DT52,0,IF($C$104>DT52,DS34,0)) -> 0 | DU34: =IF(DT36>DS34,DS34,0) -> 3.884858312e-08 | DV34: 0 | DW34: =IF(DV34>0,SUM(DQ34:DQ34),0) -> 0 | DX34: 0 | DY34: =IF(DX34>0,(($B$103+$C$103)/2),0) -> 0 | EB34: =CONCATENATE($B$104,$A$74,$C$104) -> 15 to 15.5 | EC34: 3.308004438e-07 | ED34: =(($B$104+$C$104)/2)*EC34 -> 5.044706768e-06 | EE34: =(22/7)*((($B$104+$C$104)/4)^2)*EC34 -> 6.044639717e-05 | EF34: =SUM(EC34:$EC$34) -> 3.308004438e-07 | EG34: =IF($B$104>EG52,0,IF($C$104>EG52,EF34,0)) -> 0 | EH34: =IF(EG36>EF34,EF34,0) -> 3.308004438e-07 | EI34: 0 | EJ34: =IF(EI34>0,SUM(ED34:ED34),0) -> 0 | EK34: 0 | EL34: =IF(EK34>0,(($B$103+$C$103)/2),0) -> 0 | EO34: =CONCATENATE($B$104,$A$74,$C$104) -> 15 to 15.5 | EP34: 2.128451799e-06 | EQ34: =(($B$104+$C$104)/2)*EP34 -> 3.245888993e-05 | ER34: =(22/7)*((($B$104+$C$104)/4)^2)*EP34 -> 0.0003889270562 | ES34: =SUM(EP34:$EP$34) -> 2.128451799e-06 | ET34: =IF($B$104>ET52,0,IF($C$104>ET52,ES34,0)) -> 0 | EU34: =IF(ET36>ES34,ES34,0) -> 2.128451799e-06 | EV34: 0 | EW34: =IF(EV34>0,SUM(EQ34:EQ34),0) -> 0 | EX34: 0 | EY34: =IF(EX34>0,(($B$103+$C$103)/2),0) -> 0 | FB34: =CONCATENATE($B$104,$A$74,$C$104) -> 15 to 15.5 | FC34: 1.079242571e-05 | FD34: =(($B$104+$C$104)/2)*FC34 -> 0.000164584492 | FE34: =(22/7)*((($B$104+$C$104)/4)^2)*FC34 -> 0.001972074895 | FF34: =SUM(FC34:$FC$34) -> 1.079242571e-05 | FG34: =IF($B$104>FG52,0,IF($C$104>FG52,FF34,0)) -> 0 | FH34: =IF(FG36>FF34,FF34,0) -> 1.079242571e-05 | FI34: 0 | FJ34: =IF(FI34>0,SUM(FD34:FD34),0) -> 0 | FK34: 0 | FL34: =IF(FK34>0,(($B$103+$C$103)/2),0) -> 0 | FO34: =CONCATENATE($B$104,$A$74,$C$104) -> 15 to 15.5 | FP34: 4.558234313e-05 | FQ34: =(($B$104+$C$104)/2)*FP34 -> 0.0006951307327 | FR34: =(22/7)*((($B$104+$C$104)/4)^2)*FP34 -> 0.008329155743 | FS34: =SUM(FP34:$FP$34) -> 4.558234313e-05 | FT34: =IF($B$104>FT52,0,IF($C$104>FT52,FS34,0)) -> 0 | FU34: =IF(FT36>FS34,FS34,0) -> 4.558234313e-05 | FV34: 0 | FW34: =IF(FV34>0,SUM(FQ34:FQ34),0) -> 0 | FX34: 0 | FY34: =IF(FX34>0,(($B$103+$C$103)/2),0) -> 0 | GB34: =CONCATENATE($B$104,$A$74,$C$104) -> 15 to 15.5 | GC34: 0.0001612105254 | GD34: =(($B$104+$C$104)/2)*GC34 -> 0.002458460512 | GE34: =(22/7)*((($B$104+$C$104)/4)^2)*GC34 -> 0.02945762506 | GF34: =SUM(GC34:$GC$34) -> 0.0001612105254 | GG34: =IF($B$104>GG52,0,IF($C$104>GG52,GF34,0)) -> 0 | GH34: =IF(GG36>GF34,GF34,0) -> 0.0001612105254 | GI34: 0 | GJ34: =IF(GI34>0,SUM(GD34:GD34),0) -> 0 | GK34: 0 | GL34: =IF(GK34>0,(($B$103+$C$103)/2),0) -> 0
C35: =SUM(C4:C34) -> 59.97425638 | D35: =SUM(D4:D34) -> 138.0072049 | E35: =SUM(E4:E34) -> 272.8106817 | G35: =SUM(G4:G34) -> 0.4124550761 | I35: =SUM(I4:I34) -> 0 | J35: =SUM(J4:J34) -> 0 | K35: =SUM(K4:K34) -> 0 | L35: =SUM(L4:L34) -> 0 | P35: =SUM(P4:P34) -> 149.935641 | Q35: =SUM(Q4:Q34) -> 405.0193314 | R35: =SUM(R4:R34) -> 969.7854912 | T35: =SUM(T4:T34) -> 15.00435877 | V35: =SUM(V4:V34) -> 0 | W35: =SUM(W4:W34) -> 0 | X35: =SUM(X4:X34) -> 0 | Y35: =SUM(Y4:Y34) -> 0 | AC35: =SUM(AC4:AC34) -> 239.8970255 | AD35: =SUM(AD4:AD34) -> 762.0337257 | AE35: =SUM(AE4:AE34) -> 2201.16938 | AG35: =SUM(AG4:AG34) -> 57.71406078 | AI35: =SUM(AI4:AI34) -> 0 | AJ35: =SUM(AJ4:AJ34) -> 0 | AK35: =SUM(AK4:AK34) -> 0 | AL35: =SUM(AL4:AL34) -> 0 | AP35: =SUM(AP4:AP34) -> 329.8584101 | AQ35: =SUM(AQ4:AQ34) -> 1179.049787 | AR35: =SUM(AR4:AR34) -> 3861.622056 | AT35: =SUM(AT4:AT34) -> 118.1170511 | AV35: =SUM(AV4:AV34) -> 20.86731111 | AW35: =SUM(AW4:AW34) -> 140.6739114 | AX35: =SUM(AX4:AX34) -> 35.84016431 | AY35: =SUM(AY4:AY34) -> 5.75 | BC35: =SUM(BC4:BC34) -> 338.307022 | BD35: =SUM(BD4:BD34) -> 1419.002874 | BE35: =SUM(BE4:BE34) -> 5427.786399 | BG35: =SUM(BG4:BG34) -> 132.2270156 | BI35: =SUM(BI4:BI34) -> 20.27332892 | BJ35: =SUM(BJ4:BJ34) -> 163.1766272 | BK35: =SUM(BK4:BK34) -> 31.37595389 | BL35: =SUM(BL4:BL34) -> 6.75 | BP35: =SUM(BP4:BP34) -> 326.8665502 | BQ35: =SUM(BQ4:BQ34) -> 1437.062662 | BR35: =SUM(BR4:BR34) -> 5413.513516 | BT35: =SUM(BT4:BT34) -> 153.0671025 | BV35: =SUM(BV4:BV34) -> 18.02306003 | BW35: =SUM(BW4:BW34) -> 127.8105197 | BX35: =SUM(BX4:BX34) -> 36.50474969 | BY35: =SUM(BY4:BY34) -> 6.25 | CC35: =SUM(CC4:CC34) -> 311.2598288 | CD35: =SUM(CD4:CD34) -> 1431.369313 | CE35: =SUM(CE4:CE34) -> 5639.519649 | CG35: =SUM(CG4:CG34) -> 164.3815514 | CI35: =SUM(CI4:CI34) -> 26.07268929 | CJ35: =SUM(CJ4:CJ34) -> 186.6314517 | CK35: =SUM(CK4:CK34) -> 48.0733799 | CL35: =SUM(CL4:CL34) -> 6.25 | CP35: =SUM(CP4:CP34) -> 293.3911885 | CQ35: =SUM(CQ4:CQ34) -> 1408.534357 | CR35: =SUM(CR4:CR34) -> 5793.187649 | CT35: =SUM(CT4:CT34) -> 170.8762064 | CV35: =SUM(CV4:CV34) -> 18.52442602 | CW35: =SUM(CW4:CW34) -> 141.7790118 | CX35: =SUM(CX4:CX34) -> 34.82113024 | CY35: =SUM(CY4:CY34) -> 6.75 | DC35: =SUM(DC4:DC34) -> 274.2241746 | DD35: =SUM(DD4:DD34) -> 1372.001304 | DE35: =SUM(DE4:DE34) -> 5880.372828 | DG35: =SUM(DG4:DG34) -> 173.0429768 | DI35: =SUM(DI4:DI34) -> 25.05980787 | DJ35: =SUM(DJ4:DJ34) -> 193.523096 | DK35: =SUM(DK4:DK34) -> 43.57611896 | DL35: =SUM(DL4:DL34) -> 6.75 | DP35: =SUM(DP4:DP34) -> 254.6239925 | DQ35: =SUM(DQ4:DQ34) -> 1325.480672 | DR35: =SUM(DR4:DR34) -> 5910.497263 | DT35: =SUM(DT4:DT34) -> 171.6454704 | DV35: =SUM(DV4:DV34) -> 31.80350379 | DW35: =SUM(DW4:DW34) -> 247.9640563 | DX35: =SUM(DX4:DX34) -> 51.72460318 | DY35: =SUM(DY4:DY34) -> 6.75 | EC35: =SUM(EC4:EC34) -> 235.3031917 | ED35: =SUM(ED4:ED34) -> 1272.55755 | EE35: =SUM(EE4:EE34) -> 5894.966329 | EG35: =SUM(EG4:EG34) -> 167.5448392 | EI35: =SUM(EI4:EI34) -> 23.13340075 | EJ35: =SUM(EJ4:EJ34) -> 191.7221254 | EK35: =SUM(EK4:EK34) -> 38.31619093 | EL35: =SUM(EL4:EL34) -> 7.25 | EP35: =SUM(EP4:EP34) -> 216.8021649 | EQ35: =SUM(EQ4:EQ34) -> 1216.428328 | ER35: =SUM(ER4:ER34) -> 5845.798122 | ET35: =SUM(ET4:ET34) -> 161.5745511 | EV35: =SUM(EV4:EV34) -> 28.2852687 | EW35: =SUM(EW4:EW34) -> 236.5618024 | EX35: =SUM(EX4:EX34) -> 44.25574129 | EY35: =SUM(EY4:EY34) -> 7.25 | FC35: =SUM(FC4:FC34) -> 199.4946816 | FD35: =SUM(FD4:FD34) -> 1159.75904 | FE35: =SUM(FE4:FE34) -> 5774.584066 | FG35: =SUM(FG4:FG34) -> 135.5289444 | FI35: =SUM(FI4:FI34) -> 20.87344279 | FJ35: =SUM(FJ4:FJ34) -> 184.8059345 | FK35: =SUM(FK4:FK34) -> 33.18382758 | FL35: =SUM(FL4:FL34) -> 7.75 | FP35: =SUM(FP4:FP34) -> 187.3940759 | FQ35: =SUM(FQ4:FQ34) -> 1127.415963 | FR35: =SUM(FR4:FR34) -> 5809.153437 | FT35: =SUM(FT4:FT34) -> 133.6446482 | FV35: =SUM(FV4:FV34) -> 25.387153 | FW35: =SUM(FW4:FW34) -> 226.7234898 | FX35: =SUM(FX4:FX34) -> 38.42708954 | FY35: =SUM(FY4:FY34) -> 7.75 | GC35: =SUM(GC4:GC34) -> 175.6701359 | GD35: =SUM(GD4:GD34) -> 1092.523359 | GE35: =SUM(GE4:GE34) -> 5819.010182 | GG35: =SUM(GG4:GG34) -> 130.5551835 | GI35: =SUM(GI4:GI34) -> 19.39614811 | GJ35: =SUM(GJ4:GJ34) -> 182.7157348 | GK35: =SUM(GK4:GK34) -> 29.77408583 | GL35: =SUM(GL4:GL34) -> 8.25
C36: Average Diameter = | D36: =D35/IF(C35>0,C35,1) -> 2.301107396 | E36: =(E35/10000)*100 -> 2.728106817 | G36: =IF(E36>Biomass!$E$2,($A$54)*G35,0) -> 0 | J36: =J35/IF(I35>0,I35,1) -> 0 | P36: Average Diameter = | Q36: =Q35/IF(P35>0,P35,1) -> 2.701287892 | R36: =(R35/10000)*100 -> 9.697854912 | T36: =IF(R36>Biomass!$E$2,($A$54)*T35,0) -> 0 | W36: =W35/IF(V35>0,V35,1) -> 0 | AC36: Average Diameter = | AD36: =AD35/IF(AC35>0,AC35,1) -> 3.176503435 | AE36: =(AE35/10000)*100 -> 22.0116938 | AG36: =IF(AE36>Biomass!$E$2,($A$54)*AG35,0) -> 0 | AJ36: =AJ35/IF(AI35>0,AI35,1) -> 0 | AP36: Average Diameter = | AQ36: =AQ35/IF(AP35>0,AP35,1) -> 3.574411782 | AR36: =(AR35/10000)*100 -> 38.61622056 | AT36: =IF(AR36>Biomass!$E$2,($A$54)*AT35,0) -> 23.62341022 | AW36: =AW35/IF(AV35>0,AV35,1) -> 6.741353054 | BC36: Average Diameter = | BD36: =BD35/IF(BC35>0,BC35,1) -> 4.194423355 | BE36: =(BE35/10000)*100 -> 54.27786399 | BG36: =IF(BE36>Biomass!$E$2,($A$54)*BG35,0) -> 26.44540311 | BJ36: =BJ35/IF(BI35>0,BI35,1) -> 8.048832426 | BP36: Average Diameter = | BQ36: =BQ35/IF(BP35>0,BP35,1) -> 4.39648126 | BR36: =(BR35/10000)*100 -> 54.13513516 | BT36: =IF(BR36>Biomass!$E$2,($A$54)*BT35,0) -> 30.61342051 | BW36: =BW35/IF(BV35>0,BV35,1) -> 7.091499421 | CC36: Average Diameter = | CD36: =CD35/IF(CC35>0,CC35,1) -> 4.598631694 | CE36: =(CE35/10000)*100 -> 56.39519649 | CG36: =IF(CE36>Biomass!$E$2,($A$54)*CG35,0) -> 32.87631027 | CJ36: =CJ35/IF(CI35>0,CI35,1) -> 7.158120502 | CP36: Average Diameter = | CQ36: =CQ35/IF(CP35>0,CP35,1) -> 4.800874778 | CR36: =(CR35/10000)*100 -> 57.93187649 | CT36: =IF(CR36>Biomass!$E$2,($A$54)*CT35,0) -> 34.17524128 | CW36: =CW35/IF(CV35>0,CV35,1) -> 7.653625096 | DC36: Average Diameter = | DD36: =DD35/IF(DC35>0,DC35,1) -> 5.003210626 | DE36: =(DE35/10000)*100 -> 58.80372828 | DG36: =IF(DE36>Biomass!$E$2,($A$54)*DG35,0) -> 34.60859537 | DJ36: =DJ35/IF(DI35>0,DI35,1) -> 7.722449311 | DP36: Average Diameter= | DQ36: =DQ35/IF(DP35>0,DP35,1) -> 5.205639342 | DR36: =(DR35/10000)*100 -> 59.10497263 | DT36: =IF(DR36>Biomass!$E$2,($A$54)*DT35,0) -> 34.32909407 | DW36: =DW35/IF(DV35>0,DV35,1) -> 7.796752772 | EC36: Average Diameter = | ED36: =ED35/IF(EC35>0,EC35,1) -> 5.408161022 | EE36: =(EE35/10000)*100 -> 58.94966329 | EG36: =IF(EE36>Biomass!$E$2,($A$54)*EG35,0) -> 33.50896785 | EJ36: =EJ35/IF(EI35>0,EI35,1) -> 8.287675789 | EP36: Average Diameter = | EQ36: =EQ35/IF(EP35>0,EP35,1) -> 5.610775745 | ER36: =(ER35/10000)*100 -> 58.45798122 | ET36: =IF(ER36>Biomass!$E$2,($A$54)*ET35,0) -> 32.31491021 | EW36: =EW35/IF(EV35>0,EV35,1) -> 8.363427793 | FC36: Average Diameter = | FD36: =FD35/IF(FC35>0,FC35,1) -> 5.8134835 | FE36: =(FE35/10000)*100 -> 57.74584066 | FG36: =IF(FE36>Biomass!$E$2,($A$54)*FG35,0) -> 27.10578889 | FJ36: =FJ35/IF(FI35>0,FI35,1) -> 8.853639354 | FP36: Average Diameter = | FQ36: =FQ35/IF(FP35>0,FP35,1) -> 6.016283908 | FR36: =(FR35/10000)*100 -> 58.09153437 | FT36: =IF(FR36>Biomass!$E$2,($A$54)*FT35,0) -> 26.72892963 | FW36: =FW35/IF(FV35>0,FV35,1) -> 8.930638647 | GC36: Average Diameter = | GD36: =GD35/IF(GC35>0,GC35,1) -> 6.219175236 | GE36: =(GE35/10000)*100 -> 58.19010182 | GG36: =IF(GE36>Biomass!$E$2,($A$54)*GG35,0) -> 26.1110367 | GJ36: =GJ35/IF(GI35>0,GI35,1) -> 9.420207237
B38: Diameter | C38: Distribution | D38: Diameter Range | E38: Number of Culms | G38: Number of Culms | H38: Average Diameter | I38: Number of Culms | J38: Average Diameter | O38: Diameter | P38: Distribution | Q38: Diameter Range | R38: Number of Culms | T38: Number of Culms | U38: Average Diameter | V38: Number of Culms | W38: Average Diameter | AB38: Diameter | AC38: Distribution | AD38: Diameter Range | AE38: Number of Culms | AG38: Number of Culms | AH38: Average Diameter | AI38: Number of Culms | AJ38: Average Diameter | AO38: Diameter | AP38: Distribution | AQ38: Diameter Range | AR38: Number of Culms | AT38: Number of Culms | AU38: Average Diameter | AV38: Number of Culms | AW38: Average Diameter | BB38: Diameter | BC38: Distribution | BD38: Diameter Range | BE38: Number of Culms | BG38: Number of Culms | BH38: Average Diameter | BI38: Number of Culms | BJ38: Average Diameter | BO38: Diameter | BP38: Distribution | BQ38: Diameter Range | BR38: Number of Culms | BT38: Number of Culms | BU38: Average Diameter | BV38: Number of Culms | BW38: Average Diameter | CB38: Diameter | CC38: Distribution | CD38: Diameter Range | CE38: Number of Culms | CG38: Number of Culms | CH38: Average Diameter | CI38: Number of Culms | CJ38: Average Diameter | CO38: Diameter | CP38: Distribution | CQ38: Diameter Range | CR38: Number of Culms | CT38: Number of Culms | CU38: Average Diameter | CV38: Number of Culms | CW38: Average Diameter | DB38: Diameter | DC38: Distribution | DD38: Diameter Range | DE38: Number of Culms | DG38: Number of Culms | DH38: Average Diameter | DI38: Number of Culms | DJ38: Average Diameter | DO38: Diameter | DP38: Distribution | DQ38: Diameter Range | DR38: Number of Culms | DT38: Number of Culms | DU38: Average Diameter | DV38: Number of Culms | DW38: Average Diameter | EB38: Diameter | EC38: Distribution | ED38: Diameter Range | EE38: Number of Culms | EG38: Number of Culms | EH38: Average Diameter | EI38: Number of Culms | EJ38: Average Diameter | EO38: Diameter | EP38: Distribution | EQ38: Diameter Range | ER38: Number of Culms | ET38: Number of Culms | EU38: Average Diameter | EV38: Number of Culms | EW38: Average Diameter | FB38: Diameter | FC38: Distribution | FD38: Diameter Range | FE38: Number of Culms | FG38: Number of Culms | FH38: Average Diameter | FI38: Number of Culms | FJ38: Average Diameter | FO38: Diameter | FP38: Distribution | FQ38: Diameter Range | FR38: Number of Culms | FT38: Number of Culms | FU38: Average Diameter | FV38: Number of Culms | FW38: Average Diameter | GB38: Diameter | GC38: Distribution | GD38: Diameter Range | GE38: Number of Culms | GG38: Number of Culms | GH38: Average Diameter | GI38: Number of Culms | GJ38: Average Diameter
A39: Mean | B39: =$B$74 -> 0 | C39: =NORMDIST(B39,A40,A42,TRUE) -> 0.0004290603332 | D39: =CONCATENATE($B$74,$A$74,$C$74) -> 0 to 0.5 | E39: =(C40-C39)*A44 -> 0.2469204936 | G39: =I35 -> 0 | H39: =J36 -> 0 | I39: =G36-I35 -> 0 | J39: =L35 -> 0 | N39: Mean | O39: =$B$74 -> 0 | P39: =NORMDIST(O39,N40,N42,TRUE) -> 0.0004290603332 | Q39: =CONCATENATE($B$74,$A$74,$C$74) -> 0 to 0.5 | R39: =(P40-P39)*N44 -> 0.3703807404 | T39: =V35 -> 0 | U39: =W36 -> 0 | V39: =T36-V35 -> 0 | W39: =Y35 -> 0 | AA39: Mean | AB39: =$B$74 -> 0 | AC39: =NORMDIST(AB39,AA40,AA42,TRUE) -> 0.0004290603332 | AD39: =CONCATENATE($B$74,$A$74,$C$74) -> 0 to 0.5 | AE39: =(AC40-AC39)*AA44 -> 0.3703807404 | AG39: =AI35 -> 0 | AH39: =AJ36 -> 0 | AI39: =AG36-AI35 -> 0 | AJ39: =AL35 -> 0 | AN39: Mean | AO39: =$B$74 -> 0 | AP39: =NORMDIST(AO39,AN40,AN42,TRUE) -> 0.0004290603332 | AQ39: =CONCATENATE($B$74,$A$74,$C$74) -> 0 to 0.5 | AR39: =(AP40-AP39)*AN44 -> 0.3703807404 | AT39: =AV35 -> 20.86731111 | AU39: =AW36 -> 6.741353054 | AV39: =AT36-AV35 -> 2.756099114 | AW39: =AY35 -> 5.75 | BA39: Mean | BB39: =$B$74 -> 0 | BC39: =NORMDIST(BB39,BA40,BA42,TRUE) -> 0.0004290603332 | BD39: =CONCATENATE($B$74,$A$74,$C$74) -> 0 to 0.5 | BE39: =(BC40-BC39)*BA44 -> 0.1320023344 | BG39: =BI35 -> 20.27332892 | BH39: =BJ36 -> 8.048832426 | BI39: =BG36-BI35 -> 6.172074196 | BJ39: =BL35 -> 6.75 | BN39: Mean | BO39: =$B$74 -> 0 | BP39: =NORMDIST(BO39,BN40,BN42,TRUE) -> 0.0004290603332 | BQ39: =CONCATENATE($B$74,$A$74,$C$74) -> 0 to 0.5 | BR39: =(BP40-BP39)*BN44 -> 0.372470811 | BT39: =BV35 -> 18.02306003 | BU39: =BW36 -> 7.091499421 | BV39: =BT36-BV35 -> 12.59036048 | BW39: =BY35 -> 6.25 | CA39: Mean | CB39: =$B$74 -> 0 | CC39: =NORMDIST(CB39,CA40,CA42,TRUE) -> 0.0004290603332 | CD39: =CONCATENATE($B$74,$A$74,$C$74) -> 0 to 0.5 | CE39: =(CC40-CC39)*CA44 -> 0.3289465092 | CG39: =CI35 -> 26.07268929 | CH39: =CJ36 -> 7.158120502 | CI39: =CG36-CI35 -> 6.803620985 | CJ39: =CL35 -> 6.25 | CN39: Mean | CO39: =$B$74 -> 0 | CP39: =NORMDIST(CO39,CN40,CN42,TRUE) -> 0.0004290603332 | CQ39: =CONCATENATE($B$74,$A$74,$C$74) -> 0 to 0.5 | CR39: =(CP40-CP39)*CN44 -> 0.2888639841 | CT39: =CV35 -> 18.52442602 | CU39: =CW36 -> 7.653625096 | CV39: =CT36-CV35 -> 15.65081526 | CW39: =CY35 -> 6.75 | DA39: Mean | DB39: =$B$74 -> 0 | DC39: =NORMDIST(DB39,DA40,DA42,TRUE) -> 0.0004290603332 | DD39: =CONCATENATE($B$74,$A$74,$C$74) -> 0 to 0.5 | DE39: =(DC40-DC39)*DA44 -> 0.2525534613 | DG39: =DI35 -> 25.05980787 | DH39: =DJ36 -> 7.722449311 | DI39: =DG36-DI35 -> 9.548787497 | DJ39: =DL35 -> 6.75 | DN39: Mean | DO39: =$B$74 -> 0 | DP39: =NORMDIST(DO39,DN40,DN42,TRUE) -> 0.0004290603332 | DQ39: =CONCATENATE($B$74,$A$74,$C$74) -> 0 to 0.5 | DR39: =(DP40-DP39)*DN44 -> 0.2201548569 | DT39: =DV35 -> 31.80350379 | DU39: =DW36 -> 7.796752772 | DV39: =DT36-DV35 -> 2.525590285 | DW39: =DY35 -> 6.75 | EA39: Mean | EB39: =$B$74 -> 0 | EC39: =NORMDIST(EB39,EA40,EA42,TRUE) -> 0.0004290603332 | ED39: =CONCATENATE($B$74,$A$74,$C$74) -> 0 to 0.5 | EE39: =(EC40-EC39)*EA44 -> 0.1916308923 | EG39: =EI35 -> 23.13340075 | EH39: =EJ36 -> 8.287675789 | EI39: =EG36-EI35 -> 10.37556709 | EJ39: =EL35 -> 7.25 | EN39: Mean | EO39: =$B$74 -> 0 | EP39: =NORMDIST(EO39,EN40,EN42,TRUE) -> 0.0004290603332 | EQ39: =CONCATENATE($B$74,$A$74,$C$74) -> 0 to 0.5 | ER39: =(EP40-EP39)*EN44 -> 0.1668034237 | ET39: =EV35 -> 28.2852687 | EU39: =EW36 -> 8.363427793 | EV39: =ET36-EV35 -> 4.029641513 | EW39: =EY35 -> 7.25 | FA39: Mean | FB39: =$B$74 -> 0 | FC39: =NORMDIST(FB39,FA40,FA42,TRUE) -> 0.0004290603332 | FD39: =CONCATENATE($B$74,$A$74,$C$74) -> 0 to 0.5 | FE39: =(FC40-FC39)*FA44 -> 0.1453970453 | FG39: =FI35 -> 20.87344279 | FH39: =FJ36 -> 8.853639354 | FI39: =FG36-FI35 -> 6.2323461 | FJ39: =FL35 -> 7.75 | FN39: Mean | FO39: =$B$74 -> 0 | FP39: =NORMDIST(FO39,FN40,FN42,TRUE) -> 0.0004290603332 | FQ39: =CONCATENATE($B$74,$A$74,$C$74) -> 0 to 0.5 | FR39: =(FP40-FP39)*FN44 -> 0.1297002836 | FT39: =FV35 -> 25.387153 | FU39: =FW36 -> 8.930638647 | FV39: =FT36-FV35 -> 1.341776627 | FW39: =FY35 -> 7.75 | GA39: Mean | GB39: =$B$74 -> 0 | GC39: =NORMDIST(GB39,GA40,GA42,TRUE) -> 0.0004290603332 | GD39: =CONCATENATE($B$74,$A$74,$C$74) -> 0 to 0.5 | GE39: =(GC40-GC39)*GA44 -> 0.115726405 | GG39: =GI35 -> 19.39614811 | GH39: =GJ36 -> 9.420207237 | GI39: =GG36-GI35 -> 6.714888593 | GJ39: =GL35 -> 8.25
A40: =$BA$40 -> 2.3 | B40: =$B$75 -> 0.5 | C40: =NORMDIST(B40,A40,A42,TRUE) -> 0.004544401893 | D40: =CONCATENATE($B$75,$A$74,$C$75) -> 0.5 to 1 | E40: =(C41-C40)*A44 -> 1.51404992 | N40: =$BA$40 -> 2.3 | O40: =$B$75 -> 0.5 | P40: =NORMDIST(O40,N40,N42,TRUE) -> 0.004544401893 | Q40: =CONCATENATE($B$75,$A$74,$C$75) -> 0.5 to 1 | R40: =(P41-P40)*N44 -> 2.27107488 | AA40: =$BA$40 -> 2.3 | AB40: =$B$75 -> 0.5 | AC40: =NORMDIST(AB40,AA40,AA42,TRUE) -> 0.004544401893 | AD40: =CONCATENATE($B$75,$A$74,$C$75) -> 0.5 to 1 | AE40: =(AC41-AC40)*AA44 -> 2.27107488 | AN40: =$BA$40 -> 2.3 | AO40: =$B$75 -> 0.5 | AP40: =NORMDIST(AO40,AN40,AN42,TRUE) -> 0.004544401893 | AQ40: =CONCATENATE($B$75,$A$74,$C$75) -> 0.5 to 1 | AR40: =(AP41-AP40)*AN44 -> 2.27107488 | BA40: =Biomass!B2*Biomass!E9 -> 2.3 | BB40: =$B$75 -> 0.5 | BC40: =NORMDIST(BB40,BA40,BA42,TRUE) -> 0.004544401893 | BD40: =CONCATENATE($B$75,$A$74,$C$75) -> 0.5 to 1 | BE40: =(BC41-BC40)*BA44 -> 0.8094027388 | BM40: =($BD$36+(0.2)+(0.5*$BN$45))*Biomass!$E$9 -> 4.394423355 | BN40: =IF(BM40>(0.5*$A$73),(0.5*$A$73),BM40) -> 4.394423355 | BO40: =$B$75 -> 0.5 | BP40: =NORMDIST(BO40,BN40,BN42,TRUE) -> 0.00156809092 | BQ40: =CONCATENATE($B$75,$A$74,$C$75) -> 0.5 to 1 | BR40: =(BP41-BP40)*BN44 -> 1.127149307 | BZ40: =($BQ$36+0.2+(0.5*$CA$45))*Biomass!$E$9 -> 4.59648126 | CA40: =IF(BZ40>(0.5*$A$73),(0.5*$A$73),BZ40) -> 4.59648126 | CB40: =$B$75 -> 0.5 | CC40: =NORMDIST(CB40,CA40,CA42,TRUE) -> 0.001485429774 | CD40: =CONCATENATE($B$75,$A$74,$C$75) -> 0.5 to 1 | CE40: =(CC41-CC40)*CA44 -> 0.954839276 | CM40: =($CD$36+0.2+(0.5*$CN$45))*Biomass!$E$9 -> 4.798631694 | CN40: =IF(CM40>(0.5*$A$73),(0.5*$A$73),CM40) -> 4.798631694 | CO40: =$B$75 -> 0.5 | CP40: =NORMDIST(CO40,CN40,CN42,TRUE) -> 0.001413207286 | CQ40: =CONCATENATE($B$75,$A$74,$C$75) -> 0.5 to 1 | CR40: =(CP41-CP40)*CN44 -> 0.8066245124 | CZ40: =($CQ$36+0.2+(0.5*$DA$45))*Biomass!$E$9 -> 5.000874778 | DA40: =IF(CZ40>(0.5*$A$73),(0.5*$A$73),CZ40) -> 5.000874778 | DB40: =$B$75 -> 0.5 | DC40: =NORMDIST(DB40,DA40,DA42,TRUE) -> 0.00134963964 | DD40: =CONCATENATE($B$75,$A$74,$C$75) -> 0.5 to 1 | DE40: =(DC41-DC40)*DA44 -> 0.6802066058 | DM40: =($DD$36+0.2+(0.5*$DN$45))*Biomass!$E$9 -> 5.203210626 | DN40: =IF(DM40>(0.5*$A$73),(0.5*$A$73),DM40) -> 5.203210626 | DO40: =$B$75 -> 0.5 | DP40: =NORMDIST(DO40,DN40,DN42,TRUE) -> 0.001293316663 | DQ40: =CONCATENATE($B$75,$A$74,$C$75) -> 0.5 to 1 | DR40: =(DP41-DP40)*DN44 -> 0.5732644121 | DZ40: =($DQ$36+0.2+(0.5*$EA$45))*Biomass!$E$9 -> 5.405639342 | EA40: =IF(DZ40>(0.5*$A$73),(0.5*$A$73),DZ40) -> 5.405639342 | EB40: =$B$75 -> 0.5 | EC40: =NORMDIST(EB40,EA40,EA42,TRUE) -> 0.001243110791 | ED40: =CONCATENATE($B$75,$A$74,$C$75) -> 0.5 to 1 | EE40: =(EC41-EC40)*EA44 -> 0.4834666854 | EM40: =($ED$36+0.2+(0.5*$EN$45))*Biomass!$E$9 -> 5.608161022 | EN40: =IF(EM40>(0.5*$A$73),(0.5*$A$73),EM40) -> 5.608161022 | EO40: =$B$75 -> 0.5 | EP40: =NORMDIST(EO40,EN40,EN42,TRUE) -> 0.001198111024 | EQ40: =CONCATENATE($B$75,$A$74,$C$75) -> 0.5 to 1 | ER40: =(EP41-EP40)*EN44 -> 0.408537156 | EZ40: =($EQ$36+0.2+(0.5*$FA$45))*Biomass!$E$9 -> 5.810775745 | FA40: =IF(EZ40>(0.5*$A$73),(0.5*$A$73),EZ40) -> 5.810775745 | FB40: =$B$75 -> 0.5 | FC40: =NORMDIST(FB40,FA40,FA42,TRUE) -> 0.001157574287 | FD40: =CONCATENATE($B$75,$A$74,$C$75) -> 0.5 to 1 | FE40: =(FC41-FC40)*FA44 -> 0.3463254761 | FM40: =($FD$36+0.2+(0.5*$FN$45))*Biomass!$E$9 -> 6.0134835 | FN40: =IF(FM40>(0.5*$A$73),(0.5*$A$73),FM40) -> 6.0134835 | FO40: =$B$75 -> 0.5 | FP40: =NORMDIST(FO40,FN40,FN42,TRUE) -> 0.001120889167 | FQ40: =CONCATENATE($B$75,$A$74,$C$75) -> 0.5 to 1 | FR40: =(FP41-FP40)*FN44 -> 0.3009416617 | FZ40: =($FQ$36+0.2+(0.5*$GA$45))*Biomass!$E$9 -> 6.216283908 | GA40: =IF(FZ40>(0.5*$A$73),(0.5*$A$73),FZ40) -> 6.216283908 | GB40: =$B$75 -> 0.5 | GC40: =NORMDIST(GB40,GA40,GA42,TRUE) -> 0.001087548549 | GD40: =CONCATENATE($B$75,$A$74,$C$75) -> 0.5 to 1 | GE40: =(GC41-GC40)*GA44 -> 0.2619614402
A41: St. Dv. | B41: =$B$76 -> 1 | C41: =NORMDIST(B41,A40,A42,TRUE) -> 0.02977856722 | D41: =CONCATENATE($B$76,$A$74,$C$76) -> 1 to 1.5 | E41: =(C42-C41)*A44 -> 5.601833275 | G41: Biomass | N41: St. Dv. | O41: =$B$76 -> 1 | P41: =NORMDIST(O41,N40,N42,TRUE) -> 0.02977856722 | Q41: =CONCATENATE($B$76,$A$74,$C$76) -> 1 to 1.5 | R41: =(P42-P41)*N44 -> 8.402749912 | T41: Biomass | AA41: St. Dv. | AB41: =$B$76 -> 1 | AC41: =NORMDIST(AB41,AA40,AA42,TRUE) -> 0.02977856722 | AD41: =CONCATENATE($B$76,$A$74,$C$76) -> 1 to 1.5 | AE41: =(AC42-AC41)*AA44 -> 8.402749912 | AG41: Biomass | AN41: St. Dv. | AO41: =$B$76 -> 1 | AP41: =NORMDIST(AO41,AN40,AN42,TRUE) -> 0.02977856722 | AQ41: =CONCATENATE($B$76,$A$74,$C$76) -> 1 to 1.5 | AR41: =(AP42-AP41)*AN44 -> 8.402749912 | AT41: Biomass | BA41: St. Dv. | BB41: =$B$76 -> 1 | BC41: =NORMDIST(BB41,BA40,BA42,TRUE) -> 0.02977856722 | BD41: =CONCATENATE($B$76,$A$74,$C$76) -> 1 to 1.5 | BE41: =(BC42-BC41)*BA44 -> 2.99470918 | BG41: Biomass | BN41: St. Dv. | BO41: =$B$76 -> 1 | BP41: =NORMDIST(BO41,BN40,BN42,TRUE) -> 0.005014958431 | BQ41: =CONCATENATE($B$76,$A$74,$C$76) -> 1 to 1.5 | BR41: =(BP42-BP41)*BN44 -> 2.958734323 | BT41: Biomass | CA41: St. Dv. | CB41: =$B$76 -> 1 | CC41: =NORMDIST(CB41,CA40,CA42,TRUE) -> 0.004551773402 | CD41: =CONCATENATE($B$76,$A$74,$C$76) -> 1 to 1.5 | CE41: =(CC42-CC41)*CA44 -> 2.433483375 | CG41: Biomass | CN41: St. Dv. | CO41: =$B$76 -> 1 | CP41: =NORMDIST(CO41,CN40,CN42,TRUE) -> 0.004161341699 | CQ41: =CONCATENATE($B$76,$A$74,$C$76) -> 1 to 1.5 | CR41: =(CP42-CP41)*CN44 -> 1.998757774 | CT41: Biomass | DA41: St. Dv. | DB41: =$B$76 -> 1 | DC41: =NORMDIST(DB41,DA40,DA42,TRUE) -> 0.003829051812 | DD41: =CONCATENATE($B$76,$A$74,$C$76) -> 1 to 1.5 | DE41: =(DC42-DC41)*DA44 -> 1.641028346 | DG41: Biomass | DN41: St. Dv. | DO41: =$B$76 -> 1 | DP41: =NORMDIST(DO41,DN40,DN42,TRUE) -> 0.003543766204 | DQ41: =CONCATENATE($B$76,$A$74,$C$76) -> 1 to 1.5 | DR41: =(DP42-DP41)*DN44 -> 1.348300637 | DT41: Biomass | EA41: St. Dv. | EB41: =$B$76 -> 1 | EC41: =NORMDIST(EB41,EA40,EA42,TRUE) -> 0.003296883396 | ED41: =CONCATENATE($B$76,$A$74,$C$76) -> 1 to 1.5 | EE41: =(EC42-EC41)*EA44 -> 1.109932838 | EG41: Biomass | EN41: St. Dv. | EO41: =$B$76 -> 1 | EP41: =NORMDIST(EO41,EN40,EN42,TRUE) -> 0.003081680167 | EQ41: =CONCATENATE($B$76,$A$74,$C$76) -> 1 to 1.5 | ER41: =(EP42-EP41)*EN44 -> 0.916585406 | ET41: Biomass | FA41: St. Dv. | FB41: =$B$76 -> 1 | FC41: =NORMDIST(FB41,FA40,FA42,TRUE) -> 0.002892842988 | FD41: =CONCATENATE($B$76,$A$74,$C$76) -> 1 to 1.5 | FE41: =(FC42-FC41)*FA44 -> 0.7601879068 | FG41: Biomass | FN41: St. Dv. | FO41: =$B$76 -> 1 | FP41: =NORMDIST(FO41,FN40,FN42,TRUE) -> 0.002726129441 | FQ41: =CONCATENATE($B$76,$A$74,$C$76) -> 1 to 1.5 | FR41: =(FP42-FP41)*FN44 -> 0.6469484392 | FT41: Biomass | GA41: St. Dv. | GB41: =$B$76 -> 1 | GC41: =NORMDIST(GB41,GA40,GA42,TRUE) -> 0.002578120395 | GD41: =CONCATENATE($B$76,$A$74,$C$76) -> 1 to 1.5 | GE41: =(GC42-GC41)*GA44 -> 0.5520827221 | GG41: Biomass
A42: =A40*A51 -> 0.69 | B42: =$B$77 -> 1.5 | C42: =NORMDIST(B42,A40,A42,TRUE) -> 0.1231424551 | D42: =CONCATENATE($B$77,$A$74,$C$77) -> 1.5 to 2 | E42: =(C43-C42)*A44 -> 12.52305958 | G42: Harvested | N42: =N40*A51 -> 0.69 | O42: =$B$77 -> 1.5 | P42: =NORMDIST(O42,N40,N42,TRUE) -> 0.1231424551 | Q42: =CONCATENATE($B$77,$A$74,$C$77) -> 1.5 to 2 | R42: =(P43-P42)*N44 -> 18.78458937 | T42: Harvested | AA42: =AA40*A51 -> 0.69 | AB42: =$B$77 -> 1.5 | AC42: =NORMDIST(AB42,AA40,AA42,TRUE) -> 0.1231424551 | AD42: =CONCATENATE($B$77,$A$74,$C$77) -> 1.5 to 2 | AE42: =(AC43-AC42)*AA44 -> 18.78458937 | AG42: Harvested | AN42: =AN40*A51 -> 0.69 | AO42: =$B$77 -> 1.5 | AP42: =NORMDIST(AO42,AN40,AN42,TRUE) -> 0.1231424551 | AQ42: =CONCATENATE($B$77,$A$74,$C$77) -> 1.5 to 2 | AR42: =(AP43-AP42)*AN44 -> 18.78458937 | AT42: Harvested | BA42: =BA40*A51 -> 0.69 | BB42: =$B$77 -> 1.5 | BC42: =NORMDIST(BB42,BA40,BA42,TRUE) -> 0.1231424551 | BD42: =CONCATENATE($B$77,$A$74,$C$77) -> 1.5 to 2 | BE42: =(BC43-BC42)*BA44 -> 6.694758601 | BG42: Harvested | BN42: =BN40*A51 -> 1.318327007 | BO42: =$B$77 -> 1.5 | BP42: =NORMDIST(BO42,BN40,BN42,TRUE) -> 0.01406288593 | BQ42: =CONCATENATE($B$77,$A$74,$C$77) -> 1.5 to 2 | BR42: =(BP43-BP42)*BN44 -> 6.737137822 | BT42: Harvested | CA42: =CA40*A51 -> 1.378944378 | CB42: =$B$77 -> 1.5 | CC42: =NORMDIST(CB42,CA40,CA42,TRUE) -> 0.01236659253 | CD42: =CONCATENATE($B$77,$A$74,$C$77) -> 1.5 to 2 | CE42: =(CC43-CC42)*CA44 -> 5.445362127 | CG42: Harvested | CN42: =CN40*A51 -> 1.439589508 | CO42: =$B$77 -> 1.5 | CP42: =NORMDIST(CO42,CN40,CN42,TRUE) -> 0.01097102196 | CQ42: =CONCATENATE($B$77,$A$74,$C$77) -> 1.5 to 2 | CR42: =(CP43-CP42)*CN44 -> 4.395062286 | CT42: Harvested | DA42: =DA40*A51 -> 1.500262433 | DB42: =$B$77 -> 1.5 | DC42: =NORMDIST(DB42,DA40,DA42,TRUE) -> 0.0098107427 | DD42: =CONCATENATE($B$77,$A$74,$C$77) -> 1.5 to 2 | DE42: =(DC43-DC42)*DA44 -> 3.546362578 | DG42: Harvested | DN42: =DN40*A51 -> 1.560963188 | DO42: =$B$77 -> 1.5 | DP42: =NORMDIST(DO42,DN40,DN42,TRUE) -> 0.008836755768 | DQ42: =CONCATENATE($B$77,$A$74,$C$77) -> 1.5 to 2 | DR42: =(DP43-DP42)*DN44 -> 2.864354015 | DT42: Harvested | EA42: =EA40*A51 -> 1.621691802 | EB42: =$B$77 -> 1.5 | EC42: =NORMDIST(EB42,EA40,EA42,TRUE) -> 0.008011892156 | ED42: =CONCATENATE($B$77,$A$74,$C$77) -> 1.5 to 2 | EE42: =(EC43-EC42)*EA44 -> 2.318773911 | EG42: Harvested | EN42: =EN40*A51 -> 1.682448307 | EO42: =$B$77 -> 1.5 | EP42: =NORMDIST(EO42,EN40,EN42,TRUE) -> 0.007307616444 | EQ42: =CONCATENATE($B$77,$A$74,$C$77) -> 1.5 to 2 | ER42: =(EP43-EP42)*EN44 -> 1.883783553 | ET42: Harvested | FA42: =FA40*A51 -> 1.743232723 | FB42: =$B$77 -> 1.5 | FC42: =NORMDIST(FB42,FA40,FA42,TRUE) -> 0.006701775256 | FD42: =CONCATENATE($B$77,$A$74,$C$77) -> 1.5 to 2 | FE42: =(FC43-FC42)*FA44 -> 1.537682376 | FG42: Harvested | FN42: =FN40*A51 -> 1.80404505 | FO42: =$B$77 -> 1.5 | FP42: =NORMDIST(FO42,FN40,FN42,TRUE) -> 0.006176989929 | FQ42: =CONCATENATE($B$77,$A$74,$C$77) -> 1.5 to 2 | FR42: =(FP43-FP42)*FN44 -> 1.288558638 | FT42: Harvested | GA42: =GA40*A51 -> 1.864885172 | GB42: =$B$77 -> 1.5 | GC42: =NORMDIST(GB42,GA40,GA42,TRUE) -> 0.005719494798 | GD42: =CONCATENATE($B$77,$A$74,$C$77) -> 1.5 to 2 | GE42: =(GC43-GC42)*GA44 -> 1.083262674 | GG42: Harvested
A43: Number | B43: =$B$78 -> 2 | C43: =NORMDIST(B43,A40,A42,TRUE) -> 0.3318601148 | D43: =CONCATENATE($B$78,$A$74,$C$78) -> 2 to 2.5 | E43: =(C44-C43)*A44 -> 16.9305797 | G43: -0.8838 | H43: 3.1908 | I43: =IF(J36>0,LOG10(J36),0) -> 0 | J43: =10^(G43+(H43*I43)) -> 0.1306772541 | K43: =I35 -> 0 | L43: =J43*K43 -> 0 | N43: Number | O43: =$B$78 -> 2 | P43: =NORMDIST(O43,N40,N42,TRUE) -> 0.3318601148 | Q43: =CONCATENATE($B$78,$A$74,$C$78) -> 2 to 2.5 | R43: =(P44-P43)*N44 -> 25.39586955 | T43: -0.8838 | U43: 3.1908 | V43: =IF(W36>0,LOG10(W36),0) -> 0 | W43: =10^(T43+(U43*V43)) -> 0.1306772541 | X43: =V35 -> 0 | Y43: =W43*X43 -> 0 | AA43: Number | AB43: =$B$78 -> 2 | AC43: =NORMDIST(AB43,AA40,AA42,TRUE) -> 0.3318601148 | AD43: =CONCATENATE($B$78,$A$74,$C$78) -> 2 to 2.5 | AE43: =(AC44-AC43)*AA44 -> 25.39586955 | AG43: -0.8838 | AH43: 3.1908 | AI43: =IF(AJ36>0,LOG10(AJ36),0) -> 0 | AJ43: =10^(AG43+(AH43*AI43)) -> 0.1306772541 | AK43: =AI35 -> 0 | AL43: =AJ43*AK43 -> 0 | AN43: Number | AO43: =$B$78 -> 2 | AP43: =NORMDIST(AO43,AN40,AN42,TRUE) -> 0.3318601148 | AQ43: =CONCATENATE($B$78,$A$74,$C$78) -> 2 to 2.5 | AR43: =(AP44-AP43)*AN44 -> 25.39586955 | AT43: -0.8838 | AU43: 3.1908 | AV43: =IF(AW36>0,LOG10(AW36),0) -> 0.8287470723 | AW43: =10^(AT43+(AU43*AV43)) -> 57.61905861 | AX43: =AV35 -> 20.86731111 | AY43: =AW43*AX43 -> 1202.354822 | BA43: Number | BB43: =$B$78 -> 2 | BC43: =NORMDIST(BB43,BA40,BA42,TRUE) -> 0.3318601148 | BD43: =CONCATENATE($B$78,$A$74,$C$78) -> 2 to 2.5 | BE43: =(BC44-BC43)*BA44 -> 9.050994553 | BG43: -0.8838 | BH43: 3.1908 | BI43: =IF(BJ36>0,LOG10(BJ36),0) -> 0.9057328856 | BJ43: =10^(BG43+(BH43*BI43)) -> 101.4407593 | BK43: =BI35 -> 20.27332892 | BL43: =BJ43*BK43 -> 2056.541879 | BN43: Number | BO43: =$B$78 -> 2 | BP43: =NORMDIST(BO43,BN40,BN42,TRUE) -> 0.03466532194 | BQ43: =CONCATENATE($B$78,$A$74,$C$78) -> 2 to 2.5 | BR43: =(BP44-BP43)*BN44 -> 13.30755305 | BT43: -0.8838 | BU43: 3.1908 | BV43: =IF(BW36>0,LOG10(BW36),0) -> 0.8507380718 | BW43: =10^(BT43+(BU43*BV43)) -> 67.72282084 | BX43: =BV35 -> 18.02306003 | BY43: =BW43*BX43 -> 1220.572465 | CA43: Number | CB43: =$B$78 -> 2 | CC43: =NORMDIST(CB43,CA40,CA42,TRUE) -> 0.02985367321 | CD43: =CONCATENATE($B$78,$A$74,$C$78) -> 2 to 2.5 | CE43: =(CC44-CC43)*CA44 -> 10.69871693 | CG43: -0.8838 | CH43: 3.1908 | CI43: =IF(CJ36>0,LOG10(CJ36),0) -> 0.8547990052 | CJ43: =10^(CG43+(CH43*CI43)) -> 69.77384653 | CK43: =CI35 -> 26.07268929 | CL43: =CJ43*CK43 -> 1819.191821 | CN43: Number | CO43: =$B$78 -> 2 | CP43: =NORMDIST(CO43,CN40,CN42,TRUE) -> 0.02594480683 | CQ43: =CONCATENATE($B$78,$A$74,$C$78) -> 2 to 2.5 | CR43: =(CP44-CP43)*CN44 -> 8.576118508 | CT43: -0.8838 | CU43: 3.1908 | CV43: =IF(CW36>0,LOG10(CW36),0) -> 0.883867185 | CW43: =10^(CT43+(CU43*CV43)) -> 86.38600974 | CX43: =CV35 -> 18.52442602 | CY43: =CW43*CX43 -> 1600.251246 | DA43: Number | DB43: =$B$78 -> 2 | DC43: =NORMDIST(DB43,DA40,DA42,TRUE) -> 0.02273754239 | DD43: =CONCATENATE($B$78,$A$74,$C$78) -> 2 to 2.5 | DE43: =(DC44-DC43)*DA44 -> 6.865080599 | DG43: -0.8838 | DH43: 3.1908 | DI43: =IF(DJ36>0,LOG10(DJ36),0) -> 0.8877550663 | DJ43: =10^(DG43+(DH43*DI43)) -> 88.889173 | DK43: =DI35 -> 25.05980787 | DL43: =DJ43*DK43 -> 2227.545597 | DN43: Number | DO43: =$B$78 -> 2 | DP43: =NORMDIST(DO43,DN40,DN42,TRUE) -> 0.02008127757 | DQ43: =CONCATENATE($B$78,$A$74,$C$78) -> 2 to 2.5 | DR43: =(DP44-DP43)*DN44 -> 5.496391395 | DT43: -0.8838 | DU43: 3.1908 | DV43: =IF(DW36>0,LOG10(DW36),0) -> 0.8919137634 | DW43: =10^(DT43+(DU43*DV43)) -> 91.6470386 | DX43: =DV35 -> 31.80350379 | DY43: =DW43*DX43 -> 2914.696939 | EA43: Number | EB43: =$B$78 -> 2 | EC43: =NORMDIST(EB43,EA40,EA42,TRUE) -> 0.01786207311 | ED43: =CONCATENATE($B$78,$A$74,$C$78) -> 2 to 2.5 | EE43: =(EC44-EC43)*EA44 -> 4.408124557 | EG43: -0.8838 | EH43: 3.1908 | EI43: =IF(EJ36>0,LOG10(EJ36),0) -> 0.9184327533 | EJ43: =10^(EG43+(EH43*EI43)) -> 111.3615403 | EK43: =EI35 -> 23.13340075 | EL43: =EJ43*EK43 -> 2576.17114 | EN43: Number | EO43: =$B$78 -> 2 | EP43: =NORMDIST(EO43,EN40,EN42,TRUE) -> 0.0159928401 | EQ43: =CONCATENATE($B$78,$A$74,$C$78) -> 2 to 2.5 | ER43: =(EP44-EP43)*EN44 -> 3.546561294 | ET43: -0.8838 | EU43: 3.1908 | EV43: =IF(EW36>0,LOG10(EW36),0) -> 0.9223843117 | EW43: =10^(ET43+(EU43*EV43)) -> 114.6420285 | EX43: =EV35 -> 28.2852687 | EY43: =EW43*EX43 -> 3242.680579 | FA43: Number | FB43: =$B$78 -> 2 | FC43: =NORMDIST(FB43,FA40,FA42,TRUE) -> 0.01440635457 | FD43: =CONCATENATE($B$78,$A$74,$C$78) -> 2 to 2.5 | FE43: =(FC44-FC43)*FA44 -> 2.866307918 | FG43: -0.8838 | FH43: 3.1908 | FI43: =IF(FJ36>0,LOG10(FJ36),0) -> 0.9471218274 | FJ43: =10^(FG43+(FH43*FI43)) -> 137.4916509 | FK43: =FI35 -> 20.87344279 | FL43: =FJ43*FK43 -> 2869.924109 | FN43: Number | FO43: =$B$78 -> 2 | FP43: =NORMDIST(FO43,FN40,FN42,TRUE) -> 0.01305023642 | FQ43: =CONCATENATE($B$78,$A$74,$C$78) -> 2 to 2.5 | FR43: =(FP44-FP43)*FN44 -> 2.37786368 | FT43: -0.8838 | FU43: 3.1908 | FV43: =IF(FW36>0,LOG10(FW36),0) -> 0.9508825172 | FW43: =10^(FT43+(FU43*FV43)) -> 141.3435308 | FX43: =FV35 -> 25.387153 | FY43: =FW43*FX43 -> 3588.309843 | GA43: Number | GB43: =$B$78 -> 2 | GC43: =NORMDIST(GB43,GA40,GA42,TRUE) -> 0.01188330594 | GD43: =CONCATENATE($B$78,$A$74,$C$78) -> 2 to 2.5 | GE43: =(GC44-GC43)*GA44 -> 1.978914869 | GG43: -0.8838 | GH43: 3.1908 | GI43: =IF(GJ36>0,LOG10(GJ36),0) -> 0.974060457 | GJ43: =10^(GG43+(GH43*GI43)) -> 167.5838279 | GK43: =GI35 -> 19.39614811 | GL43: =GJ43*GK43 -> 3250.480747
